Workbook

Sheet MAIN
A1: الجمهورية الجزائرية الديمقراطية الشعبية
A2: وزارة التربية الوطنية
A4: المديرية .........
A5: مديرية التربية لولاية تلمسان
A8: المؤسسة :
A9: ثانوية الخوارزمي - مغنية
A10: المؤسسة........
A12: حرر بـ :
A13: مغنية في
A14: 2022/2021

Sheet BASE
H3: الحجم الساعي اليــــــومي
B4: ترقيم تلقائي | C4: الأقسام | E4: اسم الأستاذ | F4: التخصص | H4: الأيـــــــام | I4: سنة أولى | J4: سنة ثانية | K4: سنة ثالثة | L4: عدد الحصص المبرمجة | M4: عدد الأساتذة العاملين
B5: =IF($C5="","",ROW($A1)) -> 1 | C5: 3ت ر/هك | E5: ديب فاطمة | F5: رياضيات | O5: الأقسام | P5: المواد | Q5: الجنس | R5: الصفة | S5: ملاحظات | T5: تبرير الغياب | U5: الأيام | V5: الشـــعب | W5: السنوات
B6: =IF($C6="","",ROW($A2)) -> 2 | C6: 3ت ر/هم | E6: بوعريشة الهام | F6: رياضيات | H6: الأحد | I6: 73 | J6: 49 | K6: 50 | L6: =SUM(I6:K6) -> 172 | M6: 33 | O6: 3ت ر/هم | P6: رياضيات | Q6: ذكر | R6: D1 | S6: نصف داخلي ذكر | T6: ندوة خارجية | U6: الأحد | V6: تقني رياضي هندسة مدنية | W6: الأولى
B7: 3 | C7: 3ت إ01 | E7: مدوخ فاطمة الزهراء | F7: رياضيات | H7: الإثنين | I7: 67 | J7: 60 | K7: 46 | L7: =SUM(I7:K7) -> 173 | M7: 41 | O7: 3ت ر/هك | P7: فيزياء | Q7: أنثى | R7: D2 | S7: نصف داخلي أنثى | T7: إضراب | U7: الإثنين | V7: تقني رياضي هندسة كهربائية | W7: الثانية
B8: 4 | C8: 3ع ت01 | E8: بونخالة أسماء | F8: رياضيات | H8: الثلاثاء | I8: 71 | J8: 47 | K8: 43 | L8: =SUM(I8:K8) -> 161 | M8: 36 | O8: 3ت ر/ه طرائق | P8: علوم ط | R8: E1 | S8: خارجي ذكر | T8: وفاة أحد الأقارب | U8: الثلاثاء | V8: تقني رياضي هندسة ميكانيكية | W8: الثالثة
B9: 5 | C9: 3ع ت02 | E9: مالو ياسمينة | F9: رياضيات | H9: الأربعاء | I9: 55 | J9: 56 | K9: 52 | L9: =SUM(I9:K9) -> 163 | M9: 37 | O9: 3ت ر/ه ميكا | P9: أدب عربي | R9: E2 | S9: خارجي أنثى | T9: اجتماع | U9: الأربعاء | V9: تقني رياضي هندسة الطرائق
B10: 6 | C10: 3أ ف01 | E10: قوراري أحمد | F10: فيزياء | H10: الخميس | I10: 62 | J10: 43 | K10: 54 | L10: =SUM(I10:K10) -> 159 | M10: 35 | O10: 3ع ت01 | P10: لغة فرنسية | T10: شهادة طبية | U10: الخميس | V10: علـــــوم تجريبيــة
B11: 7 | C11: 3أ ف02 | E11: زيرار سميرة | F11: فيزياء | O11: 3ع ت02 | P11: لغة إنجليزية | T11: طلب غياب | V11: تسييـــر و إقتصــــــاد
B12: 8 | C12: 3لغات /إسبا | E12: عشماوي فؤاد | F12: فيزياء | O12: 3ع ت03 | P12: إسبانية | T12: بترخيص | V12: أداب و فلســــفة
B13: 9 | C13: 2ت ر/هك | E13: ناضور محمد | F13: فيزياء | I13: أشهر السنة | O13: 3ع ت04 | P13: إجتماعيات | T13: مسابقة ترقية | V13: لغـــات أجنبيــــة ألمانية
B14: 10 | C14: 2ت ر/هم | E14: الوزان توفيق | F14: فيزياء | I14: سبتمبر 2021 | O14: 3ع ت05 | P14: فلسفة | T14: مرض الابن | V14: لغات أجنبية إيطالية
B15: 11 | C15: 2ت إ01 | E15: درني اسماعيل | F15: علوم ط | I15: أكتوبر 2021 | O15: 3ع ت06 | P15: معلوماتية | T15: لجنة تثبيت | V15: لغـــات أجنبيـة إسبانيــة
B16: 12 | C16: 2ع ت01 | E16: لعشب آمنة | F16: علوم ط | I16: نوفمبر 2021 | O16: 3ع ت07 | P16: تكنولوجيا | T16: مرض | V16: جدع مشترك علوم و تكنولوجيا
B17: 13 | C17: 2ع ت02 | E17: براهمي عبد الباقي | F17: علوم ط | I17: ديسمبر 2021 | O17: 3ع ت08 | P17: رياضة بدنية | T17: عطلة مرضية | V17: جـــدع مشتـــرك أداب
B18: 14 | C18: 2أ ف01 | E18: هرواط سارة | F18: علوم ط | I18: جانفي 2022 | O18: 3ت إ01 | P18: إقتصاد | T18: عطلة أمومة
B19: 15 | C19: 2أ ف02 | E19: حاسي بن عودة | F19: ع,إسلامية | I19: فبراير 2021 | O19: 3ت إ02 | P19: ع,إسلامية
B20: 16 | C20: 2لغات /إسبا | E20: بوحاجب واسيني | F20: ع,إسلامية | I20: مارس 2021 | O20: 3ت إ03
B21: 17 | C21: ج م ع تك01 | E21: صبيان فاطمة | F21: أدب عربي | I21: أبريل 2021 | O21: 3ت إ04
B22: 18 | C22: ج م ع تك02 | E22: صبيان سمية | F22: أدب عربي | I22: ماي 2021 | O22: 3أ ف01
B23: 19 | C23: ج م ع تك03 | E23: أوزين ليلى | F23: أدب عربي | I23: جوان 2021 | O23: 3أ ف02
B24: 20 | C24: ج م ع تك04 | E24: معروف علي | F24: أدب عربي | O24: 3أ ف03
B25: 21 | C25: ج م ع تك05 | E25: عيساوي آمنة | F25: أدب عربي | O25: 3أ ف04
B26: 22 | C26: ج م أ01 | E26: شيخ ياسين | F26: فلسفة | O26: 3أ ف05
B27: 23 | C27: ج م أ02 | E27: بلحاج منير | F27: فلسفة | O27: 3لغات
E28: آجد سليمة | F28: إجتماعيات | O28: 3لغات /إسبا
E29: قان محمد شهر الدين | F29: إجتماعيات | O29: 3لغات /ألما
E30: موس محمد | F30: إجتماعيات | O30: 3لغات /إيطا
E31: بودربالة ع القادر | F31: إجتماعيات | O31: 2ت ر/هم
E32: عباد أسماء | F32: لغة فرنسية | O32: 2ت ر/هك
E33: كوليلي وفاء | F33: لغة فرنسية | O33: 2ت ر/ه طرائق
E34: رابحي ايمان | F34: لغة فرنسية | O34: 2ت ر/ه ميكا
E35: بومانة هداية | F35: لغة فرنسية | O35: 2ع ت01
E36: معزوز مليكة | F36: لغة إنجليزية | O36: 2ع ت02
E37: شنتوف سليمة | F37: لغة إنجليزية | O37: 2ع ت03
E38: مزاري سهام | F38: لغة إنجليزية | O38: 2ع ت04
E39: العرباوي حياة | F39: لغة إنجليزية | O39: 2ع ت05
E40: سفاني حياة | F40: إسبانية | O40: 2ع ت06
E41: دلافي أحمد | F41: تكنولوجيا | O41: 2ع ت07
E42: جبور صافية | F42: إقتصاد | O42: 2ع ت08
E43: بوحميدي ايمان | F43: إقتصاد | O43: 2ت إ01
B44: =IF($C44="","",ROW($A40)) ->  | E44: عشي زهير | F44: تكنولوجيا | O44: 2ت إ02
E45: زار مصطفى | F45: تكنولوجيا | O45: 2ت إ03
E46: أبرور عبد المجيد | F46: رياضة بدنية | O46: 2ت إ04
E47: لقبوري مصطفى | F47: رياضة بدنية | O47: 2أ ف01
E48: تربش مصطفى | F48: رياضة بدنية | O48: 2أ ف02
O49: 2أ ف03
O50: 2أ ف04
O51: 2أ ف05
O52: 2لغات
O53: 2لغات /إسبا
O54: 2لغات /ألما
O55: 2لغات /إيطا
O56: ج م ع تك01
O57: ج م ع تك02
O58: ج م ع تك03
O59: ج م ع تك04
O60: ج م ع تك05
O61: ج م ع تك06
O62: ج م ع تك07
O63: ج م ع تك08
O64: ج م ع تك09
O65: ج م ع تك10
O66: ج م ع تك11
B67: =IF($C67="","",ROW($A63)) ->  | O67: ج م أ01
O68: ج م أ02
O69: ج م أ03
B70: =IF($C70="","",ROW($A66)) ->  | O70: ج م أ04
B71: =IF($C71="","",ROW($A67)) ->  | O71: ج م أ05
O72: ج م أ06
O73: ج م أ07
O74: ج م أ08
O75: ج م أ09
O76: ج م أ10
E89: الحجم الساعي

Sheet EMPL PROF
A1: 1 | B1: 2 | C1: 3 | D1: 4 | E1: 5 | F1: 6 | G1: 7 | H1: 8 | I1: 9 | J1: 10 | K1: 11 | L1: 12 | M1: 13 | N1: 14 | O1: 15 | P1: 16 | Q1: 17 | R1: 18 | S1: 19 | T1: 20 | U1: 21 | V1: 22 | W1: 23 | X1: 24 | Y1: 25 | Z1: 26 | AA1: 27 | AB1: 28 | AC1: 29 | AD1: 30 | AE1: 31 | AF1: 32 | AG1: 33 | AH1: 34 | AI1: 35 | AJ1: 36 | AK1: 37 | AL1: 38 | AM1: 39 | AN1: 40 | AO1: 41 | AP1: 42 | AQ1: 43 | AR1: 44 | AS1: 45 | AT1: 46 | AU1: 47 | AV1: 48 | AW1: 49 | AX1: 50 | AY1: 51 | AZ1: 52 | BA1: 53 | BB1: 54 | BC1: 55 | BD1: 56 | BE1: 57 | BF1: 58
A2: الرقم | B2: اسم و لقب الأستاذ | C2: المواد | D2: =BASE!U6 -> الأحد | O2: =BASE!U7 -> الإثنين | Z2: =BASE!U8 -> الثلاثاء | AK2: =BASE!U9 -> الأربعاء | AV2: =BASE!U10 -> الخميس
D3: ح1 | E3: ح2 | F3: ح3 | G3: ح4 | H3: ح5 | I3: ح6 | J3: ح7 | K3: ح8 | L3: ح9 | M3: ح10 | N3: ح11 | O3: ح1 | P3: ح2 | Q3: ح3 | R3: ح4 | S3: ح5 | T3: ح6 | U3: ح7 | V3: ح8 | W3: ح9 | X3: ح10 | Y3: ح11 | Z3: ح1 | AA3: ح2 | AB3: ح3 | AC3: ح4 | AD3: ح5 | AE3: ح6 | AF3: ح7 | AG3: ح8 | AH3: ح9 | AI3: ح10 | AJ3: ح11 | AK3: ح1 | AL3: ح2 | AM3: ح3 | AN3: ح4 | AO3: ح5 | AP3: ح6 | AQ3: ح7 | AR3: ح8 | AS3: ح9 | AT3: ح10 | AU3: ح11 | AV3: ح1 | AW3: ح2 | AX3: ح3 | AY3: ح4 | AZ3: ح5 | BA3: ح6 | BB3: ح7 | BC3: ح8 | BD3: ح9 | BE3: ح10 | BF3: ح11
A4: 1 | B4: =BASE!E5 -> ديب فاطمة | C4: رياضيات | D4: 1ع1/1 | E4: 1ع1/1 | G4: 1ع2/1 | H4: 1ع2/1 | K4: 3أف1/1 | L4: 3أف2 | T4: 1ع1/5 | U4: 1ع1/5 | V4: 1ع2/5 | W4: 1ع2/5 | Z4: 1ع1/1 | AA4: 1ع1/1 | AC4: 1ع2/1 | AD4: 1ع2/1 | AF4: 3أف2/1 | AG4: 3أف1/1 | AL4: 3أف2/1 | AM4: 3أف2 | AP4: 1ع1/5 | AQ4: 1ع1/5 | AR4: 1ع2/5 | AS4: 1ع2/5
A5: 2 | B5: =BASE!E6 -> بوعريشة الهام | C5: رياضيات | E5: 1ع1/3 | F5: 1ع1/3 | G5: 3ت ر | H5: 3ت ر | S5: 3لغات | T5: 1ع1/4 | U5: 1ع1/4 | V5: 1ع2/4 | W5: 1ع2/4 | Z5: 1ع2/3 | AA5: 1ع2/3 | AC5: 1ع1/3 | AD5: 1ع1/3 | AP5: 1ع2/3 | AQ5: 1ع2/3 | AR5: 1ع2/4 | AS5: 1ع2/4 | AV5: 1ع1/4 | AW5: 1ع1/4 | AX5: 3لغات | AY5: 3ت ر | AZ5: 3ت ر
A6: 3 | B6: =BASE!E7 -> مدوخ فاطمة الزهراء | C6: رياضيات | D6: 1ع2/2 | E6: 1ع2/2 | G6: 1ع1/2 | H6: 1ع1/2 | P6: 1أ2/1 | Q6: 1أ1/1 | T6: 3ع ت 2 | U6: 3ع ت 2 | V6: 3ت إ/2 | W6: 3ت إ/2 | Z6: 1ع1/2 | AA6: 1ع1/2 | AB6: 1ع2/2 | AC6: 1ع2/2 | AD6: 3ت إ/1 | AK6: 1أ1/1 | AL6: 1أ2/1 | AP6: 3ت إ/2 | AR6: 3ت إ/1 | AS6: 3ت إ/1 | AW6: 3ع ت 2 | AX6: 3ع ت 2
A7: 4 | B7: =BASE!E8 -> بونخالة أسماء | C7: رياضيات | D7: 3ع2/1 | E7: 3ع2/1 | H7: 2ع2/1 | I7: 2ع1/1 | J7: 2ع1/1 | K7: 2أف2 | T7: 3ع2/1 | U7: 3ع2/1 | V7: 2ت ر | W7: 2ت ر | AC7: 3ع1/1 | AD7: 3ع1/1 | AK7: 2ع2/1 | AL7: 2ع2/1 | AM7: 2ع1/1 | AN7: 2أف2 | AP7: 3ع1/1 | AQ7: 3ع1/1 | AY7: 2ت ر | AZ7: 2ت ر
A8: 5 | B8: =BASE!E9 -> مالو ياسمينة | C8: رياضيات | I8: 1أ2/2 | J8: 2ع2/2 | K8: 2ع1/2 | L8: 2أف1/1 | O8: 2ت إ/2 | P8: 2ت إ/2 | Q8: 2لغات | R8: 2ت إ/1 | S8: 1أ1/2 | AE8: 2ت إ/1 | AF8: 2لغات | AG8: 2أف2/1 | AH8: 2ت إ/2 | AK8: 2ع1/2 | AL8: 2ع1/2 | AM8: 2ع2/2 | AN8: 2ع2/2 | AO8: 2أف1/1 | BA8: 2ت إ/1 | BB8: 1أ2/2 | BC8: 1أ1/2 | BD8: 2أف2/1
A9: 6 | B9: =BASE!E10 -> قوراري أحمد | C9: الفيزياء | E9: 1ع1/4 | F9: 1ع2/4 | G9: 1ع2/4 | O9: 2ع2/1 | P9: 2ع2/1 | R9: 2ع1/1 | S9: 2ع1/1 | AB9: 1ع2/4 | AC9: 1ع1/4 | AD9: 1ع1/4 | AG9: 2ع1/1 | AH9: 2ع1/1 | AM9: 2ع2/1 | AN9: 2ع2/1
A10: 7 | B10: =BASE!E11 -> زيرار سميرة | C10: الفيزياء | D10: 1ع1/2 | E10: 1ع1/2 | F10: 3ع2/1 | G10: 3ع1/1 | H10: 3ع1/1 | J10: 1أ1/2 | K10: 1أ2/2 | T10: 1ع2/2 | U10: 1ع2/2 | V10: 3ع1/1 | W10: 1ع1/2 | AA10: 3ع2/1 | AB10: 3ع2/1 | AD10: 1ع2/2
A11: 8 | B11: =BASE!E12 -> عشماوي فؤاد | C11: الفيزياء | O11: 2ع1/2 | P11: 2ع1/2 | Q11: 2ع2/2 | R11: 2ع2/2 | Z11: 3ت ر | AA11: 3ت ر | AE11: 2ع1/2 | AF11: 2ع1/2 | AG11: 2ع2/2 | AH11: 2ع2/2 | AV11: 3ت ر | AW11: 3ت ر | BA11: 2أف1/1 | BB11: 2أف2/1
A12: 9 | B12: =BASE!E13 -> ناضور محمد | C12: الفيزياء | D12: 1ع2/5 | E12: 1ع2/5 | F12: 3ع ت 2 | T12: 1ع2/5 | V12: 1ع1/5 | W12: 1ع1/3 | AA12: 3ع ت 2 | AB12: 3ع ت 2 | AC12: 1ع2/3 | AD12: 1ع2/3 | AV12: 1ع1/3 | AW12: 1ع1/3 | AX12: 1ع2/3 | AY12: 1ع1/5 | AZ12: 1ع1/5
A13: 10 | B13: =BASE!E14 -> الوزان توفيق | C13: الفيزياء | D13: 2ت ر | E13: 2ت ر | F13: 1ع2/1 | G13: 1ع1/1 | H13: 1ع1/1 | Z13: 1ع2/1 | AA13: 1ع2/1 | AC13: 2ت ر | AD13: 2ت ر | AK13: 1ع1/1 | AL13: 2ت ر | BA13: 2أف2 | BC13: 1أ1/1 | BD13: 1أ2/1
A14: 11 | B14: =BASE!E15 -> درني اسماعيل | C14: علوم طبيعية | D14: 3ع1/1 | E14: 3ع1/1 | F14: 1ع1/2 | G14: 3ع2/1 | H14: 3ع2/1 | Z14: 1ع2/2 | AA14: 3ع1/1 | AB14: 3ع1/1 | AC14: 3ع2/1 | AD14: 3ع2/1 | AE14: 1أ1/2 | AW14: 1ع1/2 | AX14: 1ع1/2 | AY14: 1ع2/2 | AZ14: 1ع2/2 | BA14: 1أ2/2
A15: 12 | B15: =BASE!E16 -> لعشب آمنة | C15: علوم طبيعية | F15: 1ع1/4 | G15: 1ع1/4 | H15: 1ع2/4 | J15: 1أ2/1 | O15: 2ع2/2 | P15: 2ع2/2 | R15: 2ع1/2 | S15: 2ع1/2 | Z15: 1ع2/4 | AA15: 1ع2/4 | AB15: 1ع1/4 | AE15: 2ع2/2 | AF15: 2ع2/2 | AG15: 2ع1/2 | AH15: 2ع1/2
A16: 13 | B16: =BASE!E17 -> براهمي عبد الباقي | C16: علوم طبيعية | G16: 1ع2/3 | H16: 1ع2/3 | I16: 2أف2 | J16: 2أف1/1 | K16: 2أف2/1 | O16: 2ع1/1 | P16: 2ع1/1 | Q16: 2ع2/1 | R16: 2ع2/1 | V16: 1ع1/3 | W16: 1ع2/3 | Z16: 1ع1/3 | AA16: 1ع1/3 | AG16: 2ع2/1 | AH16: 2ع2/1 | AN16: 2ع1/1 | AO16: 2ع1/1
A17: 14 | B17: =BASE!E18 -> هرواط سارة | C17: علوم طبيعية | D17: 3ع ت 2 | E17: 3ع ت 2 | G17: 1ع2/5 | H17: 1ع2/5 | T17: 1ع2/1 | U17: 1ع2/1 | W17: 1ع1/1 | Z17: 1ع1/5 | AA17: 1ع1/5 | AB17: 1ع2/5 | AC17: 3ع ت 2 | AD17: 3ع ت 2 | AV17: 1ع1/5 | AX17: 1ع1/1 | AY17: 1ع1/1 | AZ17: 1ع2/1
A18: 15 | B18: =BASE!E19 -> حاسي بن عودة | C18: علوم إسلامية | D18: 1ع2/4 | E18: 1ع1/5 | I18: 1أ1/1 | J18: 3أف2/1 | K18: 1أ2/1 | L18: 1أ2/2 | Q18: 3أف1/1 | S18: 1أ2/1 | V18: 1ع1/2 | W18: 1ع2/1 | Z18: 3ع2/1 | AA18: 3ت إ/2 | AB18: 1ع2/3 | AC18: 3ت إ/1 | AF18: 1أ1/2 | AG18: 1أ2/2 | AQ18: 1ع2/2 | AS18: 3ع2/1 | AY18: 1ع2/5 | AZ18: 3ت إ/2 | BC18: 3أف2/1 | BD18: 1أ1/2
A19: 16 | B19: =BASE!E20 -> بوحاجب واسيني | C19: علوم إسلامية | I19: 2ع2/2 | J19: 2ع1/2 | K19: 3لغات | L19: 2ت إ/2 | P19: 3أف2 | Q19: 2ت إ/1 | R19: 3لغات | U19: 2ت ر | V19: 3ت ر | W19: 3ت ر | AE19: 2أف2/1 | AF19: 3أف2 | AH19: 2أف1/1 | AK19: 2أف2/1 | AL19: 2ع1/1 | AM19: 2أف2 | AN19: 2ت ر | AP19: 3ع ت 2 | AQ19: 3ع ت 2 | BA19: 2ع2/2 | BB19: 2ت إ/2 | BC19: 2ع1/1 | BD19: 2ع2/1
A20: 17 | B20: =BASE!E21 -> صبيان فاطمة | C20: أدب عربي | I20: 2أف1/1 | J20: 2ت إ/1 | K20: 2ع2/2 | L20: 2ع1/2 | O20: 2أف2/1 | Q20: 2ع1/2 | R20: 2ت إ/2 | T20: 1ع2/4 | V20: 1ع1/4 | Z20: 1ع1/4 | AA20: 1ع1/4 | AC20: 1ع2/4 | AD20: 1ع2/4 | AG20: 2ت إ/1 | AH20: 2أف2/1 | AK20: 2ع2/2 | AM20: 2ت إ/2 | AN20: 2أف1/1 | AO20: 2أف2/1
A21: 18 | B21: =BASE!E22 -> صبيان سمية | C21: أدب عربي | I21: 3لغات | J21: 3لغات | K21: 1أ1/2 | L21: 1أ1/2 | Z21: 3ع ت 2 | AB21: 1ع2/1 | AC21: 1ع1/1 | AE21: 1أ2/2 | AF21: 1أ2/2 | AK21: 3لغات | AL21: 3لغات | AQ21: 1ع2/1 | AR21: 1ع1/1 | AV21: 1ع2/1 | AW21: 1ع1/1 | AY21: 3ع ت 2 | BA21: 1أ1/2 | BB21: 1أ1/2 | BC21: 1أ2/2 | BD21: 1أ2/2
A22: 19 | B22: =BASE!E23 -> أوزين ليلى | C22: أدب عربي | F22: 1ع1/5 | G22: 1ع2/2 | H22: 3ت إ/2 | T22: 3ع1/1 | U22: 1ع2/5 | W22: 1ع2/2 | Z22: 1ع2/5 | AB22: 1ع1/2 | AC22: 1ع1/5 | AP22: 3ع2/1 | AQ22: 3ت إ/2 | AR22: 1ع1/2 | AS22: 1ع1/5 | AV22: 1ع1/2 | AW22: 1ع2/5 | AX22: 3ع2/1 | AY22: 3ت إ/1 | AZ22: 3ع1/1
A23: 20 | B23: =BASE!E24 -> معروف علي | C23: أدب عربي | D23: 1ع1/3 | E23: 1ع2/3 | I23: 3أف2 | J23: 3أف2 | K23: 1أ1/1 | L23: 1أ1/1 | AE23: 1أ2/1 | AF23: 1أ2/1 | AK23: 3أف2 | AL23: 3أف2 | AM23: 1أ1/1 | AN23: 1أ1/1 | AP23: 3ت ر | AQ23: 3ت ر | AR23: 1ع1/3 | AS23: 1ع2/3 | AW23: 1ع2/3 | AX23: 1ع1/3 | BA23: 1أ2/1 | BB23: 1أ2/1
A24: 21 | B24: =BASE!E25 -> عيساوي آمنة | C24: أدب عربي | I24: 3أف1/1 | J24: 3أف1/1 | K24: 3أف2/1 | L24: 3أف2/1 | R24: 2أف2 | S24: 2أف2 | AE24: 2ع1/1 | AF24: 2ع2/1 | AG24: 2لغات | AH24: 2لغات | AK24: 3أف1/1 | AL24: 3أف1/1 | AM24: 3أف2/1 | AN24: 3أف2/1 | AP24: 2ت ر | AQ24: 2ت ر | BA24: 2ع1/1 | BB24: 2أف2 | BC24: 2ع2/1 | BD24: 2لغات
A25: 22 | B25: =BASE!E26 -> شيخ ياسين | C25: الفلسفة | O25: 3أف2/1 | P25: 3أف2/1 | R25: 3أف1/1 | S25: 3أف1/1 | AE25: 2أف2 | AF25: 2أف2 | AG25: 3أف2/1 | AN25: 3أف1/1 | AO25: 3أف1/1 | AQ25: 3ع2/1 | AR25: 3ت ر | AS25: 3ت ر | AX25: 3ع1/1 | AY25: 3ع1/1 | AZ25: 3ع2/1 | BB25: 3أف2/1 | BD25: 2أف2
A26: 23 | B26: =BASE!E27 -> بلحاج منير | C26: الفلسفة | Q26: 2أف2/1 | R26: 3أف2 | S26: 3أف2 | U26: 3ت إ/2 | V26: 3ع ت 2 | W26: 3ت إ/1 | AE26: 3لغات | AF26: 3لغات | AG26: 2أف1/1 | AM26: 2أف2/1 | AN26: 3أف2 | AO26: 3أف2 | AV26: 3ع ت 2 | AX26: 3ت إ/1 | AY26: 3ت إ/2 | BA26: 2أف2/1 | BB26: 2أف1/1
A27: 24 | B27: =BASE!E28 -> آجد سليمة | C27: تاريخ و جغرافيا | O27: 1أ1/2 | Q27: 1أ2/2 | R27: 1أ2/2 | T27: 1ع1/2 | U27: 3ع1/1 | V27: 1ع2/2 | W27: 3ع2/1 | AC27: 1ع2/5 | AD27: 1ع1/5 | AG27: 1أ1/2 | AH27: 3لغات | AK27: 1أ1/2 | AL27: 1أ2/2 | AM27: 3لغات | AP27: 1ع1/2 | AR27: 1ع1/5 | AS27: 1ع2/2 | AV27: 3ع1/1 | AW27: 3ع2/1 | AX27: 1ع2/5
A28: 25 | B28: =BASE!E29 -> قان محمد شهر الدين | C28: تاريخ و جغرافيا | O28: 2ت إ/1 | P28: 2أف2 | Q28: 2ع1/1 | S28: 2ت إ/2 | U28: 1ع2/3 | V28: 1ع1/1 | AE28: 2ع2/1 | AF28: 2ت إ/2 | AG28: 2ت إ/2 | AH28: 2ت إ/1 | AK28: 2ع1/1 | AL28: 2أف2 | AP28: 1ع1/1 | AQ28: 1ع1/3 | AR28: 1ع2/1 | AX28: 1ع2/1 | AY28: 1ع2/3 | AZ28: 1ع1/3 | BB28: 2ع2/1 | BC28: 2أف2 | BD28: 2ت إ/1
A29: 26 | B29: =BASE!E30 -> موس محمد | C29: تاريخ و جغرافيا | O29: 3أف1/1 | P29: 2لغات | Q29: 3أف2/1 | R29: 2أف2/1 | S29: 2أف2/1 | AB29: 2ت ر | AC29: 3ت ر | AE29: 3أف1/1 | AF29: 2أف1/1 | AH29: 3أف2/1 | AK29: 3أف2/1 | AL29: 2أف2/1 | AN29: 2ع1/2 | AO29: 2ع2/2 | AW29: 2ت ر | AX29: 3ت ر | BA29: 3أف1/1 | BB29: 2لغات | BC29: 2ع2/2 | BD29: 2ع1/2
A30: 27 | B30: =BASE!E31 -> بودربالة ع القادر | C30: تاريخ و جغرافيا | O30: 1أ1/1 | P30: 1أ1/1 | Q30: 3أف2 | R30: 1أ2/1 | T30: 3ت إ/2 | U30: 3ت إ/1 | V30: 3ت إ/1 | W30: 3ع ت 2 | AE30: 1أ1/1 | AG30: 3أف2 | AH30: 1أ2/1 | AP30: 3ت إ/1 | AR30: 1ع1/4 | AS30: 3ع ت 2 | AV30: 3ت إ/2 | AW30: 3ت إ/2 | AX30: 1ع1/4 | AY30: 1ع2/4 | AZ30: 1ع2/4 | BB30: 3أف2 | BC30: 1أ2/1
A31: 28 | B31: =BASE!E32 -> عباد أسماء | C31: الفرنسية | D31: 1ع2/1 | F31: 1ع2/3 | G31: 1ع1/3 | I31: 1أ1/2 | J31: 1أ2/2 | K31: 3أف2 | O31: 3لغات | P31: 1أ1/2 | T31: 1ع1/1 | U31: 1ع1/3 | AM31: 1أ1/2 | AN31: 1أ2/2 | AO31: 1أ2/2 | AV31: 1ع2/3 | AW31: 1ع2/1 | AY31: 3لغات | AZ31: 3لغات | BC31: 3أف2 | BD31: 3أف2
A32: 29 | B32: =BASE!E33 -> كوليلي وفاء | C32: الفرنسية | D32: 3ت ر | F32: 2ت ر | I32: 3أف2/1 | J32: 2أف2 | K32: 2ع2/1 | L32: 3أف1/1 | O32: 2أف2 | P32: 3أف1/1 | R32: 3أف2/1 | T32: 2ت ر | U32: 3ت ر | AK32: 2ت إ/1 | AL32: 2ت إ/1 | AN32: 2ت إ/2 | AO32: 2أف2 | BA32: 2ع2/1 | BB32: 2ع1/1 | BC32: 2ت إ/2 | BD32: 3أف2/1
A33: 30 | B33: =BASE!E34 -> رابحي ايمان | C33: الفرنسية | D33: 1ع1/5 | E33: 1ع2/4 | F33: 1ع2/2 | G33: 3ع ت 2 | H33: 3ع ت 2 | Q33: 1أ2/1 | R33: 1أ1/1 | S33: 1أ1/1 | AB33: 1ع1/5 | AD33: 1ع2/5 | AL33: 1أ1/1 | AM33: 1أ2/1 | AN33: 1أ2/1 | AP33: 1ع2/5 | AQ33: 1ع1/4 | AV33: 1ع2/2 | AX33: 1ع2/4 | AY33: 1ع1/2 | AZ33: 1ع1/4
A34: 31 | B34: =BASE!E35 -> بومانة هداية | C34: الفرنسية | D34: 3ت إ/1 | F34: 3ت إ/2 | I34: 2لغات | J34: 2أف2/1 | K34: 2أف1/1 | L34: 2ع2/2 | O34: 2لغات | P34: 2أف1/1 | Q34: 2أف1/1 | S34: 2ع2/2 | AM34: 2ع1/2 | AN34: 2أف2/1 | AQ34: 3ت إ/1 | AR34: 3ع2/1 | AV34: 3ع2/1 | AW34: 3ع1/1 | AX34: 3ت إ/2 | BA34: 2لغات | BB34: 2ع1/2 | BC34: 2أف2/1
A35: 32 | B35: =BASE!E36 -> معزوز مليكة | C35: الإنجليزية | E35: 3ت إ/1 | F35: 3ع1/1 | G35: 3ت إ/2 | H35: 1ع1/4 | O35: 1أ2/2 | P35: 1أ2/2 | Q35: 1أ1/2 | R35: 1أ1/2 | U35: 1ع2/4 | V35: 3ع2/1 | W35: 3ع1/1 | AB35: 3ت إ/1 | AD35: 3ت إ/2 | AK35: 1أ2/2 | AL35: 1أ1/2 | AP35: 1ع1/4 | AQ35: 1ع2/4 | AR35: 3ع ت 2 | AY35: 3ع2/1 | AZ35: 3ع ت 2
A36: 33 | B36: =BASE!E37 -> شنتوف سليمة | C36: الإنجليزية | D36: 1ع2/3 | E36: 1ع2/1 | F36: 1ع1/1 | H36: 1ع1/3 | T36: 1ع2/3 | U36: 1ع1/2 | AE36: 3أف2/1 | AF36: 3أف1/1 | AG36: 3لغات | AL36: 1ع1/1 | AM36: 3أف1/1 | AO36: 3أف2/1 | AQ36: 1ع1/2 | AR36: 1ع2/2 | AV36: 3لغات | AW36: 3لغات | AX36: 1ع2/2 | AY36: 1ع2/1 | BA36: 3أف2/1 | BB36: 3أف1/1
A37: 34 | B37: =BASE!E38 -> مزاري سهام | C37: الإنجليزية | F37: 1ع2/5 | G37: 1ع1/5 | I37: 1أ2/1 | J37: 2لغات | K37: 2لغات | L37: 2أف2/1 | O37: 1أ2/1 | P37: 2أف2/1 | AE37: 2أف1/1 | AF37: 2أف2/1 | AH37: 1أ1/1 | AK37: 2ت ر | AL37: 2أف1/1 | AM37: 2لغات | AN37: 2لغات | AO37: 1أ2/1 | AV37: 1ع2/5 | AW37: 1ع1/5 | AX37: 2ت ر | BA37: 1أ1/1 | BB37: 1أ1/1 | BC37: 2أف1/1
A38: 35 | B38: =BASE!E39 -> العرباوي حياة | C38: الإنجليزية | I38: 2ع1/2 | J38: 2ع2/1 | K38: 2ت إ/2 | L38: 2ع1/1 | O38: 3أف2 | P38: 2ت إ/1 | Q38: 2أف2 | S38: 2ع2/1 | AE38: 3أف2 | AF38: 2ع1/1 | AG38: 2أف2 | AK38: 2أف2 | AL38: 2ع2/2 | AM38: 3ت ر | AN38: 3ت ر | AO38: 2ت إ/1 | BA38: 3أف2 | BB38: 2ع2/2 | BC38: 2ع1/2 | BD38: 2ت إ/2
A39: 36 | B39: =BASE!E40 -> سفاني حياة | C39: إسبانية | P39: 3لغات | Q39: 3لغات | R39: 2لغات | S39: 2لغات | AK39: 2لغات | AL39: 2لغات | AN39: 3لغات | AO39: 3لغات
A40: 37 | B40: =BASE!E41 -> دلافي أحمد | C40: تكنولوجيا | E40: 3ت ر | F40: 3ت ر | G40: 2ت ر | H40: 2ت ر | U40: 1ع1/1 | V40: 1ع2/1 | W40: 1ع1/4 | Z40: 2ت ر | AA40: 2ت ر | AB40: 3ت ر | AK40: 3ت ر | AL40: 3ت ر | AM40: 2ت ر | AP40: 1ع2/2 | AQ40: 1ع2/5 | AR40: 1ع2/3 | AS40: 1ع1/3 | AV40: 1ع2/4 | AX40: 1ع1/5 | AZ40: 1ع1/2
A41: 38 | B41: =BASE!E42 -> جبور صافية | C41: إقتصاد | D41: 3ت إ/2 | E41: 3ت إ/2 | F41: 3ت إ/1 | G41: 3ت إ/1 | I41: 2ت إ/2 | J41: 2ت إ/2 | K41: 2ت إ/1 | Q41: 2ت إ/2 | S41: 2ت إ/1 | Z41: 3ت إ/1 | AA41: 3ت إ/1 | AB41: 3ت إ/2 | AC41: 3ت إ/2 | AE41: 2ت إ/2 | AF41: 2ت إ/1 | AP41: 1ع2/1 | AQ41: 1ع1/1
A42: 39 | B42: =BASE!E43 -> بوحميدي ايمان | C42: إقتصاد | T42: 3ت إ/1 | V42: 1ع2/3 | W42: 1ع1/5 | Z42: 3ت إ/2 | AA42: 1ع2/5 | AB42: 1ع1/3 | AK42: 2ت إ/2 | AL42: 2ت إ/2 | AM42: 2ت إ/1 | AN42: 2ت إ/1 | AR42: 3ت إ/2 | AS42: 3ت إ/2 | AV42: 3ت إ/1 | AW42: 3ت إ/1 | BA42: 2ت إ/2 | BC42: 2ت إ/1
A43: 40 | B43: =BASE!E44 -> عشي زهير | C43: تكنولوجيا | E43: 3ت ر | F43: 3ت ر | G43: 2ت ر | H43: 2ت ر | U43: 1ع1/1 | V43: 1ع2/1 | W43: 1ع1/4 | Z43: 2ت ر | AA43: 2ت ر | AB43: 3ت ر | AK43: 3ت ر | AL43: 3ت ر | AM43: 2ت ر | AP43: 1ع2/2 | AQ43: 1ع2/5 | AR43: 1ع2/3 | AS43: 1ع1/3 | AV43: 1ع2/4 | AX43: 1ع1/5 | AZ43: 1ع1/2
A44: 41 | B44: =BASE!E45 -> زار مصطفى | C44: تكنولوجيا | U44: 1ع1/1 | V44: 1ع2/1 | W44: 1ع1/4 | AA44: 1ع2/2 | AC44: 1ع1/2 | AF44: 1أ1/1 | AG44: 1أ2/1 | AM44: 1أ2/2 | AN44: 1أ1/2 | AP44: 1ع2/2 | AQ44: 1ع2/5 | AR44: 1ع2/3 | AS44: 1ع1/3 | AV44: 1ع2/4 | AW44: 1ع2/4 | AX44: 1ع1/5 | AY44: 1ع1/4 | AZ44: 1ع1/2
A45: 42 | B45: =BASE!E46 -> أبرور عبد المجيد | C45: الرياضة البدنية | F45: 3أف2/1 | G45: 3أف2/1 | J45: 1ع2/2 | K45: 1ع2/2 | Q45: 1ع1/5 | R45: 1ع1/5 | AQ45: 3أف2 | AR45: 3أف2
A46: 43 | B46: =BASE!E47 -> لقبوري مصطفى | C46: الرياضة البدنية | F46: 2أف2/1 | G46: 2أف2/1 | Q46: 3ت ر | R46: 3ت إ/2 | AX46: 2أف2 | AY46: 2أف2 | BB46: 3لغات | BC46: 3لغات
A47: 44 | B47: =BASE!E48 -> تربش مصطفى | C47: الرياضة البدنية | U47: 2لغات | V47: 2لغات | AB47: 1أ2/1 | AC47: 1أ2/1 | AF47: 1ع2/4 | AG47: 1ع2/4 | AM47: 1ع1/1 | AN47: 1ع1/1 | AQ47: 2ت إ/2 | AR47: 2ت إ/2
A48: 45 | B48: =BASE!E49 -> 0
A49: 46 | B49: =BASE!E50 -> 0
A50: 47 | B50: =BASE!E51 -> 0
A51: 48 | B51: =BASE!E52 -> 0
A52: 49 | B52: =BASE!E53 -> 0
A53: 50 | B53: =BASE!E54 -> 0
A54: 51 | B54: =BASE!E55 -> 0
A55: 52 | B55: =BASE!E56 -> 0
A56: 53 | B56: =BASE!E57 -> 0
A57: 54 | B57: =BASE!E58 -> 0
A58: 55 | B58: =BASE!E59 -> 0
A59: 56 | B59: =BASE!E60 -> 0
A60: 57 | B60: =BASE!E61 -> 0
A61: 58 | B61: =BASE!E62 -> 0
A62: 59 | B62: =BASE!E63 -> 0
A63: 60 | B63: =BASE!E64 -> 0
A64: 61 | B64: =BASE!E65 -> 0
A65: 62 | B65: =BASE!E66 -> 0
A66: 63 | B66: =BASE!E67 -> 0
A67: 64 | B67: =BASE!E68 -> 0
A68: 65 | B68: =BASE!E69 -> 0
A69: 66 | B69: =BASE!E70 -> 0
A70: 67 | B70: =BASE!E71 -> 0
A71: 68 | B71: =BASE!E72 -> 0
A72: 69 | B72: =BASE!E73 -> 0
A73: 70 | B73: =BASE!E74 -> 0
A74: 71 | B74: =BASE!E75 -> 0
A75: 72 | B75: =BASE!E76 -> 0
A76: 73 | B76: =BASE!E77 -> 0
A77: 74 | B77: =BASE!E78 -> 0
A78: 75 | B78: =BASE!E79 -> 0
A79: 76 | B79: =BASE!E80 -> 0
A80: 77 | B80: =BASE!E81 -> 0
A81: 78 | B81: =BASE!E82 -> 0
A82: 79 | B82: =BASE!E83 -> 0
A83: 80 | B83: =BASE!E84 -> 0
A84: 81 | B84: =BASE!E85 -> 0
A85: 82 | B85: =BASE!E86 -> 0
A86: 83 | B86: =BASE!E87 -> 0
A87: 84 | B87: =BASE!E89 -> الحجم الساعي | D87: =BASE!I6 -> 73 | E87: =BASE!J6 -> 49 | F87: =BASE!K6 -> 50 | G87: =BASE!L6 -> 172 | H87: =BASE!M6 -> 33 | O87: =BASE!I7 -> 67 | P87: =BASE!J7 -> 60 | Q87: =BASE!K7 -> 46 | R87: =BASE!L7 -> 173 | S87: =BASE!M7 -> 41 | Z87: =BASE!I8 -> 71 | AA87: =BASE!J8 -> 47 | AB87: =BASE!K8 -> 43 | AC87: =BASE!L8 -> 161 | AD87: =BASE!M8 -> 36 | AK87: =BASE!I9 -> 55 | AL87: =BASE!J9 -> 56 | AM87: =BASE!K9 -> 52 | AN87: =BASE!L9 -> 163 | AO87: =BASE!M9 -> 37 | AV87: =BASE!I10 -> 62 | AW87: =BASE!J10 -> 43 | AX87: =BASE!K10 -> 54 | AY87: =BASE!L10 -> 159 | AZ87: =BASE!M10 -> 35
A88: 85

Sheet ISNAD
B1: 2 | C1: 3 | D1: 4 | E1: 5 | F1: 6 | G1: 7 | H1: 8 | I1: 9 | J1: 10 | K1: 11 | L1: 12 | M1: 13 | N1: 14 | O1: 15 | P1: 16 | Q1: 17 | R1: 18 | S1: 19 | T1: 20 | U1: 21 | V1: 22 | W1: 23 | X1: 24 | Y1: 25 | Z1: 26 | AA1: 27 | AB1: 28 | AC1: 29 | AD1: 30 | AE1: 31 | AF1: 32 | AG1: 33 | AH1: 34 | AI1: 35 | AJ1: 36 | AK1: 37 | AL1: 38 | AM1: 39 | AN1: 40 | AO1: 41 | AP1: 42 | AQ1: 43 | AR1: 44 | AS1: 45 | AT1: 46 | AU1: 47 | AV1: 48 | AW1: 49 | AX1: 50 | AY1: 51 | AZ1: 52 | BA1: 53 | BB1: 54 | BC1: 55 | BD1: 56 | BE1: 57
A2: الرقم | B2: المواد | C2: 3ت ر | D2: 3ع1/1 | E2: 3ع1/1 | F2: 3ع ت 2 | G2: 3ت إ/1 | H2: 3ت إ/2 | I2: 3أف1/1 | J2: 3أف2/1 | K2: 3أف2 | L2: 3لغات | M2: 2ت ر | N2: 2ع1/1 | O2: 2ع2/1 | P2: 2ع1/2 | Q2: 2ع2/2 | R2: 2ت إ/1 | S2: 2ت إ/2 | T2: 2أف1/1 | U2: 2أف2/1 | V2: 2أف2 | W2: 2لغات | X2: 1ع1/1 | Y2: 1ع2/1 | Z2: 1ع1/2 | AA2: 1ع2/2 | AB2: 1ع1/3 | AC2: 1ع2/3 | AD2: 1ع1/4 | AE2: 1ع2/4 | AF2: 1ع1/5 | AG2: 1ع2/5 | AH2: 1أ1/1 | AI2: 1أ2/1 | AJ2: 1أ1/2 | AK2: 1أ2/2
A3: 1 | B3: رياضيات | C3: بوعريشة الهام | D3: بونخالة أسماء | E3: بونخالة أسماء | F3: مدوخ فاطمة الزهراء | G3: مدوخ فاطمة الزهراء | H3: مدوخ فاطمة الزهراء | I3: ديب فاطمة | J3: ديب فاطمة | K3: ديب فاطمة | L3: بوعريشة الهام | M3: بونخالة أسماء | N3: بونخالة أسماء | O3: بونخالة أسماء | P3: مالو ياسمينة | Q3: مالو ياسمينة | R3: مالو ياسمينة | S3: مالو ياسمينة | T3: مالو ياسمينة | U3: مالو ياسمينة | V3: بونخالة أسماء | W3: مالو ياسمينة | X3: ديب فاطمة | Y3: ديب فاطمة | Z3: مدوخ فاطمة الزهراء | AA3: مدوخ فاطمة الزهراء | AB3: بوعريشة الهام | AC3: بوعريشة الهام | AD3: بوعريشة الهام | AE3: بوعريشة الهام | AF3: ديب فاطمة | AG3: ديب فاطمة | AH3: مدوخ فاطمة الزهراء | AI3: مدوخ فاطمة الزهراء | AJ3: مالو ياسمينة | AK3: مالو ياسمينة
A4: 2 | B4: الفيزياء | C4: عشماوي فؤاد | D4: زيرار سميرة | E4: زيرار سميرة | F4: ناضور محمد | M4: الوزان توفيق | N4: قوراري أحمد | O4: قوراري أحمد | P4: عشماوي فؤاد | Q4: عشماوي فؤاد | T4: عشماوي فؤاد | U4: عشماوي فؤاد | V4: الوزان توفيق | X4: الوزان توفيق | Y4: الوزان توفيق | Z4: زيرار سميرة | AA4: زيرار سميرة | AB4: ناضور محمد | AC4: ناضور محمد | AD4: قوراري أحمد | AE4: قوراري أحمد | AF4: ناضور محمد | AG4: ناضور محمد | AH4: الوزان توفيق | AI4: الوزان توفيق | AJ4: زيرار سميرة | AK4: زيرار سميرة
A5: 3 | B5: علوم طبيعية | D5: درني اسماعيل | E5: درني اسماعيل | F5: هرواط سارة | N5: براهمي عبد الباقي | O5: براهمي عبد الباقي | P5: لعشب آمنة | Q5: لعشب آمنة | T5: براهمي عبد الباقي | U5: براهمي عبد الباقي | V5: براهمي عبد الباقي | X5: هرواط سارة | Y5: هرواط سارة | Z5: درني اسماعيل | AA5: درني اسماعيل | AB5: براهمي عبد الباقي | AC5: براهمي عبد الباقي | AD5: لعشب آمنة | AE5: لعشب آمنة | AF5: هرواط سارة | AG5: هرواط سارة | AI5: لعشب آمنة | AJ5: درني اسماعيل | AK5: درني اسماعيل
A6: 4 | B6: علوم إسلامية | C6: بوحاجب واسيني | F6: بوحاجب واسيني | G6: حاسي بن عودة | H6: حاسي بن عودة | I6: حاسي بن عودة | J6: حاسي بن عودة | K6: بوحاجب واسيني | L6: بوحاجب واسيني | M6: بوحاجب واسيني | N6: بوحاجب واسيني | O6: بوحاجب واسيني | P6: بوحاجب واسيني | Q6: بوحاجب واسيني | R6: بوحاجب واسيني | S6: بوحاجب واسيني | T6: بوحاجب واسيني | U6: بوحاجب واسيني | V6: بوحاجب واسيني | Y6: حاسي بن عودة | Z6: حاسي بن عودة | AA6: حاسي بن عودة | AC6: حاسي بن عودة | AE6: حاسي بن عودة | AF6: حاسي بن عودة | AG6: حاسي بن عودة | AH6: حاسي بن عودة | AI6: حاسي بن عودة | AJ6: حاسي بن عودة | AK6: حاسي بن عودة
A7: 5 | B7: أدب عربي | C7: معروف علي | D7: أوزين ليلى | E7: أوزين ليلى | F7: صبيان سمية | G7: أوزين ليلى | H7: أوزين ليلى | I7: عيساوي آمنة | J7: عيساوي آمنة | K7: معروف علي | L7: صبيان سمية | M7: عيساوي آمنة | N7: عيساوي آمنة | O7: عيساوي آمنة | P7: صبيان فاطمة | Q7: صبيان فاطمة | R7: صبيان فاطمة | S7: صبيان فاطمة | T7: صبيان فاطمة | U7: صبيان فاطمة | V7: عيساوي آمنة | W7: عيساوي آمنة | X7: صبيان سمية | Y7: صبيان سمية | Z7: أوزين ليلى | AA7: أوزين ليلى | AB7: معروف علي | AC7: معروف علي | AD7: صبيان فاطمة | AE7: صبيان فاطمة | AF7: أوزين ليلى | AG7: أوزين ليلى | AH7: معروف علي | AI7: معروف علي | AJ7: صبيان سمية | AK7: صبيان سمية
A8: 6 | B8: الفلسفة | C8: شيخ ياسين | D8: شيخ ياسين | E8: شيخ ياسين | F8: بلحاج منير | G8: بلحاج منير | H8: بلحاج منير | I8: شيخ ياسين | J8: شيخ ياسين | K8: بلحاج منير | L8: بلحاج منير | T8: بلحاج منير | U8: بلحاج منير | V8: شيخ ياسين
A9: 7 | B9: تاريخ و جغرافيا | C9: موس محمد | D9: آجد سليمة | E9: آجد سليمة | F9: بودربالة ع القادر | G9: بودربالة ع القادر | H9: بودربالة ع القادر | I9: موس محمد | J9: موس محمد | K9: بودربالة ع القادر | L9: آجد سليمة | M9: موس محمد | N9: قان محمد شهر الدين | O9: قان محمد شهر الدين | P9: موس محمد | Q9: موس محمد | R9: قان محمد شهر الدين | S9: قان محمد شهر الدين | T9: موس محمد | U9: موس محمد | V9: قان محمد شهر الدين | W9: موس محمد | X9: قان محمد شهر الدين | Y9: قان محمد شهر الدين | Z9: آجد سليمة | AA9: آجد سليمة | AB9: قان محمد شهر الدين | AC9: قان محمد شهر الدين | AD9: بودربالة ع القادر | AE9: بودربالة ع القادر | AF9: آجد سليمة | AG9: آجد سليمة | AH9: بودربالة ع القادر | AI9: بودربالة ع القادر | AJ9: آجد سليمة | AK9: آجد سليمة
A10: 8 | B10: الفرنسية | C10: كوليلي وفاء | D10: بومانة هداية | E10: بومانة هداية | F10: رابحي ايمان | G10: بومانة هداية | H10: بومانة هداية | I10: كوليلي وفاء | J10: كوليلي وفاء | K10: عباد أسماء | L10: عباد أسماء | M10: كوليلي وفاء | N10: كوليلي وفاء | O10: كوليلي وفاء | P10: بومانة هداية | Q10: بومانة هداية | R10: كوليلي وفاء | S10: كوليلي وفاء | T10: بومانة هداية | U10: بومانة هداية | V10: كوليلي وفاء | W10: بومانة هداية | X10: عباد أسماء | Y10: عباد أسماء | Z10: رابحي ايمان | AA10: رابحي ايمان | AB10: عباد أسماء | AC10: عباد أسماء | AD10: رابحي ايمان | AE10: رابحي ايمان | AF10: رابحي ايمان | AG10: رابحي ايمان | AH10: رابحي ايمان | AI10: رابحي ايمان | AJ10: عباد أسماء | AK10: عباد أسماء
A11: 9 | B11: الإنجليزية | C11: العرباوي حياة | D11: معزوز مليكة | E11: معزوز مليكة | F11: معزوز مليكة | G11: معزوز مليكة | H11: معزوز مليكة | I11: شنتوف سليمة | J11: شنتوف سليمة | K11: العرباوي حياة | L11: شنتوف سليمة | M11: مزاري سهام | N11: العرباوي حياة | O11: العرباوي حياة | P11: العرباوي حياة | Q11: العرباوي حياة | R11: العرباوي حياة | S11: العرباوي حياة | T11: مزاري سهام | U11: مزاري سهام | V11: العرباوي حياة | W11: مزاري سهام | X11: شنتوف سليمة | Y11: شنتوف سليمة | Z11: شنتوف سليمة | AA11: شنتوف سليمة | AB11: شنتوف سليمة | AC11: شنتوف سليمة | AD11: معزوز مليكة | AE11: معزوز مليكة | AF11: مزاري سهام | AG11: مزاري سهام | AH11: مزاري سهام | AI11: مزاري سهام | AJ11: معزوز مليكة | AK11: معزوز مليكة
A12: 10 | B12: إسبانية | L12: سفاني حياة | W12: سفاني حياة
A13: 11 | B13: تكنولوجيا | C13: دلافي أحمد | M13: دلافي أحمد | X13: دلافي أحمد | Y13: دلافي أحمد | Z13: دلافي أحمد | AA13: دلافي أحمد | AB13: دلافي أحمد | AC13: دلافي أحمد | AD13: دلافي أحمد | AE13: دلافي أحمد | AF13: دلافي أحمد | AG13: دلافي أحمد | AH13: زار مصطفى | AI13: زار مصطفى | AJ13: زار مصطفى | AK13: زار مصطفى
A14: 12 | B14: إقتصاد | G14: جبور صافية | H14: جبور صافية | R14: جبور صافية | S14: جبور صافية | X14: جبور صافية | Y14: جبور صافية | AB14: بوحميدي ايمان | AC14: بوحميدي ايمان | AF14: بوحميدي ايمان | AG14: بوحميدي ايمان
A15: 13 | B15: الرياضة البدنية | H15: لقبوري مصطفى | J15: أبرور عبد المجيد | K15: أبرور عبد المجيد | L15: لقبوري مصطفى | S15: تربش مصطفى | U15: لقبوري مصطفى | V15: لقبوري مصطفى | W15: تربش مصطفى | X15: تربش مصطفى | AA15: أبرور عبد المجيد | AE15: تربش مصطفى | AF15: أبرور عبد المجيد | AI15: تربش مصطفى
A16: 14
A17: 15
A18: 16

Sheet ELVS

Sheet TI3DAD
AI2: القسم | AJ2: نصف داخلي | AM2: الخارجيون | AP2: المجموع العام
AJ3: ذ | AK3: إ | AL3: مج | AM3: ذ | AN3: إ | AO3: مج | AP3: ذ | AQ3: إ | AR3: مج
M4: 3ت ر/هك | N4: 1 | O4: 7 | P4: 8 | Q4: 1 | R4: 4 | S4: 5 | T4: 2 | U4: 11 | V4: 13 | X4: 2ت ر/هك | Y4: 5 | Z4: 1 | AA4: 6 | AB4: 1 | AC4: 1 | AD4: 2 | AE4: 6 | AF4: 2 | AG4: 8 | AI4: ج م ع تك01 | AJ4: 17 | AK4: 7 | AL4: 24 | AM4: 7 | AN4: 5 | AO4: 12 | AP4: 24 | AQ4: 12 | AR4: 36 | AT4: المجموع العام | AU4: 0
B5: القسم | C5: نصف داخلي | F5: الخارجيون | I5: المجموع العام | M5: 3ت ر/هم | N5: 2 | O5: 2 | P5: 4 | Q5: 1 | R5: 2 | S5: 3 | T5: 3 | U5: 4 | V5: 7 | X5: 2ت ر/هم | Y5: 3 | Z5: 6 | AA5: 9 | AB5: 7 | AC5: 0 | AD5: 7 | AE5: 10 | AF5: 6 | AG5: 16 | AI5: ج م ع تك02 | AJ5: 14 | AK5: 12 | AL5: 26 | AM5: 6 | AN5: 2 | AO5: 8 | AP5: 20 | AQ5: 14 | AR5: 34
C6: ذ | D6: إ | E6: مج | F6: ذ | G6: إ | H6: مج | I6: ذ | J6: إ | K6: مج | M6: 3ت إ01 | N6: 9 | O6: 14 | P6: 23 | Q6: 5 | R6: 4 | S6: 9 | T6: 14 | U6: 18 | V6: 32 | X6: 2ت إ01 | Y6: 9 | Z6: 13 | AA6: 22 | AB6: 7 | AC6: 5 | AD6: 12 | AE6: 16 | AF6: 18 | AG6: 34 | AI6: ج م ع تك03 | AJ6: 12 | AK6: 11 | AL6: 23 | AM6: 8 | AN6: 5 | AO6: 13 | AP6: 20 | AQ6: 16 | AR6: 36
B7: =BASE!C5 -> 3ت ر/هك | C7: =COUNTIFS(قسم,B7,sifa,"D1") -> 1 | D7: =COUNTIFS(قسم,B7,sifa,"D2") -> 7 | E7: =SUM(C7:D7) -> 8 | F7: =COUNTIFS(قسم,B7,sifa,"E1") -> 1 | G7: =COUNTIFS(قسم,B7,sifa,"E2") -> 4 | H7: =SUM(F7:G7) -> 5 | I7: =C7+F7 -> 2 | J7: =D7+G7 -> 11 | K7: =SUM(I7:J7) -> 13 | M7: 3ع ت01 | N7: 5 | O7: 17 | P7: 22 | Q7: 6 | R7: 10 | S7: 16 | T7: 11 | U7: 27 | V7: 38 | X7: 2ع ت01 | Y7: 8 | Z7: 16 | AA7: 24 | AB7: 7 | AC7: 3 | AD7: 10 | AE7: 15 | AF7: 19 | AG7: 34 | AI7: ج م ع تك04 | AJ7: 11 | AK7: 10 | AL7: 21 | AM7: 10 | AN7: 3 | AO7: 13 | AP7: 21 | AQ7: 13 | AR7: 34
B8: =BASE!C6 -> 3ت ر/هم | C8: 2 | D8: 2 | E8: =SUM(C8:D8) -> 4 | F8: 1 | G8: 2 | H8: =SUM(F8:G8) -> 3 | I8: =C8+F8 -> 3 | J8: =D8+G8 -> 4 | K8: =SUM(I8:J8) -> 7 | M8: 3ع ت02 | N8: 5 | O8: 16 | P8: 21 | Q8: 3 | R8: 4 | S8: 7 | T8: 8 | U8: 20 | V8: 28 | X8: 2ع ت02 | Y8: 9 | Z8: 17 | AA8: 26 | AB8: 3 | AC8: 5 | AD8: 8 | AE8: 12 | AF8: 22 | AG8: 34 | AI8: ج م ع تك05 | AJ8: 12 | AK8: 11 | AL8: 23 | AM8: 8 | AN8: 9 | AO8: 17 | AP8: 20 | AQ8: 20 | AR8: 40
B9: =BASE!C7 -> 3ت إ01 | C9: 9 | D9: 14 | E9: 23 | F9: 5 | G9: 4 | H9: 9 | I9: 14 | J9: 18 | K9: 32 | M9: 3أ ف01 | N9: 5 | O9: 15 | P9: 20 | Q9: 6 | R9: 4 | S9: 10 | T9: 11 | U9: 19 | V9: 30 | X9: 2أ ف01 | Y9: 11 | Z9: 17 | AA9: 28 | AB9: 7 | AC9: 11 | AD9: 18 | AE9: 18 | AF9: 28 | AG9: 46 | AI9: ج م أ01 | AJ9: 14 | AK9: 13 | AL9: 27 | AM9: 6 | AN9: 11 | AO9: 17 | AP9: 20 | AQ9: 24 | AR9: 44
B10: =BASE!C8 -> 3ع ت01 | C10: 5 | D10: 17 | E10: 22 | F10: 6 | G10: 10 | H10: 16 | I10: 11 | J10: 27 | K10: 38 | M10: 3أ ف02 | N10: 6 | O10: 11 | P10: 17 | Q10: 4 | R10: 5 | S10: 9 | T10: 10 | U10: 16 | V10: 26 | X10: 2أ ف02 | Y10: 3 | Z10: 17 | AA10: 20 | AB10: 3 | AC10: 4 | AD10: 7 | AE10: 6 | AF10: 21 | AG10: 27 | AI10: ج م أ02 | AJ10: 12 | AK10: 15 | AL10: 27 | AM10: 6 | AN10: 10 | AO10: 16 | AP10: 18 | AQ10: 25 | AR10: 43
B11: =BASE!C9 -> 3ع ت02 | C11: 5 | D11: 16 | E11: 21 | F11: 3 | G11: 4 | H11: 7 | I11: 8 | J11: 20 | K11: 28 | M11: 3لغات /إسبا | N11: 4 | O11: 11 | P11: 15 | Q11: 2 | R11: 6 | S11: 8 | T11: 6 | U11: 17 | V11: 23 | X11: 2لغات /إسبا | Y11: 4 | Z11: 16 | AA11: 20 | AB11: 4 | AC11: 3 | AD11: 7 | AE11: 8 | AF11: 19 | AG11: 27
B12: =BASE!C10 -> 3أ ف01 | C12: 5 | D12: 15 | E12: 20 | F12: 6 | G12: 4 | H12: 10 | I12: 11 | J12: 19 | K12: 30
B13: =BASE!C11 -> 3أ ف02 | C13: 6 | D13: 11 | E13: 17 | F13: 4 | G13: 5 | H13: 9 | I13: 10 | J13: 16 | K13: 26
B14: =BASE!C12 -> 3لغات /إسبا | C14: 4 | D14: 11 | E14: 15 | F14: 2 | G14: 6 | H14: 8 | I14: 6 | J14: 17 | K14: 23
B15: =BASE!C13 -> 2ت ر/هك | C15: 5 | D15: 1 | E15: 6 | F15: 1 | G15: 1 | H15: 2 | I15: 6 | J15: 2 | K15: 8
B16: =BASE!C14 -> 2ت ر/هم | C16: 3 | D16: 6 | E16: 9 | F16: 7 | G16: 0 | H16: 7 | I16: 10 | J16: 6 | K16: 16
B17: =BASE!C15 -> 2ت إ01 | C17: 9 | D17: 13 | E17: 22 | F17: 7 | G17: 5 | H17: 12 | I17: 16 | J17: 18 | K17: 34
B18: =BASE!C16 -> 2ع ت01 | C18: 8 | D18: 16 | E18: 24 | F18: 7 | G18: 3 | H18: 10 | I18: 15 | J18: 19 | K18: 34
B19: =BASE!C17 -> 2ع ت02 | C19: 9 | D19: 17 | E19: 26 | F19: 3 | G19: 5 | H19: 8 | I19: 12 | J19: 22 | K19: 34
B20: =BASE!C18 -> 2أ ف01 | C20: 11 | D20: 17 | E20: 28 | F20: 7 | G20: 11 | H20: 18 | I20: 18 | J20: 28 | K20: 46
B21: =BASE!C19 -> 2أ ف02 | C21: 3 | D21: 17 | E21: 20 | F21: 3 | G21: 4 | H21: 7 | I21: 6 | J21: 21 | K21: 27
B22: =BASE!C20 -> 2لغات /إسبا | C22: 4 | D22: 16 | E22: 20 | F22: 4 | G22: 3 | H22: 7 | I22: 8 | J22: 19 | K22: 27
B23: =BASE!C21 -> ج م ع تك01 | C23: 17 | D23: 7 | E23: 24 | F23: 7 | G23: 5 | H23: 12 | I23: 24 | J23: 12 | K23: 36 | M23: المجموع العام | N23: =SUM(N4:N22) -> 37 | O23: =SUM(O4:O22) -> 93 | P23: 130 | Q23: 28 | R23: 39 | S23: 67 | T23: 65 | U23: 132 | V23: 197 | X23: المجموع العام | Y23: =SUM(Y4:Y22) -> 52 | Z23: =SUM(Z4:Z22) -> 103 | AA23: 155 | AB23: 39 | AC23: 32 | AD23: 71 | AE23: 91 | AF23: 135 | AG23: 226 | AI23: المجموع العام | AJ23: =SUM(AJ4:AJ22) -> 92 | AK23: =SUM(AK4:AK22) -> 79 | AL23: 171 | AM23: 51 | AN23: 45 | AO23: 96 | AP23: 143 | AQ23: 124 | AR23: 267
B24: =BASE!C22 -> ج م ع تك02 | C24: 14 | D24: 12 | E24: 26 | F24: 6 | G24: 2 | H24: 8 | I24: 20 | J24: 14 | K24: 34
B25: =BASE!C23 -> ج م ع تك03 | C25: 12 | D25: 11 | E25: 23 | F25: 8 | G25: 5 | H25: 13 | I25: 20 | J25: 16 | K25: 36
B26: =BASE!C24 -> ج م ع تك04 | C26: 11 | D26: 10 | E26: 21 | F26: 10 | G26: 3 | H26: 13 | I26: 21 | J26: 13 | K26: 34
B27: =BASE!C25 -> ج م ع تك05 | C27: 12 | D27: 11 | E27: 23 | F27: 8 | G27: 9 | H27: 17 | I27: 20 | J27: 20 | K27: 40
B28: =BASE!C26 -> ج م أ01 | C28: 14 | D28: 13 | E28: 27 | F28: 6 | G28: 11 | H28: 17 | I28: 20 | J28: 24 | K28: 44 | AT28: المجموع العام | AU28: 0
B29: =BASE!C27 -> ج م أ02 | C29: 12 | D29: 15 | E29: 27 | F29: 6 | G29: 10 | H29: 16 | I29: 18 | J29: 25 | K29: 43 | X29: السنة الثالثة | Y29: =N23 -> 37 | Z29: 93 | AA29: 130 | AB29: 28 | AC29: 39 | AD29: 67 | AE29: 65 | AF29: 132 | AG29: 197
B30: =BASE!C28 -> 0 | C30: 0 | D30: 0 | E30: 0 | F30: 0 | G30: 0 | H30: 0 | I30: 0 | J30: 0 | K30: 0 | X30: السنة الثانية | Y30: =Y23 -> 52 | Z30: 103 | AA30: 155 | AB30: 39 | AC30: 32 | AD30: 71 | AE30: 91 | AF30: 135 | AG30: 226
B31: =IFERROR(BASE!C29," ") -> 0 | C31: 0 | D31: 0 | E31: 0 | F31: 0 | G31: 0 | H31: 0 | I31: 0 | J31: 0 | K31: 0 | X31: السنة الأولى | Y31: =AJ23 -> 92 | Z31: 79 | AA31: 171 | AB31: 51 | AC31: 45 | AD31: 96 | AE31: 143 | AF31: 124 | AG31: 267
B32: =BASE!C30 -> 0 | C32: 0 | D32: 0 | E32: 0 | F32: 0 | G32: 0 | H32: 0 | I32: 0 | J32: 0 | K32: 0 | M32: نسبة الذكور | N32: =AE32/AG32 -> 0.4333333333 | Q32: 1 | X32: المجموع العام | Y32: =SUM(Y29:Y31) -> 181 | Z32: =SUM(Z29:Z31) -> 275 | AA32: 456 | AB32: 118 | AC32: 116 | AD32: 234 | AE32: 299 | AF32: 391 | AG32: 690
B33: =BASE!C31 -> 0 | C33: 0 | D33: 0 | E33: 0 | F33: 0 | G33: 0 | H33: 0 | I33: 0 | J33: 0 | K33: 0 | M33: نسبة الإناث | N33: =AF32/AG32 -> 0.5666666667 | Q33: 1
B34: =BASE!C32 -> 0 | C34: 0 | D34: 0 | E34: 0 | F34: 0 | G34: 0 | H34: 0 | I34: 0 | J34: 0 | K34: 0
B35: =BASE!C33 -> 0 | C35: 0 | D35: 0 | E35: 0 | F35: 0 | G35: 0 | H35: 0 | I35: 0 | J35: 0 | K35: 0 | M35: نصف داخلي | N35: =AA32/AG32 -> 0.6608695652
B36: =BASE!C34 -> 0 | C36: 0 | D36: 0 | E36: 0 | F36: 0 | G36: 0 | H36: 0 | I36: 0 | J36: 0 | K36: 0 | M36: خارجي | N36: =AD32/AG32 -> 0.3391304348
B37: =BASE!C35 -> 0 | C37: 0 | D37: 0 | E37: 0 | F37: 0 | G37: 0 | H37: 0 | I37: 0 | J37: 0 | K37: 0
B38: =BASE!C36 -> 0 | C38: 0 | D38: 0 | E38: 0 | F38: 0 | G38: 0 | H38: 0 | I38: 0 | J38: 0 | K38: 0 | M38: عدد تلاميذ س1 | N38: =AG31 -> 267
B39: =BASE!C37 -> 0 | C39: 0 | D39: 0 | E39: 0 | F39: 0 | G39: 0 | H39: 0 | I39: 0 | J39: 0 | K39: 0 | M39: عدد تلاميذ س2 | N39: =AG30 -> 226
B40: =BASE!C38 -> 0 | C40: 0 | D40: 0 | E40: 0 | F40: 0 | G40: 0 | H40: 0 | I40: 0 | J40: 0 | K40: 0 | M40: عدد تلاميذ س3 | N40: =AG29 -> 197
B41: =BASE!C39 -> 0 | C41: 0 | D41: 0 | E41: 0 | F41: 0 | G41: 0 | H41: 0 | I41: 0 | J41: 0 | K41: 0
B42: =BASE!C40 -> 0 | C42: 0 | D42: 0 | E42: 0 | F42: 0 | G42: 0 | H42: 0 | I42: 0 | J42: 0 | K42: 0
B43: =BASE!C41 -> 0 | C43: 0 | D43: 0 | E43: 0 | F43: 0 | G43: 0 | H43: 0 | I43: 0 | J43: 0 | K43: 0
B44: =BASE!C42 -> 0 | C44: 0 | D44: 0 | E44: 0 | F44: 0 | G44: 0 | H44: 0 | I44: 0 | J44: 0 | K44: 0
B45: =BASE!C43 -> 0 | C45: 0 | D45: 0 | E45: 0 | F45: 0 | G45: 0 | H45: 0 | I45: 0 | J45: 0 | K45: 0
B46: =BASE!C44 -> 0 | C46: 0 | D46: 0 | E46: 0 | F46: 0 | G46: 0 | H46: 0 | I46: 0 | J46: 0 | K46: 0
B47: المجموع العام | C47: =SUM(C7:C46) -> 181 | D47: 275 | E47: 456 | F47: 118 | G47: 116 | H47: 234 | I47: 299 | J47: 391 | K47: 690

Sheet MOUV ELV
B5: حــــــركة التلاميــــذ خــــــــــــلال شهـــــر : | H5: نوفمبر 2021
A8: الرقم | B8: الاسم و اللقب كاملا | C8: رقم التعريف المدرسي | D8: الجنس | E8: تاريخ الازدياد | F8: مكان الازدياد | G8: القسم المختصر | H8: الصفة | I8: دخول | J8: خروخ | K8: ملاحظات
A9: 1 | B9: بلميمون نبية | C9: 1100313270080700 | E9: 2003-04-21 | F9: مغنية | J9: E2 | K9: شطب | AH9: شطب
A10: 2 | B10: شحيح هشام | C10: 1000513270150700 | D10: ذكر | E10: 2005-06-14 | F10: مغنية | G10: 2ت ر/هم | H10: D1 | I10: CD1 | J10: CE1 | K10: تغيير الصفة
A11: 3 | B11: شبورو محمد ياسين | C11: 1000513270140100 | D11: ذكر | E11: 2005-06-06 | F11: مغنية | G11: 2ت ر/هك | H11: D1 | I11: CD1 | J11: CE1 | K11: تغيير الصفة

Sheet SAISIE (hidden)
B4: رقم التعريف المدرسي: | E4: رقم القســـــم :
B6: اللقــــــــب : | E6: رقم القيـــــد :
B8: الإســـــــــم : | E8: الصفــــــــــة :
B10: الجنــــــس : | E10: اسم و لقب الولي :
B12: تاريخ الإزدياد : | E12: العنـــــــوان :
B14: مكان الإزدياد : | E14: Nom & Prénom
B16: القسم المختصر : | E16: تاريخ الخروج :
B18: السـنــــنة : | E18: تاريخ الدخول :
B20: الشعبـــــــــة :

Sheet KACHF CHAHRI01
M1: الجمهورية الجزائرية الديمقراطية الشعبية
M2: وزارة التربية الوطنية
A4: عدد التلاميذ الحاضرين | M4: مديرية التربية لولاية : تلمسان | P4: ثانوية الخوارزمي - مغنية -
C6: داخلي | E6: نصف داخلي | G6: خارجي | I6: المجموع | K6: مجموع عام
C7: ذ | D7: إ | E7: ذ | F7: إ | G7: ذ | H7: إ | I7: ذ | J7: إ
A8: الحاضرون في نهاية الشهر السابق | C8: 0 | D8: 0 | E8: 182 | F8: 276 | G8: 121 | H8: 117 | I8: =G8+E8+C8 -> 303 | J8: 393 | K8: =SUM(I8:J8) -> 696
A9: الدخول خلال الشهر | B9: تغيير الصفة | C9: 0 | D9: 0 | E9: =COUNTIF(ent,"CD1") -> 0 | F9: =COUNTIF(ent,"CD2") -> 0 | G9: =COUNTIF(ent,"CE1") -> 0 | H9: =COUNTIF(ent,"CE2") -> 0 | I9: 0 | J9: 0 | K9: =SUM(I9:J9) -> 0 | N9: كشف التلاميذ الحاضرين
B10: دخول | C10: 0 | D10: 0 | E10: =COUNTIF(ent,"D1") -> 0 | F10: =COUNTIF(ent,"D2") -> 0 | G10: =COUNTIF(ent,"E1") -> 0 | H10: =COUNTIF(ent,"E2") -> 0 | I10: 0 | J10: 0 | K10: =SUM(I10:J10) -> 0
A11: المجموع | C11: =SUM(C9:C10) -> 0 | D11: =SUM(D9:D10) -> 0 | E11: 0 | F11: 0 | G11: 0 | H11: 0 | I11: 0 | J11: 0 | K11: 0 | N11: وضعيـــة نهـــاية شهـــــر :
A12: الخروج خلال الشهر | B12: تغيير الصفة | C12: 0 | D12: 0 | E12: =COUNTIF(sor,"CD1") -> 0 | F12: =COUNTIF(sor,"CD2") -> 0 | G12: =COUNTIF(sor,"CE1") -> 0 | H12: =COUNTIF(sor,"CE2") -> 0 | I12: =G12+E12+C12 -> 0 | J12: =H12+F12+D12 -> 0 | K12: =SUM(I12:J12) -> 0
B13: خروج | C13: 0 | D13: 0 | E13: =COUNTIF(sor,"D1") -> 2 | F13: =COUNTIF(sor,"D2") -> 1 | G13: =COUNTIF(sor,"E1") -> 2 | H13: =COUNTIF(sor,"E2") -> 1 | I13: =G13+E13+C13 -> 4 | J13: =H13+F13+D13 -> 2 | K13: =SUM(I13:J13) -> 6 | O13: جانفي | P13: 2021
A14: المجموع | C14: =SUM(C12:C13) -> 0 | D14: =SUM(D12:D13) -> 0 | E14: 2 | F14: 1 | G14: 2 | H14: 1 | I14: 4 | J14: 2 | K14: 6
A15: التلاميذ الحاضرون في نهاية شهر | C15: 0 | D15: 0 | E15: =E8+E11-E14 -> 180 | F15: =F8+F11-F14 -> 275 | G15: 119 | H15: 116 | I15: 299 | J15: 391 | K15: 690
G17: يوم : | H17: 2022-01-31
A18: انجز من طرف
A19: مستشار التربية | C19: الناظر | G19: المقتصد | K19: المدير

Sheet KACHF CHAHRI02
A1: ثانوية الخوارزمي - مغنية - | U1: السنة الدراسية :2022/2021
G2: كشف التلاميذ الحاضرين إلى غاية | M2: 2022-01-31
A4: الأفواج التربوية | B4: السنة الثالثة ثانوي | J4: الأفواج التربوية | K4: السنة الثانيــة ثانوي | S4: الأفواج التربوية | T4: الجذوع المشتركة
B5: داخليون | D5: نصف داخليين | F5: خارجيون | H5: مج | K5: داخليون | M5: نصف داخليين | O5: خارجيون | Q5: مج | T5: داخليون | V5: نصف داخليين | X5: خارجيون | Z5: مج
B6: ذ | C6: إ | D6: ذ | E6: إ | F6: ذ | G6: إ | K6: ذ | L6: إ | M6: ذ | N6: إ | O6: ذ | P6: إ | T6: ذ | U6: إ | V6: ذ | W6: إ | X6: ذ | Y6: إ
A7: 3رياضي1 | J7: 2رياضي1 | S7: 1ج م ع ت 1 | T7: 0 | U7: 0 | V7: =TI3DAD!C23 -> 17 | W7: =TI3DAD!D23 -> 7 | X7: =TI3DAD!F23 -> 7 | Y7: =TI3DAD!G23 -> 5 | Z7: =SUM(T7:Y7) -> 36
A8: 3رياضي2 | J8: 2رياضي2 | S8: 1ج م ع ت 2 | T8: 0 | U8: 0 | V8: =TI3DAD!C24 -> 14 | W8: =TI3DAD!D24 -> 12 | X8: =TI3DAD!F24 -> 6 | Y8: =TI3DAD!G24 -> 2 | Z8: =SUM(T8:Y8) -> 34
A9: مج3 رياضي | J9: مج3 رياضي | S9: 1ج م ع ت 3 | T9: 0 | U9: 0 | V9: =TI3DAD!C25 -> 12 | W9: =TI3DAD!D25 -> 11 | X9: =TI3DAD!F25 -> 8 | Y9: =TI3DAD!G25 -> 5 | Z9: =SUM(T9:Y9) -> 36
A10: 3ت ر/ه مك | J10: 2ت ر/ه مك | S10: 1ج م ع ت 4 | T10: 0 | U10: 0 | V10: =TI3DAD!C26 -> 11 | W10: =TI3DAD!D26 -> 10 | X10: =TI3DAD!F26 -> 10 | Y10: =TI3DAD!G26 -> 3 | Z10: =SUM(T10:Y10) -> 34
A11: 3ت ر/ه كهر | B11: 0 | C11: 0 | D11: =TI3DAD!C7 -> 1 | E11: =TI3DAD!D7 -> 7 | F11: =TI3DAD!F7 -> 1 | G11: =TI3DAD!G7 -> 4 | H11: =SUM(D11:G11) -> 13 | J11: 2ت ر/ه كهر | K11: 0 | L11: 0 | M11: =TI3DAD!C15 -> 5 | N11: =TI3DAD!D15 -> 1 | O11: =TI3DAD!F15 -> 1 | P11: =TI3DAD!G15 -> 1 | Q11: =SUM(K11:P11) -> 8 | S11: 1ج م ع ت 5 | T11: 0 | U11: 0 | V11: =TI3DAD!C27 -> 12 | W11: =TI3DAD!D27 -> 11 | X11: =TI3DAD!F27 -> 8 | Y11: =TI3DAD!G27 -> 9 | Z11: =SUM(T11:Y11) -> 40
A12: 3ت ر/ه مد | B12: 0 | C12: 0 | D12: =TI3DAD!C8 -> 2 | E12: =TI3DAD!D8 -> 2 | F12: =TI3DAD!F8 -> 1 | G12: =TI3DAD!G8 -> 2 | H12: =SUM(D12:G12) -> 7 | J12: 2ت ر/ه مد | K12: 0 | L12: 0 | M12: =TI3DAD!C16 -> 3 | N12: =TI3DAD!D16 -> 6 | O12: =TI3DAD!F16 -> 7 | P12: =TI3DAD!G16 -> 0 | Q12: =SUM(K12:P12) -> 16 | S12: 1ج م ع ت 6
A13: 3ت ر/ه طر | J13: 2ت ر/ه طر | S13: 1ج م ع ت 7
A14: مج 3ت رياضي | B14: =SUM(B11:B13) -> 0 | C14: =SUM(C11:C13) -> 0 | D14: 3 | E14: 9 | F14: 2 | G14: 6 | H14: 20 | J14: مج 2ت رياضي | K14: =SUM(K11:K13) -> 0 | L14: =SUM(L11:L13) -> 0 | M14: 8 | N14: 7 | O14: 8 | P14: 1 | Q14: 24 | S14: 1ج م ع ت 8
A15: 3ع ت1 | B15: 0 | C15: 0 | D15: =TI3DAD!C10 -> 5 | E15: =TI3DAD!D10 -> 17 | F15: =TI3DAD!F10 -> 6 | G15: =TI3DAD!G10 -> 10 | H15: =SUM(D15:G15) -> 38 | J15: 2ع ت1 | K15: 0 | L15: 0 | M15: =TI3DAD!C18 -> 8 | N15: =TI3DAD!D18 -> 16 | O15: =TI3DAD!F18 -> 7 | P15: =TI3DAD!G18 -> 3 | Q15: =SUM(K15:P15) -> 34 | S15: 1ج م ع ت 9
A16: 3ع ت2 | B16: 0 | C16: 0 | D16: =TI3DAD!C11 -> 5 | E16: =TI3DAD!D11 -> 16 | F16: =TI3DAD!F11 -> 3 | G16: =TI3DAD!G11 -> 4 | H16: =SUM(D16:G16) -> 28 | J16: 2ع ت2 | K16: 0 | L16: 0 | M16: =TI3DAD!C19 -> 9 | N16: =TI3DAD!D19 -> 17 | O16: =TI3DAD!F19 -> 3 | P16: =TI3DAD!G19 -> 5 | Q16: =SUM(K16:P16) -> 34 | S16: 1ج م ع ت 10
A17: 3ع ت3 | J17: 2ع ت3 | S17: 1ج م ع ت 11
A18: 3ع ت4 | J18: 2ع ت4 | S18: مج 1 ج م علوم | T18: =SUM(T7:T17) -> 0 | U18: =SUM(U7:U17) -> 0 | V18: 66 | W18: 51 | X18: 39 | Y18: 24 | Z18: 180
A19: 3ع ت5 | J19: 2ع ت5 | S19: 1 1ج م آ | T19: 0 | U19: 0 | V19: =TI3DAD!C28 -> 14 | W19: =TI3DAD!D28 -> 13 | X19: =TI3DAD!F28 -> 6 | Y19: =TI3DAD!G28 -> 11 | Z19: =SUM(T19:Y19) -> 44
A20: مج 3 ع ت | B20: =SUM(B15:B19) -> 0 | C20: =SUM(C15:C19) -> 0 | D20: 10 | E20: 33 | F20: 9 | G20: 14 | H20: 66 | J20: مج 2 ع ت | K20: =SUM(K15:K19) -> 0 | L20: =SUM(L15:L19) -> 0 | M20: 17 | N20: 33 | O20: 10 | P20: 8 | Q20: 68 | S20: 2 1ج م آ | T20: 0 | U20: 0 | V20: =TI3DAD!C29 -> 12 | W20: =TI3DAD!D29 -> 15 | X20: =TI3DAD!F29 -> 6 | Y20: =TI3DAD!G29 -> 10 | Z20: =SUM(T20:Y20) -> 43
A21: 1 3ت إ | B21: 0 | C21: 0 | D21: =TI3DAD!C9 -> 9 | E21: =TI3DAD!D9 -> 14 | F21: =TI3DAD!F9 -> 5 | G21: =TI3DAD!G9 -> 4 | H21: =SUM(B21:G21) -> 32 | J21: 1 2ت إ | K21: 0 | L21: 0 | M21: =TI3DAD!C17 -> 9 | N21: =TI3DAD!D17 -> 13 | O21: =TI3DAD!F17 -> 7 | P21: =TI3DAD!G17 -> 5 | Q21: =SUM(K21:P21) -> 34 | S21: 3 1ج م آ
A22: 2 3ت إ | J22: 2 2ت إ | S22: 4 1ج م آ
A23: 3 3ت إ | J23: 3 2ت إ | S23: 5 1ج م آ
A24: مج 3 ت إ | B24: =SUM(B21:B23) -> 0 | C24: =SUM(C21:C23) -> 0 | D24: 9 | E24: 14 | F24: 5 | G24: 4 | H24: 32 | J24: مج 2 ت إ | K24: =SUM(K21:K23) -> 0 | L24: =SUM(L21:L23) -> 0 | M24: 9 | N24: 13 | O24: 7 | P24: 5 | Q24: 34 | S24: مج 1 ج م آداب | T24: =SUM(T19:T23) -> 0 | U24: =SUM(U19:U23) -> 0 | V24: 26 | W24: 28 | X24: 12 | Y24: 21 | Z24: 87
A25: 3أ ف 1 | B25: 0 | C25: 0 | D25: =TI3DAD!C12 -> 5 | E25: =TI3DAD!D12 -> 15 | F25: =TI3DAD!F12 -> 6 | G25: =TI3DAD!G12 -> 4 | H25: =SUM(B25:G25) -> 30 | J25: 2أ ف 1 | K25: 0 | L25: 0 | M25: =TI3DAD!C20 -> 11 | N25: =TI3DAD!D20 -> 17 | O25: =TI3DAD!F20 -> 7 | P25: =TI3DAD!G20 -> 11 | Q25: =SUM(K25:P25) -> 46 | S25: المجموع العام | T25: =SUM(T24,T18) -> 0 | U25: =SUM(U24,U18) -> 0 | V25: 92 | W25: 79 | X25: 51 | Y25: 45 | Z25: 267
A26: 3أ ف 2 | B26: 0 | C26: 0 | D26: =TI3DAD!C13 -> 6 | E26: =TI3DAD!D13 -> 11 | F26: =TI3DAD!F13 -> 4 | G26: =TI3DAD!G13 -> 5 | H26: =SUM(B26:G26) -> 26 | J26: 2أ ف 2 | K26: 0 | L26: 0 | M26: =TI3DAD!C21 -> 3 | N26: =TI3DAD!D21 -> 17 | O26: =TI3DAD!F21 -> 3 | P26: =TI3DAD!G21 -> 4 | Q26: =SUM(K26:P26) -> 27 | S26: الخـــــــــــــــــلاصة
A27: 3أ ف 3 | J27: 2أ ف 3
A28: 3أ ف 4 | J28: 2أ ف 4 | S28: المستويات | T28: الصفة | Z28: مج
A29: مج 3أ ف | B29: =SUM(B25:B28) -> 0 | C29: =SUM(C25:C28) -> 0 | D29: 11 | E29: 26 | F29: 10 | G29: 9 | H29: 56 | J29: مج 2أ ف | K29: =SUM(K25:K28) -> 0 | L29: =SUM(L25:L28) -> 0 | M29: 14 | N29: 34 | O29: 10 | P29: 15 | Q29: 73 | T29: داخليون | V29: نصف داخليين | X29: خارجيون
A30: 3لغات1 | B30: 0 | C30: 0 | D30: =TI3DAD!C14 -> 4 | E30: =TI3DAD!D14 -> 11 | F30: =TI3DAD!F14 -> 2 | G30: =TI3DAD!G14 -> 6 | H30: =SUM(B30:G30) -> 23 | J30: 2لغات1 | K30: 0 | L30: 0 | M30: =TI3DAD!C22 -> 4 | N30: =TI3DAD!D22 -> 16 | O30: =TI3DAD!F22 -> 4 | P30: =TI3DAD!G22 -> 3 | Q30: =SUM(K30:P30) -> 27 | T30: ذ | U30: إ | V30: ذ | W30: إ | X30: ذ | Y30: إ
A31: 3لغات2 | J31: 2لغات2 | S31: الجدوع المشتركة | T31: =T25 -> 0 | U31: =U25 -> 0 | V31: 92 | W31: 79 | X31: 51 | Y31: 45 | Z31: 267
A32: 3لغات3 | J32: 2لغات3 | S32: السنة الثانية ثانوي | T32: =K34 -> 0 | U32: =L34 -> 0 | V32: 52 | W32: 103 | X32: 39 | Y32: 32 | Z32: 226
A33: مج 3لغات | B33: =SUM(B30:B32) -> 0 | C33: =SUM(C30:C32) -> 0 | D33: 4 | E33: 11 | F33: 2 | G33: 6 | H33: 23 | J33: مج 2لغات | K33: =SUM(K30:K32) -> 0 | L33: =SUM(L30:L32) -> 0 | M33: 4 | N33: 16 | O33: 4 | P33: 3 | Q33: 27 | S33: السنة الثالثة ثانوي | T33: =B34 -> 0 | U33: =C34 -> 0 | V33: 37 | W33: 93 | X33: 28 | Y33: 39 | Z33: 197
A34: المجموع العام | B34: =SUM(B33,B29,B24,B20,B14) -> 0 | C34: =SUM(C33,C29,C24,C20,C14) -> 0 | D34: 37 | E34: 93 | F34: 28 | G34: 39 | H34: 197 | J34: المجموع العام | K34: =SUM(K33,K29,K24,K20,K14) -> 0 | L34: =SUM(L33,L29,L24,L20,L14) -> 0 | M34: 52 | N34: 103 | O34: 39 | P34: 32 | Q34: 226 | S34: المجموع العام | T34: =SUM(T31:T33) -> 0 | U34: =SUM(U31:U33) -> 0 | V34: 181 | W34: 275 | X34: 118 | Y34: 116 | Z34: 690

Sheet DATA ELV
AC1: الاسم | AD1: الصف
AC2: الدباس حسين | AD2: =MATCH(AC2,B:B,0) -> 
A7: 1 | B7: 2 | C7: 3 | D7: 4 | E7: 5 | F7: 6 | G7: 7 | H7: 8 | I7: 9 | J7: 10 | K7: 11 | L7: 12 | M7: 13 | N7: 14 | O7: 15 | P7: 16 | Q7: 17 | R7: 18 | S7: 19 | T7: 20 | U7: 21 | V7: 22 | W7: 23 | X7: 24 | Y7: 25
A8: الرقم | B8: الاسم و اللقب كاملا | C8: رقم التعريف المدرسي | D8: اللقب | E8: الاسم | F8: الجنس | G8: تاريخ الازدياد | H8: مكان الازدياد | I8: الصفة | J8: القسم المختصر | K8: إعادة س1 | L8: إعادة س2 | M8: إعادة س3 | N8: السنة | O8: الشعبة | P8: رقم القسم | Q8: رقم القيد | R8: الصفة | S8: اسم الولي | T8: العنوان | U8: الاسم و اللقب بالكتابة اللاتينية | V8: تاريخ الدخول | W8: تاريخ الخروج | X8: دخول | Y8: خروخ
A9: 1 | B9: =D9& " " &E9 -> بوستين أسامة | C9: 1000513270043200 | D9: بوستين | E9: أسامة | F9: ذكر | G9: 2005-02-20 | H9: مغنية | I9: نصف داخلي | J9: 3ت ر/هم | N9: ثالثة | O9: تقني رياضي هندسة مدنية | P9: 1 | Q9: 1 | R9: D1 | S9: بوستين محمد | T9: أولاد الشارف مغنية | U9: Belkheir Hafsa | Z9: =IF($J9="","",MATCH($J9,OFFSET(BASE!$C$5,,,MAX(BASE!$B:$B)),0)) -> 2 | AA9: =IF($Z9="","",60*($Z9-1)+COUNTIF($Z$9:$Z9,$Z9)) -> 61 | AB9: مغادر
A10: 2 | B10: سفيون مروة | C10: 1100513270010900 | D10: سفيون | E10: مروة | F10: أنثى | G10: 2005-01-11 | H10: مغنية | I10: خارجي | J10: 3ت ر/هم | N10: ثالثة | O10: تقني رياضي هندسة مدنية | P10: 1 | Q10: 2 | R10: D2 | S10: سفيون جمال | T10: شارع 05 رقم 42 حي العربي بن مهيدي | U10: Fedouha Ilhem | Z10: =IF($J10="","",MATCH($J10,OFFSET(BASE!$C$5,,,MAX(BASE!$B:$B)),0)) -> 2 | AA10: =IF($Z10="","",60*($Z10-1)+COUNTIF($Z$9:$Z10,$Z10)) -> 62
A11: 3 | B11: قرد آية | C11: 1100313270092300 | D11: قرد | E11: آية | F11: أنثى | G11: 2003-05-08 | H11: مغنية | I11: نصف داخلي | J11: 3ت ر/هم | N11: ثالثة | O11: تقني رياضي هندسة مدنية | P11: 1 | Q11: 3 | R11: D2 | S11: قرد حمدون | T11: قرية البطيم مغنية | U11: Bin seghir Hussam Mohammed Adnan | Z11: =IF($J11="","",MATCH($J11,OFFSET(BASE!$C$5,,,MAX(BASE!$B:$B)),0)) -> 2 | AA11: =IF($Z11="","",60*($Z11-1)+COUNTIF($Z$9:$Z11,$Z11)) -> 63
A12: 4 | B12: قرواو محمد الأمين | C12: 1000413270037200 | D12: قرواو | E12: محمد الأمين | F12: ذكر | G12: 2004-02-11 | H12: مغنية | I12: نصف داخلي | J12: 3ت ر/هم | N12: ثالثة | O12: تقني رياضي هندسة مدنية | P12: 1 | Q12: 4 | R12: D1 | S12: قرواو عبد الحاكم | T12: قرية البطيم مغنية | U12: Taleb Sharhabeel | Z12: =IF($J12="","",MATCH($J12,OFFSET(BASE!$C$5,,,MAX(BASE!$B:$B)),0)) -> 2 | AA12: =IF($Z12="","",60*($Z12-1)+COUNTIF($Z$9:$Z12,$Z12)) -> 64
A13: 5 | B13: بختاوي مغنية | C13: 1100313270036400 | D13: بختاوي | E13: مغنية | F13: أنثى | G13: 2003-02-15 | H13: مغنية | I13: خارجي | J13: 3ت ر/هم | N13: ثالثة | O13: تقني رياضي هندسة مدنية | P13: 1 | Q13: 5 | R13: E2 | S13: بختاوي محمد | T13: حي الشهداء مغنية | U13: Matallah Aya Fatima Zahra | Z13: =IF($J13="","",MATCH($J13,OFFSET(BASE!$C$5,,,MAX(BASE!$B:$B)),0)) -> 2 | AA13: =IF($Z13="","",60*($Z13-1)+COUNTIF($Z$9:$Z13,$Z13)) -> 65
A14: 6 | B14: بن سالم عبد الله | D14: بن سالم | E14: عبد الله | F14: ذكر | G14: 1999-11-13 | H14: مشرية | I14: خارجي | J14: 3ت ر/هم | N14: الثالثة | O14: تقني رياضي هندسة مدنية | Q14: 6 | R14: E1 | S14: بن سالم ميلود | T14: قرية العقيد لطفي مغنية | U14: Moïse Submitted | Z14: =IF($J14="","",MATCH($J14,OFFSET(BASE!$C$5,,,MAX(BASE!$B:$B)),0)) -> 2 | AA14: =IF($Z14="","",60*($Z14-1)+COUNTIF($Z$9:$Z14,$Z14)) -> 66
A15: 7 | B15: بوزيان مريم | C15: 1100313270033800 | D15: بوزيان | E15: مريم | F15: أنثى | G15: 2003-02-11 | H15: مغنية | I15: خارجي | J15: 3ت ر/هك | N15: ثالثة | O15: تقني رياضي هندسة كهربائية | P15: 1 | Q15: 7 | R15: D2 | S15: بوزيان ميلود | T15: قرية البخاتة مغنية | U15: AlBaddad Islam Mohammad Amin | Z15: =IF($J15="","",MATCH($J15,OFFSET(BASE!$C$5,,,MAX(BASE!$B:$B)),0)) -> 1 | AA15: =IF($Z15="","",60*($Z15-1)+COUNTIF($Z$9:$Z15,$Z15)) -> 1
A16: 8 | B16: بوزي عبير | C16: 1100513270063000 | D16: بوطاقة | E16: مريم | F16: أنثى | G16: 2005-03-15 | H16: مغنية | I16: نصف داخلي | J16: 3ت ر/هك | N16: ثالثة | O16: تقني رياضي هندسة كهربائية | P16: 1 | Q16: 8 | R16: D2 | S16: بوطاقة فتحي | T16: أولاد الشارف مغنية | U16: Bouzi Abeer | Z16: =IF($J16="","",MATCH($J16,OFFSET(BASE!$C$5,,,MAX(BASE!$B:$B)),0)) -> 1 | AA16: =IF($Z16="","",60*($Z16-1)+COUNTIF($Z$9:$Z16,$Z16)) -> 2
A17: 9 | B17: =D17& " " &E17 -> تاسرة رانيا | C17: 1100413270230900 | D17: تاسرة | E17: رانيا | F17: أنثى | G17: 2004-08-24 | H17: مغنية | I17: نصف داخلي | J17: 3ت ر/هك | N17: ثالثة | O17: تقني رياضي هندسة كهربائية | P17: 1 | Q17: 9 | R17: D2 | S17: تاسرة عبد الحميد | T17: بني بوسعيد مغنية | U17: Menouar Mouad | Z17: =IF($J17="","",MATCH($J17,OFFSET(BASE!$C$5,,,MAX(BASE!$B:$B)),0)) -> 1 | AA17: =IF($Z17="","",60*($Z17-1)+COUNTIF($Z$9:$Z17,$Z17)) -> 3
A18: 10 | B18: حنيفي دعاء | C18: 1100413270319500 | D18: حنيفي | E18: دعاء | F18: أنثى | G18: 2004-11-20 | H18: مغنية | I18: نصف داخلي | J18: 3ت ر/هك | N18: ثالثة | O18: تقني رياضي هندسة كهربائية | P18: 1 | Q18: 10 | R18: D2 | S18: حنيفي محمد | T18: قرية البطيم مغنية | U18: Mousati Imad | Z18: =IF($J18="","",MATCH($J18,OFFSET(BASE!$C$5,,,MAX(BASE!$B:$B)),0)) -> 1 | AA18: =IF($Z18="","",60*($Z18-1)+COUNTIF($Z$9:$Z18,$Z18)) -> 4
A19: 11 | B19: سلومي فتيحة | C19: 1100313270204500 | D19: سلومي | E19: فتيحة | F19: أنثى | G19: 2003-09-03 | H19: مغنية | I19: نصف داخلي | J19: 3ت ر/هك | N19: ثالثة | O19: تقني رياضي هندسة كهربائية | P19: 1 | Q19: 11 | R19: D2 | S19: سلومي رمضان | T19: قرية البطيم مغنية | U19: Moussaoui Ammara | Z19: =IF($J19="","",MATCH($J19,OFFSET(BASE!$C$5,,,MAX(BASE!$B:$B)),0)) -> 1 | AA19: =IF($Z19="","",60*($Z19-1)+COUNTIF($Z$9:$Z19,$Z19)) -> 5
A20: 12 | B20: لعروسي فرح | C20: 1100413270009100 | D20: لعروسي | E20: فرح | F20: أنثى | G20: 2004-01-12 | H20: مغنية | I20: نصف داخلي | J20: 3ت ر/هك | N20: ثالثة | O20: تقني رياضي هندسة كهربائية | P20: 1 | Q20: 12 | R20: D2 | S20: لعروسي بن أعمر | T20: قرية البطيم | U20: Mekhloufi Yassin | Z20: =IF($J20="","",MATCH($J20,OFFSET(BASE!$C$5,,,MAX(BASE!$B:$B)),0)) -> 1 | AA20: =IF($Z20="","",60*($Z20-1)+COUNTIF($Z$9:$Z20,$Z20)) -> 6
A21: 13 | B21: مقدم موسى | C21: 1100413270338000 | D21: مقدم | E21: موسى | F21: ذكر | G21: 2004-12-07 | H21: مغنية | I21: نصف داخلي | J21: 3ت ر/هك | N21: ثالثة | O21: تقني رياضي هندسة كهربائية | P21: 1 | Q21: 13 | R21: D2 | S21: مقدم لخضر | T21: أولاد قدور الكبار مغنية | U21: Ouhassin Rabia | Z21: =IF($J21="","",MATCH($J21,OFFSET(BASE!$C$5,,,MAX(BASE!$B:$B)),0)) -> 1 | AA21: =IF($Z21="","",60*($Z21-1)+COUNTIF($Z$9:$Z21,$Z21)) -> 7
A22: 14 | B22: يخلف لحسن | C22: 1000313270225900 | D22: يخلف | E22: لحسن | F22: ذكر | G22: 2003-09-28 | H22: مغنية | I22: نصف داخلي | J22: 3ت ر/هك | N22: ثالثة | O22: تقني رياضي هندسة كهربائية | P22: 1 | Q22: 14 | R22: D1 | S22: يخلف ميلود | T22: قرية البطيم مغنية | U22: benhamou widad malek | Z22: =IF($J22="","",MATCH($J22,OFFSET(BASE!$C$5,,,MAX(BASE!$B:$B)),0)) -> 1 | AA22: =IF($Z22="","",60*($Z22-1)+COUNTIF($Z$9:$Z22,$Z22)) -> 8
A23: 15 | B23: بن يوبي مغنية امينة | C23: 1100313270107600 | D23: بن يوبي | E23: مغنية امينة | F23: أنثى | G23: 2003-05-27 | H23: مغنية | I23: خارجي | J23: 3ت ر/هك | N23: ثالثة | O23: تقني رياضي هندسة كهربائية | P23: 1 | Q23: 15 | R23: E2 | S23: بن يوبي محمد | T23: قرية اولاد الشارف مغنية | U23: Agrid Youssef | Z23: =IF($J23="","",MATCH($J23,OFFSET(BASE!$C$5,,,MAX(BASE!$B:$B)),0)) -> 1 | AA23: =IF($Z23="","",60*($Z23-1)+COUNTIF($Z$9:$Z23,$Z23)) -> 9
A24: 16 | B24: بوبكر يسرى | C24: 1100313270064600 | D24: بوبكر | E24: يسرى | F24: أنثى | G24: 2003-03-30 | H24: مغنية | I24: خارجي | J24: 3ت ر/هك | N24: ثالثة | O24: تقني رياضي هندسة كهربائية | P24: 1 | Q24: 16 | R24: E2 | S24: بوبكر يوسف | T24: مزرعة شعبان حمدون مغنية | U24: Halouz Adel | Z24: =IF($J24="","",MATCH($J24,OFFSET(BASE!$C$5,,,MAX(BASE!$B:$B)),0)) -> 1 | AA24: =IF($Z24="","",60*($Z24-1)+COUNTIF($Z$9:$Z24,$Z24)) -> 10
A25: 17 | B25: زرعي سعيد | C25: 1000313270113000 | D25: زرعي | E25: سعيد | F25: ذكر | G25: 2003-06-01 | H25: مغنية | I25: خارجي | J25: 3ت ر/هك | N25: ثالثة | O25: تقني رياضي هندسة كهربائية | P25: 1 | Q25: 17 | R25: E1 | S25: زرعي سيدي محمد | T25: حي بلال مغنية | U25: Ouldi Ebtihal | Z25: =IF($J25="","",MATCH($J25,OFFSET(BASE!$C$5,,,MAX(BASE!$B:$B)),0)) -> 1 | AA25: =IF($Z25="","",60*($Z25-1)+COUNTIF($Z$9:$Z25,$Z25)) -> 11
A26: 18 | B26: زياني الأول خديجة | C26: 1100413270287700 | D26: زياني الأول | E26: خديجة | F26: أنثى | G26: 2004-10-20 | H26: مغنية | I26: خارجي | J26: 3ت ر/هك | N26: ثالثة | O26: تقني رياضي هندسة كهربائية | P26: 1 | Q26: 18 | R26: E2 | S26: زياني الأول عبد القادر | T26: قرية العقيد لطفي مغنية | U26: Chellali Mohammad Amine | Z26: =IF($J26="","",MATCH($J26,OFFSET(BASE!$C$5,,,MAX(BASE!$B:$B)),0)) -> 1 | AA26: =IF($Z26="","",60*($Z26-1)+COUNTIF($Z$9:$Z26,$Z26)) -> 12
A27: 19 | B27: سايح شيماء | C27: 1100313270033000 | D27: سايح | E27: شيماء | F27: أنثى | G27: 2003-02-10 | H27: مغنية | I27: خارجي | J27: 3ت ر/هك | N27: ثالثة | O27: تقني رياضي هندسة كهربائية | P27: 1 | Q27: 19 | R27: E2 | S27: سايح سيد أحمد | T27: حي أولاد بن دامو | U27: Lakhdar Marwa | Z27: =IF($J27="","",MATCH($J27,OFFSET(BASE!$C$5,,,MAX(BASE!$B:$B)),0)) -> 1 | AA27: =IF($Z27="","",60*($Z27-1)+COUNTIF($Z$9:$Z27,$Z27)) -> 13
A28: 20 | B28: قنشي علاء الدين | C28: 1000213270295000 | D28: قنشي | E28: علاء الدين | G28: 2002-12-25 | H28: مغنية | Q28: 20 | S28: قنشي عبد الرزاق | T28: حي الشهداء | U28: Ben Ljube chanteuse Amina | Y28: E1 | Z28: =IF($J28="","",MATCH($J28,OFFSET(BASE!$C$5,,,MAX(BASE!$B:$B)),0)) ->  | AA28: =IF($Z28="","",60*($Z28-1)+COUNTIF($Z$9:$Z28,$Z28)) -> 
A29: 21 | B29: الفضيل ريم | C29: 1100413270069100 | D29: الفضيل | E29: ريم | F29: أنثى | G29: 2004-03-23 | H29: مغنية | I29: نصف داخلي | J29: 3ت إ01 | N29: ثالثة | O29: تسيير واقتصاد | P29: 1 | Q29: 21 | R29: D2 | S29: الفضيل نور الدين | T29: أولاد قدور الكبار | U29: Cheikh Abdullah | Z29: =IF($J29="","",MATCH($J29,OFFSET(BASE!$C$5,,,MAX(BASE!$B:$B)),0)) -> 3 | AA29: =IF($Z29="","",60*($Z29-1)+COUNTIF($Z$9:$Z29,$Z29)) -> 121
A30: 22 | B30: بن طيب ياسين | C30: 1000413270333600 | D30: بن طيب | E30: ياسين | F30: ذكر | G30: 2004-12-04 | H30: مغنية | I30: نصف داخلي | J30: 3ت إ01 | N30: ثالثة | O30: تسيير واقتصاد | P30: 1 | Q30: 22 | R30: D1 | S30: بن طيب نور الدين | T30: 03 شارع العقيد لطفي مغنية | U30: Abbasi Mohammad Amine | Z30: =IF($J30="","",MATCH($J30,OFFSET(BASE!$C$5,,,MAX(BASE!$B:$B)),0)) -> 3 | AA30: =IF($Z30="","",60*($Z30-1)+COUNTIF($Z$9:$Z30,$Z30)) -> 122
A31: 23 | B31: بوبندير أحمد | C31: 1000413270312400 | D31: بوبندير | E31: أحمد | F31: ذكر | G31: 2004-11-13 | H31: مغنية | I31: نصف داخلي | J31: 3ت إ01 | N31: ثالثة | O31: تسيير واقتصاد | P31: 1 | Q31: 23 | R31: D1 | S31: بوبندير بوفلجة | T31: قرية البطيم مغنية | U31: Khalid Kenza | Z31: =IF($J31="","",MATCH($J31,OFFSET(BASE!$C$5,,,MAX(BASE!$B:$B)),0)) -> 3 | AA31: =IF($Z31="","",60*($Z31-1)+COUNTIF($Z$9:$Z31,$Z31)) -> 123
A32: 24 | B32: بوبندير ميساء | C32: 1100313270177000 | D32: بوبندير | E32: ميساء | F32: أنثى | G32: 2003-08-05 | H32: مغنية | I32: نصف داخلي | J32: 3ت إ01 | N32: ثالثة | O32: تسيير واقتصاد | P32: 1 | Q32: 24 | R32: D2 | S32: بوبندير يحي | T32: قرية البطيم مغنية | U32: Draris Douaa | Z32: =IF($J32="","",MATCH($J32,OFFSET(BASE!$C$5,,,MAX(BASE!$B:$B)),0)) -> 3 | AA32: =IF($Z32="","",60*($Z32-1)+COUNTIF($Z$9:$Z32,$Z32)) -> 124
A33: 25 | B33: بوستين محمد اسلام | C33: 1000313270277600 | D33: بوستين | E33: محمد اسلام | F33: ذكر | G33: 2003-11-29 | H33: مغنية | I33: نصف داخلي | J33: 3ت إ01 | N33: ثالثة | O33: تسيير واقتصاد | P33: 1 | Q33: 25 | R33: D1 | S33: بوستين محمد | T33: قرية اولاد الشارف مغنية | U33: Bendouda Riham | Z33: =IF($J33="","",MATCH($J33,OFFSET(BASE!$C$5,,,MAX(BASE!$B:$B)),0)) -> 3 | AA33: =IF($Z33="","",60*($Z33-1)+COUNTIF($Z$9:$Z33,$Z33)) -> 125
A34: 26 | B34: بوعلي أميمة | C34: 1100413270125800 | D34: بوعلي | E34: أميمة | F34: أنثى | G34: 2004-05-30 | H34: مغنية | I34: نصف داخلي | J34: 3ت إ01 | N34: ثالثة | O34: تسيير واقتصاد | P34: 1 | Q34: 26 | R34: D2 | S34: بوعلي محمد | T34: قرية العقيد عباس مغنية تلمسان | U34: Ben Abdullah Djihan Ibtissem | Z34: =IF($J34="","",MATCH($J34,OFFSET(BASE!$C$5,,,MAX(BASE!$B:$B)),0)) -> 3 | AA34: =IF($Z34="","",60*($Z34-1)+COUNTIF($Z$9:$Z34,$Z34)) -> 126
A35: 27 | B35: بوعيشة مروة رميسة | C35: 1100313270268200 | D35: بوعيشة | E35: مروة رميسة | F35: أنثى | G35: 2003-11-17 | H35: مغنية | I35: نصف داخلي | J35: 3ت إ01 | N35: ثالثة | O35: تسيير واقتصاد | P35: 1 | Q35: 27 | R35: D2 | S35: بوعيشة نور الدين | T35: قرية المصامدة مغنية | U35: Amraoui Aicha | Z35: =IF($J35="","",MATCH($J35,OFFSET(BASE!$C$5,,,MAX(BASE!$B:$B)),0)) -> 3 | AA35: =IF($Z35="","",60*($Z35-1)+COUNTIF($Z$9:$Z35,$Z35)) -> 127
A36: 28 | B36: حوحو محفوظ عبد الرحيم | C36: 1000413270044600 | D36: حوحو | E36: محفوظ عبد الرحيم | F36: ذكر | G36: 2004-02-21 | H36: مغنية | I36: نصف داخلي | J36: 3ت إ01 | N36: ثالثة | O36: تسيير واقتصاد | P36: 1 | Q36: 28 | R36: D1 | S36: حوحو عقبة | T36: أولاد الشارف المربع7 مغنية | U36: Ben Moussa Rabha | Z36: =IF($J36="","",MATCH($J36,OFFSET(BASE!$C$5,,,MAX(BASE!$B:$B)),0)) -> 3 | AA36: =IF($Z36="","",60*($Z36-1)+COUNTIF($Z$9:$Z36,$Z36)) -> 128
A37: 29 | B37: خواني مريم | C37: 1100413270250600 | D37: خواني | E37: مريم | F37: أنثى | G37: 2004-09-14 | H37: مغنية | I37: نصف داخلي | J37: 3ت إ01 | N37: ثالثة | O37: تسيير واقتصاد | P37: 1 | Q37: 29 | R37: D2 | S37: خواني ابراهيم | T37: قرية بوسدرة - البخاتة | U37: Meziane Kawthar | Z37: =IF($J37="","",MATCH($J37,OFFSET(BASE!$C$5,,,MAX(BASE!$B:$B)),0)) -> 3 | AA37: =IF($Z37="","",60*($Z37-1)+COUNTIF($Z$9:$Z37,$Z37)) -> 129
A38: 30 | B38: راجعي منال | C38: 1100313270276100 | D38: راجعي | E38: منال | F38: أنثى | G38: 2003-11-27 | H38: مغنية | I38: نصف داخلي | J38: 3ت إ01 | N38: ثالثة | O38: تسيير واقتصاد | P38: 1 | Q38: 30 | R38: D2 | S38: راجعي محمد | T38: أولاد الشارف | U38: Drari Maghnia raja | Z38: =IF($J38="","",MATCH($J38,OFFSET(BASE!$C$5,,,MAX(BASE!$B:$B)),0)) -> 3 | AA38: =IF($Z38="","",60*($Z38-1)+COUNTIF($Z$9:$Z38,$Z38)) -> 130
A39: 31 | B39: زحزوح محمد الصادق | C39: 1000313270299700 | D39: زحزوح | E39: محمد الصادق | F39: ذكر | G39: 2003-12-27 | H39: مغنية | I39: نصف داخلي | J39: 3ت إ01 | N39: ثالثة | O39: تسيير واقتصاد | P39: 1 | Q39: 31 | R39: D1 | S39: زحزوح نور الدين | T39: قرية المصامدة مغنية | U39: Je veux Abdelmalek | Z39: =IF($J39="","",MATCH($J39,OFFSET(BASE!$C$5,,,MAX(BASE!$B:$B)),0)) -> 3 | AA39: =IF($Z39="","",60*($Z39-1)+COUNTIF($Z$9:$Z39,$Z39)) -> 131
A40: 32 | B40: زياني الأول مريم | C40: 1100313270070700 | D40: زياني الأول | E40: مريم | F40: أنثى | G40: 2003-04-08 | H40: مغنية | I40: نصف داخلي | J40: 3ت إ01 | N40: ثالثة | O40: تسيير واقتصاد | P40: 1 | Q40: 32 | R40: D2 | S40: زياني الأول عبد الله | T40: قرية العقيد لطفي مغنية | U40: Haj Ali Iman | Z40: =IF($J40="","",MATCH($J40,OFFSET(BASE!$C$5,,,MAX(BASE!$B:$B)),0)) -> 3 | AA40: =IF($Z40="","",60*($Z40-1)+COUNTIF($Z$9:$Z40,$Z40)) -> 132
A41: 33 | B41: سكاك حاج عبد الله | D41: سكاك | E41: حاج عبد الله | F41: ذكر | G41: 2000-12-20 | H41: خميس مليانة | J41: 3ت إ01 | Q41: 33 | R41: D1 | S41: سكاك محمد | T41: مزرعة سيب الطيب مغنية | U41: prière Hanifa | Z41: =IF($J41="","",MATCH($J41,OFFSET(BASE!$C$5,,,MAX(BASE!$B:$B)),0)) -> 3 | AA41: =IF($Z41="","",60*($Z41-1)+COUNTIF($Z$9:$Z41,$Z41)) -> 133
A42: 34 | B42: شبيب دعاء نورهان | C42: 1100431010460900 | D42: شبيب | E42: دعاء نورهان | F42: أنثى | G42: 2004-09-18 | H42: وهران | I42: نصف داخلي | J42: 3ت إ01 | N42: ثالثة | O42: تسيير واقتصاد | P42: 1 | Q42: 34 | R42: D2 | S42: شبيب نور الدين | T42: اولاد الشارف مغنية | U42: chanteur Hnavi | Z42: =IF($J42="","",MATCH($J42,OFFSET(BASE!$C$5,,,MAX(BASE!$B:$B)),0)) -> 3 | AA42: =IF($Z42="","",60*($Z42-1)+COUNTIF($Z$9:$Z42,$Z42)) -> 134
A43: 35 | B43: شياخ شيماء | C43: 1100313270120300 | D43: شياخ | E43: شيماء | F43: أنثى | G43: 2003-06-10 | H43: مغنية | I43: نصف داخلي | J43: 3ت إ01 | N43: ثالثة | O43: تسيير واقتصاد | P43: 1 | Q43: 35 | R43: D2 | S43: شياخ عبد المالك | T43: قرية المصامدة مغنية | U43: Mary Stump | Z43: =IF($J43="","",MATCH($J43,OFFSET(BASE!$C$5,,,MAX(BASE!$B:$B)),0)) -> 3 | AA43: =IF($Z43="","",60*($Z43-1)+COUNTIF($Z$9:$Z43,$Z43)) -> 135
A44: 36 | B44: شيباني سمير | C44: 1000313270055300 | D44: شيباني | E44: سمير | F44: ذكر | G44: 2003-03-13 | H44: مغنية | I44: نصف داخلي | J44: 3ت إ01 | N44: ثالثة | O44: تسيير واقتصاد | P44: 1 | Q44: 36 | R44: D1 | S44: شيباني عبد القادر | T44: قرية البطيم مغنية | U44: Sarah Bashir | Z44: =IF($J44="","",MATCH($J44,OFFSET(BASE!$C$5,,,MAX(BASE!$B:$B)),0)) -> 3 | AA44: =IF($Z44="","",60*($Z44-1)+COUNTIF($Z$9:$Z44,$Z44)) -> 136
A45: 37 | B45: عفاني أيمن | C45: 1000413270236600 | D45: عفاني | E45: أيمن | F45: ذكر | G45: 2004-08-30 | H45: مغنية | I45: نصف داخلي | J45: 3ت إ01 | N45: ثالثة | O45: تسيير واقتصاد | P45: 1 | Q45: 37 | R45: D1 | S45: عفاني مصطفى | T45: قرية البخاتة مغنية | U45: Bin Abdullah unique, | Z45: =IF($J45="","",MATCH($J45,OFFSET(BASE!$C$5,,,MAX(BASE!$B:$B)),0)) -> 3 | AA45: =IF($Z45="","",60*($Z45-1)+COUNTIF($Z$9:$Z45,$Z45)) -> 137
A46: 38 | B46: عمراوي مواهب | C46: 1100313270247000 | D46: عمراوي | E46: مواهب | F46: أنثى | G46: 2003-10-21 | H46: مغنية | I46: خارجي | J46: 3ت إ01 | N46: ثالثة | O46: تسيير واقتصاد | P46: 1 | Q46: 38 | R46: D2 | S46: عمراوي عبد الحليم | T46: قرية اولاد الشارف شارع 10 رقم 61 مغنية | U46: Dahl Khawla | Z46: =IF($J46="","",MATCH($J46,OFFSET(BASE!$C$5,,,MAX(BASE!$B:$B)),0)) -> 3 | AA46: =IF($Z46="","",60*($Z46-1)+COUNTIF($Z$9:$Z46,$Z46)) -> 138
A47: 39 | B47: قرد محمد | C47: 1000413270187400 | D47: قرد | E47: محمد | F47: ذكر | G47: 2004-07-17 | H47: مغنية | I47: نصف داخلي | J47: 3ت إ01 | N47: ثالثة | O47: تسيير واقتصاد | P47: 1 | Q47: 39 | R47: D1 | S47: قرد حمدون | T47: قرية البطيم مغنية | U47: Hussein Zahreddine | Z47: =IF($J47="","",MATCH($J47,OFFSET(BASE!$C$5,,,MAX(BASE!$B:$B)),0)) -> 3 | AA47: =IF($Z47="","",60*($Z47-1)+COUNTIF($Z$9:$Z47,$Z47)) -> 139
A48: 40 | B48: كوشير فاطمة الزهراء | C48: 1100413270229900 | D48: كوشير | E48: فاطمة الزهراء | F48: أنثى | G48: 2004-08-23 | H48: مغنية | I48: نصف داخلي | J48: 3ت إ01 | N48: ثالثة | O48: تسيير واقتصاد | P48: 1 | Q48: 40 | R48: D2 | S48: كوشير واسيني | T48: قرية البخاتة مغنية | U48: Bakhti Zulakhh | Z48: =IF($J48="","",MATCH($J48,OFFSET(BASE!$C$5,,,MAX(BASE!$B:$B)),0)) -> 3 | AA48: =IF($Z48="","",60*($Z48-1)+COUNTIF($Z$9:$Z48,$Z48)) -> 140
A49: 41 | B49: =D49& " " &E49 -> لزعر شيماء | C49: 1100413270245900 | D49: لزعر | E49: شيماء | F49: أنثى | G49: 2004-09-10 | H49: مغنية | I49: نصف داخلي | J49: 3ت إ01 | N49: ثالثة | O49: تسيير واقتصاد | P49: 1 | Q49: 41 | R49: D2 | S49: لزعر أحمد | T49: قرية العقيد عباس مغنية | U49: Turkish Almiloud | Z49: =IF($J49="","",MATCH($J49,OFFSET(BASE!$C$5,,,MAX(BASE!$B:$B)),0)) -> 3 | AA49: =IF($Z49="","",60*($Z49-1)+COUNTIF($Z$9:$Z49,$Z49)) -> 141
A50: 42 | B50: مولاي بودخيلي شيماء | C50: 1100413270129100 | D50: مولاي بودخيلي | E50: شيماء | F50: أنثى | G50: 2004-06-01 | H50: مغنية | I50: نصف داخلي | J50: 3ت إ01 | N50: ثالثة | O50: تسيير واقتصاد | P50: 1 | Q50: 42 | R50: D2 | S50: مولاي بودخيلي محمد عبد الباسط | T50: المصامدة | U50: Mbarek Haitham | Z50: =IF($J50="","",MATCH($J50,OFFSET(BASE!$C$5,,,MAX(BASE!$B:$B)),0)) -> 3 | AA50: =IF($Z50="","",60*($Z50-1)+COUNTIF($Z$9:$Z50,$Z50)) -> 142
A51: 43 | B51: هرنين رانيا | C51: 1100213350015600 | D51: هرنين | E51: رانيا | F51: أنثى | G51: 2002-02-23 | H51: تيميمون | I51: خارجي | J51: 3ت إ01 | N51: ثالثة | O51: تسيير واقتصاد | P51: 1 | Q51: 43 | R51: D2 | S51: هرنين بومدين | T51: حي الشهيد العرابي علي سبدو | U51: Dan Mohammad Amin | Z51: =IF($J51="","",MATCH($J51,OFFSET(BASE!$C$5,,,MAX(BASE!$B:$B)),0)) -> 3 | AA51: =IF($Z51="","",60*($Z51-1)+COUNTIF($Z$9:$Z51,$Z51)) -> 143
A52: 44 | B52: برواين حورية | C52: 1100313270666300 | D52: برواين | E52: حورية | F52: أنثى | G52: 2003-10-19 | H52: مغنية | I52: خارجي | J52: 3ت إ01 | N52: ثالثة | O52: تسيير واقتصاد | P52: 1 | Q52: 44 | R52: E2 | S52: برواين ميلود | T52: حي الشهداء مغنية | U52: joyeux Boumédiène | Z52: =IF($J52="","",MATCH($J52,OFFSET(BASE!$C$5,,,MAX(BASE!$B:$B)),0)) -> 3 | AA52: =IF($Z52="","",60*($Z52-1)+COUNTIF($Z$9:$Z52,$Z52)) -> 144
A53: 45 | B53: بلعباس رفيق | C53: 1000313270122100 | D53: بلعباس | E53: رفيق | F53: ذكر | G53: 2003-06-12 | H53: مغنية | I53: خارجي | J53: 3ت إ01 | N53: ثالثة | O53: تسيير واقتصاد | P53: 1 | Q53: 45 | R53: E1 | S53: بلعباس علي | T53: أولاد الشارف مغنية | U53: Abdul Malik Mohammed Amin | Z53: =IF($J53="","",MATCH($J53,OFFSET(BASE!$C$5,,,MAX(BASE!$B:$B)),0)) -> 3 | AA53: =IF($Z53="","",60*($Z53-1)+COUNTIF($Z$9:$Z53,$Z53)) -> 145
A54: 46 | B54: بلميمون نبية | C54: 1100313270080700 | D54: بلميمون | E54: نبية | G54: 2003-04-21 | H54: مغنية | I54: خارجي | N54: ثالثة | O54: تسيير واقتصاد | P54: 1 | Q54: 46 | S54: بلميمون رشيد | T54: شارع 03 رقم المنزل 27 حي الشهداء | U54: Fares Leila | Z54: =IF($J54="","",MATCH($J54,OFFSET(BASE!$C$5,,,MAX(BASE!$B:$B)),0)) ->  | AA54: =IF($Z54="","",60*($Z54-1)+COUNTIF($Z$9:$Z54,$Z54)) -> 
A55: 47 | B55: بن هدي إناس | C55: 1100513270000100 | D55: بن هدي | E55: إناس | F55: أنثى | G55: 2005-01-01 | H55: مغنية | I55: خارجي | J55: 3ت إ01 | N55: ثالثة | O55: تسيير واقتصاد | P55: 1 | Q55: 47 | R55: E2 | S55: بن هدي يحيى | T55: حي الشهداء | U55: Embarek Omar | Z55: =IF($J55="","",MATCH($J55,OFFSET(BASE!$C$5,,,MAX(BASE!$B:$B)),0)) -> 3 | AA55: =IF($Z55="","",60*($Z55-1)+COUNTIF($Z$9:$Z55,$Z55)) -> 146
A56: 48 | B56: جرارفاوي سارة | C56: 1100313270232000 | D56: جرارفاوي | E56: سارة | F56: أنثى | G56: 2003-10-05 | H56: مغنية | I56: خارجي | J56: 3ت إ01 | N56: ثالثة | O56: تسيير واقتصاد | P56: 1 | Q56: 48 | R56: E2 | S56: جرارفاوي محمد | T56: قرية البخاتة مغنية | U56: Rahho Sufyan | Z56: =IF($J56="","",MATCH($J56,OFFSET(BASE!$C$5,,,MAX(BASE!$B:$B)),0)) -> 3 | AA56: =IF($Z56="","",60*($Z56-1)+COUNTIF($Z$9:$Z56,$Z56)) -> 147
A57: 49 | B57: زياني الأول ابتسام | C57: 1100313270158500 | D57: زياني الأول | E57: ابتسام | G57: 2003-07-19 | H57: مغنية | I57: خارجي | S57: زياني الأول هاشمي | T57: قرية العقيد لطفي مغنية | U57: Bouneb Okacha | Z57: =IF($J57="","",MATCH($J57,OFFSET(BASE!$C$5,,,MAX(BASE!$B:$B)),0)) ->  | AA57: =IF($Z57="","",60*($Z57-1)+COUNTIF($Z$9:$Z57,$Z57)) -> 
A58: 50 | B58: صدار عبد العزيز | C58: 1000313270036500 | D58: صدار | E58: عبد العزيز | F58: ذكر | G58: 2003-02-02 | H58: مغنية | I58: خارجي | J58: 3ت إ01 | N58: ثالثة | O58: تسيير واقتصاد | P58: 1 | Q58: 50 | R58: E1 | S58: صدار محمد | T58: نهج 2 رقم 12 حي الشهداء مغنية | U58: Abdullah Bin Mohammad Amir | Z58: =IF($J58="","",MATCH($J58,OFFSET(BASE!$C$5,,,MAX(BASE!$B:$B)),0)) -> 3 | AA58: =IF($Z58="","",60*($Z58-1)+COUNTIF($Z$9:$Z58,$Z58)) -> 148
A59: 51 | B59: عبوين أيمن | C59: 1000213380014400 | D59: عبوين | E59: أيمن | F59: ذكر | G59: 2002-01-23 | H59: مغنية | I59: خارجي | J59: 3ت إ01 | N59: ثالثة | O59: تسيير واقتصاد | P59: 1 | Q59: 51 | R59: E1 | S59: عبوين عبد الرحمان | T59: أولاد موسى بني بوسعيد | U59: Bhaddadh Abdul Aziz | Z59: =IF($J59="","",MATCH($J59,OFFSET(BASE!$C$5,,,MAX(BASE!$B:$B)),0)) -> 3 | AA59: =IF($Z59="","",60*($Z59-1)+COUNTIF($Z$9:$Z59,$Z59)) -> 149
A60: 52 | B60: قوري الهواري | C60: 1000313270110300 | D60: قوري | E60: الهواري | F60: ذكر | G60: 2003-05-29 | H60: مغنية | I60: خارجي | J60: 3ت إ01 | N60: ثالثة | O60: تسيير واقتصاد | P60: 1 | Q60: 52 | R60: E1 | S60: قوري عبد الكريم | T60: قرية العقيد عباس مغنية | U60: Mary Bochete | Z60: =IF($J60="","",MATCH($J60,OFFSET(BASE!$C$5,,,MAX(BASE!$B:$B)),0)) -> 3 | AA60: =IF($Z60="","",60*($Z60-1)+COUNTIF($Z$9:$Z60,$Z60)) -> 150
A61: 53 | B61: كرد توفيق | C61: 1000113270175900 | D61: كرد | E61: توفيق | F61: ذكر | G61: 2001-08-17 | H61: مغنية | I61: خارجي | J61: 3ت إ01 | N61: ثالثة | O61: تسيير واقتصاد | P61: 1 | Q61: 53 | R61: E1 | S61: كرد عبد الحميد | T61: قرية العقيد لطفي مغنية | U61: Pot Bai Bin Amer | Z61: =IF($J61="","",MATCH($J61,OFFSET(BASE!$C$5,,,MAX(BASE!$B:$B)),0)) -> 3 | AA61: =IF($Z61="","",60*($Z61-1)+COUNTIF($Z$9:$Z61,$Z61)) -> 151
A62: 54 | B62: هواري سلسبيل | C62: 1100513270044000 | D62: هواري | E62: سلسبيل | F62: أنثى | G62: 2005-02-20 | H62: مغنية | I62: خارجي | J62: 3ت إ01 | N62: ثالثة | O62: تسيير واقتصاد | P62: 1 | Q62: 54 | R62: E2 | S62: هواري عبد العزيز | T62: رقم 2 حي الشهداء مغنية | U62: Marwa attribué | Z62: =IF($J62="","",MATCH($J62,OFFSET(BASE!$C$5,,,MAX(BASE!$B:$B)),0)) -> 3 | AA62: =IF($Z62="","",60*($Z62-1)+COUNTIF($Z$9:$Z62,$Z62)) -> 152
A63: 55 | B63: أمحمدي آسية | C63: 1100413270009700 | D63: أمحمدي | E63: آسية | F63: أنثى | G63: 2004-01-12 | H63: مغنية | I63: نصف داخلي | J63: 3ع ت01 | N63: ثالثة | O63: علوم تجريبية | P63: 1 | Q63: 55 | R63: D2 | S63: أمحمدي الشيخ | T63: قرية العقيد عباس أولاد قدور | U63: Lemrini Khaled | Z63: =IF($J63="","",MATCH($J63,OFFSET(BASE!$C$5,,,MAX(BASE!$B:$B)),0)) -> 4 | AA63: =IF($Z63="","",60*($Z63-1)+COUNTIF($Z$9:$Z63,$Z63)) -> 181
A64: 56 | B64: العربي مريم | C64: 1100513270050800 | D64: العربي | E64: مريم | F64: أنثى | G64: 2005-02-28 | H64: مغنية | I64: نصف داخلي | J64: 3ع ت01 | N64: ثالثة | O64: علوم تجريبية | P64: 1 | Q64: 56 | R64: D2 | S64: العربي سيدي محمد | T64: أولاد الشارف مغنية | U64: S'il vous plaît Sheikh | Z64: =IF($J64="","",MATCH($J64,OFFSET(BASE!$C$5,,,MAX(BASE!$B:$B)),0)) -> 4 | AA64: =IF($Z64="","",60*($Z64-1)+COUNTIF($Z$9:$Z64,$Z64)) -> 182
A65: 57 | B65: امبارك إيمان | C65: 1100413270219800 | D65: امبارك | E65: إيمان | F65: أنثى | G65: 2004-08-14 | H65: مغنية | I65: نصف داخلي | J65: 3ع ت01 | N65: ثالثة | O65: علوم تجريبية | P65: 1 | Q65: 57 | R65: D2 | S65: امبارك هواري | T65: قرية البطيم مغنية | U65: Boufares Safa Marwa | Z65: =IF($J65="","",MATCH($J65,OFFSET(BASE!$C$5,,,MAX(BASE!$B:$B)),0)) -> 4 | AA65: =IF($Z65="","",60*($Z65-1)+COUNTIF($Z$9:$Z65,$Z65)) -> 183
A66: 58 | B66: بن زغادي أحمد ياسين | C66: 1400413270244100 | D66: بن زغادي | E66: أحمد ياسين | F66: ذكر | G66: 2004-09-08 | H66: مغنية | I66: نصف داخلي | J66: 3ع ت01 | N66: ثالثة | O66: علوم تجريبية | P66: 1 | Q66: 58 | R66: D1 | S66: بن زغادي محمد | T66: اولاد الشارف مغنية | U66: Hosni Mourad | Z66: =IF($J66="","",MATCH($J66,OFFSET(BASE!$C$5,,,MAX(BASE!$B:$B)),0)) -> 4 | AA66: =IF($Z66="","",60*($Z66-1)+COUNTIF($Z$9:$Z66,$Z66)) -> 184
A67: 59 | B67: بن شقرة نسرين | C67: 1100413270157600 | D67: بن شقرة | E67: نسرين | F67: أنثى | G67: 2004-06-26 | H67: مغنية | I67: نصف داخلي | J67: 3ع ت01 | N67: ثالثة | O67: علوم تجريبية | P67: 1 | Q67: 59 | R67: D2 | S67: بن شقرة عبد الكريم | T67: قرية المصامدة مغنية | U67: Ben Talha loyauté Fatima Zahra | Z67: =IF($J67="","",MATCH($J67,OFFSET(BASE!$C$5,,,MAX(BASE!$B:$B)),0)) -> 4 | AA67: =IF($Z67="","",60*($Z67-1)+COUNTIF($Z$9:$Z67,$Z67)) -> 185
A68: 60 | B68: بوزار شهيناز | C68: 1100413270293600 | D68: بوزار | E68: شهيناز | F68: أنثى | G68: 2004-10-24 | H68: مغنية | I68: نصف داخلي | J68: 3ع ت01 | N68: ثالثة | O68: علوم تجريبية | P68: 1 | Q68: 60 | R68: D2 | S68: بوزار صالح | T68: أولاد الشارف مغنية | U68: Noureddine Ben DHMH | Z68: =IF($J68="","",MATCH($J68,OFFSET(BASE!$C$5,,,MAX(BASE!$B:$B)),0)) -> 4 | AA68: =IF($Z68="","",60*($Z68-1)+COUNTIF($Z$9:$Z68,$Z68)) -> 186
A69: 61 | B69: بوشام زكرياء عبد الرحمن | C69: 5000402500329400 | D69: بوشام | E69: زكرياء عبد الرحمن | F69: ذكر | G69: 2004-09-30 | H69: سان دني | I69: نصف داخلي | J69: 3ع ت01 | N69: ثالثة | O69: علوم تجريبية | P69: 1 | Q69: 61 | R69: D1 | S69: بوشام محمد | T69: شارع 04 منزل 29 حي القاضي | U69: Boklath Enas Shahynaz | Z69: =IF($J69="","",MATCH($J69,OFFSET(BASE!$C$5,,,MAX(BASE!$B:$B)),0)) -> 4 | AA69: =IF($Z69="","",60*($Z69-1)+COUNTIF($Z$9:$Z69,$Z69)) -> 187
A70: 62 | B70: بوعيشة فاطمة الزهراء | C70: 1100413270140700 | D70: بوعيشة | E70: فاطمة الزهراء | F70: أنثى | G70: 2004-06-13 | H70: مغنية | I70: نصف داخلي | J70: 3ع ت01 | N70: ثالثة | O70: علوم تجريبية | P70: 1 | Q70: 62 | R70: D2 | S70: بوعيشة محمد | T70: قرية المصامدة مغنية | U70: prière Brdq | Z70: =IF($J70="","",MATCH($J70,OFFSET(BASE!$C$5,,,MAX(BASE!$B:$B)),0)) -> 4 | AA70: =IF($Z70="","",60*($Z70-1)+COUNTIF($Z$9:$Z70,$Z70)) -> 188
A71: 63 | B71: بومدين زكية | C71: 1100413270338900 | D71: بومدين | E71: زكية | F71: أنثى | G71: 2004-12-08 | H71: مغنية | I71: نصف داخلي | J71: 3ع ت01 | N71: ثالثة | O71: علوم تجريبية | P71: 1 | Q71: 63 | R71: D2 | S71: بومدين أحمد | T71: أولاد الشارف مغنية | U71: Drees arabes | Z71: =IF($J71="","",MATCH($J71,OFFSET(BASE!$C$5,,,MAX(BASE!$B:$B)),0)) -> 4 | AA71: =IF($Z71="","",60*($Z71-1)+COUNTIF($Z$9:$Z71,$Z71)) -> 189
A72: 64 | B72: راجعي دعاء | C72: 1100413270292300 | D72: راجعي | E72: دعاء | F72: أنثى | G72: 2004-10-22 | H72: مغنية | I72: نصف داخلي | J72: 3ع ت01 | N72: ثالثة | O72: علوم تجريبية | P72: 1 | Q72: 64 | R72: D2 | S72: راجعي مصطفى | T72: اولاد الشارف | U72: mazouz Yamina | Z72: =IF($J72="","",MATCH($J72,OFFSET(BASE!$C$5,,,MAX(BASE!$B:$B)),0)) -> 4 | AA72: =IF($Z72="","",60*($Z72-1)+COUNTIF($Z$9:$Z72,$Z72)) -> 190
A73: 65 | B73: زرقاني أمال خليدة | C73: 1100413270061000 | D73: زرقاني | E73: أمال خليدة | F73: أنثى | G73: 2004-03-13 | H73: مغنية | I73: نصف داخلي | J73: 3ع ت01 | N73: ثالثة | O73: علوم تجريبية | P73: 1 | Q73: 65 | R73: D2 | S73: زرقاني محمد | T73: أولاد الشارف مغنية | U73: vers Hua | Z73: =IF($J73="","",MATCH($J73,OFFSET(BASE!$C$5,,,MAX(BASE!$B:$B)),0)) -> 4 | AA73: =IF($Z73="","",60*($Z73-1)+COUNTIF($Z$9:$Z73,$Z73)) -> 191
A74: 66 | B74: زرقاني هديل | C74: 1100413270293100 | D74: زرقاني | E74: هديل | F74: أنثى | G74: 2004-10-23 | H74: مغنية | I74: نصف داخلي | J74: 3ع ت01 | N74: ثالثة | O74: علوم تجريبية | P74: 1 | Q74: 66 | R74: D2 | S74: زرقاني عبدو | T74: أولاد الشارف مغنية | U74: Ben Abdamoumn Lamia | Z74: =IF($J74="","",MATCH($J74,OFFSET(BASE!$C$5,,,MAX(BASE!$B:$B)),0)) -> 4 | AA74: =IF($Z74="","",60*($Z74-1)+COUNTIF($Z$9:$Z74,$Z74)) -> 192
A75: 67 | B75: شارف شيماء | C75: 1100413270003000 | D75: شارف | E75: شيماء | F75: أنثى | G75: 2004-01-05 | H75: مغنية | I75: نصف داخلي | J75: 3ع ت01 | N75: ثالثة | O75: علوم تجريبية | P75: 1 | Q75: 67 | R75: D2 | S75: شارف بلخير | T75: أولاد الشارف مغنية | U75: khaldi Houari | Z75: =IF($J75="","",MATCH($J75,OFFSET(BASE!$C$5,,,MAX(BASE!$B:$B)),0)) -> 4 | AA75: =IF($Z75="","",60*($Z75-1)+COUNTIF($Z$9:$Z75,$Z75)) -> 193
A76: 68 | B76: علواني يوسف | C76: 1000513270054500 | D76: علواني | E76: يوسف | F76: ذكر | G76: 2005-03-05 | H76: مغنية | I76: نصف داخلي | J76: 3ع ت01 | N76: ثالثة | O76: علوم تجريبية | P76: 1 | Q76: 68 | R76: D1 | S76: علواني الشيخ | T76: أولاد الشارف مغنية | U76: Qari Abdul Aziz | Z76: =IF($J76="","",MATCH($J76,OFFSET(BASE!$C$5,,,MAX(BASE!$B:$B)),0)) -> 4 | AA76: =IF($Z76="","",60*($Z76-1)+COUNTIF($Z$9:$Z76,$Z76)) -> 194
A77: 69 | B77: عيساني اسماعيل | C77: 1000413270257000 | D77: عيساني | E77: اسماعيل | F77: ذكر | G77: 2004-09-20 | H77: مغنية | I77: نصف داخلي | J77: 3ع ت01 | N77: ثالثة | O77: علوم تجريبية | P77: 1 | Q77: 69 | R77: D1 | S77: عيساني محمد | T77: قرية البخاتة مغنية | U77: Charge Shahynaz fatiha | Z77: =IF($J77="","",MATCH($J77,OFFSET(BASE!$C$5,,,MAX(BASE!$B:$B)),0)) -> 4 | AA77: =IF($Z77="","",60*($Z77-1)+COUNTIF($Z$9:$Z77,$Z77)) -> 195
A78: 70 | B78: قوراري ليندة | C78: 1100413270246400 | D78: قوراري | E78: ليندة | F78: أنثى | G78: 2004-04-30 | H78: مغنية | I78: نصف داخلي | J78: 3ع ت01 | N78: ثالثة | O78: علوم تجريبية | P78: 1 | Q78: 70 | R78: D2 | S78: قوراري موسى | T78: قرية البخاتة مغنية | U78: Zouari sécurité | Z78: =IF($J78="","",MATCH($J78,OFFSET(BASE!$C$5,,,MAX(BASE!$B:$B)),0)) -> 4 | AA78: =IF($Z78="","",60*($Z78-1)+COUNTIF($Z$9:$Z78,$Z78)) -> 196
A79: 71 | B79: لحسايني فاطمة الزهراء | C79: 1100413270253400 | D79: لحسايني | E79: فاطمة الزهراء | F79: أنثى | G79: 2004-09-16 | H79: مغنية | I79: نصف داخلي | J79: 3ع ت01 | N79: ثالثة | O79: علوم تجريبية | P79: 1 | Q79: 71 | R79: D2 | S79: لحسايني أحمد | T79: قرية المصامدة مغنية | U79: Mazari Hanan | Z79: =IF($J79="","",MATCH($J79,OFFSET(BASE!$C$5,,,MAX(BASE!$B:$B)),0)) -> 4 | AA79: =IF($Z79="","",60*($Z79-1)+COUNTIF($Z$9:$Z79,$Z79)) -> 197
A80: 72 | B80: لحمر شيماء | C80: 1100413270221000 | D80: لحمر | E80: شيماء | F80: أنثى | G80: 2004-04-18 | H80: تلمسان | I80: نصف داخلي | J80: 3ع ت01 | N80: ثالثة | O80: علوم تجريبية | P80: 1 | Q80: 72 | R80: D2 | S80: لحمر رشيد | T80: أولاد الشارف مغنية | U80: Slav Ouest | Z80: =IF($J80="","",MATCH($J80,OFFSET(BASE!$C$5,,,MAX(BASE!$B:$B)),0)) -> 4 | AA80: =IF($Z80="","",60*($Z80-1)+COUNTIF($Z$9:$Z80,$Z80)) -> 198
A81: 73 | B81: =D81& " " &E81 -> مبرك محمد أمين فارس | C81: 1000413270116800 | D81: مبرك | E81: محمد أمين فارس | F81: ذكر | G81: 2004-05-22 | H81: مغنية | I81: نصف داخلي | J81: 3ع ت01 | N81: ثالثة | O81: علوم تجريبية | P81: 1 | Q81: 73 | R81: D1 | S81: مبرك جواد | T81: أولاد الشارف مغنية | U81: Mansouri Mohamed Naguib | Z81: =IF($J81="","",MATCH($J81,OFFSET(BASE!$C$5,,,MAX(BASE!$B:$B)),0)) -> 4 | AA81: =IF($Z81="","",60*($Z81-1)+COUNTIF($Z$9:$Z81,$Z81)) -> 199
A82: 74 | B82: مراس أمال | C82: 1100313270059100 | D82: مراس | E82: أمال | F82: أنثى | G82: 2003-03-19 | H82: مغنية | I82: نصف داخلي | J82: 3ع ت01 | N82: ثالثة | O82: علوم تجريبية | P82: 1 | Q82: 74 | R82: D2 | S82: مراس خيضر | T82: قرية البطيم مغنية | U82: Bushra Frckla | Z82: =IF($J82="","",MATCH($J82,OFFSET(BASE!$C$5,,,MAX(BASE!$B:$B)),0)) -> 4 | AA82: =IF($Z82="","",60*($Z82-1)+COUNTIF($Z$9:$Z82,$Z82)) -> 200
A83: 75 | B83: مصار إناس | C83: 1100413270500500 | D83: مصار | E83: إناس | F83: أنثى | G83: 2004-07-24 | H83: مغنية | I83: نصف داخلي | J83: 3ع ت01 | N83: ثالثة | O83: علوم تجريبية | P83: 1 | Q83: 75 | R83: D2 | S83: مصار عبدالله | T83: أولاد الشارف مغنية | U83: Abid Ikram | Z83: =IF($J83="","",MATCH($J83,OFFSET(BASE!$C$5,,,MAX(BASE!$B:$B)),0)) -> 4 | AA83: =IF($Z83="","",60*($Z83-1)+COUNTIF($Z$9:$Z83,$Z83)) -> 201
A84: 76 | B84: نوالي لبنى | C84: 1100413270388900 | D84: نوالي | E84: لبنى | F84: أنثى | G84: 2004-06-21 | H84: مغنية | I84: نصف داخلي | J84: 3ع ت01 | N84: ثالثة | O84: علوم تجريبية | P84: 1 | Q84: 76 | R84: D2 | S84: نوالي رابح | T84: قرية العقيد عباس مغنية تلمسان | U84: Hammadi, la meilleure religion | Z84: =IF($J84="","",MATCH($J84,OFFSET(BASE!$C$5,,,MAX(BASE!$B:$B)),0)) -> 4 | AA84: =IF($Z84="","",60*($Z84-1)+COUNTIF($Z$9:$Z84,$Z84)) -> 202
A85: 77 | B85: العربي فاطمة الزهراء | C85: 1100213270161700 | D85: العربي | E85: فاطمة الزهراء | F85: أنثى | G85: 2002-03-31 | H85: تلمسان | I85: خارجي | J85: 3ع ت01 | N85: ثالثة | O85: علوم تجريبية | P85: 1 | Q85: 77 | R85: E2 | S85: العربي محمد | T85: أولاد قدور مغنية | U85: Ashrawi Suhaila | Z85: =IF($J85="","",MATCH($J85,OFFSET(BASE!$C$5,,,MAX(BASE!$B:$B)),0)) -> 4 | AA85: =IF($Z85="","",60*($Z85-1)+COUNTIF($Z$9:$Z85,$Z85)) -> 203
A86: 78 | B86: بلعباس فيروز | C86: 1100313270190100 | D86: بلعباس | E86: فيروز | F86: أنثى | G86: 2003-08-18 | H86: مغنية | I86: خارجي | J86: 3ع ت01 | N86: ثالثة | O86: علوم تجريبية | P86: 1 | Q86: 78 | R86: E2 | S86: بلعباس شمس الدين | T86: حي 05 جويلية صبرة تلمسان | U86: Amin Zbalh | Z86: =IF($J86="","",MATCH($J86,OFFSET(BASE!$C$5,,,MAX(BASE!$B:$B)),0)) -> 4 | AA86: =IF($Z86="","",60*($Z86-1)+COUNTIF($Z$9:$Z86,$Z86)) -> 204
A87: 79 | B87: بوتيتل فاطمة | C87: 1100313270062000 | D87: بوتيتل | E87: فاطمة | F87: أنثى | G87: 2003-03-23 | H87: مغنية | I87: خارجي | J87: 3ع ت01 | N87: ثالثة | O87: علوم تجريبية | P87: 2 | Q87: 79 | R87: E2 | S87: بوتيتل اعمر | T87: قرية البطيم مغنية | U87: Khleifi Kawthar | Z87: =IF($J87="","",MATCH($J87,OFFSET(BASE!$C$5,,,MAX(BASE!$B:$B)),0)) -> 4 | AA87: =IF($Z87="","",60*($Z87-1)+COUNTIF($Z$9:$Z87,$Z87)) -> 205
A88: 80 | B88: بوجلولي فاطمة الزهراء | C88: 1100313270084200 | D88: بوجلولي | E88: فاطمة الزهراء | G88: 2003-04-27 | H88: مغنية | I88: نصف داخلي | N88: ثالثة | O88: علوم تجريبية | P88: 1 | Q88: 80 | S88: بوجلولي أحمد | T88: قرية البطيم مغنية | U88: Boulkheir Hana | Z88: =IF($J88="","",MATCH($J88,OFFSET(BASE!$C$5,,,MAX(BASE!$B:$B)),0)) ->  | AA88: =IF($Z88="","",60*($Z88-1)+COUNTIF($Z$9:$Z88,$Z88)) -> 
A89: 81 | B89: حمادي أنس | C89: 1000513270064500 | D89: حمادي | E89: أنس | F89: ذكر | G89: 2005-03-16 | H89: مغنية | I89: خارجي | J89: 3ع ت01 | N89: ثالثة | O89: علوم تجريبية | P89: 1 | Q89: 81 | R89: E1 | S89: حمادي عبد الرحمن | T89: حي الشهداء مغنية | U89: Mohammed Shakouri | Z89: =IF($J89="","",MATCH($J89,OFFSET(BASE!$C$5,,,MAX(BASE!$B:$B)),0)) -> 4 | AA89: =IF($Z89="","",60*($Z89-1)+COUNTIF($Z$9:$Z89,$Z89)) -> 206
A90: 82 | B90: دخيسي وصال | C90: 1100313270145900 | D90: دخيسي | E90: وصال | F90: أنثى | G90: 2003-07-05 | H90: مغنية | I90: نصف داخلي | J90: 3ع ت01 | N90: ثالثة | O90: علوم تجريبية | P90: 1 | Q90: 82 | R90: E2 | S90: دخيسي رشيد | T90: أولاد الشارف | U90: bouazza Fawzia | Z90: =IF($J90="","",MATCH($J90,OFFSET(BASE!$C$5,,,MAX(BASE!$B:$B)),0)) -> 4 | AA90: =IF($Z90="","",60*($Z90-1)+COUNTIF($Z$9:$Z90,$Z90)) -> 207
A91: 83 | B91: راشدي عبدالله | C91: 1000413270057900 | D91: راشدي | E91: عبدالله | F91: ذكر | G91: 2004-03-09 | H91: مغنية | I91: خارجي | J91: 3ع ت01 | N91: ثالثة | O91: علوم تجريبية | P91: 1 | Q91: 83 | R91: E1 | S91: راشدي علي | T91: أولاد الشارف مغنية | U91: Cheikh Walid | Z91: =IF($J91="","",MATCH($J91,OFFSET(BASE!$C$5,,,MAX(BASE!$B:$B)),0)) -> 4 | AA91: =IF($Z91="","",60*($Z91-1)+COUNTIF($Z$9:$Z91,$Z91)) -> 208
A92: 84 | B92: زحزوح فاطمة الزهراء | C92: 1100113270059100 | D92: زحزوح | E92: فاطمة الزهراء | F92: أنثى | G92: 2001-03-23 | H92: مغنية | I92: خارجي | J92: 3ع ت01 | N92: ثالثة | O92: علوم تجريبية | P92: 1 | Q92: 84 | R92: E2 | S92: زحزوح محمد | T92: قرية المصامدة مغنية | U92: Scharf Youssef | Z92: =IF($J92="","",MATCH($J92,OFFSET(BASE!$C$5,,,MAX(BASE!$B:$B)),0)) -> 4 | AA92: =IF($Z92="","",60*($Z92-1)+COUNTIF($Z$9:$Z92,$Z92)) -> 209
A93: 85 | B93: زياني الأول سكينة | C93: 1100413270077400 | D93: زياني الأول | E93: سكينة | F93: أنثى | G93: 2004-04-04 | H93: مغنية | I93: خارجي | J93: 3ع ت01 | N93: ثالثة | O93: علوم تجريبية | P93: 1 | Q93: 85 | R93: E2 | S93: زياني الأول امحمد | T93: حي الشهداء مغنية | U93: Toriren Seif El-Din | Z93: =IF($J93="","",MATCH($J93,OFFSET(BASE!$C$5,,,MAX(BASE!$B:$B)),0)) -> 4 | AA93: =IF($Z93="","",60*($Z93-1)+COUNTIF($Z$9:$Z93,$Z93)) -> 210
A94: 86 | B94: سايح كوثر فاطنة | C94: 1100413270115400 | D94: سايح | E94: كوثر فاطنة | F94: أنثى | G94: 2004-05-21 | H94: مغنية | I94: خارجي | J94: 3ع ت01 | N94: ثالثة | O94: علوم تجريبية | P94: 1 | Q94: 86 | R94: E2 | S94: سايح عمر | T94: رقم 35 درب 8 حي المقراني مغنية | U94: Mazzawi Abdul Aziz | Z94: =IF($J94="","",MATCH($J94,OFFSET(BASE!$C$5,,,MAX(BASE!$B:$B)),0)) -> 4 | AA94: =IF($Z94="","",60*($Z94-1)+COUNTIF($Z$9:$Z94,$Z94)) -> 211
A95: 87 | B95: صهباتو جيهان نورهان | C95: 1100413270171300 | D95: صهباتو | E95: جيهان نورهان | F95: أنثى | G95: 2004-07-06 | H95: مغنية | I95: خارجي | J95: 3ع ت01 | N95: ثالثة | O95: علوم تجريبية | P95: 1 | Q95: 87 | R95: E2 | S95: صهباتو صالح | T95: حي بلال مغنية | U95: Journaux Isaac Azzam | Z95: =IF($J95="","",MATCH($J95,OFFSET(BASE!$C$5,,,MAX(BASE!$B:$B)),0)) -> 4 | AA95: =IF($Z95="","",60*($Z95-1)+COUNTIF($Z$9:$Z95,$Z95)) -> 212
A96: 88 | B96: عباسي فاطمة الزهراء | C96: 1100313270224200 | D96: عباسي | E96: فاطمة الزهراء | F96: أنثى | G96: 2003-09-26 | H96: مغنية | I96: نصف داخلي | J96: 3ع ت01 | N96: ثالثة | O96: علوم تجريبية | P96: 1 | Q96: 88 | R96: E2 | S96: عباسي عباسي | T96: قرية العقيد عباس مغنية | U96: Mcnasa Ashraf | Z96: =IF($J96="","",MATCH($J96,OFFSET(BASE!$C$5,,,MAX(BASE!$B:$B)),0)) -> 4 | AA96: =IF($Z96="","",60*($Z96-1)+COUNTIF($Z$9:$Z96,$Z96)) -> 213
A97: 89 | B97: مجاطي زينب | C97: 1100313270155300 | D97: مجاطي | E97: زينب | F97: أنثى | G97: 2003-07-14 | H97: مغنية | I97: نصف داخلي | J97: 3ع ت01 | N97: ثالثة | O97: علوم تجريبية | P97: 1 | Q97: 89 | R97: E2 | S97: مجاطي محمد | T97: قرية العقيد عباس مغنية | U97: Kore Hussein | Z97: =IF($J97="","",MATCH($J97,OFFSET(BASE!$C$5,,,MAX(BASE!$B:$B)),0)) -> 4 | AA97: =IF($Z97="","",60*($Z97-1)+COUNTIF($Z$9:$Z97,$Z97)) -> 214
A98: 90 | B98: مقداد وئيل | C98: 1000213270035000 | D98: مقداد | E98: وئيل | F98: ذكر | G98: 2002-02-20 | H98: مغنية | I98: خارجي | J98: 3ع ت01 | N98: ثالثة | O98: علوم تجريبية | P98: 1 | Q98: 90 | R98: E1 | S98: مقداد عبد القادر | T98: قرية العقيد عباس مغنية | U98: Ben Elias Hrat | Z98: =IF($J98="","",MATCH($J98,OFFSET(BASE!$C$5,,,MAX(BASE!$B:$B)),0)) -> 4 | AA98: =IF($Z98="","",60*($Z98-1)+COUNTIF($Z$9:$Z98,$Z98)) -> 215
A99: 91 | B99: منيري عبد المالك | C99: 1000413270046500 | D99: منيري | E99: عبد المالك | F99: ذكر | G99: 2004-11-09 | H99: مغنية | I99: خارجي | J99: 3ع ت01 | N99: ثالثة | O99: علوم تجريبية | P99: 1 | Q99: 91 | R99: E1 | S99: منيري حمزة | T99: إقامة تافنة حي بلال عمارة أ 5 طابق 4 مغنية | U99: Mamouri émigre Juma | Z99: =IF($J99="","",MATCH($J99,OFFSET(BASE!$C$5,,,MAX(BASE!$B:$B)),0)) -> 4 | AA99: =IF($Z99="","",60*($Z99-1)+COUNTIF($Z$9:$Z99,$Z99)) -> 216
A100: 92 | B100: مهنان قصي | C100: 1000313270210200 | D100: مهنان | E100: قصي | F100: ذكر | G100: 2003-09-09 | H100: مغنية | I100: نصف داخلي | J100: 3ع ت01 | N100: ثالثة | O100: علوم تجريبية | P100: 1 | Q100: 92 | R100: E1 | S100: مهنان الحاج | T100: قرية البطيم مغنية | U100: Mansour bin Mohammed Amin | Z100: =IF($J100="","",MATCH($J100,OFFSET(BASE!$C$5,,,MAX(BASE!$B:$B)),0)) -> 4 | AA100: =IF($Z100="","",60*($Z100-1)+COUNTIF($Z$9:$Z100,$Z100)) -> 217
A101: 93 | B101: نواوي وائل | C101: 1000213270245200 | D101: نواوي | E101: وائل | F101: ذكر | G101: 2002-11-01 | H101: مغنية | I101: خارجي | J101: 3ع ت01 | N101: ثالثة | O101: علوم تجريبية | P101: 1 | Q101: 93 | R101: E1 | S101: نواوي بن اعمر | T101: قرية البطيم مغنية | U101: Joubert Mohammed | Z101: =IF($J101="","",MATCH($J101,OFFSET(BASE!$C$5,,,MAX(BASE!$B:$B)),0)) -> 4 | AA101: =IF($Z101="","",60*($Z101-1)+COUNTIF($Z$9:$Z101,$Z101)) -> 218
A102: 94 | B102: أمحمدي وليد | C102: 1000413270272900 | D102: أمحمدي | E102: وليد | F102: ذكر | G102: 2004-10-06 | H102: مغنية | I102: نصف داخلي | J102: 3ع ت02 | N102: ثالثة | O102: علوم تجريبية | P102: 2 | Q102: 94 | R102: D1 | S102: أمحمدي حبيب | T102: أولاد قدور لكبار مغنية | U102: Ayad prosternant Maram | Z102: =IF($J102="","",MATCH($J102,OFFSET(BASE!$C$5,,,MAX(BASE!$B:$B)),0)) -> 5 | AA102: =IF($Z102="","",60*($Z102-1)+COUNTIF($Z$9:$Z102,$Z102)) -> 241
A103: 95 | B103: العرابي نادية | C103: 1100413270204300 | D103: العرابي | E103: نادية | F103: أنثى | G103: 2004-07-31 | H103: مغنية | I103: نصف داخلي | J103: 3ع ت02 | N103: ثالثة | O103: علوم تجريبية | P103: 2 | Q103: 95 | R103: D2 | S103: العرابي نور الدين | T103: اولاد الشارف | U103: Shaima turc | Z103: =IF($J103="","",MATCH($J103,OFFSET(BASE!$C$5,,,MAX(BASE!$B:$B)),0)) -> 5 | AA103: =IF($Z103="","",60*($Z103-1)+COUNTIF($Z$9:$Z103,$Z103)) -> 242
A104: 96 | B104: اوراغي علاء الدين | C104: 1000413300000500 | D104: اوراغي | E104: علاء الدين | F104: ذكر | G104: 2004-01-01 | H104: مغنية | I104: نصف داخلي | J104: 3ع ت02 | N104: ثالثة | O104: علوم تجريبية | P104: 2 | Q104: 96 | R104: D1 | S104: اوراغي عبد الهادي | T104: اربوز-بلدية مسيردة الفواقة | U104: Ben Allal Marwa | Z104: =IF($J104="","",MATCH($J104,OFFSET(BASE!$C$5,,,MAX(BASE!$B:$B)),0)) -> 5 | AA104: =IF($Z104="","",60*($Z104-1)+COUNTIF($Z$9:$Z104,$Z104)) -> 243
A105: 97 | B105: بلطرش سعاد رانية | C105: 1100413270151900 | D105: بلطرش | E105: سعاد رانية | F105: أنثى | G105: 2004-06-22 | H105: مغنية | I105: نصف داخلي | J105: 3ع ت02 | N105: ثالثة | O105: علوم تجريبية | P105: 2 | Q105: 97 | R105: D2 | S105: بلطرش عبد القادر | T105: أولاد الشارف مغنية | U105: Bouchikhi Halima | Z105: =IF($J105="","",MATCH($J105,OFFSET(BASE!$C$5,,,MAX(BASE!$B:$B)),0)) -> 5 | AA105: =IF($Z105="","",60*($Z105-1)+COUNTIF($Z$9:$Z105,$Z105)) -> 244
A106: 98 | B106: بن حلي ياسمينة فادية | C106: 1100513270035200 | D106: بن حلي | E106: ياسمينة فادية | F106: أنثى | G106: 2005-02-08 | H106: مغنية | I106: نصف داخلي | J106: 3ع ت02 | N106: ثالثة | O106: علوم تجريبية | P106: 2 | Q106: 98 | R106: D2 | S106: بن حلي مصطفى | T106: أولاد الشارف مغنية | U106: Hamza Khaldi | Z106: =IF($J106="","",MATCH($J106,OFFSET(BASE!$C$5,,,MAX(BASE!$B:$B)),0)) -> 5 | AA106: =IF($Z106="","",60*($Z106-1)+COUNTIF($Z$9:$Z106,$Z106)) -> 245
A107: 99 | B107: بن دلاع جهيدة | C107: 1100413270079200 | D107: بن دلاع | E107: جهيدة | F107: أنثى | G107: 2004-04-06 | H107: مغنية | I107: نصف داخلي | J107: 3ع ت02 | N107: ثالثة | O107: علوم تجريبية | P107: 2 | Q107: 99 | R107: D2 | S107: بن دلاع حسين | T107: قرية المصامدة مغنية | U107: Mariam Abdul Malik | Z107: =IF($J107="","",MATCH($J107,OFFSET(BASE!$C$5,,,MAX(BASE!$B:$B)),0)) -> 5 | AA107: =IF($Z107="","",60*($Z107-1)+COUNTIF($Z$9:$Z107,$Z107)) -> 246
A108: 100 | B108: بن عيش ليلى | C108: 1100413270292800 | D108: بن عيش | E108: ليلى | F108: أنثى | G108: 2004-10-23 | H108: مغنية | I108: نصف داخلي | J108: 3ع ت02 | N108: ثالثة | O108: علوم تجريبية | P108: 2 | Q108: 100 | R108: D2 | S108: بن عيش لخضر | T108: قرية بوسدرة البخاتة مغنية | U108: Ben-mortier Fatiha | Z108: =IF($J108="","",MATCH($J108,OFFSET(BASE!$C$5,,,MAX(BASE!$B:$B)),0)) -> 5 | AA108: =IF($Z108="","",60*($Z108-1)+COUNTIF($Z$9:$Z108,$Z108)) -> 247
A109: 101 | B109: بودرقة أميمة | C109: 1100413270196400 | D109: بودرقة | E109: أميمة | F109: أنثى | G109: 2004-07-23 | H109: مغنية | I109: نصف داخلي | J109: 3ع ت02 | N109: ثالثة | O109: علوم تجريبية | P109: 2 | Q109: 101 | R109: D2 | S109: بودرقة عبد المجيد | T109: اولاد الشارف مغنية | U109: Zhzouh Enas | Z109: =IF($J109="","",MATCH($J109,OFFSET(BASE!$C$5,,,MAX(BASE!$B:$B)),0)) -> 5 | AA109: =IF($Z109="","",60*($Z109-1)+COUNTIF($Z$9:$Z109,$Z109)) -> 248
A110: 102 | B110: بوزاهري شيماء | C110: 1100413270189600 | D110: بوزاهري | E110: شيماء | F110: أنثى | G110: 2004-07-19 | H110: مغنية | I110: نصف داخلي | J110: 3ع ت02 | N110: ثالثة | O110: علوم تجريبية | P110: 2 | Q110: 102 | R110: D2 | S110: بوزاهري يحي | T110: قرية البخاتة | U110: Sultan Bin Adam Ryan | Z110: =IF($J110="","",MATCH($J110,OFFSET(BASE!$C$5,,,MAX(BASE!$B:$B)),0)) -> 5 | AA110: =IF($Z110="","",60*($Z110-1)+COUNTIF($Z$9:$Z110,$Z110)) -> 249
A111: 103 | B111: جدودي إكرام | C111: 1100413270248500 | D111: جدودي | E111: إكرام | F111: أنثى | G111: 2004-09-12 | H111: مغنية | I111: نصف داخلي | J111: 3ع ت02 | N111: ثالثة | O111: علوم تجريبية | P111: 2 | Q111: 103 | R111: D2 | S111: جدودي ميلود | T111: أولاد الشارف مغنية | U111: Abdul Ilah gros | Z111: =IF($J111="","",MATCH($J111,OFFSET(BASE!$C$5,,,MAX(BASE!$B:$B)),0)) -> 5 | AA111: =IF($Z111="","",60*($Z111-1)+COUNTIF($Z$9:$Z111,$Z111)) -> 250
A112: 104 | B112: داري أميرة | C112: 1100213270228700 | D112: داري | E112: أميرة | F112: أنثى | G112: 2004-08-22 | H112: مغنية | I112: نصف داخلي | J112: 3ع ت02 | N112: ثالثة | O112: علوم تجريبية | P112: 2 | Q112: 104 | R112: D2 | S112: داري العيد | T112: قرية البخاتة مغنية | U112: Dkala Marwa | Z112: =IF($J112="","",MATCH($J112,OFFSET(BASE!$C$5,,,MAX(BASE!$B:$B)),0)) -> 5 | AA112: =IF($Z112="","",60*($Z112-1)+COUNTIF($Z$9:$Z112,$Z112)) -> 251
A113: 105 | B113: =D113& " " &E113 -> ستاوي عبد الهادي رضا | C113: 1000413270242400 | D113: ستاوي | E113: عبد الهادي رضا | F113: ذكر | G113: 2004-09-06 | H113: مغنية | I113: نصف داخلي | J113: 3ع ت02 | N113: ثالثة | O113: علوم تجريبية | P113: 2 | Q113: 105 | R113: D1 | S113: ستاوي عبد القادر | T113: قرية العقيد عباس مغنية تلمسان | U113: Nudhary Sufyan | Z113: =IF($J113="","",MATCH($J113,OFFSET(BASE!$C$5,,,MAX(BASE!$B:$B)),0)) -> 5 | AA113: =IF($Z113="","",60*($Z113-1)+COUNTIF($Z$9:$Z113,$Z113)) -> 252
A114: 106 | B114: شارف فاطمة الزهراء | C114: 1100413270308300 | D114: شارف | E114: فاطمة الزهراء | F114: أنثى | G114: 2004-11-08 | H114: مغنية | I114: نصف داخلي | J114: 3ع ت02 | N114: ثالثة | O114: علوم تجريبية | P114: 2 | Q114: 106 | R114: D2 | S114: شارف زيان | T114: أولاد الشارف مغنية | U114: Bin Issa Mohamed Habib | Z114: =IF($J114="","",MATCH($J114,OFFSET(BASE!$C$5,,,MAX(BASE!$B:$B)),0)) -> 5 | AA114: =IF($Z114="","",60*($Z114-1)+COUNTIF($Z$9:$Z114,$Z114)) -> 253
A115: 107 | B115: شاوش هند | C115: 1100413010041600 | D115: شاوش | E115: هند | F115: أنثى | G115: 2004-01-19 | H115: تلمسان | I115: نصف داخلي | J115: 3ع ت02 | N115: ثالثة | O115: علوم تجريبية | P115: 2 | Q115: 107 | R115: D2 | S115: شاوش عبد الرحمن | T115: قرية بوسدرة البخاتة مغنية | U115: Sarah Hamidi | Z115: =IF($J115="","",MATCH($J115,OFFSET(BASE!$C$5,,,MAX(BASE!$B:$B)),0)) -> 5 | AA115: =IF($Z115="","",60*($Z115-1)+COUNTIF($Z$9:$Z115,$Z115)) -> 254
A116: 108 | B116: شواو أمينة | C116: 1100413270089600 | D116: شواو | E116: أمينة | F116: أنثى | G116: 2004-04-20 | H116: مغنية | I116: نصف داخلي | J116: 3ع ت02 | N116: ثالثة | O116: علوم تجريبية | P116: 2 | Q116: 108 | R116: D2 | S116: شواو محمد | T116: قرية البخاتة مغنية | U116: Moukas Mohammed | Z116: =IF($J116="","",MATCH($J116,OFFSET(BASE!$C$5,,,MAX(BASE!$B:$B)),0)) -> 5 | AA116: =IF($Z116="","",60*($Z116-1)+COUNTIF($Z$9:$Z116,$Z116)) -> 255
A117: 109 | B117: كبيب محمد أمين | C117: 1000413270260800 | D117: كبيب | E117: محمد أمين | F117: ذكر | G117: 2004-09-25 | H117: مغنية | I117: نصف داخلي | J117: 3ع ت02 | N117: ثالثة | O117: علوم تجريبية | P117: 2 | Q117: 109 | R117: D1 | S117: كبيب محمد | T117: أولاد الشارف مغنية | U117: Yasser Waistcoat | Z117: =IF($J117="","",MATCH($J117,OFFSET(BASE!$C$5,,,MAX(BASE!$B:$B)),0)) -> 5 | AA117: =IF($Z117="","",60*($Z117-1)+COUNTIF($Z$9:$Z117,$Z117)) -> 256
A118: 110 | B118: لكحل ياسمين | C118: 1100413270039500 | D118: لكحل | E118: ياسمين | F118: أنثى | G118: 2004-02-14 | H118: مغنية | I118: نصف داخلي | J118: 3ع ت02 | N118: ثالثة | O118: علوم تجريبية | P118: 2 | Q118: 110 | R118: D2 | S118: لكحل مصطفى | T118: قرية المصامدة مغنية | U118: Moussaoui Abdul Haq | Z118: =IF($J118="","",MATCH($J118,OFFSET(BASE!$C$5,,,MAX(BASE!$B:$B)),0)) -> 5 | AA118: =IF($Z118="","",60*($Z118-1)+COUNTIF($Z$9:$Z118,$Z118)) -> 257
A119: 111 | B119: مصمودي نجية | C119: 1100413270194200 | D119: مصمودي | E119: نجية | F119: أنثى | G119: 2004-07-22 | H119: مغنية | I119: نصف داخلي | J119: 3ع ت02 | N119: ثالثة | O119: علوم تجريبية | P119: 2 | Q119: 111 | R119: D2 | S119: مصمودي محمد | T119: قرية المصامدة مغنية | U119: Qatona Fatima Zahra | Z119: =IF($J119="","",MATCH($J119,OFFSET(BASE!$C$5,,,MAX(BASE!$B:$B)),0)) -> 5 | AA119: =IF($Z119="","",60*($Z119-1)+COUNTIF($Z$9:$Z119,$Z119)) -> 258
A120: 112 | B120: مفيتح مريم | C120: 1100413270402800 | D120: مفيتح | E120: مريم | F120: أنثى | G120: 2004-12-06 | H120: مغنية | I120: نصف داخلي | J120: 3ع ت02 | N120: ثالثة | O120: علوم تجريبية | P120: 2 | Q120: 112 | R120: D2 | S120: مفيتح فتحي | T120: قرية المصامدة مغنية | U120: foi Beaudry | Z120: =IF($J120="","",MATCH($J120,OFFSET(BASE!$C$5,,,MAX(BASE!$B:$B)),0)) -> 5 | AA120: =IF($Z120="","",60*($Z120-1)+COUNTIF($Z$9:$Z120,$Z120)) -> 259
A121: 113 | B121: نوالي ارشاد | C121: 1100413270048500 | D121: نوالي | E121: ارشاد | F121: أنثى | G121: 2004-02-25 | H121: مغنية | I121: نصف داخلي | J121: 3ع ت02 | N121: ثالثة | O121: علوم تجريبية | P121: 2 | Q121: 113 | R121: D2 | S121: نوالي لخضر | T121: اولاد الشارف | U121: Boumajer Ibrahim | Z121: =IF($J121="","",MATCH($J121,OFFSET(BASE!$C$5,,,MAX(BASE!$B:$B)),0)) -> 5 | AA121: =IF($Z121="","",60*($Z121-1)+COUNTIF($Z$9:$Z121,$Z121)) -> 260
A122: 114 | B122: بوحفص عبد الرحيم | C122: 1000413270352100 | D122: بوحفص | E122: عبد الرحيم | F122: ذكر | G122: 2004-12-23 | H122: مغنية | I122: خارجي | J122: 3ع ت02 | N122: ثالثة | O122: علوم تجريبية | P122: 2 | Q122: 114 | R122: E1 | S122: بوحفص عبد القادر | T122: شارع 7 منزل7 حي الشهداء مغنية | U122: Butaqh rêves | Z122: =IF($J122="","",MATCH($J122,OFFSET(BASE!$C$5,,,MAX(BASE!$B:$B)),0)) -> 5 | AA122: =IF($Z122="","",60*($Z122-1)+COUNTIF($Z$9:$Z122,$Z122)) -> 261
A123: 115 | B123: تاجوري سيدي محمد | C123: 1000213270206200 | D123: تاجوري | E123: سيدي محمد | F123: ذكر | G123: 2002-09-19 | H123: مغنية | J123: 3ع ت02 | N123: الثالثة | O123: علـــــوم تجريبيــة | P123: 1 | Q123: 115 | R123: D1 | S123: تاجوري الشيخ | T123: قرية البطيم مغنية | U123: Boubacar gauche | Z123: =IF($J123="","",MATCH($J123,OFFSET(BASE!$C$5,,,MAX(BASE!$B:$B)),0)) -> 5 | AA123: =IF($Z123="","",60*($Z123-1)+COUNTIF($Z$9:$Z123,$Z123)) -> 262
A124: 116 | B124: زحوط ملاك | C124: 1100313270009900 | D124: زحوط | E124: ملاك | F124: أنثى | G124: 2003-01-11 | H124: مغنية | I124: نصف داخلي | J124: 3ع ت02 | N124: ثالثة | O124: علوم تجريبية | P124: 2 | Q124: 116 | R124: E2 | S124: زحوط مصطفى | T124: قرية المرازقة | U124: Yasser jaziri | Z124: =IF($J124="","",MATCH($J124,OFFSET(BASE!$C$5,,,MAX(BASE!$B:$B)),0)) -> 5 | AA124: =IF($Z124="","",60*($Z124-1)+COUNTIF($Z$9:$Z124,$Z124)) -> 263
A125: 117 | B125: طرشون إكرام | C125: 1100313270156400 | D125: طرشون | E125: إكرام | F125: أنثى | G125: 2003-07-16 | H125: مغنية | I125: نصف داخلي | J125: 3ع ت02 | N125: ثالثة | O125: علوم تجريبية | P125: 2 | Q125: 117 | R125: E2 | S125: طرشون محمد | T125: قرية البطيم مغنية | U125: Bin Abdullah Nasreen | Z125: =IF($J125="","",MATCH($J125,OFFSET(BASE!$C$5,,,MAX(BASE!$B:$B)),0)) -> 5 | AA125: =IF($Z125="","",60*($Z125-1)+COUNTIF($Z$9:$Z125,$Z125)) -> 264
A126: 118 | B126: عبد المالك نجمة | C126: 1100313270086100 | D126: عبد المالك | E126: نجمة | F126: أنثى | G126: 2003-04-29 | H126: مغنية | I126: نصف داخلي | J126: 3ع ت02 | N126: ثالثة | O126: علوم تجريبية | P126: 2 | Q126: 118 | R126: E2 | S126: عبد المالك مصطفى | T126: قرية البطيم مغنية | U126: Bushra Sadiq | Z126: =IF($J126="","",MATCH($J126,OFFSET(BASE!$C$5,,,MAX(BASE!$B:$B)),0)) -> 5 | AA126: =IF($Z126="","",60*($Z126-1)+COUNTIF($Z$9:$Z126,$Z126)) -> 265
A127: 119 | B127: مرحوم دعاء | C127: 1100313270109700 | D127: مرحوم | E127: دعاء | F127: أنثى | G127: 2003-12-21 | H127: مغنية | I127: خارجي | J127: 3ع ت02 | N127: ثالثة | O127: علوم تجريبية | P127: 2 | Q127: 119 | R127: E2 | S127: مرحوم طيب | T127: حي المقراني شارع 17 | U127: Bachir Fathi | Z127: =IF($J127="","",MATCH($J127,OFFSET(BASE!$C$5,,,MAX(BASE!$B:$B)),0)) -> 5 | AA127: =IF($Z127="","",60*($Z127-1)+COUNTIF($Z$9:$Z127,$Z127)) -> 266
A128: 120 | B128: موقاس الطيب | C128: 1000413270111200 | D128: موقاس | E128: الطيب | F128: ذكر | G128: 2004-05-17 | H128: مغنية | I128: خارجي | J128: 3ع ت02 | N128: ثالثة | O128: علوم تجريبية | P128: 2 | Q128: 120 | R128: E1 | S128: موقاس نصرالدين | T128: حي بلال مغنية | U128: Scharf Kawthar | Z128: =IF($J128="","",MATCH($J128,OFFSET(BASE!$C$5,,,MAX(BASE!$B:$B)),0)) -> 5 | AA128: =IF($Z128="","",60*($Z128-1)+COUNTIF($Z$9:$Z128,$Z128)) -> 267
A129: 121 | B129: أوزليفي أسامة | C129: 1000213270019100 | D129: أوزليفي | E129: أسامة | F129: ذكر | G129: 2002-01-29 | H129: مغنية | I129: نصف داخلي | J129: 3أ ف01 | N129: ثالثة | O129: آداب وفلسفة | P129: 1 | Q129: 121 | R129: D1 | S129: أوزليفي عبد الكريم | T129: قرية البطيم | U129: Ben Farid Mohammed Ryan | Z129: =IF($J129="","",MATCH($J129,OFFSET(BASE!$C$5,,,MAX(BASE!$B:$B)),0)) -> 6 | AA129: =IF($Z129="","",60*($Z129-1)+COUNTIF($Z$9:$Z129,$Z129)) -> 301
A130: 122 | B130: العابد صفاء | C130: 1100413270251000 | D130: العابد | E130: صفاء | F130: أنثى | G130: 2004-09-15 | H130: مغنية | I130: نصف داخلي | J130: 3أ ف01 | N130: ثالثة | O130: آداب وفلسفة | P130: 1 | Q130: 122 | R130: D2 | S130: العابد مصطفى | T130: قرية البطيم مغنية | U130: Saluma Nawal | Z130: =IF($J130="","",MATCH($J130,OFFSET(BASE!$C$5,,,MAX(BASE!$B:$B)),0)) -> 6 | AA130: =IF($Z130="","",60*($Z130-1)+COUNTIF($Z$9:$Z130,$Z130)) -> 302
A131: 123 | B131: امحمدي أمينة | C131: 1100313270314100 | D131: امحمدي | E131: أمينة | F131: أنثى | G131: 2003-07-12 | H131: مغنية | I131: نصف داخلي | J131: 3أ ف01 | N131: ثالثة | O131: آداب وفلسفة | P131: 1 | Q131: 123 | R131: D2 | S131: امحمدي الحاج | T131: اولاد قدور الكبار | U131: Dechasa Yahya | Z131: =IF($J131="","",MATCH($J131,OFFSET(BASE!$C$5,,,MAX(BASE!$B:$B)),0)) -> 6 | AA131: =IF($Z131="","",60*($Z131-1)+COUNTIF($Z$9:$Z131,$Z131)) -> 303
A132: 124 | B132: بلجيلالي أحمد بلقاسم | C132: 1000313270104000 | D132: بلجيلالي | E132: أحمد بلقاسم | F132: ذكر | G132: 2003-05-22 | H132: مغنية | I132: نصف داخلي | J132: 3أ ف01 | N132: ثالثة | O132: آداب وفلسفة | P132: 1 | Q132: 124 | R132: D1 | S132: بلجيلالي محمد | T132: مرازقة مغنية | U132: Pour Allam Hedayat | Z132: =IF($J132="","",MATCH($J132,OFFSET(BASE!$C$5,,,MAX(BASE!$B:$B)),0)) -> 6 | AA132: =IF($Z132="","",60*($Z132-1)+COUNTIF($Z$9:$Z132,$Z132)) -> 304
A133: 125 | B133: بن أعمر فاطمة الزهراء | C133: 1100213270272600 | D133: بن أعمر | E133: فاطمة الزهراء | F133: أنثى | G133: 2002-12-01 | H133: مغنية | I133: نصف داخلي | J133: 3أ ف01 | N133: ثالثة | O133: آداب وفلسفة | P133: 1 | Q133: 125 | R133: D2 | S133: بن أعمر محمد | T133: قرية البطيم مغنية | U133: Vente en gros Mohamed Abdel Fattah | Z133: =IF($J133="","",MATCH($J133,OFFSET(BASE!$C$5,,,MAX(BASE!$B:$B)),0)) -> 6 | AA133: =IF($Z133="","",60*($Z133-1)+COUNTIF($Z$9:$Z133,$Z133)) -> 305
A134: 126 | B134: بن اعمر اكرام | C134: 1100313270147300 | D134: بن اعمر | E134: اكرام | F134: أنثى | G134: 2003-07-06 | H134: مغنية | I134: نصف داخلي | J134: 3أ ف01 | N134: ثالثة | O134: آداب وفلسفة | P134: 1 | Q134: 126 | R134: D2 | S134: بن اعمر بوفلجة | T134: قرية اولاد الشارف مغنية | U134: AlBaddad Amina Nada Basil | Z134: =IF($J134="","",MATCH($J134,OFFSET(BASE!$C$5,,,MAX(BASE!$B:$B)),0)) -> 6 | AA134: =IF($Z134="","",60*($Z134-1)+COUNTIF($Z$9:$Z134,$Z134)) -> 306
A135: 127 | B135: بن بوعزي مصطفى | C135: 1000013270183300 | D135: بن بوعزي | E135: مصطفى | F135: ذكر | G135: 2000-08-22 | H135: مغنية | I135: نصف داخلي | J135: 3أ ف01 | N135: ثالثة | O135: آداب وفلسفة | P135: 1 | Q135: 127 | R135: D1 | S135: بن بوعزي أعمر | T135: قرية العقيد لطفي | U135: Old Mohamed Hossam El Din | Z135: =IF($J135="","",MATCH($J135,OFFSET(BASE!$C$5,,,MAX(BASE!$B:$B)),0)) -> 6 | AA135: =IF($Z135="","",60*($Z135-1)+COUNTIF($Z$9:$Z135,$Z135)) -> 307
A136: 128 | B136: بن سالم نهاد | C136: 1100513270005000 | D136: بن سالم | E136: نهاد | F136: أنثى | G136: 2005-01-05 | H136: مغنية | I136: نصف داخلي | J136: 3أ ف01 | N136: ثالثة | O136: آداب وفلسفة | P136: 1 | Q136: 128 | R136: D2 | S136: بن سالم عبد النبي | T136: قرية العقيد عباس | U136: Hadeel prière Wasti | Z136: =IF($J136="","",MATCH($J136,OFFSET(BASE!$C$5,,,MAX(BASE!$B:$B)),0)) -> 6 | AA136: =IF($Z136="","",60*($Z136-1)+COUNTIF($Z$9:$Z136,$Z136)) -> 308
A137: 129 | B137: بورديم بشرى | C137: 1100413270263500 | D137: بورديم | E137: بشرى | F137: أنثى | G137: 2004-09-28 | H137: مغنية | I137: نصف داخلي | J137: 3أ ف01 | N137: ثالثة | O137: آداب وفلسفة | P137: 1 | Q137: 129 | R137: D2 | S137: بورديم بلخير | T137: قرية البطيم مغنية | U137: Belhassen Abdul Rahman | Z137: =IF($J137="","",MATCH($J137,OFFSET(BASE!$C$5,,,MAX(BASE!$B:$B)),0)) -> 6 | AA137: =IF($Z137="","",60*($Z137-1)+COUNTIF($Z$9:$Z137,$Z137)) -> 309
A138: 130 | B138: تادلي هدى شيماء | C138: 1100413270352000 | D138: تادلي | E138: هدى شيماء | F138: أنثى | G138: 2004-12-23 | H138: مغنية | I138: نصف داخلي | J138: 3أ ف01 | N138: ثالثة | O138: آداب وفلسفة | P138: 1 | Q138: 130 | R138: D2 | S138: تادلي بن اعمر | T138: مزعة شرقاوي العيد | U138: Embarek Oumayma | Z138: =IF($J138="","",MATCH($J138,OFFSET(BASE!$C$5,,,MAX(BASE!$B:$B)),0)) -> 6 | AA138: =IF($Z138="","",60*($Z138-1)+COUNTIF($Z$9:$Z138,$Z138)) -> 310
A139: 131 | B139: حاج علي أمينة | C139: 1100313270225800 | D139: حاج علي | E139: أمينة | F139: أنثى | G139: 2003-09-28 | H139: مغنية | I139: نصف داخلي | J139: 3أ ف01 | N139: ثالثة | O139: آداب وفلسفة | P139: 1 | Q139: 131 | R139: D2 | S139: حاج علي محمد | T139: قرية المصامدة مغنية | U139: Qtaah Shaima | Z139: =IF($J139="","",MATCH($J139,OFFSET(BASE!$C$5,,,MAX(BASE!$B:$B)),0)) -> 6 | AA139: =IF($Z139="","",60*($Z139-1)+COUNTIF($Z$9:$Z139,$Z139)) -> 311
A140: 132 | B140: زقاي اسية | C140: 1100313270008000 | D140: زقاي | E140: اسية | F140: أنثى | G140: 2003-01-07 | H140: مغنية | I140: نصف داخلي | J140: 3أ ف01 | N140: ثالثة | O140: آداب وفلسفة | P140: 1 | Q140: 132 | R140: D2 | S140: زقاي محمد | T140: قرية اولاد الشارف مغنية | U140: Mujahid Bushra | Z140: =IF($J140="","",MATCH($J140,OFFSET(BASE!$C$5,,,MAX(BASE!$B:$B)),0)) -> 6 | AA140: =IF($Z140="","",60*($Z140-1)+COUNTIF($Z$9:$Z140,$Z140)) -> 312
A141: 133 | B141: زياني الأول محمد | C141: 1000313270074600 | D141: زياني الأول | E141: محمد | F141: ذكر | G141: 2003-04-13 | H141: مغنية | I141: نصف داخلي | J141: 3أ ف01 | N141: ثالثة | O141: آداب وفلسفة | P141: 1 | Q141: 133 | R141: D1 | S141: زياني الأول علي | T141: قرية البطيم مغنية | U141: Bin Issa Fatima Zahra | Z141: =IF($J141="","",MATCH($J141,OFFSET(BASE!$C$5,,,MAX(BASE!$B:$B)),0)) -> 6 | AA141: =IF($Z141="","",60*($Z141-1)+COUNTIF($Z$9:$Z141,$Z141)) -> 313
A142: 134 | B142: سلهامي رانيا | C142: 1100413270009300 | D142: سلهامي | E142: رانيا | F142: أنثى | G142: 2004-01-11 | H142: مغنية | I142: نصف داخلي | J142: 3أ ف01 | N142: ثالثة | O142: آداب وفلسفة | P142: 1 | Q142: 134 | R142: D2 | S142: سلهامي عبد الكريم | T142: قرية البطيم مغنية | U142: Balijelali Kamal | Z142: =IF($J142="","",MATCH($J142,OFFSET(BASE!$C$5,,,MAX(BASE!$B:$B)),0)) -> 6 | AA142: =IF($Z142="","",60*($Z142-1)+COUNTIF($Z$9:$Z142,$Z142)) -> 314
A143: 135 | B143: عايشي سامية | C143: 1000113270139800 | D143: عايشي | E143: سامية | F143: أنثى | G143: 2001-07-07 | H143: مغنية | I143: نصف داخلي | J143: 3أ ف01 | N143: ثالثة | O143: آداب وفلسفة | P143: 1 | Q143: 135 | R143: D2 | S143: عايشي محمد | T143: قرية راس العصفور المصامدة مغنية | U143: soumis Walid | Z143: =IF($J143="","",MATCH($J143,OFFSET(BASE!$C$5,,,MAX(BASE!$B:$B)),0)) -> 6 | AA143: =IF($Z143="","",60*($Z143-1)+COUNTIF($Z$9:$Z143,$Z143)) -> 315
A144: 136 | B144: عبد المالك منال | C144: 1100213270060300 | D144: عبد المالك | E144: منال | F144: أنثى | G144: 2002-03-31 | H144: مغنية | I144: نصف داخلي | J144: 3أ ف01 | N144: ثالثة | O144: آداب وفلسفة | P144: 1 | Q144: 136 | R144: D2 | S144: عبد المالك محمد | T144: قرية البخاتة مغنية | U144: Issawi Marwa | Z144: =IF($J144="","",MATCH($J144,OFFSET(BASE!$C$5,,,MAX(BASE!$B:$B)),0)) -> 6 | AA144: =IF($Z144="","",60*($Z144-1)+COUNTIF($Z$9:$Z144,$Z144)) -> 316
A145: 137 | B145: =D145& " " &E145 -> فتوحي سهيلة | D145: فتوحي | E145: سهيلة | F145: أنثى | G145: 2001-10-18 | H145: مغنية | J145: 3أ ف01 | N145: ثالثة | O145: آداب وفلسفة | P145: 1 | Q145: 137 | R145: D2 | S145: فتوحي واسيني | T145: قرية ابطيم -مغنية- | U145: Hassan réussit | Z145: =IF($J145="","",MATCH($J145,OFFSET(BASE!$C$5,,,MAX(BASE!$B:$B)),0)) -> 6 | AA145: =IF($Z145="","",60*($Z145-1)+COUNTIF($Z$9:$Z145,$Z145)) -> 317
A146: 138 | B146: مرزوقي ادم | C146: 1000413270144600 | D146: مرزوقي | E146: ادم | F146: ذكر | G146: 2004-06-16 | H146: مغنية | I146: نصف داخلي | J146: 3أ ف01 | N146: ثالثة | O146: آداب وفلسفة | P146: 1 | Q146: 138 | R146: D1 | S146: مرزوقي الحاج | T146: دوار المرازقة | U146: Bin Abdulrahman Al Sondos Aisha | Z146: =IF($J146="","",MATCH($J146,OFFSET(BASE!$C$5,,,MAX(BASE!$B:$B)),0)) -> 6 | AA146: =IF($Z146="","",60*($Z146-1)+COUNTIF($Z$9:$Z146,$Z146)) -> 318
A147: 139 | B147: مزاري لمياء | C147: 1100413010323600 | D147: مزاري | E147: لمياء | F147: أنثى | G147: 2004-11-24 | H147: البخاتة | I147: نصف داخلي | J147: 3أ ف01 | N147: ثالثة | O147: آداب وفلسفة | P147: 1 | Q147: 139 | R147: D2 | S147: مزاري م | T147: البخاتة مغنية | U147: Amirat Mohammed Jawad | Z147: =IF($J147="","",MATCH($J147,OFFSET(BASE!$C$5,,,MAX(BASE!$B:$B)),0)) -> 6 | AA147: =IF($Z147="","",60*($Z147-1)+COUNTIF($Z$9:$Z147,$Z147)) -> 319
A148: 140 | B148: معيذري نورية | C148: 1100413270046500 | D148: معيذري | E148: نورية | F148: أنثى | G148: 2004-02-23 | H148: مغنية | I148: نصف داخلي | J148: 3أ ف01 | N148: ثالثة | O148: آداب وفلسفة | P148: 1 | Q148: 140 | R148: D2 | S148: معيذري محمد | T148: قرية البطيم مغنية | U148: Amhamdi Mohammed | Z148: =IF($J148="","",MATCH($J148,OFFSET(BASE!$C$5,,,MAX(BASE!$B:$B)),0)) -> 6 | AA148: =IF($Z148="","",60*($Z148-1)+COUNTIF($Z$9:$Z148,$Z148)) -> 320
A149: 141 | B149: أمبارك عزيز | C149: 1000013270265000 | D149: أمبارك | E149: عزيز | F149: ذكر | G149: 2000-12-06 | H149: مغنية | I149: نصف داخلي | J149: 3أ ف01 | N149: ثالثة | O149: آداب وفلسفة | P149: 1 | Q149: 141 | R149: E1 | S149: أمبارك أمحمد | T149: قرية البطيم مغنية | U149: Étudiant Enas Ebtihal | Z149: =IF($J149="","",MATCH($J149,OFFSET(BASE!$C$5,,,MAX(BASE!$B:$B)),0)) -> 6 | AA149: =IF($Z149="","",60*($Z149-1)+COUNTIF($Z$9:$Z149,$Z149)) -> 321
A150: 142 | B150: العابد محمد كمال | C150: 1000013270134700 | D150: العابد | E150: محمد كمال | F150: ذكر | G150: 2000-07-01 | H150: مغنية | J150: 3أ ف01 | N150: ثالثة | O150: آداب وفلسفة | P150: 1 | Q150: 142 | R150: E1 | S150: العابد واسيني | T150: قرية البطيم مغنية | U150: Rania capturé par | Z150: =IF($J150="","",MATCH($J150,OFFSET(BASE!$C$5,,,MAX(BASE!$B:$B)),0)) -> 6 | AA150: =IF($Z150="","",60*($Z150-1)+COUNTIF($Z$9:$Z150,$Z150)) -> 322
A151: 143 | B151: بن رمضان عبد المجيد | C151: 1000213270101900 | D151: بن رمضان | E151: عبد المجيد | F151: ذكر | G151: 2002-05-27 | H151: مغنية | I151: خارجي | J151: 3أ ف01 | N151: ثالثة | O151: آداب وفلسفة | P151: 1 | Q151: 143 | R151: E1 | S151: بن رمضان محمد | T151: قرية المصامدة مغنية | U151: Bouzayna Abdul Ilah | Z151: =IF($J151="","",MATCH($J151,OFFSET(BASE!$C$5,,,MAX(BASE!$B:$B)),0)) -> 6 | AA151: =IF($Z151="","",60*($Z151-1)+COUNTIF($Z$9:$Z151,$Z151)) -> 323
A152: 144 | B152: بن صابر دعاء | C152: 1100509010401900 | D152: بن صابر | E152: دعاء | F152: أنثى | G152: 2005-05-05 | H152: البليدة | I152: خارجي | J152: 3أ ف01 | N152: ثالثة | O152: آداب وفلسفة | P152: 1 | Q152: 144 | R152: E2 | S152: بن صابر | U152: Abdullah Anas Bkkawi | Z152: =IF($J152="","",MATCH($J152,OFFSET(BASE!$C$5,,,MAX(BASE!$B:$B)),0)) -> 6 | AA152: =IF($Z152="","",60*($Z152-1)+COUNTIF($Z$9:$Z152,$Z152)) -> 324
A153: 145 | B153: بن عبد الرحمن رانيا | C153: 1100213270066700 | D153: بن عبد الرحمن | E153: رانيا | F153: أنثى | G153: 2002-04-09 | H153: مغنية | I153: نصف داخلي | J153: 3أ ف01 | N153: ثالثة | O153: آداب وفلسفة | P153: 1 | Q153: 145 | R153: E2 | S153: بن عبد الرحمن نصر الدين | T153: قرية البطيم | U153: Sidi Mohamed Fadhil | Z153: =IF($J153="","",MATCH($J153,OFFSET(BASE!$C$5,,,MAX(BASE!$B:$B)),0)) -> 6 | AA153: =IF($Z153="","",60*($Z153-1)+COUNTIF($Z$9:$Z153,$Z153)) -> 325
A154: 146 | B154: بن عراج إلياس | D154: بن عراج | E154: إلياس | F154: ذكر | G154: 2001-02-04 | H154: مغنية | J154: 3أ ف01 | N154: ثالثة | O154: آداب وفلسفة | P154: 1 | Q154: 146 | R154: E1 | S154: بن عراج قويدر | T154: قرية البخاتة مغنية | Z154: =IF($J154="","",MATCH($J154,OFFSET(BASE!$C$5,,,MAX(BASE!$B:$B)),0)) -> 6 | AA154: =IF($Z154="","",60*($Z154-1)+COUNTIF($Z$9:$Z154,$Z154)) -> 326
A155: 147 | B155: بوطيش وسام | C155: 1100329060268000 | D155: بوطيش | E155: وسام | G155: 2003-11-20 | H155: تيغنيف | I155: خارجي | N155: ثالثة | O155: آداب وفلسفة | P155: 1 | Q155: 147 | S155: بوطيش هواري | T155: دوار المطابيش | U155: Port hammadi | Y155: D2 | Z155: =IF($J155="","",MATCH($J155,OFFSET(BASE!$C$5,,,MAX(BASE!$B:$B)),0)) ->  | AA155: =IF($Z155="","",60*($Z155-1)+COUNTIF($Z$9:$Z155,$Z155)) -> 
A156: 148 | B156: شياخ فاطمة | C156: 1100213270206900 | D156: شياخ | E156: فاطمة | F156: أنثى | G156: 2002-09-19 | H156: مغنية | I156: خارجي | J156: 3أ ف01 | N156: ثالثة | O156: آداب وفلسفة | P156: 1 | Q156: 148 | R156: E2 | S156: شياخ محمد ثاني | T156: درب 01 رقم 23 حي بلال مغنية | U156: Abdel Azim Omhamdi Bouziane | Z156: =IF($J156="","",MATCH($J156,OFFSET(BASE!$C$5,,,MAX(BASE!$B:$B)),0)) -> 6 | AA156: =IF($Z156="","",60*($Z156-1)+COUNTIF($Z$9:$Z156,$Z156)) -> 327
A157: 149 | B157: قبلي محمد يوسف | D157: قبلي | E157: محمد يوسف | F157: ذكر | G157: 2000-01-24 | H157: مغنية | J157: 3أ ف01 | N157: ثالثة | O157: آداب وفلسفة | P157: 1 | Q157: 149 | R157: E1 | S157: قبلي محمد | T157: رقم71 حي الشهداء مغنية | Z157: =IF($J157="","",MATCH($J157,OFFSET(BASE!$C$5,,,MAX(BASE!$B:$B)),0)) -> 6 | AA157: =IF($Z157="","",60*($Z157-1)+COUNTIF($Z$9:$Z157,$Z157)) -> 328
A158: 150 | B158: مبيتيل حواء | C158: 1100413270552600 | D158: مبيتيل | E158: حواء | F158: أنثى | G158: 2004-08-14 | H158: تلمسان | I158: خارجي | J158: 3أ ف01 | N158: ثالثة | O158: آداب وفلسفة | P158: 1 | Q158: 150 | R158: E2 | S158: مبيتيل أمحمد واسيني | T158: منزل 05 حي المذبحة | U158: Majokha Hamid Islam | Z158: =IF($J158="","",MATCH($J158,OFFSET(BASE!$C$5,,,MAX(BASE!$B:$B)),0)) -> 6 | AA158: =IF($Z158="","",60*($Z158-1)+COUNTIF($Z$9:$Z158,$Z158)) -> 329
A159: 151 | B159: أمبارك سعدية | C159: 1100413270220200 | D159: أمبارك | E159: سعدية | F159: أنثى | G159: 2004-08-14 | H159: مغنية | I159: نصف داخلي | J159: 3أ ف02 | N159: ثالثة | O159: آداب وفلسفة | P159: 2 | Q159: 151 | R159: D2 | S159: أمبارك عبد النبي | T159: قرية العقيد لطفي مغنية | U159: Mhiaoa Ismail | Z159: =IF($J159="","",MATCH($J159,OFFSET(BASE!$C$5,,,MAX(BASE!$B:$B)),0)) -> 7 | AA159: =IF($Z159="","",60*($Z159-1)+COUNTIF($Z$9:$Z159,$Z159)) -> 361
A160: 152 | B160: امبارك آية دعاء | C160: 1100413270004200 | D160: امبارك | E160: آية دعاء | F160: أنثى | G160: 2004-01-06 | H160: مغنية | I160: نصف داخلي | J160: 3أ ف02 | N160: ثالثة | O160: آداب وفلسفة | P160: 2 | Q160: 152 | R160: D2 | S160: امبارك هواري | T160: قرية العقيد عباس مغنية تلمسان | U160: Tamazidh Muhammad Islam | Z160: =IF($J160="","",MATCH($J160,OFFSET(BASE!$C$5,,,MAX(BASE!$B:$B)),0)) -> 7 | AA160: =IF($Z160="","",60*($Z160-1)+COUNTIF($Z$9:$Z160,$Z160)) -> 362
A161: 153 | B161: امبارك اسماعيل | C161: 1000113270111500 | D161: امبارك | E161: اسماعيل | F161: ذكر | G161: 2001-06-06 | H161: مغنية | I161: نصف داخلي | J161: 3أ ف02 | N161: ثالثة | O161: آداب وفلسفة | P161: 2 | Q161: 153 | R161: D1 | S161: امبارك عبد الحميد | T161: قرية العقيد لطفي | U161: Abdul Jalil bouzidi | Z161: =IF($J161="","",MATCH($J161,OFFSET(BASE!$C$5,,,MAX(BASE!$B:$B)),0)) -> 7 | AA161: =IF($Z161="","",60*($Z161-1)+COUNTIF($Z$9:$Z161,$Z161)) -> 363
A162: 154 | B162: بن سعد شيماء | C162: 1100213270196400 | D162: بن سعد | E162: شيماء | F162: أنثى | G162: 2002-09-07 | H162: مغنية | I162: نصف داخلي | J162: 3أ ف02 | N162: ثالثة | O162: آداب وفلسفة | P162: 2 | Q162: 154 | R162: D2 | S162: بن سعد مصطفى | T162: قرية البخاتة مغنية | U162: Pour Blonde Mohamed Nasr El Din | Z162: =IF($J162="","",MATCH($J162,OFFSET(BASE!$C$5,,,MAX(BASE!$B:$B)),0)) -> 7 | AA162: =IF($Z162="","",60*($Z162-1)+COUNTIF($Z$9:$Z162,$Z162)) -> 364
A163: 155 | B163: بن يحي أحلام | C163: 1100113270013800 | D163: بن يحي | E163: أحلام | F163: أنثى | G163: 2001-01-17 | H163: مغنية | I163: نصف داخلي | J163: 3أ ف02 | N163: ثالثة | O163: آداب وفلسفة | P163: 2 | Q163: 155 | R163: D2 | S163: بن يحي حفيظ | T163: قرية البطيم مغنية | U163: Musab profonde | Z163: =IF($J163="","",MATCH($J163,OFFSET(BASE!$C$5,,,MAX(BASE!$B:$B)),0)) -> 7 | AA163: =IF($Z163="","",60*($Z163-1)+COUNTIF($Z$9:$Z163,$Z163)) -> 365
A164: 156 | B164: بومدين احمد | C164: 1000113270138400 | D164: بومدين | E164: احمد | F164: ذكر | G164: 2001-07-06 | H164: مغنية | I164: نصف داخلي | J164: 3أ ف02 | N164: ثالثة | O164: آداب وفلسفة | P164: 2 | Q164: 156 | R164: D1 | S164: بومدين العربي | T164: اولاد قدور الصغار | U164: ange gratuit | Z164: =IF($J164="","",MATCH($J164,OFFSET(BASE!$C$5,,,MAX(BASE!$B:$B)),0)) -> 7 | AA164: =IF($Z164="","",60*($Z164-1)+COUNTIF($Z$9:$Z164,$Z164)) -> 366
A165: 157 | B165: حمو حنان | C165: 1100313270046500 | D165: حمو | E165: حنان | F165: أنثى | G165: 2003-02-26 | H165: مغنية | I165: نصف داخلي | J165: 3أ ف02 | N165: ثالثة | O165: آداب وفلسفة | P165: 2 | Q165: 157 | R165: D2 | S165: حمو امحمد | T165: قرية البطيم مغنية | U165: Zarkana Raghda | Z165: =IF($J165="","",MATCH($J165,OFFSET(BASE!$C$5,,,MAX(BASE!$B:$B)),0)) -> 7 | AA165: =IF($Z165="","",60*($Z165-1)+COUNTIF($Z$9:$Z165,$Z165)) -> 367
A166: 158 | B166: عريبي صورية | C166: 1100408010245800 | D166: عريبي | E166: صورية | F166: أنثى | G166: 2004-08-08 | H166: بشار | I166: نصف داخلي | J166: 3أ ف02 | N166: ثالثة | O166: آداب وفلسفة | P166: 2 | Q166: 158 | R166: D2 | S166: عريبي مبروك | T166: قرية العقيد لطفي مغنية | U166: Marwa Abed | Z166: =IF($J166="","",MATCH($J166,OFFSET(BASE!$C$5,,,MAX(BASE!$B:$B)),0)) -> 7 | AA166: =IF($Z166="","",60*($Z166-1)+COUNTIF($Z$9:$Z166,$Z166)) -> 368
A167: 159 | B167: فارس زهيرة | C167: 1100213270089700 | D167: فارس | E167: زهيرة | F167: أنثى | G167: 2002-05-12 | H167: مغنية | I167: نصف داخلي | J167: 3أ ف02 | N167: ثالثة | O167: آداب وفلسفة | P167: 2 | Q167: 159 | R167: D2 | S167: فارس عبد القادر | T167: قرية البطيم مغنية | U167: Zhzouh hostile | Z167: =IF($J167="","",MATCH($J167,OFFSET(BASE!$C$5,,,MAX(BASE!$B:$B)),0)) -> 7 | AA167: =IF($Z167="","",60*($Z167-1)+COUNTIF($Z$9:$Z167,$Z167)) -> 369
A168: 160 | B168: قاطع زكرياء | C168: 1000313270261900 | D168: قاطع | E168: زكرياء | F168: ذكر | G168: 2003-11-09 | H168: مغنية | I168: نصف داخلي | J168: 3أ ف02 | N168: ثالثة | O168: آداب وفلسفة | P168: 2 | Q168: 160 | R168: D1 | S168: قاطع أحمد | T168: قرية البطيم مغنية | U168: Ben Allal Mohamed Gosaib | Z168: =IF($J168="","",MATCH($J168,OFFSET(BASE!$C$5,,,MAX(BASE!$B:$B)),0)) -> 7 | AA168: =IF($Z168="","",60*($Z168-1)+COUNTIF($Z$9:$Z168,$Z168)) -> 370
A169: 161 | B169: قديم أسماء | C169: 1100413270677100 | D169: قديم | E169: أسماء | F169: أنثى | G169: 2004-04-03 | H169: مغنية | I169: نصف داخلي | J169: 3أ ف02 | N169: ثالثة | O169: آداب وفلسفة | P169: 2 | Q169: 161 | R169: D2 | S169: قديم عز الدين | T169: قرية البخاتة مغنية | U169: Fadhil Ahmed | Z169: =IF($J169="","",MATCH($J169,OFFSET(BASE!$C$5,,,MAX(BASE!$B:$B)),0)) -> 7 | AA169: =IF($Z169="","",60*($Z169-1)+COUNTIF($Z$9:$Z169,$Z169)) -> 371
A170: 162 | B170: مزاري سناء | C170: 1100413270247600 | D170: مزاري | E170: سناء | F170: أنثى | G170: 2004-09-11 | H170: مغنية | I170: نصف داخلي | J170: 3أ ف02 | N170: ثالثة | O170: آداب وفلسفة | P170: 2 | Q170: 162 | R170: D2 | S170: مزاري شهبي | T170: قرية البخاتة مغنية | U170: beauté Hwao | Z170: =IF($J170="","",MATCH($J170,OFFSET(BASE!$C$5,,,MAX(BASE!$B:$B)),0)) -> 7 | AA170: =IF($Z170="","",60*($Z170-1)+COUNTIF($Z$9:$Z170,$Z170)) -> 372
A171: 163 | B171: معموري علاء الدين | C171: 1000313270292300 | D171: معموري | E171: علاء الدين | F171: ذكر | G171: 2003-12-18 | H171: مغنية | I171: نصف داخلي | J171: 3أ ف02 | N171: ثالثة | O171: آداب وفلسفة | P171: 2 | Q171: 163 | R171: D1 | S171: معموري عبد المجيد | T171: قرية البطيم مغنية | U171: Nawawi Mohamed Yasser | Z171: =IF($J171="","",MATCH($J171,OFFSET(BASE!$C$5,,,MAX(BASE!$B:$B)),0)) -> 7 | AA171: =IF($Z171="","",60*($Z171-1)+COUNTIF($Z$9:$Z171,$Z171)) -> 373
A172: 164 | B172: مفتاح سمية | C172: 1199513030002500 | D172: مفتاح | E172: سمية | F172: أنثى | G172: 1995-04-29 | H172: عين تالوت | I172: نصف داخلي | J172: 3أ ف02 | N172: ثالثة | O172: آداب وفلسفة | P172: 2 | Q172: 164 | R172: D2 | S172: مفتاح | U172: royal Hagar | Z172: =IF($J172="","",MATCH($J172,OFFSET(BASE!$C$5,,,MAX(BASE!$B:$B)),0)) -> 7 | AA172: =IF($Z172="","",60*($Z172-1)+COUNTIF($Z$9:$Z172,$Z172)) -> 374
A173: 165 | B173: منور آية | C173: 1100413270318200 | D173: منور | E173: آية | F173: أنثى | G173: 2004-11-19 | H173: مغنية | I173: نصف داخلي | J173: 3أ ف02 | N173: ثالثة | O173: آداب وفلسفة | P173: 2 | Q173: 165 | R173: D2 | S173: منور أمحمد | T173: قرية العقيد لطفي مغنية | U173: Rafii Mohammed Amin | Z173: =IF($J173="","",MATCH($J173,OFFSET(BASE!$C$5,,,MAX(BASE!$B:$B)),0)) -> 7 | AA173: =IF($Z173="","",60*($Z173-1)+COUNTIF($Z$9:$Z173,$Z173)) -> 375
A174: 166 | B174: منور عبد الحسيب | C174: 1000413270260100 | D174: منور | E174: عبد الحسيب | F174: ذكر | G174: 2004-09-25 | H174: مغنية | I174: نصف داخلي | J174: 3أ ف02 | N174: ثالثة | O174: آداب وفلسفة | P174: 2 | Q174: 166 | R174: D1 | S174: منور أحمد | T174: قرية العقيد عباس مغنية | U174: Oozlavi Ikram | Z174: =IF($J174="","",MATCH($J174,OFFSET(BASE!$C$5,,,MAX(BASE!$B:$B)),0)) -> 7 | AA174: =IF($Z174="","",60*($Z174-1)+COUNTIF($Z$9:$Z174,$Z174)) -> 376
A175: 167 | B175: نواوي صهيب | C175: 1000413270047400 | D175: نواوي | E175: صهيب | F175: ذكر | G175: 2004-02-24 | H175: مغنية | I175: نصف داخلي | J175: 3أ ف02 | N175: ثالثة | O175: آداب وفلسفة | P175: 2 | Q175: 167 | R175: D1 | S175: نواوي بلخير | T175: قرية البطيم مغنية | U175: sens Aisha | Z175: =IF($J175="","",MATCH($J175,OFFSET(BASE!$C$5,,,MAX(BASE!$B:$B)),0)) -> 7 | AA175: =IF($Z175="","",60*($Z175-1)+COUNTIF($Z$9:$Z175,$Z175)) -> 377
A176: 168 | B176: أحمودي ياسين | C176: 1000313010574900 | D176: أحمودي | E176: ياسين | F176: ذكر | G176: 2003-09-09 | H176: تلمسان | I176: نصف داخلي | J176: 3أ ف02 | N176: ثالثة | O176: آداب وفلسفة | P176: 2 | Q176: 168 | R176: E1 | S176: أحمودي أحمد | T176: قرية البطيم مغنية | U176: Ayman Key | Z176: =IF($J176="","",MATCH($J176,OFFSET(BASE!$C$5,,,MAX(BASE!$B:$B)),0)) -> 7 | AA176: =IF($Z176="","",60*($Z176-1)+COUNTIF($Z$9:$Z176,$Z176)) -> 378
A177: 169 | B177: =D177& " " &E177 -> أوحساين بشرى | C177: 1100313270181200 | D177: أوحساين | E177: بشرى | F177: أنثى | G177: 2003-08-10 | H177: مغنية | I177: خارجي | J177: 3أ ف02 | N177: ثالثة | O177: آداب وفلسفة | P177: 2 | Q177: 169 | R177: E2 | S177: أوحساين عبد الكريم | T177: الزوية بني بوسعيد-تلمسان- | U177: Rustique simple Mohamed | Z177: =IF($J177="","",MATCH($J177,OFFSET(BASE!$C$5,,,MAX(BASE!$B:$B)),0)) -> 7 | AA177: =IF($Z177="","",60*($Z177-1)+COUNTIF($Z$9:$Z177,$Z177)) -> 379
A178: 170 | B178: أيلاس أنفال | C178: 1100213270241700 | D178: أيلاس | E178: أنفال | F178: أنثى | G178: 2002-10-29 | H178: مغنية | I178: خارجي | J178: 3أ ف02 | N178: ثالثة | O178: آداب وفلسفة | P178: 2 | Q178: 170 | R178: E2 | S178: أيلاس الجيلالي | T178: درب 28 رقم 16 حي الشهداء مغنية | U178: Abdul Wahid Vérifiez auprès | Z178: =IF($J178="","",MATCH($J178,OFFSET(BASE!$C$5,,,MAX(BASE!$B:$B)),0)) -> 7 | AA178: =IF($Z178="","",60*($Z178-1)+COUNTIF($Z$9:$Z178,$Z178)) -> 380
A179: 171 | B179: بلهادف هارون | C179: 1000313010449200 | D179: بلهادف | E179: هارون | F179: ذكر | G179: 2003-07-21 | H179: تلمسان | I179: خارجي | J179: 3أ ف02 | N179: ثالثة | O179: آداب وفلسفة | P179: 2 | Q179: 171 | R179: E1 | S179: بلهادف نور الدين | T179: رقم 160 حي جامع الصخرة الغزوات | U179: Doge Sayed Ahmed | Z179: =IF($J179="","",MATCH($J179,OFFSET(BASE!$C$5,,,MAX(BASE!$B:$B)),0)) -> 7 | AA179: =IF($Z179="","",60*($Z179-1)+COUNTIF($Z$9:$Z179,$Z179)) -> 381
A180: 172 | B180: رحال سامية | C180: 1000213270035400 | D180: رحال | E180: سامية | F180: أنثى | G180: 2002-02-24 | H180: مغنية | I180: خارجي | J180: 3أ ف02 | N180: ثالثة | O180: آداب وفلسفة | P180: 2 | Q180: 172 | R180: E2 | S180: رحال بن عودة | T180: شارع حي بلال رقم 19 مغنية | U180: Haddadj Zakaria | Z180: =IF($J180="","",MATCH($J180,OFFSET(BASE!$C$5,,,MAX(BASE!$B:$B)),0)) -> 7 | AA180: =IF($Z180="","",60*($Z180-1)+COUNTIF($Z$9:$Z180,$Z180)) -> 382
A181: 173 | B181: سابق زكرياء | C181: 1000431010184200 | D181: سابق | E181: زكرياء | F181: ذكر | G181: 2004-02-16 | H181: وهران | I181: خارجي | J181: 3أ ف02 | N181: ثالثة | O181: آداب وفلسفة | P181: 2 | Q181: 173 | R181: E1 | S181: سابق سنوسي | T181: رقم 11 حي 08 حي الشهداء مغنية | U181: Bocrapalh Nasrallah | Z181: =IF($J181="","",MATCH($J181,OFFSET(BASE!$C$5,,,MAX(BASE!$B:$B)),0)) -> 7 | AA181: =IF($Z181="","",60*($Z181-1)+COUNTIF($Z$9:$Z181,$Z181)) -> 383
A182: 174 | B182: لحسايني فاروق | C182: 1000413270344300 | D182: لحسايني | E182: فاروق | F182: ذكر | G182: 2004-12-14 | H182: مغنية | I182: خارجي | J182: 3أ ف02 | N182: ثالثة | O182: آداب وفلسفة | P182: 2 | Q182: 174 | R182: E1 | S182: لحسايني بن عمر | T182: 14 حي الشهداء مغنية | U182: Ben récolte Yassin | Z182: =IF($J182="","",MATCH($J182,OFFSET(BASE!$C$5,,,MAX(BASE!$B:$B)),0)) -> 7 | AA182: =IF($Z182="","",60*($Z182-1)+COUNTIF($Z$9:$Z182,$Z182)) -> 384
A183: 175 | B183: ميلود عبيد سارة | C183: 1100213270005100 | D183: ميلود عبيد | E183: سارة | F183: أنثى | G183: 2002-01-07 | H183: مغنية | I183: نصف داخلي | J183: 3أ ف02 | N183: ثالثة | O183: آداب وفلسفة | P183: 2 | Q183: 175 | R183: E2 | S183: ميلود عبيد بلقاسم | T183: قرية المصامدة مغنية | U183: Ahmed Sayed Stump | Z183: =IF($J183="","",MATCH($J183,OFFSET(BASE!$C$5,,,MAX(BASE!$B:$B)),0)) -> 7 | AA183: =IF($Z183="","",60*($Z183-1)+COUNTIF($Z$9:$Z183,$Z183)) -> 385
A184: 176 | B184: ناير مروة | C184: 1100213270264300 | D184: ناير | E184: مروة | F184: أنثى | G184: 2002-11-22 | H184: مغنية | I184: خارجي | J184: 3أ ف02 | N184: ثالثة | O184: آداب وفلسفة | P184: 2 | Q184: 176 | R184: E2 | S184: ناير محمد | T184: قرية البطيم | U184: Bouarfa Ryan | Z184: =IF($J184="","",MATCH($J184,OFFSET(BASE!$C$5,,,MAX(BASE!$B:$B)),0)) -> 7 | AA184: =IF($Z184="","",60*($Z184-1)+COUNTIF($Z$9:$Z184,$Z184)) -> 386
A185: 177 | B185: بن عزوز شهيناز | C185: 1100413270080200 | D185: بن عزوز | E185: شهيناز | F185: أنثى | G185: 2004-04-07 | H185: مغنية | I185: خارجي | J185: 3لغات /إسبا | N185: ثالثة | O185: لغات أجنبية إسبانية | P185: 1 | Q185: 177 | R185: D2 | S185: بن عزوز عبد الغاني | T185: الجرابعة | U185: Arici Fatima Zahra | Z185: =IF($J185="","",MATCH($J185,OFFSET(BASE!$C$5,,,MAX(BASE!$B:$B)),0)) -> 8 | AA185: =IF($Z185="","",60*($Z185-1)+COUNTIF($Z$9:$Z185,$Z185)) -> 421
A186: 178 | B186: بورديم نور الإيمان | C186: 1100313010575100 | D186: بورديم | E186: نور الإيمان | F186: أنثى | G186: 2003-09-09 | H186: تلمسان | I186: نصف داخلي | J186: 3لغات /إسبا | N186: ثالثة | O186: لغات أجنبية إسبانية | P186: 1 | Q186: 178 | R186: E1 | S186: بورديم لخضر | T186: قرية البطيم مغنية | U186: Fahim Abdul Razak | Z186: =IF($J186="","",MATCH($J186,OFFSET(BASE!$C$5,,,MAX(BASE!$B:$B)),0)) -> 8 | AA186: =IF($Z186="","",60*($Z186-1)+COUNTIF($Z$9:$Z186,$Z186)) -> 422
A187: 179 | B187: أوزليفي عائشة | C187: 1100413270119200 | D187: أوزليفي | E187: عائشة | F187: أنثى | G187: 2004-05-25 | H187: مغنية | I187: خارجي | J187: 3لغات /إسبا | N187: ثالثة | O187: لغات أجنبية إسبانية | P187: 1 | Q187: 179 | R187: D2 | S187: أوزليفي محمد | T187: قرية البطيم مغنية | U187: Subaie Noureddine | Z187: =IF($J187="","",MATCH($J187,OFFSET(BASE!$C$5,,,MAX(BASE!$B:$B)),0)) -> 8 | AA187: =IF($Z187="","",60*($Z187-1)+COUNTIF($Z$9:$Z187,$Z187)) -> 423
A188: 180 | B188: العياطي فاطمة | C188: 1100413270203500 | D188: العياطي | E188: فاطمة | F188: أنثى | G188: 2004-07-29 | H188: مغنية | I188: خارجي | J188: 3لغات /إسبا | N188: ثالثة | O188: لغات أجنبية إسبانية | P188: 1 | Q188: 180 | R188: D2 | S188: العياطي نور الدين | T188: حي الشهداء مغنية | U188: Blqubla Jawad | Z188: =IF($J188="","",MATCH($J188,OFFSET(BASE!$C$5,,,MAX(BASE!$B:$B)),0)) -> 8 | AA188: =IF($Z188="","",60*($Z188-1)+COUNTIF($Z$9:$Z188,$Z188)) -> 424
A189: 181 | B189: بلخياطي مصطفى | C189: 1000213270251900 | D189: بلخياطي | E189: مصطفى | F189: ذكر | G189: 2002-11-10 | H189: مغنية | I189: خارجي | J189: 3لغات /إسبا | N189: ثالثة | O189: لغات أجنبية إسبانية | P189: 1 | Q189: 181 | R189: D1 | S189: بلخياطي صافي | T189: قرية العقيد عباس | U189: Zhzouh Abdullah | Z189: =IF($J189="","",MATCH($J189,OFFSET(BASE!$C$5,,,MAX(BASE!$B:$B)),0)) -> 8 | AA189: =IF($Z189="","",60*($Z189-1)+COUNTIF($Z$9:$Z189,$Z189)) -> 425
A190: 182 | B190: بلعمري منال | C190: 1100413270164300 | D190: بلعمري | E190: منال | F190: أنثى | G190: 2004-06-30 | H190: مغنية | I190: خارجي | J190: 3لغات /إسبا | N190: ثالثة | O190: لغات أجنبية إسبانية | P190: 1 | Q190: 182 | R190: E2 | S190: بلعمري حمو | T190: حي الشهداء مغنية | U190: Zlat Ahmed | Z190: =IF($J190="","",MATCH($J190,OFFSET(BASE!$C$5,,,MAX(BASE!$B:$B)),0)) -> 8 | AA190: =IF($Z190="","",60*($Z190-1)+COUNTIF($Z$9:$Z190,$Z190)) -> 426
A191: 183 | B191: بلقاسم مريم | C191: 1100313270003500 | D191: بلقاسم | E191: مريم | F191: أنثى | G191: 2003-01-03 | H191: مغنية | I191: خارجي | J191: 3لغات /إسبا | N191: ثالثة | O191: لغات أجنبية إسبانية | P191: 1 | Q191: 183 | R191: D2 | S191: بلقاسم مصطفى | T191: قرية البطيم مغنية | U191: Boufares Abdul Rahman | Z191: =IF($J191="","",MATCH($J191,OFFSET(BASE!$C$5,,,MAX(BASE!$B:$B)),0)) -> 8 | AA191: =IF($Z191="","",60*($Z191-1)+COUNTIF($Z$9:$Z191,$Z191)) -> 427
A192: 184 | B192: بن جيلالي منال | C192: 1100413270158000 | D192: بن جيلالي | E192: منال | F192: أنثى | G192: 2004-06-27 | H192: مغنية | I192: خارجي | J192: 3لغات /إسبا | N192: ثالثة | O192: لغات أجنبية إسبانية | P192: 1 | Q192: 184 | R192: D2 | S192: بن جيلالي عبد القادر | T192: قرية المرازقة مغنية | U192: récursion Bin Abdullah Fatna | Z192: =IF($J192="","",MATCH($J192,OFFSET(BASE!$C$5,,,MAX(BASE!$B:$B)),0)) -> 8 | AA192: =IF($Z192="","",60*($Z192-1)+COUNTIF($Z$9:$Z192,$Z192)) -> 428
A193: 185 | B193: بن عزوز منار نور الهدى | C193: 1100413270058700 | D193: بن عزوز | E193: منار نور الهدى | F193: أنثى | G193: 2004-03-10 | H193: مغنية | I193: خارجي | J193: 3لغات /إسبا | N193: ثالثة | O193: لغات أجنبية إسبانية | P193: 1 | Q193: 185 | R193: D2 | S193: بن عزوز واسيني | T193: قرية البطيم مغنية | U193: Embarek Fatiha | Z193: =IF($J193="","",MATCH($J193,OFFSET(BASE!$C$5,,,MAX(BASE!$B:$B)),0)) -> 8 | AA193: =IF($Z193="","",60*($Z193-1)+COUNTIF($Z$9:$Z193,$Z193)) -> 429
A194: 186 | B194: بن عزيزة دعاء | C194: 1100413010408100 | D194: بن عزيزة | E194: دعاء | F194: أنثى | G194: 2004-06-27 | H194: تلمسان | I194: خارجي | J194: 3لغات /إسبا | N194: ثالثة | O194: لغات أجنبية إسبانية | P194: 1 | Q194: 186 | R194: D2 | S194: بن عزيزة ابراهيم | T194: قرية البطيم مغنية | U194: Brahmi Rania | Z194: =IF($J194="","",MATCH($J194,OFFSET(BASE!$C$5,,,MAX(BASE!$B:$B)),0)) -> 8 | AA194: =IF($Z194="","",60*($Z194-1)+COUNTIF($Z$9:$Z194,$Z194)) -> 430
A195: 187 | B195: بوطاقة خديجة | C195: 1100413270317400 | D195: بوطاقة | E195: خديجة | F195: أنثى | G195: 2004-11-18 | H195: مغنية | I195: خارجي | J195: 3لغات /إسبا | N195: ثالثة | O195: لغات أجنبية إسبانية | P195: 1 | Q195: 187 | R195: D2 | S195: بوطاقة هواري | T195: أولاد الشارف مغنية | U195: Boklath Bushra Kalthoum | Z195: =IF($J195="","",MATCH($J195,OFFSET(BASE!$C$5,,,MAX(BASE!$B:$B)),0)) -> 8 | AA195: =IF($Z195="","",60*($Z195-1)+COUNTIF($Z$9:$Z195,$Z195)) -> 431
A196: 188 | B196: بوعزاوي صفاء | C196: 1100213270019300 | D196: بوعزاوي | E196: صفاء | F196: أنثى | G196: 2002-01-29 | H196: مغنية | I196: خارجي | J196: 3لغات /إسبا | N196: ثالثة | O196: لغات أجنبية إسبانية | P196: 1 | Q196: 188 | R196: E2 | S196: بوعزاوي عبد الناصر | T196: حي الشهداء مغنية | U196: Ben Abid Islam Tayyip | Z196: =IF($J196="","",MATCH($J196,OFFSET(BASE!$C$5,,,MAX(BASE!$B:$B)),0)) -> 8 | AA196: =IF($Z196="","",60*($Z196-1)+COUNTIF($Z$9:$Z196,$Z196)) -> 432
A197: 189 | B197: بومنجل نبيل | C197: 1000213270013700 | D197: بومنجل | E197: نبيل | F197: ذكر | G197: 2002-01-21 | H197: مغنية | I197: خارجي | J197: 3لغات /إسبا | N197: ثالثة | O197: لغات أجنبية إسبانية | P197: 1 | Q197: 189 | R197: D1 | S197: بومنجل عبد القادر | T197: قرية البخاتة مغنية | U197: Ben Said Abdel Nour | Z197: =IF($J197="","",MATCH($J197,OFFSET(BASE!$C$5,,,MAX(BASE!$B:$B)),0)) -> 8 | AA197: =IF($Z197="","",60*($Z197-1)+COUNTIF($Z$9:$Z197,$Z197)) -> 433
A198: 190 | B198: تاجوري رابحة | C198: 1100213270268200 | D198: تاجوري | E198: رابحة | F198: أنثى | G198: 2002-11-28 | H198: مغنية | I198: خارجي | J198: 3لغات /إسبا | N198: ثالثة | O198: لغات أجنبية إسبانية | P198: 1 | Q198: 190 | R198: D2 | S198: تاجوري أعمر | T198: قرية العقيد لطفي | U198: Youssef Boumediene | Z198: =IF($J198="","",MATCH($J198,OFFSET(BASE!$C$5,,,MAX(BASE!$B:$B)),0)) -> 8 | AA198: =IF($Z198="","",60*($Z198-1)+COUNTIF($Z$9:$Z198,$Z198)) -> 434
A199: 191 | B199: حساين محمد امين | C199: 1000513270072900 | D199: حساين | E199: محمد امين | F199: ذكر | G199: 2005-03-28 | H199: مغنية | I199: خارجي | J199: 3لغات /إسبا | N199: ثالثة | O199: لغات أجنبية إسبانية | P199: 1 | Q199: 191 | R199: D1 | S199: حساين احمد | T199: قرية بوسدرة - البخاتة مغنية | U199: bordem Kawthar | Z199: =IF($J199="","",MATCH($J199,OFFSET(BASE!$C$5,,,MAX(BASE!$B:$B)),0)) -> 8 | AA199: =IF($Z199="","",60*($Z199-1)+COUNTIF($Z$9:$Z199,$Z199)) -> 435
A200: 192 | B200: حمادي نور الهدى | C200: 1100313270203500 | D200: حمادي | E200: نور الهدى | F200: أنثى | G200: 2003-09-03 | H200: مغنية | I200: نصف داخلي | J200: 3لغات /إسبا | N200: ثالثة | O200: لغات أجنبية إسبانية | P200: 1 | Q200: 192 | R200: E2 | S200: حمادي محمد | T200: قرية البخاتة مغنية | Z200: =IF($J200="","",MATCH($J200,OFFSET(BASE!$C$5,,,MAX(BASE!$B:$B)),0)) -> 8 | AA200: =IF($Z200="","",60*($Z200-1)+COUNTIF($Z$9:$Z200,$Z200)) -> 436
A201: 193 | B201: =D201& " " &E201 -> دقي أمال | C201: 1100313270105900 | D201: دقي | E201: أمال | F201: أنثى | G201: 2003-05-24 | H201: مغنية | I201: خارجي | J201: 3لغات /إسبا | N201: ثالثة | O201: لغات أجنبية إسبانية | P201: 1 | Q201: 193 | R201: E2 | S201: دقي يحي | T201: حي الشهداء مغنية | U201: Bouktaoa Idriss | Z201: =IF($J201="","",MATCH($J201,OFFSET(BASE!$C$5,,,MAX(BASE!$B:$B)),0)) -> 8 | AA201: =IF($Z201="","",60*($Z201-1)+COUNTIF($Z$9:$Z201,$Z201)) -> 437
A202: 194 | B202: دمامن شيماء | C202: 1100513270035100 | D202: دمامن | E202: شيماء | F202: أنثى | G202: 2005-02-08 | H202: مغنية | I202: خارجي | J202: 3لغات /إسبا | N202: ثالثة | O202: لغات أجنبية إسبانية | P202: 1 | Q202: 194 | R202: E2 | S202: دمامن أحمد | T202: المنزل رقم 12 حي الشهداء مغنية | U202: Fatima Zahra génération générale | Z202: =IF($J202="","",MATCH($J202,OFFSET(BASE!$C$5,,,MAX(BASE!$B:$B)),0)) -> 8 | AA202: =IF($Z202="","",60*($Z202-1)+COUNTIF($Z$9:$Z202,$Z202)) -> 438
A203: 195 | B203: رحال مغنية | C203: 1100313270288100 | D203: رحال | E203: مغنية | F203: أنثى | G203: 2003-12-13 | H203: مغنية | I203: خارجي | J203: 3لغات /إسبا | N203: ثالثة | O203: لغات أجنبية إسبانية | P203: 1 | Q203: 195 | R203: E2 | S203: رحال بن أعمر | T203: رقم 1 منزل 19 حي بلال مغنية | U203: Prabh Amina Kausar | Z203: =IF($J203="","",MATCH($J203,OFFSET(BASE!$C$5,,,MAX(BASE!$B:$B)),0)) -> 8 | AA203: =IF($Z203="","",60*($Z203-1)+COUNTIF($Z$9:$Z203,$Z203)) -> 439
A204: 196 | B204: صحراوي اكرام | C204: 1100113270209500 | D204: صحراوي | E204: اكرام | F204: أنثى | G204: 2001-10-30 | H204: مغنية | I204: خارجي | J204: 3لغات /إسبا | N204: ثالثة | O204: لغات أجنبية إسبانية | P204: 1 | Q204: 196 | R204: D2 | S204: صحراوي حميد | T204: قرية البخاتة | U204: Ben DHMH Nasrin | Z204: =IF($J204="","",MATCH($J204,OFFSET(BASE!$C$5,,,MAX(BASE!$B:$B)),0)) -> 8 | AA204: =IF($Z204="","",60*($Z204-1)+COUNTIF($Z$9:$Z204,$Z204)) -> 440
... 1623 more rows

Sheet WAFID
A7: 1 | B7: 2 | C7: 3 | D7: 4 | E7: 5 | F7: 6 | G7: 7 | H7: 8 | I7: 9 | J7: 10 | K7: 11 | L7: 12 | M7: 13 | N7: 14 | O7: 15 | P7: 16 | Q7: 17 | R7: 18 | S7: 19 | T7: 20 | U7: 21 | V7: 22 | W7: 23 | X7: 24 | Y7: 25
A8: الرقم | B8: الاسم و اللقب كاملا | C8: رقم التعريف المدرسي | D8: اللقب | E8: الاسم | F8: الجنس | G8: تاريخ الازدياد | H8: مكان الازدياد | I8: الصفة | J8: القسم المختصر | K8: إعادة س1 | L8: إعادة س2 | M8: إعادة س3 | N8: السنة | O8: الشعبة | P8: رقم القسم | Q8: رقم القيد | R8: الصفة | S8: اسم الولي | T8: العنوان | U8: الاسم و اللقب بالكتابة اللاتينية | V8: تاريخ الدخول | W8: تاريخ الخروج | X8: دخول | Y8: خروخ
A9: 1
A10: 2
A11: 3
A12: 4
A13: 5
A14: 6
A15: 7
A16: 8
A17: 9
A18: 10
A19: 11
A20: 12
A21: 13
A22: 14
A23: 15
A24: 16
A25: 17
A26: 18
A27: 19
A28: 20
A29: 21
A30: 22
A31: 23
A32: 24
A33: 25
A34: 26
A35: 27
A36: 28
A37: 29
A38: 30
A39: 31
A40: 32
A41: 33
A42: 34
A43: 35
A44: 36
A45: 37
A46: 38
A47: 39
A48: 40
A49: 41
A50: 42
A51: 43
A52: 44
A53: 45
A54: 46
A55: 47
A56: 48
A57: 49
A58: 50
A59: 51
A60: 52
A61: 53
A62: 54
A63: 55
A64: 56
A65: 57
A66: 58
A67: 59
A68: 60
A69: 61
A70: 62
A71: 63
A72: 64
A73: 65
A74: 66
A75: 67
A76: 68
A77: 69
A78: 70
A79: 71
A80: 72
A81: 73
A82: 74
A83: 75
A84: 76
A85: 77
A86: 78
A87: 79
A88: 80
A89: 81
A90: 82
A91: 83
A92: 84
A93: 85
A94: 86
A95: 87
A96: 88
A97: 89
A98: 90
A99: 91
A100: 92
A101: 93
A102: 94
A103: 95
A104: 96
A105: 97
A106: 98
A107: 99
A108: 100
A109: 101
A110: 102
A111: 103
A112: 104
A113: 105
A114: 106
A115: 107
A116: 108
A117: 109
A118: 110
A119: 111
A120: 112
A121: 113
A122: 114
A123: 115
A124: 116
A125: 117
A126: 118
A127: 119
A128: 120
A129: 121
A130: 122
A131: 123
A132: 124
A133: 125
A134: 126
A135: 127
A136: 128
A137: 129
A138: 130
A139: 131
A140: 132
A141: 133
A142: 134
A143: 135
A144: 136
A145: 137
A146: 138
A147: 139
A148: 140
A149: 141
A150: 142
A151: 143
A152: 144
A153: 145
A154: 146
A155: 147
A156: 148
A157: 149
A158: 150
A159: 151
A160: 152
A161: 153
A162: 154
A163: 155
A164: 156
A165: 157
A166: 158
A167: 159
A168: 160
A169: 161
A170: 162
A171: 163
A172: 164
A173: 165
A174: 166
A175: 167
A176: 168
A177: 169
A178: 170
A179: 171
A180: 172
A181: 173
A182: 174
A183: 175
A184: 176
A185: 177
A186: 178
A187: 179
A188: 180
A189: 181
A190: 182
A191: 183
A192: 184
A193: 185
A194: 186
A195: 187
A196: 188
A197: 189
A198: 190
A199: 191
A200: 192
A201: 193
A202: 194
A203: 195
A204: 196
A205: 197
A206: 198
... 1621 more rows

Sheet MOGHADIR
A7: 1 | B7: 2 | C7: 3 | D7: 4 | E7: 5 | F7: 6 | G7: 7 | H7: 8 | I7: 9 | J7: 10 | K7: 11 | L7: 12 | M7: 13 | N7: 14 | O7: 15 | P7: 16 | Q7: 17 | R7: 18 | S7: 19 | T7: 20 | U7: 21 | V7: 22 | W7: 23 | X7: 24 | Y7: 25
A8: الرقم | B8: الاسم و اللقب كاملا | C8: رقم التعريف المدرسي | D8: اللقب | E8: الاسم | F8: الجنس | G8: تاريخ الازدياد | H8: مكان الازدياد | I8: الصفة | J8: القسم المختصر | K8: إعادة س1 | L8: إعادة س2 | M8: إعادة س3 | N8: السنة | O8: الشعبة | P8: رقم القسم | Q8: رقم القيد | R8: الصفة | S8: اسم الولي | T8: العنوان | U8: الاسم و اللقب بالكتابة اللاتينية | V8: تاريخ الدخول | W8: تاريخ الخروج | X8: دخول | Y8: خروخ
A9: 1
A10: 2
A11: 3
A12: 4
A13: 5
A14: 6
A15: 7
A16: 8
A17: 9
A18: 10
A19: 11
A20: 12
A21: 13
A22: 14
A23: 15
A24: 16
A25: 17
A26: 18
A27: 19
A28: 20
A29: 21
A30: 22
A31: 23
A32: 24
A33: 25
A34: 26
A35: 27
A36: 28
A37: 29
A38: 30
A39: 31
A40: 32
A41: 33
A42: 34
A43: 35
A44: 36
A45: 37
A46: 38
A47: 39
A48: 40
A49: 41
A50: 42
A51: 43
A52: 44
A53: 45
A54: 46
A55: 47
A56: 48
A57: 49
A58: 50
A59: 51
A60: 52
A61: 53
A62: 54
A63: 55
A64: 56
A65: 57
A66: 58
A67: 59
A68: 60
A69: 61
A70: 62
A71: 63
A72: 64
A73: 65
A74: 66
A75: 67
A76: 68
A77: 69
A78: 70
A79: 71
A80: 72
A81: 73
A82: 74
A83: 75
A84: 76
A85: 77
A86: 78
A87: 79
A88: 80
A89: 81
A90: 82
A91: 83
A92: 84
A93: 85
A94: 86
A95: 87
A96: 88
A97: 89
A98: 90
A99: 91
A100: 92
A101: 93
A102: 94
A103: 95
A104: 96
A105: 97
A106: 98
A107: 99
A108: 100
A109: 101
A110: 102
A111: 103
A112: 104
A113: 105
A114: 106
A115: 107
A116: 108
A117: 109
A118: 110
A119: 111
A120: 112
A121: 113
A122: 114
A123: 115
A124: 116
A125: 117
A126: 118
A127: 119
A128: 120
A129: 121
A130: 122
A131: 123
A132: 124
A133: 125
A134: 126
A135: 127
A136: 128
A137: 129
A138: 130
A139: 131
A140: 132
A141: 133
A142: 134
A143: 135
A144: 136
A145: 137
A146: 138
A147: 139
A148: 140
A149: 141
A150: 142
A151: 143
A152: 144
A153: 145
A154: 146
A155: 147
A156: 148
A157: 149
A158: 150
A159: 151
A160: 152
A161: 153
A162: 154
A163: 155
A164: 156
A165: 157
A166: 158
A167: 159
A168: 160
A169: 161
A170: 162
A171: 163
A172: 164
A173: 165
A174: 166
A175: 167
A176: 168
A177: 169
A178: 170
A179: 171
A180: 172
A181: 173
A182: 174
A183: 175
A184: 176
A185: 177
A186: 178
A187: 179
A188: 180
A189: 181
A190: 182
A191: 183
A192: 184
A193: 185
A194: 186
A195: 187
A196: 188
A197: 189
A198: 190
A199: 191
A200: 192
A201: 193
A202: 194
A203: 195
A204: 196
A205: 197
A206: 198
... 1621 more rows

Sheet Feuil4

Sheet DATA ELV2
A1: الرقم | B1: اسم و لقب التلميذ | C1: القسم
A2: 1 | B2: =IFERROR(OFFSET('DATA ELV'!$B$1,MATCH($A2,'DATA ELV'!$AA:$AA,0)-1,0),"") -> بوزيان مريم | C2: =IFERROR(OFFSET('DATA ELV'!$J$1,MATCH($A2,'DATA ELV'!$AA:$AA,0)-1,0),"") -> 3ت ر/هك
A3: 2 | B3: =IFERROR(OFFSET('DATA ELV'!$B$1,MATCH($A3,'DATA ELV'!$AA:$AA,0)-1,0),"") -> بوزي عبير | C3: =IFERROR(OFFSET('DATA ELV'!$J$1,MATCH($A3,'DATA ELV'!$AA:$AA,0)-1,0),"") -> 3ت ر/هك
A4: 3 | B4: =IFERROR(OFFSET('DATA ELV'!$B$1,MATCH($A4,'DATA ELV'!$AA:$AA,0)-1,0),"") -> تاسرة رانيا | C4: =IFERROR(OFFSET('DATA ELV'!$J$1,MATCH($A4,'DATA ELV'!$AA:$AA,0)-1,0),"") -> 3ت ر/هك
A5: 4 | B5: =IFERROR(OFFSET('DATA ELV'!$B$1,MATCH($A5,'DATA ELV'!$AA:$AA,0)-1,0),"") -> حنيفي دعاء | C5: =IFERROR(OFFSET('DATA ELV'!$J$1,MATCH($A5,'DATA ELV'!$AA:$AA,0)-1,0),"") -> 3ت ر/هك
A6: 5 | B6: =IFERROR(OFFSET('DATA ELV'!$B$1,MATCH($A6,'DATA ELV'!$AA:$AA,0)-1,0),"") -> سلومي فتيحة | C6: =IFERROR(OFFSET('DATA ELV'!$J$1,MATCH($A6,'DATA ELV'!$AA:$AA,0)-1,0),"") -> 3ت ر/هك
A7: 6 | B7: =IFERROR(OFFSET('DATA ELV'!$B$1,MATCH($A7,'DATA ELV'!$AA:$AA,0)-1,0),"") -> لعروسي فرح | C7: =IFERROR(OFFSET('DATA ELV'!$J$1,MATCH($A7,'DATA ELV'!$AA:$AA,0)-1,0),"") -> 3ت ر/هك
A8: 7 | B8: =IFERROR(OFFSET('DATA ELV'!$B$1,MATCH($A8,'DATA ELV'!$AA:$AA,0)-1,0),"") -> مقدم موسى | C8: =IFERROR(OFFSET('DATA ELV'!$J$1,MATCH($A8,'DATA ELV'!$AA:$AA,0)-1,0),"") -> 3ت ر/هك
A9: 8 | B9: =IFERROR(OFFSET('DATA ELV'!$B$1,MATCH($A9,'DATA ELV'!$AA:$AA,0)-1,0),"") -> يخلف لحسن | C9: =IFERROR(OFFSET('DATA ELV'!$J$1,MATCH($A9,'DATA ELV'!$AA:$AA,0)-1,0),"") -> 3ت ر/هك
A10: 9 | B10: =IFERROR(OFFSET('DATA ELV'!$B$1,MATCH($A10,'DATA ELV'!$AA:$AA,0)-1,0),"") -> بن يوبي مغنية امينة | C10: =IFERROR(OFFSET('DATA ELV'!$J$1,MATCH($A10,'DATA ELV'!$AA:$AA,0)-1,0),"") -> 3ت ر/هك
A11: 10 | B11: =IFERROR(OFFSET('DATA ELV'!$B$1,MATCH($A11,'DATA ELV'!$AA:$AA,0)-1,0),"") -> بوبكر يسرى | C11: =IFERROR(OFFSET('DATA ELV'!$J$1,MATCH($A11,'DATA ELV'!$AA:$AA,0)-1,0),"") -> 3ت ر/هك
A12: 11 | B12: =IFERROR(OFFSET('DATA ELV'!$B$1,MATCH($A12,'DATA ELV'!$AA:$AA,0)-1,0),"") -> زرعي سعيد | C12: =IFERROR(OFFSET('DATA ELV'!$J$1,MATCH($A12,'DATA ELV'!$AA:$AA,0)-1,0),"") -> 3ت ر/هك
A13: 12 | B13: =IFERROR(OFFSET('DATA ELV'!$B$1,MATCH($A13,'DATA ELV'!$AA:$AA,0)-1,0),"") -> زياني الأول خديجة | C13: =IFERROR(OFFSET('DATA ELV'!$J$1,MATCH($A13,'DATA ELV'!$AA:$AA,0)-1,0),"") -> 3ت ر/هك
A14: 13 | B14: =IFERROR(OFFSET('DATA ELV'!$B$1,MATCH($A14,'DATA ELV'!$AA:$AA,0)-1,0),"") -> سايح شيماء | C14: =IFERROR(OFFSET('DATA ELV'!$J$1,MATCH($A14,'DATA ELV'!$AA:$AA,0)-1,0),"") -> 3ت ر/هك
A15: 14 | B15: =IFERROR(OFFSET('DATA ELV'!$B$1,MATCH($A15,'DATA ELV'!$AA:$AA,0)-1,0),"") ->  | C15: =IFERROR(OFFSET('DATA ELV'!$J$1,MATCH($A15,'DATA ELV'!$AA:$AA,0)-1,0),"") -> 
A16: 15 | B16: =IFERROR(OFFSET('DATA ELV'!$B$1,MATCH($A16,'DATA ELV'!$AA:$AA,0)-1,0),"") ->  | C16: =IFERROR(OFFSET('DATA ELV'!$J$1,MATCH($A16,'DATA ELV'!$AA:$AA,0)-1,0),"") -> 
A17: 16 | B17: =IFERROR(OFFSET('DATA ELV'!$B$1,MATCH($A17,'DATA ELV'!$AA:$AA,0)-1,0),"") ->  | C17: =IFERROR(OFFSET('DATA ELV'!$J$1,MATCH($A17,'DATA ELV'!$AA:$AA,0)-1,0),"") -> 
A18: 17 | B18: =IFERROR(OFFSET('DATA ELV'!$B$1,MATCH($A18,'DATA ELV'!$AA:$AA,0)-1,0),"") ->  | C18: =IFERROR(OFFSET('DATA ELV'!$J$1,MATCH($A18,'DATA ELV'!$AA:$AA,0)-1,0),"") -> 
A19: 18 | B19: =IFERROR(OFFSET('DATA ELV'!$B$1,MATCH($A19,'DATA ELV'!$AA:$AA,0)-1,0),"") ->  | C19: =IFERROR(OFFSET('DATA ELV'!$J$1,MATCH($A19,'DATA ELV'!$AA:$AA,0)-1,0),"") -> 
A20: 19 | B20: =IFERROR(OFFSET('DATA ELV'!$B$1,MATCH($A20,'DATA ELV'!$AA:$AA,0)-1,0),"") ->  | C20: =IFERROR(OFFSET('DATA ELV'!$J$1,MATCH($A20,'DATA ELV'!$AA:$AA,0)-1,0),"") -> 
A21: 20 | B21: =IFERROR(OFFSET('DATA ELV'!$B$1,MATCH($A21,'DATA ELV'!$AA:$AA,0)-1,0),"") ->  | C21: =IFERROR(OFFSET('DATA ELV'!$J$1,MATCH($A21,'DATA ELV'!$AA:$AA,0)-1,0),"") -> 
A22: 21 | B22: =IFERROR(OFFSET('DATA ELV'!$B$1,MATCH($A22,'DATA ELV'!$AA:$AA,0)-1,0),"") ->  | C22: =IFERROR(OFFSET('DATA ELV'!$J$1,MATCH($A22,'DATA ELV'!$AA:$AA,0)-1,0),"") -> 
A23: 22 | B23: =IFERROR(OFFSET('DATA ELV'!$B$1,MATCH($A23,'DATA ELV'!$AA:$AA,0)-1,0),"") ->  | C23: =IFERROR(OFFSET('DATA ELV'!$J$1,MATCH($A23,'DATA ELV'!$AA:$AA,0)-1,0),"") -> 
A24: 23 | B24: =IFERROR(OFFSET('DATA ELV'!$B$1,MATCH($A24,'DATA ELV'!$AA:$AA,0)-1,0),"") ->  | C24: =IFERROR(OFFSET('DATA ELV'!$J$1,MATCH($A24,'DATA ELV'!$AA:$AA,0)-1,0),"") -> 
A25: 24 | B25: =IFERROR(OFFSET('DATA ELV'!$B$1,MATCH($A25,'DATA ELV'!$AA:$AA,0)-1,0),"") ->  | C25: =IFERROR(OFFSET('DATA ELV'!$J$1,MATCH($A25,'DATA ELV'!$AA:$AA,0)-1,0),"") -> 
A26: 25 | B26: =IFERROR(OFFSET('DATA ELV'!$B$1,MATCH($A26,'DATA ELV'!$AA:$AA,0)-1,0),"") ->  | C26: =IFERROR(OFFSET('DATA ELV'!$J$1,MATCH($A26,'DATA ELV'!$AA:$AA,0)-1,0),"") -> 
A27: 26 | B27: =IFERROR(OFFSET('DATA ELV'!$B$1,MATCH($A27,'DATA ELV'!$AA:$AA,0)-1,0),"") ->  | C27: =IFERROR(OFFSET('DATA ELV'!$J$1,MATCH($A27,'DATA ELV'!$AA:$AA,0)-1,0),"") -> 
A28: 27 | B28: =IFERROR(OFFSET('DATA ELV'!$B$1,MATCH($A28,'DATA ELV'!$AA:$AA,0)-1,0),"") ->  | C28: =IFERROR(OFFSET('DATA ELV'!$J$1,MATCH($A28,'DATA ELV'!$AA:$AA,0)-1,0),"") -> 
A29: 28 | B29: =IFERROR(OFFSET('DATA ELV'!$B$1,MATCH($A29,'DATA ELV'!$AA:$AA,0)-1,0),"") ->  | C29: =IFERROR(OFFSET('DATA ELV'!$J$1,MATCH($A29,'DATA ELV'!$AA:$AA,0)-1,0),"") -> 
A30: 29 | B30: =IFERROR(OFFSET('DATA ELV'!$B$1,MATCH($A30,'DATA ELV'!$AA:$AA,0)-1,0),"") ->  | C30: =IFERROR(OFFSET('DATA ELV'!$J$1,MATCH($A30,'DATA ELV'!$AA:$AA,0)-1,0),"") -> 
A31: 30 | B31: =IFERROR(OFFSET('DATA ELV'!$B$1,MATCH($A31,'DATA ELV'!$AA:$AA,0)-1,0),"") ->  | C31: =IFERROR(OFFSET('DATA ELV'!$J$1,MATCH($A31,'DATA ELV'!$AA:$AA,0)-1,0),"") -> 
A32: 31 | B32: =IFERROR(OFFSET('DATA ELV'!$B$1,MATCH($A32,'DATA ELV'!$AA:$AA,0)-1,0),"") ->  | C32: =IFERROR(OFFSET('DATA ELV'!$J$1,MATCH($A32,'DATA ELV'!$AA:$AA,0)-1,0),"") -> 
A33: 32 | B33: =IFERROR(OFFSET('DATA ELV'!$B$1,MATCH($A33,'DATA ELV'!$AA:$AA,0)-1,0),"") ->  | C33: =IFERROR(OFFSET('DATA ELV'!$J$1,MATCH($A33,'DATA ELV'!$AA:$AA,0)-1,0),"") -> 
A34: 33 | B34: =IFERROR(OFFSET('DATA ELV'!$B$1,MATCH($A34,'DATA ELV'!$AA:$AA,0)-1,0),"") ->  | C34: =IFERROR(OFFSET('DATA ELV'!$J$1,MATCH($A34,'DATA ELV'!$AA:$AA,0)-1,0),"") -> 
A35: 34 | B35: =IFERROR(OFFSET('DATA ELV'!$B$1,MATCH($A35,'DATA ELV'!$AA:$AA,0)-1,0),"") ->  | C35: =IFERROR(OFFSET('DATA ELV'!$J$1,MATCH($A35,'DATA ELV'!$AA:$AA,0)-1,0),"") -> 
A36: 35 | B36: =IFERROR(OFFSET('DATA ELV'!$B$1,MATCH($A36,'DATA ELV'!$AA:$AA,0)-1,0),"") ->  | C36: =IFERROR(OFFSET('DATA ELV'!$J$1,MATCH($A36,'DATA ELV'!$AA:$AA,0)-1,0),"") -> 
A37: 36 | B37: =IFERROR(OFFSET('DATA ELV'!$B$1,MATCH($A37,'DATA ELV'!$AA:$AA,0)-1,0),"") ->  | C37: =IFERROR(OFFSET('DATA ELV'!$J$1,MATCH($A37,'DATA ELV'!$AA:$AA,0)-1,0),"") -> 
A38: 37 | B38: =IFERROR(OFFSET('DATA ELV'!$B$1,MATCH($A38,'DATA ELV'!$AA:$AA,0)-1,0),"") ->  | C38: =IFERROR(OFFSET('DATA ELV'!$J$1,MATCH($A38,'DATA ELV'!$AA:$AA,0)-1,0),"") -> 
A39: 38 | B39: =IFERROR(OFFSET('DATA ELV'!$B$1,MATCH($A39,'DATA ELV'!$AA:$AA,0)-1,0),"") ->  | C39: =IFERROR(OFFSET('DATA ELV'!$J$1,MATCH($A39,'DATA ELV'!$AA:$AA,0)-1,0),"") -> 
A40: 39 | B40: =IFERROR(OFFSET('DATA ELV'!$B$1,MATCH($A40,'DATA ELV'!$AA:$AA,0)-1,0),"") ->  | C40: =IFERROR(OFFSET('DATA ELV'!$J$1,MATCH($A40,'DATA ELV'!$AA:$AA,0)-1,0),"") -> 
A41: 40 | B41: =IFERROR(OFFSET('DATA ELV'!$B$1,MATCH($A41,'DATA ELV'!$AA:$AA,0)-1,0),"") ->  | C41: =IFERROR(OFFSET('DATA ELV'!$J$1,MATCH($A41,'DATA ELV'!$AA:$AA,0)-1,0),"") -> 
A42: 41 | B42: =IFERROR(OFFSET('DATA ELV'!$B$1,MATCH($A42,'DATA ELV'!$AA:$AA,0)-1,0),"") ->  | C42: =IFERROR(OFFSET('DATA ELV'!$J$1,MATCH($A42,'DATA ELV'!$AA:$AA,0)-1,0),"") -> 
A43: 42 | B43: =IFERROR(OFFSET('DATA ELV'!$B$1,MATCH($A43,'DATA ELV'!$AA:$AA,0)-1,0),"") ->  | C43: =IFERROR(OFFSET('DATA ELV'!$J$1,MATCH($A43,'DATA ELV'!$AA:$AA,0)-1,0),"") -> 
A44: 43 | B44: =IFERROR(OFFSET('DATA ELV'!$B$1,MATCH($A44,'DATA ELV'!$AA:$AA,0)-1,0),"") ->  | C44: =IFERROR(OFFSET('DATA ELV'!$J$1,MATCH($A44,'DATA ELV'!$AA:$AA,0)-1,0),"") -> 
A45: 44 | B45: =IFERROR(OFFSET('DATA ELV'!$B$1,MATCH($A45,'DATA ELV'!$AA:$AA,0)-1,0),"") ->  | C45: =IFERROR(OFFSET('DATA ELV'!$J$1,MATCH($A45,'DATA ELV'!$AA:$AA,0)-1,0),"") -> 
A46: 45 | B46: =IFERROR(OFFSET('DATA ELV'!$B$1,MATCH($A46,'DATA ELV'!$AA:$AA,0)-1,0),"") ->  | C46: =IFERROR(OFFSET('DATA ELV'!$J$1,MATCH($A46,'DATA ELV'!$AA:$AA,0)-1,0),"") -> 
A47: 46 | B47: =IFERROR(OFFSET('DATA ELV'!$B$1,MATCH($A47,'DATA ELV'!$AA:$AA,0)-1,0),"") ->  | C47: =IFERROR(OFFSET('DATA ELV'!$J$1,MATCH($A47,'DATA ELV'!$AA:$AA,0)-1,0),"") -> 
A48: 47 | B48: =IFERROR(OFFSET('DATA ELV'!$B$1,MATCH($A48,'DATA ELV'!$AA:$AA,0)-1,0),"") ->  | C48: =IFERROR(OFFSET('DATA ELV'!$J$1,MATCH($A48,'DATA ELV'!$AA:$AA,0)-1,0),"") -> 
A49: 48 | B49: =IFERROR(OFFSET('DATA ELV'!$B$1,MATCH($A49,'DATA ELV'!$AA:$AA,0)-1,0),"") ->  | C49: =IFERROR(OFFSET('DATA ELV'!$J$1,MATCH($A49,'DATA ELV'!$AA:$AA,0)-1,0),"") -> 
A50: 49 | B50: =IFERROR(OFFSET('DATA ELV'!$B$1,MATCH($A50,'DATA ELV'!$AA:$AA,0)-1,0),"") ->  | C50: =IFERROR(OFFSET('DATA ELV'!$J$1,MATCH($A50,'DATA ELV'!$AA:$AA,0)-1,0),"") -> 
A51: 50 | B51: =IFERROR(OFFSET('DATA ELV'!$B$1,MATCH($A51,'DATA ELV'!$AA:$AA,0)-1,0),"") ->  | C51: =IFERROR(OFFSET('DATA ELV'!$J$1,MATCH($A51,'DATA ELV'!$AA:$AA,0)-1,0),"") -> 
A52: 51 | B52: =IFERROR(OFFSET('DATA ELV'!$B$1,MATCH($A52,'DATA ELV'!$AA:$AA,0)-1,0),"") ->  | C52: =IFERROR(OFFSET('DATA ELV'!$J$1,MATCH($A52,'DATA ELV'!$AA:$AA,0)-1,0),"") -> 
A53: 52 | B53: =IFERROR(OFFSET('DATA ELV'!$B$1,MATCH($A53,'DATA ELV'!$AA:$AA,0)-1,0),"") ->  | C53: =IFERROR(OFFSET('DATA ELV'!$J$1,MATCH($A53,'DATA ELV'!$AA:$AA,0)-1,0),"") -> 
A54: 53 | B54: =IFERROR(OFFSET('DATA ELV'!$B$1,MATCH($A54,'DATA ELV'!$AA:$AA,0)-1,0),"") ->  | C54: =IFERROR(OFFSET('DATA ELV'!$J$1,MATCH($A54,'DATA ELV'!$AA:$AA,0)-1,0),"") -> 
A55: 54 | B55: =IFERROR(OFFSET('DATA ELV'!$B$1,MATCH($A55,'DATA ELV'!$AA:$AA,0)-1,0),"") ->  | C55: =IFERROR(OFFSET('DATA ELV'!$J$1,MATCH($A55,'DATA ELV'!$AA:$AA,0)-1,0),"") -> 
A56: 55 | B56: =IFERROR(OFFSET('DATA ELV'!$B$1,MATCH($A56,'DATA ELV'!$AA:$AA,0)-1,0),"") ->  | C56: =IFERROR(OFFSET('DATA ELV'!$J$1,MATCH($A56,'DATA ELV'!$AA:$AA,0)-1,0),"") -> 
A57: 56 | B57: =IFERROR(OFFSET('DATA ELV'!$B$1,MATCH($A57,'DATA ELV'!$AA:$AA,0)-1,0),"") ->  | C57: =IFERROR(OFFSET('DATA ELV'!$J$1,MATCH($A57,'DATA ELV'!$AA:$AA,0)-1,0),"") -> 
A58: 57 | B58: =IFERROR(OFFSET('DATA ELV'!$B$1,MATCH($A58,'DATA ELV'!$AA:$AA,0)-1,0),"") ->  | C58: =IFERROR(OFFSET('DATA ELV'!$J$1,MATCH($A58,'DATA ELV'!$AA:$AA,0)-1,0),"") -> 
A59: 58 | B59: =IFERROR(OFFSET('DATA ELV'!$B$1,MATCH($A59,'DATA ELV'!$AA:$AA,0)-1,0),"") ->  | C59: =IFERROR(OFFSET('DATA ELV'!$J$1,MATCH($A59,'DATA ELV'!$AA:$AA,0)-1,0),"") -> 
A60: 59 | B60: =IFERROR(OFFSET('DATA ELV'!$B$1,MATCH($A60,'DATA ELV'!$AA:$AA,0)-1,0),"") ->  | C60: =IFERROR(OFFSET('DATA ELV'!$J$1,MATCH($A60,'DATA ELV'!$AA:$AA,0)-1,0),"") -> 
A61: 60 | B61: =IFERROR(OFFSET('DATA ELV'!$B$1,MATCH($A61,'DATA ELV'!$AA:$AA,0)-1,0),"") ->  | C61: =IFERROR(OFFSET('DATA ELV'!$J$1,MATCH($A61,'DATA ELV'!$AA:$AA,0)-1,0),"") -> 
A62: 61 | B62: =IFERROR(OFFSET('DATA ELV'!$B$1,MATCH($A62,'DATA ELV'!$AA:$AA,0)-1,0),"") -> بوستين أسامة | C62: =IFERROR(OFFSET('DATA ELV'!$J$1,MATCH($A62,'DATA ELV'!$AA:$AA,0)-1,0),"") -> 3ت ر/هم
A63: 62 | B63: =IFERROR(OFFSET('DATA ELV'!$B$1,MATCH($A63,'DATA ELV'!$AA:$AA,0)-1,0),"") -> سفيون مروة | C63: =IFERROR(OFFSET('DATA ELV'!$J$1,MATCH($A63,'DATA ELV'!$AA:$AA,0)-1,0),"") -> 3ت ر/هم
A64: 63 | B64: =IFERROR(OFFSET('DATA ELV'!$B$1,MATCH($A64,'DATA ELV'!$AA:$AA,0)-1,0),"") -> قرد آية | C64: =IFERROR(OFFSET('DATA ELV'!$J$1,MATCH($A64,'DATA ELV'!$AA:$AA,0)-1,0),"") -> 3ت ر/هم
A65: 64 | B65: =IFERROR(OFFSET('DATA ELV'!$B$1,MATCH($A65,'DATA ELV'!$AA:$AA,0)-1,0),"") -> قرواو محمد الأمين | C65: =IFERROR(OFFSET('DATA ELV'!$J$1,MATCH($A65,'DATA ELV'!$AA:$AA,0)-1,0),"") -> 3ت ر/هم
A66: 65 | B66: =IFERROR(OFFSET('DATA ELV'!$B$1,MATCH($A66,'DATA ELV'!$AA:$AA,0)-1,0),"") -> بختاوي مغنية | C66: =IFERROR(OFFSET('DATA ELV'!$J$1,MATCH($A66,'DATA ELV'!$AA:$AA,0)-1,0),"") -> 3ت ر/هم
A67: 66 | B67: =IFERROR(OFFSET('DATA ELV'!$B$1,MATCH($A67,'DATA ELV'!$AA:$AA,0)-1,0),"") -> بن سالم عبد الله | C67: =IFERROR(OFFSET('DATA ELV'!$J$1,MATCH($A67,'DATA ELV'!$AA:$AA,0)-1,0),"") -> 3ت ر/هم
A68: 67 | B68: =IFERROR(OFFSET('DATA ELV'!$B$1,MATCH($A68,'DATA ELV'!$AA:$AA,0)-1,0),"") -> خليل رانيا | C68: =IFERROR(OFFSET('DATA ELV'!$J$1,MATCH($A68,'DATA ELV'!$AA:$AA,0)-1,0),"") -> 3ت ر/هم
A69: 68 | B69: =IFERROR(OFFSET('DATA ELV'!$B$1,MATCH($A69,'DATA ELV'!$AA:$AA,0)-1,0),"") ->  | C69: =IFERROR(OFFSET('DATA ELV'!$J$1,MATCH($A69,'DATA ELV'!$AA:$AA,0)-1,0),"") -> 
A70: 69 | B70: =IFERROR(OFFSET('DATA ELV'!$B$1,MATCH($A70,'DATA ELV'!$AA:$AA,0)-1,0),"") ->  | C70: =IFERROR(OFFSET('DATA ELV'!$J$1,MATCH($A70,'DATA ELV'!$AA:$AA,0)-1,0),"") -> 
A71: 70 | B71: =IFERROR(OFFSET('DATA ELV'!$B$1,MATCH($A71,'DATA ELV'!$AA:$AA,0)-1,0),"") ->  | C71: =IFERROR(OFFSET('DATA ELV'!$J$1,MATCH($A71,'DATA ELV'!$AA:$AA,0)-1,0),"") -> 
A72: 71 | B72: =IFERROR(OFFSET('DATA ELV'!$B$1,MATCH($A72,'DATA ELV'!$AA:$AA,0)-1,0),"") ->  | C72: =IFERROR(OFFSET('DATA ELV'!$J$1,MATCH($A72,'DATA ELV'!$AA:$AA,0)-1,0),"") -> 
A73: 72 | B73: =IFERROR(OFFSET('DATA ELV'!$B$1,MATCH($A73,'DATA ELV'!$AA:$AA,0)-1,0),"") ->  | C73: =IFERROR(OFFSET('DATA ELV'!$J$1,MATCH($A73,'DATA ELV'!$AA:$AA,0)-1,0),"") -> 
A74: 73 | B74: =IFERROR(OFFSET('DATA ELV'!$B$1,MATCH($A74,'DATA ELV'!$AA:$AA,0)-1,0),"") ->  | C74: =IFERROR(OFFSET('DATA ELV'!$J$1,MATCH($A74,'DATA ELV'!$AA:$AA,0)-1,0),"") -> 
A75: 74 | B75: =IFERROR(OFFSET('DATA ELV'!$B$1,MATCH($A75,'DATA ELV'!$AA:$AA,0)-1,0),"") ->  | C75: =IFERROR(OFFSET('DATA ELV'!$J$1,MATCH($A75,'DATA ELV'!$AA:$AA,0)-1,0),"") -> 
A76: 75 | B76: =IFERROR(OFFSET('DATA ELV'!$B$1,MATCH($A76,'DATA ELV'!$AA:$AA,0)-1,0),"") ->  | C76: =IFERROR(OFFSET('DATA ELV'!$J$1,MATCH($A76,'DATA ELV'!$AA:$AA,0)-1,0),"") -> 
A77: 76 | B77: =IFERROR(OFFSET('DATA ELV'!$B$1,MATCH($A77,'DATA ELV'!$AA:$AA,0)-1,0),"") ->  | C77: =IFERROR(OFFSET('DATA ELV'!$J$1,MATCH($A77,'DATA ELV'!$AA:$AA,0)-1,0),"") -> 
A78: 77 | B78: =IFERROR(OFFSET('DATA ELV'!$B$1,MATCH($A78,'DATA ELV'!$AA:$AA,0)-1,0),"") ->  | C78: =IFERROR(OFFSET('DATA ELV'!$J$1,MATCH($A78,'DATA ELV'!$AA:$AA,0)-1,0),"") -> 
A79: 78 | B79: =IFERROR(OFFSET('DATA ELV'!$B$1,MATCH($A79,'DATA ELV'!$AA:$AA,0)-1,0),"") ->  | C79: =IFERROR(OFFSET('DATA ELV'!$J$1,MATCH($A79,'DATA ELV'!$AA:$AA,0)-1,0),"") -> 
A80: 79 | B80: =IFERROR(OFFSET('DATA ELV'!$B$1,MATCH($A80,'DATA ELV'!$AA:$AA,0)-1,0),"") ->  | C80: =IFERROR(OFFSET('DATA ELV'!$J$1,MATCH($A80,'DATA ELV'!$AA:$AA,0)-1,0),"") -> 
A81: 80 | B81: =IFERROR(OFFSET('DATA ELV'!$B$1,MATCH($A81,'DATA ELV'!$AA:$AA,0)-1,0),"") ->  | C81: =IFERROR(OFFSET('DATA ELV'!$J$1,MATCH($A81,'DATA ELV'!$AA:$AA,0)-1,0),"") -> 
A82: 81 | B82: =IFERROR(OFFSET('DATA ELV'!$B$1,MATCH($A82,'DATA ELV'!$AA:$AA,0)-1,0),"") ->  | C82: =IFERROR(OFFSET('DATA ELV'!$J$1,MATCH($A82,'DATA ELV'!$AA:$AA,0)-1,0),"") -> 
A83: 82 | B83: =IFERROR(OFFSET('DATA ELV'!$B$1,MATCH($A83,'DATA ELV'!$AA:$AA,0)-1,0),"") ->  | C83: =IFERROR(OFFSET('DATA ELV'!$J$1,MATCH($A83,'DATA ELV'!$AA:$AA,0)-1,0),"") -> 
A84: 83 | B84: =IFERROR(OFFSET('DATA ELV'!$B$1,MATCH($A84,'DATA ELV'!$AA:$AA,0)-1,0),"") ->  | C84: =IFERROR(OFFSET('DATA ELV'!$J$1,MATCH($A84,'DATA ELV'!$AA:$AA,0)-1,0),"") -> 
A85: 84 | B85: =IFERROR(OFFSET('DATA ELV'!$B$1,MATCH($A85,'DATA ELV'!$AA:$AA,0)-1,0),"") ->  | C85: =IFERROR(OFFSET('DATA ELV'!$J$1,MATCH($A85,'DATA ELV'!$AA:$AA,0)-1,0),"") -> 
A86: 85 | B86: =IFERROR(OFFSET('DATA ELV'!$B$1,MATCH($A86,'DATA ELV'!$AA:$AA,0)-1,0),"") ->  | C86: =IFERROR(OFFSET('DATA ELV'!$J$1,MATCH($A86,'DATA ELV'!$AA:$AA,0)-1,0),"") -> 
A87: 86 | B87: =IFERROR(OFFSET('DATA ELV'!$B$1,MATCH($A87,'DATA ELV'!$AA:$AA,0)-1,0),"") ->  | C87: =IFERROR(OFFSET('DATA ELV'!$J$1,MATCH($A87,'DATA ELV'!$AA:$AA,0)-1,0),"") -> 
A88: 87 | B88: =IFERROR(OFFSET('DATA ELV'!$B$1,MATCH($A88,'DATA ELV'!$AA:$AA,0)-1,0),"") ->  | C88: =IFERROR(OFFSET('DATA ELV'!$J$1,MATCH($A88,'DATA ELV'!$AA:$AA,0)-1,0),"") -> 
A89: 88 | B89: =IFERROR(OFFSET('DATA ELV'!$B$1,MATCH($A89,'DATA ELV'!$AA:$AA,0)-1,0),"") ->  | C89: =IFERROR(OFFSET('DATA ELV'!$J$1,MATCH($A89,'DATA ELV'!$AA:$AA,0)-1,0),"") -> 
A90: 89 | B90: =IFERROR(OFFSET('DATA ELV'!$B$1,MATCH($A90,'DATA ELV'!$AA:$AA,0)-1,0),"") ->  | C90: =IFERROR(OFFSET('DATA ELV'!$J$1,MATCH($A90,'DATA ELV'!$AA:$AA,0)-1,0),"") -> 
A91: 90 | B91: =IFERROR(OFFSET('DATA ELV'!$B$1,MATCH($A91,'DATA ELV'!$AA:$AA,0)-1,0),"") ->  | C91: =IFERROR(OFFSET('DATA ELV'!$J$1,MATCH($A91,'DATA ELV'!$AA:$AA,0)-1,0),"") -> 
A92: 91 | B92: =IFERROR(OFFSET('DATA ELV'!$B$1,MATCH($A92,'DATA ELV'!$AA:$AA,0)-1,0),"") ->  | C92: =IFERROR(OFFSET('DATA ELV'!$J$1,MATCH($A92,'DATA ELV'!$AA:$AA,0)-1,0),"") -> 
A93: 92 | B93: =IFERROR(OFFSET('DATA ELV'!$B$1,MATCH($A93,'DATA ELV'!$AA:$AA,0)-1,0),"") ->  | C93: =IFERROR(OFFSET('DATA ELV'!$J$1,MATCH($A93,'DATA ELV'!$AA:$AA,0)-1,0),"") -> 
A94: 93 | B94: =IFERROR(OFFSET('DATA ELV'!$B$1,MATCH($A94,'DATA ELV'!$AA:$AA,0)-1,0),"") ->  | C94: =IFERROR(OFFSET('DATA ELV'!$J$1,MATCH($A94,'DATA ELV'!$AA:$AA,0)-1,0),"") -> 
A95: 94 | B95: =IFERROR(OFFSET('DATA ELV'!$B$1,MATCH($A95,'DATA ELV'!$AA:$AA,0)-1,0),"") ->  | C95: =IFERROR(OFFSET('DATA ELV'!$J$1,MATCH($A95,'DATA ELV'!$AA:$AA,0)-1,0),"") -> 
A96: 95 | B96: =IFERROR(OFFSET('DATA ELV'!$B$1,MATCH($A96,'DATA ELV'!$AA:$AA,0)-1,0),"") ->  | C96: =IFERROR(OFFSET('DATA ELV'!$J$1,MATCH($A96,'DATA ELV'!$AA:$AA,0)-1,0),"") -> 
A97: 96 | B97: =IFERROR(OFFSET('DATA ELV'!$B$1,MATCH($A97,'DATA ELV'!$AA:$AA,0)-1,0),"") ->  | C97: =IFERROR(OFFSET('DATA ELV'!$J$1,MATCH($A97,'DATA ELV'!$AA:$AA,0)-1,0),"") -> 
A98: 97 | B98: =IFERROR(OFFSET('DATA ELV'!$B$1,MATCH($A98,'DATA ELV'!$AA:$AA,0)-1,0),"") ->  | C98: =IFERROR(OFFSET('DATA ELV'!$J$1,MATCH($A98,'DATA ELV'!$AA:$AA,0)-1,0),"") -> 
A99: 98 | B99: =IFERROR(OFFSET('DATA ELV'!$B$1,MATCH($A99,'DATA ELV'!$AA:$AA,0)-1,0),"") ->  | C99: =IFERROR(OFFSET('DATA ELV'!$J$1,MATCH($A99,'DATA ELV'!$AA:$AA,0)-1,0),"") -> 
A100: 99 | B100: =IFERROR(OFFSET('DATA ELV'!$B$1,MATCH($A100,'DATA ELV'!$AA:$AA,0)-1,0),"") ->  | C100: =IFERROR(OFFSET('DATA ELV'!$J$1,MATCH($A100,'DATA ELV'!$AA:$AA,0)-1,0),"") -> 
A101: 100 | B101: =IFERROR(OFFSET('DATA ELV'!$B$1,MATCH($A101,'DATA ELV'!$AA:$AA,0)-1,0),"") ->  | C101: =IFERROR(OFFSET('DATA ELV'!$J$1,MATCH($A101,'DATA ELV'!$AA:$AA,0)-1,0),"") -> 
A102: 101 | B102: =IFERROR(OFFSET('DATA ELV'!$B$1,MATCH($A102,'DATA ELV'!$AA:$AA,0)-1,0),"") ->  | C102: =IFERROR(OFFSET('DATA ELV'!$J$1,MATCH($A102,'DATA ELV'!$AA:$AA,0)-1,0),"") -> 
A103: 102 | B103: =IFERROR(OFFSET('DATA ELV'!$B$1,MATCH($A103,'DATA ELV'!$AA:$AA,0)-1,0),"") ->  | C103: =IFERROR(OFFSET('DATA ELV'!$J$1,MATCH($A103,'DATA ELV'!$AA:$AA,0)-1,0),"") -> 
A104: 103 | B104: =IFERROR(OFFSET('DATA ELV'!$B$1,MATCH($A104,'DATA ELV'!$AA:$AA,0)-1,0),"") ->  | C104: =IFERROR(OFFSET('DATA ELV'!$J$1,MATCH($A104,'DATA ELV'!$AA:$AA,0)-1,0),"") -> 
A105: 104 | B105: =IFERROR(OFFSET('DATA ELV'!$B$1,MATCH($A105,'DATA ELV'!$AA:$AA,0)-1,0),"") ->  | C105: =IFERROR(OFFSET('DATA ELV'!$J$1,MATCH($A105,'DATA ELV'!$AA:$AA,0)-1,0),"") -> 
A106: 105 | B106: =IFERROR(OFFSET('DATA ELV'!$B$1,MATCH($A106,'DATA ELV'!$AA:$AA,0)-1,0),"") ->  | C106: =IFERROR(OFFSET('DATA ELV'!$J$1,MATCH($A106,'DATA ELV'!$AA:$AA,0)-1,0),"") -> 
A107: 106 | B107: =IFERROR(OFFSET('DATA ELV'!$B$1,MATCH($A107,'DATA ELV'!$AA:$AA,0)-1,0),"") ->  | C107: =IFERROR(OFFSET('DATA ELV'!$J$1,MATCH($A107,'DATA ELV'!$AA:$AA,0)-1,0),"") -> 
A108: 107 | B108: =IFERROR(OFFSET('DATA ELV'!$B$1,MATCH($A108,'DATA ELV'!$AA:$AA,0)-1,0),"") ->  | C108: =IFERROR(OFFSET('DATA ELV'!$J$1,MATCH($A108,'DATA ELV'!$AA:$AA,0)-1,0),"") -> 
A109: 108 | B109: =IFERROR(OFFSET('DATA ELV'!$B$1,MATCH($A109,'DATA ELV'!$AA:$AA,0)-1,0),"") ->  | C109: =IFERROR(OFFSET('DATA ELV'!$J$1,MATCH($A109,'DATA ELV'!$AA:$AA,0)-1,0),"") -> 
A110: 109 | B110: =IFERROR(OFFSET('DATA ELV'!$B$1,MATCH($A110,'DATA ELV'!$AA:$AA,0)-1,0),"") ->  | C110: =IFERROR(OFFSET('DATA ELV'!$J$1,MATCH($A110,'DATA ELV'!$AA:$AA,0)-1,0),"") -> 
A111: 110 | B111: =IFERROR(OFFSET('DATA ELV'!$B$1,MATCH($A111,'DATA ELV'!$AA:$AA,0)-1,0),"") ->  | C111: =IFERROR(OFFSET('DATA ELV'!$J$1,MATCH($A111,'DATA ELV'!$AA:$AA,0)-1,0),"") -> 
A112: 111 | B112: =IFERROR(OFFSET('DATA ELV'!$B$1,MATCH($A112,'DATA ELV'!$AA:$AA,0)-1,0),"") ->  | C112: =IFERROR(OFFSET('DATA ELV'!$J$1,MATCH($A112,'DATA ELV'!$AA:$AA,0)-1,0),"") -> 
A113: 112 | B113: =IFERROR(OFFSET('DATA ELV'!$B$1,MATCH($A113,'DATA ELV'!$AA:$AA,0)-1,0),"") ->  | C113: =IFERROR(OFFSET('DATA ELV'!$J$1,MATCH($A113,'DATA ELV'!$AA:$AA,0)-1,0),"") -> 
A114: 113 | B114: =IFERROR(OFFSET('DATA ELV'!$B$1,MATCH($A114,'DATA ELV'!$AA:$AA,0)-1,0),"") ->  | C114: =IFERROR(OFFSET('DATA ELV'!$J$1,MATCH($A114,'DATA ELV'!$AA:$AA,0)-1,0),"") -> 
A115: 114 | B115: =IFERROR(OFFSET('DATA ELV'!$B$1,MATCH($A115,'DATA ELV'!$AA:$AA,0)-1,0),"") ->  | C115: =IFERROR(OFFSET('DATA ELV'!$J$1,MATCH($A115,'DATA ELV'!$AA:$AA,0)-1,0),"") -> 
A116: 115 | B116: =IFERROR(OFFSET('DATA ELV'!$B$1,MATCH($A116,'DATA ELV'!$AA:$AA,0)-1,0),"") ->  | C116: =IFERROR(OFFSET('DATA ELV'!$J$1,MATCH($A116,'DATA ELV'!$AA:$AA,0)-1,0),"") -> 
A117: 116 | B117: =IFERROR(OFFSET('DATA ELV'!$B$1,MATCH($A117,'DATA ELV'!$AA:$AA,0)-1,0),"") ->  | C117: =IFERROR(OFFSET('DATA ELV'!$J$1,MATCH($A117,'DATA ELV'!$AA:$AA,0)-1,0),"") -> 
A118: 117 | B118: =IFERROR(OFFSET('DATA ELV'!$B$1,MATCH($A118,'DATA ELV'!$AA:$AA,0)-1,0),"") ->  | C118: =IFERROR(OFFSET('DATA ELV'!$J$1,MATCH($A118,'DATA ELV'!$AA:$AA,0)-1,0),"") -> 
A119: 118 | B119: =IFERROR(OFFSET('DATA ELV'!$B$1,MATCH($A119,'DATA ELV'!$AA:$AA,0)-1,0),"") ->  | C119: =IFERROR(OFFSET('DATA ELV'!$J$1,MATCH($A119,'DATA ELV'!$AA:$AA,0)-1,0),"") -> 
A120: 119 | B120: =IFERROR(OFFSET('DATA ELV'!$B$1,MATCH($A120,'DATA ELV'!$AA:$AA,0)-1,0),"") ->  | C120: =IFERROR(OFFSET('DATA ELV'!$J$1,MATCH($A120,'DATA ELV'!$AA:$AA,0)-1,0),"") -> 
A121: 120 | B121: =IFERROR(OFFSET('DATA ELV'!$B$1,MATCH($A121,'DATA ELV'!$AA:$AA,0)-1,0),"") ->  | C121: =IFERROR(OFFSET('DATA ELV'!$J$1,MATCH($A121,'DATA ELV'!$AA:$AA,0)-1,0),"") -> 
A122: 121 | B122: =IFERROR(OFFSET('DATA ELV'!$B$1,MATCH($A122,'DATA ELV'!$AA:$AA,0)-1,0),"") -> الفضيل ريم | C122: =IFERROR(OFFSET('DATA ELV'!$J$1,MATCH($A122,'DATA ELV'!$AA:$AA,0)-1,0),"") -> 3ت إ01
A123: 122 | B123: =IFERROR(OFFSET('DATA ELV'!$B$1,MATCH($A123,'DATA ELV'!$AA:$AA,0)-1,0),"") -> بن طيب ياسين | C123: =IFERROR(OFFSET('DATA ELV'!$J$1,MATCH($A123,'DATA ELV'!$AA:$AA,0)-1,0),"") -> 3ت إ01
A124: 123 | B124: =IFERROR(OFFSET('DATA ELV'!$B$1,MATCH($A124,'DATA ELV'!$AA:$AA,0)-1,0),"") -> بوبندير أحمد | C124: =IFERROR(OFFSET('DATA ELV'!$J$1,MATCH($A124,'DATA ELV'!$AA:$AA,0)-1,0),"") -> 3ت إ01
A125: 124 | B125: =IFERROR(OFFSET('DATA ELV'!$B$1,MATCH($A125,'DATA ELV'!$AA:$AA,0)-1,0),"") -> بوبندير ميساء | C125: =IFERROR(OFFSET('DATA ELV'!$J$1,MATCH($A125,'DATA ELV'!$AA:$AA,0)-1,0),"") -> 3ت إ01
A126: 125 | B126: =IFERROR(OFFSET('DATA ELV'!$B$1,MATCH($A126,'DATA ELV'!$AA:$AA,0)-1,0),"") -> بوستين محمد اسلام | C126: =IFERROR(OFFSET('DATA ELV'!$J$1,MATCH($A126,'DATA ELV'!$AA:$AA,0)-1,0),"") -> 3ت إ01
A127: 126 | B127: =IFERROR(OFFSET('DATA ELV'!$B$1,MATCH($A127,'DATA ELV'!$AA:$AA,0)-1,0),"") -> بوعلي أميمة | C127: =IFERROR(OFFSET('DATA ELV'!$J$1,MATCH($A127,'DATA ELV'!$AA:$AA,0)-1,0),"") -> 3ت إ01
A128: 127 | B128: =IFERROR(OFFSET('DATA ELV'!$B$1,MATCH($A128,'DATA ELV'!$AA:$AA,0)-1,0),"") -> بوعيشة مروة رميسة | C128: =IFERROR(OFFSET('DATA ELV'!$J$1,MATCH($A128,'DATA ELV'!$AA:$AA,0)-1,0),"") -> 3ت إ01
A129: 128 | B129: =IFERROR(OFFSET('DATA ELV'!$B$1,MATCH($A129,'DATA ELV'!$AA:$AA,0)-1,0),"") -> حوحو محفوظ عبد الرحيم | C129: =IFERROR(OFFSET('DATA ELV'!$J$1,MATCH($A129,'DATA ELV'!$AA:$AA,0)-1,0),"") -> 3ت إ01
A130: 129 | B130: =IFERROR(OFFSET('DATA ELV'!$B$1,MATCH($A130,'DATA ELV'!$AA:$AA,0)-1,0),"") -> خواني مريم | C130: =IFERROR(OFFSET('DATA ELV'!$J$1,MATCH($A130,'DATA ELV'!$AA:$AA,0)-1,0),"") -> 3ت إ01
A131: 130 | B131: =IFERROR(OFFSET('DATA ELV'!$B$1,MATCH($A131,'DATA ELV'!$AA:$AA,0)-1,0),"") -> راجعي منال | C131: =IFERROR(OFFSET('DATA ELV'!$J$1,MATCH($A131,'DATA ELV'!$AA:$AA,0)-1,0),"") -> 3ت إ01
A132: 131 | B132: =IFERROR(OFFSET('DATA ELV'!$B$1,MATCH($A132,'DATA ELV'!$AA:$AA,0)-1,0),"") -> زحزوح محمد الصادق | C132: =IFERROR(OFFSET('DATA ELV'!$J$1,MATCH($A132,'DATA ELV'!$AA:$AA,0)-1,0),"") -> 3ت إ01
A133: 132 | B133: =IFERROR(OFFSET('DATA ELV'!$B$1,MATCH($A133,'DATA ELV'!$AA:$AA,0)-1,0),"") -> زياني الأول مريم | C133: =IFERROR(OFFSET('DATA ELV'!$J$1,MATCH($A133,'DATA ELV'!$AA:$AA,0)-1,0),"") -> 3ت إ01
A134: 133 | B134: =IFERROR(OFFSET('DATA ELV'!$B$1,MATCH($A134,'DATA ELV'!$AA:$AA,0)-1,0),"") -> سكاك حاج عبد الله | C134: =IFERROR(OFFSET('DATA ELV'!$J$1,MATCH($A134,'DATA ELV'!$AA:$AA,0)-1,0),"") -> 3ت إ01
A135: 134 | B135: =IFERROR(OFFSET('DATA ELV'!$B$1,MATCH($A135,'DATA ELV'!$AA:$AA,0)-1,0),"") -> شبيب دعاء نورهان | C135: =IFERROR(OFFSET('DATA ELV'!$J$1,MATCH($A135,'DATA ELV'!$AA:$AA,0)-1,0),"") -> 3ت إ01
A136: 135 | B136: =IFERROR(OFFSET('DATA ELV'!$B$1,MATCH($A136,'DATA ELV'!$AA:$AA,0)-1,0),"") -> شياخ شيماء | C136: =IFERROR(OFFSET('DATA ELV'!$J$1,MATCH($A136,'DATA ELV'!$AA:$AA,0)-1,0),"") -> 3ت إ01
A137: 136 | B137: =IFERROR(OFFSET('DATA ELV'!$B$1,MATCH($A137,'DATA ELV'!$AA:$AA,0)-1,0),"") -> شيباني سمير | C137: =IFERROR(OFFSET('DATA ELV'!$J$1,MATCH($A137,'DATA ELV'!$AA:$AA,0)-1,0),"") -> 3ت إ01
A138: 137 | B138: =IFERROR(OFFSET('DATA ELV'!$B$1,MATCH($A138,'DATA ELV'!$AA:$AA,0)-1,0),"") -> عفاني أيمن | C138: =IFERROR(OFFSET('DATA ELV'!$J$1,MATCH($A138,'DATA ELV'!$AA:$AA,0)-1,0),"") -> 3ت إ01
A139: 138 | B139: =IFERROR(OFFSET('DATA ELV'!$B$1,MATCH($A139,'DATA ELV'!$AA:$AA,0)-1,0),"") -> عمراوي مواهب | C139: =IFERROR(OFFSET('DATA ELV'!$J$1,MATCH($A139,'DATA ELV'!$AA:$AA,0)-1,0),"") -> 3ت إ01
A140: 139 | B140: =IFERROR(OFFSET('DATA ELV'!$B$1,MATCH($A140,'DATA ELV'!$AA:$AA,0)-1,0),"") -> قرد محمد | C140: =IFERROR(OFFSET('DATA ELV'!$J$1,MATCH($A140,'DATA ELV'!$AA:$AA,0)-1,0),"") -> 3ت إ01
A141: 140 | B141: =IFERROR(OFFSET('DATA ELV'!$B$1,MATCH($A141,'DATA ELV'!$AA:$AA,0)-1,0),"") -> كوشير فاطمة الزهراء | C141: =IFERROR(OFFSET('DATA ELV'!$J$1,MATCH($A141,'DATA ELV'!$AA:$AA,0)-1,0),"") -> 3ت إ01
A142: 141 | B142: =IFERROR(OFFSET('DATA ELV'!$B$1,MATCH($A142,'DATA ELV'!$AA:$AA,0)-1,0),"") -> لزعر شيماء | C142: =IFERROR(OFFSET('DATA ELV'!$J$1,MATCH($A142,'DATA ELV'!$AA:$AA,0)-1,0),"") -> 3ت إ01
A143: 142 | B143: =IFERROR(OFFSET('DATA ELV'!$B$1,MATCH($A143,'DATA ELV'!$AA:$AA,0)-1,0),"") -> مولاي بودخيلي شيماء | C143: =IFERROR(OFFSET('DATA ELV'!$J$1,MATCH($A143,'DATA ELV'!$AA:$AA,0)-1,0),"") -> 3ت إ01
A144: 143 | B144: =IFERROR(OFFSET('DATA ELV'!$B$1,MATCH($A144,'DATA ELV'!$AA:$AA,0)-1,0),"") -> هرنين رانيا | C144: =IFERROR(OFFSET('DATA ELV'!$J$1,MATCH($A144,'DATA ELV'!$AA:$AA,0)-1,0),"") -> 3ت إ01
A145: 144 | B145: =IFERROR(OFFSET('DATA ELV'!$B$1,MATCH($A145,'DATA ELV'!$AA:$AA,0)-1,0),"") -> برواين حورية | C145: =IFERROR(OFFSET('DATA ELV'!$J$1,MATCH($A145,'DATA ELV'!$AA:$AA,0)-1,0),"") -> 3ت إ01
A146: 145 | B146: =IFERROR(OFFSET('DATA ELV'!$B$1,MATCH($A146,'DATA ELV'!$AA:$AA,0)-1,0),"") -> بلعباس رفيق | C146: =IFERROR(OFFSET('DATA ELV'!$J$1,MATCH($A146,'DATA ELV'!$AA:$AA,0)-1,0),"") -> 3ت إ01
A147: 146 | B147: =IFERROR(OFFSET('DATA ELV'!$B$1,MATCH($A147,'DATA ELV'!$AA:$AA,0)-1,0),"") -> بن هدي إناس | C147: =IFERROR(OFFSET('DATA ELV'!$J$1,MATCH($A147,'DATA ELV'!$AA:$AA,0)-1,0),"") -> 3ت إ01
A148: 147 | B148: =IFERROR(OFFSET('DATA ELV'!$B$1,MATCH($A148,'DATA ELV'!$AA:$AA,0)-1,0),"") -> جرارفاوي سارة | C148: =IFERROR(OFFSET('DATA ELV'!$J$1,MATCH($A148,'DATA ELV'!$AA:$AA,0)-1,0),"") -> 3ت إ01
A149: 148 | B149: =IFERROR(OFFSET('DATA ELV'!$B$1,MATCH($A149,'DATA ELV'!$AA:$AA,0)-1,0),"") -> صدار عبد العزيز | C149: =IFERROR(OFFSET('DATA ELV'!$J$1,MATCH($A149,'DATA ELV'!$AA:$AA,0)-1,0),"") -> 3ت إ01
A150: 149 | B150: =IFERROR(OFFSET('DATA ELV'!$B$1,MATCH($A150,'DATA ELV'!$AA:$AA,0)-1,0),"") -> عبوين أيمن | C150: =IFERROR(OFFSET('DATA ELV'!$J$1,MATCH($A150,'DATA ELV'!$AA:$AA,0)-1,0),"") -> 3ت إ01
A151: 150 | B151: =IFERROR(OFFSET('DATA ELV'!$B$1,MATCH($A151,'DATA ELV'!$AA:$AA,0)-1,0),"") -> قوري الهواري | C151: =IFERROR(OFFSET('DATA ELV'!$J$1,MATCH($A151,'DATA ELV'!$AA:$AA,0)-1,0),"") -> 3ت إ01
A152: 151 | B152: =IFERROR(OFFSET('DATA ELV'!$B$1,MATCH($A152,'DATA ELV'!$AA:$AA,0)-1,0),"") -> كرد توفيق | C152: =IFERROR(OFFSET('DATA ELV'!$J$1,MATCH($A152,'DATA ELV'!$AA:$AA,0)-1,0),"") -> 3ت إ01
A153: 152 | B153: =IFERROR(OFFSET('DATA ELV'!$B$1,MATCH($A153,'DATA ELV'!$AA:$AA,0)-1,0),"") -> هواري سلسبيل | C153: =IFERROR(OFFSET('DATA ELV'!$J$1,MATCH($A153,'DATA ELV'!$AA:$AA,0)-1,0),"") -> 3ت إ01
A154: 153 | B154: =IFERROR(OFFSET('DATA ELV'!$B$1,MATCH($A154,'DATA ELV'!$AA:$AA,0)-1,0),"") ->  | C154: =IFERROR(OFFSET('DATA ELV'!$J$1,MATCH($A154,'DATA ELV'!$AA:$AA,0)-1,0),"") -> 
A155: 154 | B155: =IFERROR(OFFSET('DATA ELV'!$B$1,MATCH($A155,'DATA ELV'!$AA:$AA,0)-1,0),"") ->  | C155: =IFERROR(OFFSET('DATA ELV'!$J$1,MATCH($A155,'DATA ELV'!$AA:$AA,0)-1,0),"") -> 
A156: 155 | B156: =IFERROR(OFFSET('DATA ELV'!$B$1,MATCH($A156,'DATA ELV'!$AA:$AA,0)-1,0),"") ->  | C156: =IFERROR(OFFSET('DATA ELV'!$J$1,MATCH($A156,'DATA ELV'!$AA:$AA,0)-1,0),"") -> 
A157: 156 | B157: =IFERROR(OFFSET('DATA ELV'!$B$1,MATCH($A157,'DATA ELV'!$AA:$AA,0)-1,0),"") ->  | C157: =IFERROR(OFFSET('DATA ELV'!$J$1,MATCH($A157,'DATA ELV'!$AA:$AA,0)-1,0),"") -> 
A158: 157 | B158: =IFERROR(OFFSET('DATA ELV'!$B$1,MATCH($A158,'DATA ELV'!$AA:$AA,0)-1,0),"") ->  | C158: =IFERROR(OFFSET('DATA ELV'!$J$1,MATCH($A158,'DATA ELV'!$AA:$AA,0)-1,0),"") -> 
A159: 158 | B159: =IFERROR(OFFSET('DATA ELV'!$B$1,MATCH($A159,'DATA ELV'!$AA:$AA,0)-1,0),"") ->  | C159: =IFERROR(OFFSET('DATA ELV'!$J$1,MATCH($A159,'DATA ELV'!$AA:$AA,0)-1,0),"") -> 
A160: 159 | B160: =IFERROR(OFFSET('DATA ELV'!$B$1,MATCH($A160,'DATA ELV'!$AA:$AA,0)-1,0),"") ->  | C160: =IFERROR(OFFSET('DATA ELV'!$J$1,MATCH($A160,'DATA ELV'!$AA:$AA,0)-1,0),"") -> 
A161: 160 | B161: =IFERROR(OFFSET('DATA ELV'!$B$1,MATCH($A161,'DATA ELV'!$AA:$AA,0)-1,0),"") ->  | C161: =IFERROR(OFFSET('DATA ELV'!$J$1,MATCH($A161,'DATA ELV'!$AA:$AA,0)-1,0),"") -> 
A162: 161 | B162: =IFERROR(OFFSET('DATA ELV'!$B$1,MATCH($A162,'DATA ELV'!$AA:$AA,0)-1,0),"") ->  | C162: =IFERROR(OFFSET('DATA ELV'!$J$1,MATCH($A162,'DATA ELV'!$AA:$AA,0)-1,0),"") -> 
A163: 162 | B163: =IFERROR(OFFSET('DATA ELV'!$B$1,MATCH($A163,'DATA ELV'!$AA:$AA,0)-1,0),"") ->  | C163: =IFERROR(OFFSET('DATA ELV'!$J$1,MATCH($A163,'DATA ELV'!$AA:$AA,0)-1,0),"") -> 
A164: 163 | B164: =IFERROR(OFFSET('DATA ELV'!$B$1,MATCH($A164,'DATA ELV'!$AA:$AA,0)-1,0),"") ->  | C164: =IFERROR(OFFSET('DATA ELV'!$J$1,MATCH($A164,'DATA ELV'!$AA:$AA,0)-1,0),"") -> 
A165: 164 | B165: =IFERROR(OFFSET('DATA ELV'!$B$1,MATCH($A165,'DATA ELV'!$AA:$AA,0)-1,0),"") ->  | C165: =IFERROR(OFFSET('DATA ELV'!$J$1,MATCH($A165,'DATA ELV'!$AA:$AA,0)-1,0),"") -> 
A166: 165 | B166: =IFERROR(OFFSET('DATA ELV'!$B$1,MATCH($A166,'DATA ELV'!$AA:$AA,0)-1,0),"") ->  | C166: =IFERROR(OFFSET('DATA ELV'!$J$1,MATCH($A166,'DATA ELV'!$AA:$AA,0)-1,0),"") -> 
A167: 166 | B167: =IFERROR(OFFSET('DATA ELV'!$B$1,MATCH($A167,'DATA ELV'!$AA:$AA,0)-1,0),"") ->  | C167: =IFERROR(OFFSET('DATA ELV'!$J$1,MATCH($A167,'DATA ELV'!$AA:$AA,0)-1,0),"") -> 
A168: 167 | B168: =IFERROR(OFFSET('DATA ELV'!$B$1,MATCH($A168,'DATA ELV'!$AA:$AA,0)-1,0),"") ->  | C168: =IFERROR(OFFSET('DATA ELV'!$J$1,MATCH($A168,'DATA ELV'!$AA:$AA,0)-1,0),"") -> 
A169: 168 | B169: =IFERROR(OFFSET('DATA ELV'!$B$1,MATCH($A169,'DATA ELV'!$AA:$AA,0)-1,0),"") ->  | C169: =IFERROR(OFFSET('DATA ELV'!$J$1,MATCH($A169,'DATA ELV'!$AA:$AA,0)-1,0),"") -> 
A170: 169 | B170: =IFERROR(OFFSET('DATA ELV'!$B$1,MATCH($A170,'DATA ELV'!$AA:$AA,0)-1,0),"") ->  | C170: =IFERROR(OFFSET('DATA ELV'!$J$1,MATCH($A170,'DATA ELV'!$AA:$AA,0)-1,0),"") -> 
A171: 170 | B171: =IFERROR(OFFSET('DATA ELV'!$B$1,MATCH($A171,'DATA ELV'!$AA:$AA,0)-1,0),"") ->  | C171: =IFERROR(OFFSET('DATA ELV'!$J$1,MATCH($A171,'DATA ELV'!$AA:$AA,0)-1,0),"") -> 
A172: 171 | B172: =IFERROR(OFFSET('DATA ELV'!$B$1,MATCH($A172,'DATA ELV'!$AA:$AA,0)-1,0),"") ->  | C172: =IFERROR(OFFSET('DATA ELV'!$J$1,MATCH($A172,'DATA ELV'!$AA:$AA,0)-1,0),"") -> 
A173: 172 | B173: =IFERROR(OFFSET('DATA ELV'!$B$1,MATCH($A173,'DATA ELV'!$AA:$AA,0)-1,0),"") ->  | C173: =IFERROR(OFFSET('DATA ELV'!$J$1,MATCH($A173,'DATA ELV'!$AA:$AA,0)-1,0),"") -> 
A174: 173 | B174: =IFERROR(OFFSET('DATA ELV'!$B$1,MATCH($A174,'DATA ELV'!$AA:$AA,0)-1,0),"") ->  | C174: =IFERROR(OFFSET('DATA ELV'!$J$1,MATCH($A174,'DATA ELV'!$AA:$AA,0)-1,0),"") -> 
A175: 174 | B175: =IFERROR(OFFSET('DATA ELV'!$B$1,MATCH($A175,'DATA ELV'!$AA:$AA,0)-1,0),"") ->  | C175: =IFERROR(OFFSET('DATA ELV'!$J$1,MATCH($A175,'DATA ELV'!$AA:$AA,0)-1,0),"") -> 
A176: 175 | B176: =IFERROR(OFFSET('DATA ELV'!$B$1,MATCH($A176,'DATA ELV'!$AA:$AA,0)-1,0),"") ->  | C176: =IFERROR(OFFSET('DATA ELV'!$J$1,MATCH($A176,'DATA ELV'!$AA:$AA,0)-1,0),"") -> 
A177: 176 | B177: =IFERROR(OFFSET('DATA ELV'!$B$1,MATCH($A177,'DATA ELV'!$AA:$AA,0)-1,0),"") ->  | C177: =IFERROR(OFFSET('DATA ELV'!$J$1,MATCH($A177,'DATA ELV'!$AA:$AA,0)-1,0),"") -> 
A178: 177 | B178: =IFERROR(OFFSET('DATA ELV'!$B$1,MATCH($A178,'DATA ELV'!$AA:$AA,0)-1,0),"") ->  | C178: =IFERROR(OFFSET('DATA ELV'!$J$1,MATCH($A178,'DATA ELV'!$AA:$AA,0)-1,0),"") -> 
A179: 178 | B179: =IFERROR(OFFSET('DATA ELV'!$B$1,MATCH($A179,'DATA ELV'!$AA:$AA,0)-1,0),"") ->  | C179: =IFERROR(OFFSET('DATA ELV'!$J$1,MATCH($A179,'DATA ELV'!$AA:$AA,0)-1,0),"") -> 
A180: 179 | B180: =IFERROR(OFFSET('DATA ELV'!$B$1,MATCH($A180,'DATA ELV'!$AA:$AA,0)-1,0),"") ->  | C180: =IFERROR(OFFSET('DATA ELV'!$J$1,MATCH($A180,'DATA ELV'!$AA:$AA,0)-1,0),"") -> 
A181: 180 | B181: =IFERROR(OFFSET('DATA ELV'!$B$1,MATCH($A181,'DATA ELV'!$AA:$AA,0)-1,0),"") ->  | C181: =IFERROR(OFFSET('DATA ELV'!$J$1,MATCH($A181,'DATA ELV'!$AA:$AA,0)-1,0),"") -> 
A182: 181 | B182: =IFERROR(OFFSET('DATA ELV'!$B$1,MATCH($A182,'DATA ELV'!$AA:$AA,0)-1,0),"") -> أمحمدي آسية | C182: =IFERROR(OFFSET('DATA ELV'!$J$1,MATCH($A182,'DATA ELV'!$AA:$AA,0)-1,0),"") -> 3ع ت01
A183: 182 | B183: =IFERROR(OFFSET('DATA ELV'!$B$1,MATCH($A183,'DATA ELV'!$AA:$AA,0)-1,0),"") -> العربي مريم | C183: =IFERROR(OFFSET('DATA ELV'!$J$1,MATCH($A183,'DATA ELV'!$AA:$AA,0)-1,0),"") -> 3ع ت01
A184: 183 | B184: =IFERROR(OFFSET('DATA ELV'!$B$1,MATCH($A184,'DATA ELV'!$AA:$AA,0)-1,0),"") -> امبارك إيمان | C184: =IFERROR(OFFSET('DATA ELV'!$J$1,MATCH($A184,'DATA ELV'!$AA:$AA,0)-1,0),"") -> 3ع ت01
A185: 184 | B185: =IFERROR(OFFSET('DATA ELV'!$B$1,MATCH($A185,'DATA ELV'!$AA:$AA,0)-1,0),"") -> بن زغادي أحمد ياسين | C185: =IFERROR(OFFSET('DATA ELV'!$J$1,MATCH($A185,'DATA ELV'!$AA:$AA,0)-1,0),"") -> 3ع ت01
A186: 185 | B186: =IFERROR(OFFSET('DATA ELV'!$B$1,MATCH($A186,'DATA ELV'!$AA:$AA,0)-1,0),"") -> بن شقرة نسرين | C186: =IFERROR(OFFSET('DATA ELV'!$J$1,MATCH($A186,'DATA ELV'!$AA:$AA,0)-1,0),"") -> 3ع ت01
A187: 186 | B187: =IFERROR(OFFSET('DATA ELV'!$B$1,MATCH($A187,'DATA ELV'!$AA:$AA,0)-1,0),"") -> بوزار شهيناز | C187: =IFERROR(OFFSET('DATA ELV'!$J$1,MATCH($A187,'DATA ELV'!$AA:$AA,0)-1,0),"") -> 3ع ت01
A188: 187 | B188: =IFERROR(OFFSET('DATA ELV'!$B$1,MATCH($A188,'DATA ELV'!$AA:$AA,0)-1,0),"") -> بوشام زكرياء عبد الرحمن | C188: =IFERROR(OFFSET('DATA ELV'!$J$1,MATCH($A188,'DATA ELV'!$AA:$AA,0)-1,0),"") -> 3ع ت01
A189: 188 | B189: =IFERROR(OFFSET('DATA ELV'!$B$1,MATCH($A189,'DATA ELV'!$AA:$AA,0)-1,0),"") -> بوعيشة فاطمة الزهراء | C189: =IFERROR(OFFSET('DATA ELV'!$J$1,MATCH($A189,'DATA ELV'!$AA:$AA,0)-1,0),"") -> 3ع ت01
A190: 189 | B190: =IFERROR(OFFSET('DATA ELV'!$B$1,MATCH($A190,'DATA ELV'!$AA:$AA,0)-1,0),"") -> بومدين زكية | C190: =IFERROR(OFFSET('DATA ELV'!$J$1,MATCH($A190,'DATA ELV'!$AA:$AA,0)-1,0),"") -> 3ع ت01
A191: 190 | B191: =IFERROR(OFFSET('DATA ELV'!$B$1,MATCH($A191,'DATA ELV'!$AA:$AA,0)-1,0),"") -> راجعي دعاء | C191: =IFERROR(OFFSET('DATA ELV'!$J$1,MATCH($A191,'DATA ELV'!$AA:$AA,0)-1,0),"") -> 3ع ت01
A192: 191 | B192: =IFERROR(OFFSET('DATA ELV'!$B$1,MATCH($A192,'DATA ELV'!$AA:$AA,0)-1,0),"") -> زرقاني أمال خليدة | C192: =IFERROR(OFFSET('DATA ELV'!$J$1,MATCH($A192,'DATA ELV'!$AA:$AA,0)-1,0),"") -> 3ع ت01
A193: 192 | B193: =IFERROR(OFFSET('DATA ELV'!$B$1,MATCH($A193,'DATA ELV'!$AA:$AA,0)-1,0),"") -> زرقاني هديل | C193: =IFERROR(OFFSET('DATA ELV'!$J$1,MATCH($A193,'DATA ELV'!$AA:$AA,0)-1,0),"") -> 3ع ت01
A194: 193 | B194: =IFERROR(OFFSET('DATA ELV'!$B$1,MATCH($A194,'DATA ELV'!$AA:$AA,0)-1,0),"") -> شارف شيماء | C194: =IFERROR(OFFSET('DATA ELV'!$J$1,MATCH($A194,'DATA ELV'!$AA:$AA,0)-1,0),"") -> 3ع ت01
A195: 194 | B195: =IFERROR(OFFSET('DATA ELV'!$B$1,MATCH($A195,'DATA ELV'!$AA:$AA,0)-1,0),"") -> علواني يوسف | C195: =IFERROR(OFFSET('DATA ELV'!$J$1,MATCH($A195,'DATA ELV'!$AA:$AA,0)-1,0),"") -> 3ع ت01
A196: 195 | B196: =IFERROR(OFFSET('DATA ELV'!$B$1,MATCH($A196,'DATA ELV'!$AA:$AA,0)-1,0),"") -> عيساني اسماعيل | C196: =IFERROR(OFFSET('DATA ELV'!$J$1,MATCH($A196,'DATA ELV'!$AA:$AA,0)-1,0),"") -> 3ع ت01
A197: 196 | B197: =IFERROR(OFFSET('DATA ELV'!$B$1,MATCH($A197,'DATA ELV'!$AA:$AA,0)-1,0),"") -> قوراري ليندة | C197: =IFERROR(OFFSET('DATA ELV'!$J$1,MATCH($A197,'DATA ELV'!$AA:$AA,0)-1,0),"") -> 3ع ت01
A198: 197 | B198: =IFERROR(OFFSET('DATA ELV'!$B$1,MATCH($A198,'DATA ELV'!$AA:$AA,0)-1,0),"") -> لحسايني فاطمة الزهراء | C198: =IFERROR(OFFSET('DATA ELV'!$J$1,MATCH($A198,'DATA ELV'!$AA:$AA,0)-1,0),"") -> 3ع ت01
A199: 198 | B199: =IFERROR(OFFSET('DATA ELV'!$B$1,MATCH($A199,'DATA ELV'!$AA:$AA,0)-1,0),"") -> لحمر شيماء | C199: =IFERROR(OFFSET('DATA ELV'!$J$1,MATCH($A199,'DATA ELV'!$AA:$AA,0)-1,0),"") -> 3ع ت01
A200: 199 | B200: =IFERROR(OFFSET('DATA ELV'!$B$1,MATCH($A200,'DATA ELV'!$AA:$AA,0)-1,0),"") -> مبرك محمد أمين فارس | C200: =IFERROR(OFFSET('DATA ELV'!$J$1,MATCH($A200,'DATA ELV'!$AA:$AA,0)-1,0),"") -> 3ع ت01
... 7159 more rows

Sheet DATA VALID
A2: =IFERROR(VLOOKUP(C2,$D$2:$E$41,2,0),"") -> classe1 | B2: ='DATA ELV2'!B2 -> بوزيان مريم | C2: =IFERROR(VLOOKUP(B2,'DATA ELV2'!$B$2:$C$6303,2,0),"") -> 3ت ر/هك | D2: =BASE!C5 -> 3ت ر/هك | E2: classe1
A3: =IFERROR(VLOOKUP(C3,$D$2:$E$41,2,0),"") -> classe1 | B3: ='DATA ELV2'!B3 -> بوزي عبير | C3: =IFERROR(VLOOKUP(B3,'DATA ELV2'!$B$2:$C$6303,2,0),"") -> 3ت ر/هك | D3: =BASE!C6 -> 3ت ر/هم | E3: classe2
A4: classe1 | B4: ='DATA ELV2'!B4 -> تاسرة رانيا | C4: =IFERROR(VLOOKUP(B4,'DATA ELV2'!$B$2:$C$6303,2,0),"") -> 3ت ر/هك | D4: =BASE!C7 -> 3ت إ01 | E4: classe3
A5: classe1 | B5: ='DATA ELV2'!B5 -> حنيفي دعاء | C5: =IFERROR(VLOOKUP(B5,'DATA ELV2'!$B$2:$C$6303,2,0),"") -> 3ت ر/هك | D5: =BASE!C8 -> 3ع ت01 | E5: classe4
A6: classe1 | B6: ='DATA ELV2'!B6 -> سلومي فتيحة | C6: =IFERROR(VLOOKUP(B6,'DATA ELV2'!$B$2:$C$6303,2,0),"") -> 3ت ر/هك | D6: =BASE!C9 -> 3ع ت02 | E6: classe5
A7: classe1 | B7: ='DATA ELV2'!B7 -> لعروسي فرح | C7: =IFERROR(VLOOKUP(B7,'DATA ELV2'!$B$2:$C$6303,2,0),"") -> 3ت ر/هك | D7: =BASE!C10 -> 3أ ف01 | E7: classe6
A8: classe1 | B8: ='DATA ELV2'!B8 -> مقدم موسى | C8: =IFERROR(VLOOKUP(B8,'DATA ELV2'!$B$2:$C$6303,2,0),"") -> 3ت ر/هك | D8: =BASE!C11 -> 3أ ف02 | E8: classe7
A9: classe1 | B9: ='DATA ELV2'!B9 -> يخلف لحسن | C9: =IFERROR(VLOOKUP(B9,'DATA ELV2'!$B$2:$C$6303,2,0),"") -> 3ت ر/هك | D9: =BASE!C12 -> 3لغات /إسبا | E9: classe8
A10: classe1 | B10: ='DATA ELV2'!B10 -> بن يوبي مغنية امينة | C10: =IFERROR(VLOOKUP(B10,'DATA ELV2'!$B$2:$C$6303,2,0),"") -> 3ت ر/هك | D10: =BASE!C13 -> 2ت ر/هك | E10: classe9
A11: classe1 | B11: ='DATA ELV2'!B11 -> بوبكر يسرى | C11: =IFERROR(VLOOKUP(B11,'DATA ELV2'!$B$2:$C$6303,2,0),"") -> 3ت ر/هك | D11: =BASE!C14 -> 2ت ر/هم | E11: classe10
A12: classe1 | B12: ='DATA ELV2'!B12 -> زرعي سعيد | C12: =IFERROR(VLOOKUP(B12,'DATA ELV2'!$B$2:$C$6303,2,0),"") -> 3ت ر/هك | D12: =BASE!C15 -> 2ت إ01 | E12: classe11
A13: classe1 | B13: ='DATA ELV2'!B13 -> زياني الأول خديجة | C13: =IFERROR(VLOOKUP(B13,'DATA ELV2'!$B$2:$C$6303,2,0),"") -> 3ت ر/هك | D13: =BASE!C16 -> 2ع ت01 | E13: classe12
A14: classe1 | B14: ='DATA ELV2'!B14 -> سايح شيماء | C14: =IFERROR(VLOOKUP(B14,'DATA ELV2'!$B$2:$C$6303,2,0),"") -> 3ت ر/هك | D14: =BASE!C17 -> 2ع ت02 | E14: classe13
B15: ='DATA ELV2'!B15 ->  | C15: =IFERROR(VLOOKUP(B15,'DATA ELV2'!$B$2:$C$6303,2,0),"") ->  | D15: =BASE!C18 -> 2أ ف01 | E15: classe14
B16: ='DATA ELV2'!B16 ->  | C16: =IFERROR(VLOOKUP(B16,'DATA ELV2'!$B$2:$C$6303,2,0),"") ->  | D16: =BASE!C19 -> 2أ ف02 | E16: classe15
B17: ='DATA ELV2'!B17 ->  | C17: =IFERROR(VLOOKUP(B17,'DATA ELV2'!$B$2:$C$6303,2,0),"") ->  | D17: =BASE!C20 -> 2لغات /إسبا | E17: classe16
B18: ='DATA ELV2'!B18 ->  | C18: =IFERROR(VLOOKUP(B18,'DATA ELV2'!$B$2:$C$6303,2,0),"") ->  | D18: =BASE!C21 -> ج م ع تك01 | E18: classe17
B19: ='DATA ELV2'!B19 ->  | C19: =IFERROR(VLOOKUP(B19,'DATA ELV2'!$B$2:$C$6303,2,0),"") ->  | D19: =BASE!C22 -> ج م ع تك02 | E19: classe18
B20: ='DATA ELV2'!B20 ->  | C20: =IFERROR(VLOOKUP(B20,'DATA ELV2'!$B$2:$C$6303,2,0),"") ->  | D20: =BASE!C23 -> ج م ع تك03 | E20: classe19
B21: ='DATA ELV2'!B21 ->  | C21: =IFERROR(VLOOKUP(B21,'DATA ELV2'!$B$2:$C$6303,2,0),"") ->  | D21: =BASE!C24 -> ج م ع تك04 | E21: classe20
B22: ='DATA ELV2'!B22 ->  | C22: =IFERROR(VLOOKUP(B22,'DATA ELV2'!$B$2:$C$6303,2,0),"") ->  | D22: =BASE!C25 -> ج م ع تك05 | E22: classe21
B23: ='DATA ELV2'!B23 ->  | C23: =IFERROR(VLOOKUP(B23,'DATA ELV2'!$B$2:$C$6303,2,0),"") ->  | D23: =BASE!C26 -> ج م أ01 | E23: classe22
B24: ='DATA ELV2'!B24 ->  | C24: =IFERROR(VLOOKUP(B24,'DATA ELV2'!$B$2:$C$6303,2,0),"") ->  | D24: =BASE!C27 -> ج م أ02 | E24: classe23
B25: ='DATA ELV2'!B25 ->  | C25: =IFERROR(VLOOKUP(B25,'DATA ELV2'!$B$2:$C$6303,2,0),"") ->  | D25: =BASE!C28 -> 0
B26: ='DATA ELV2'!B26 ->  | C26: =IFERROR(VLOOKUP(B26,'DATA ELV2'!$B$2:$C$6303,2,0),"") ->  | D26: =BASE!C29 -> 0
B27: ='DATA ELV2'!B27 ->  | C27: =IFERROR(VLOOKUP(B27,'DATA ELV2'!$B$2:$C$6303,2,0),"") ->  | D27: =BASE!C30 -> 0
B28: ='DATA ELV2'!B28 ->  | C28: =IFERROR(VLOOKUP(B28,'DATA ELV2'!$B$2:$C$6303,2,0),"") ->  | D28: =BASE!C31 -> 0
B29: ='DATA ELV2'!B29 ->  | C29: =IFERROR(VLOOKUP(B29,'DATA ELV2'!$B$2:$C$6303,2,0),"") ->  | D29: =BASE!C32 -> 0
B30: ='DATA ELV2'!B30 ->  | C30: =IFERROR(VLOOKUP(B30,'DATA ELV2'!$B$2:$C$6303,2,0),"") ->  | D30: =BASE!C33 -> 0
B31: ='DATA ELV2'!B31 ->  | C31: =IFERROR(VLOOKUP(B31,'DATA ELV2'!$B$2:$C$6303,2,0),"") ->  | D31: =BASE!C34 -> 0
B32: ='DATA ELV2'!B32 ->  | C32: =IFERROR(VLOOKUP(B32,'DATA ELV2'!$B$2:$C$6303,2,0),"") ->  | D32: =BASE!C35 -> 0
B33: ='DATA ELV2'!B33 ->  | C33: =IFERROR(VLOOKUP(B33,'DATA ELV2'!$B$2:$C$6303,2,0),"") ->  | D33: =BASE!C36 -> 0
B34: ='DATA ELV2'!B34 ->  | C34: =IFERROR(VLOOKUP(B34,'DATA ELV2'!$B$2:$C$6303,2,0),"") ->  | D34: =BASE!C37 -> 0
B35: ='DATA ELV2'!B35 ->  | C35: =IFERROR(VLOOKUP(B35,'DATA ELV2'!$B$2:$C$6303,2,0),"") ->  | D35: =BASE!C38 -> 0
B36: ='DATA ELV2'!B36 ->  | C36: =IFERROR(VLOOKUP(B36,'DATA ELV2'!$B$2:$C$6303,2,0),"") ->  | D36: =BASE!C39 -> 0
B37: ='DATA ELV2'!B37 ->  | C37: =IFERROR(VLOOKUP(B37,'DATA ELV2'!$B$2:$C$6303,2,0),"") ->  | D37: =BASE!C40 -> 0
B38: ='DATA ELV2'!B38 ->  | C38: =IFERROR(VLOOKUP(B38,'DATA ELV2'!$B$2:$C$6303,2,0),"") ->  | D38: =BASE!C41 -> 0
B39: ='DATA ELV2'!B39 ->  | C39: =IFERROR(VLOOKUP(B39,'DATA ELV2'!$B$2:$C$6303,2,0),"") ->  | D39: =BASE!C42 -> 0
B40: ='DATA ELV2'!B40 ->  | C40: =IFERROR(VLOOKUP(B40,'DATA ELV2'!$B$2:$C$6303,2,0),"") ->  | D40: =BASE!C43 -> 0
B41: ='DATA ELV2'!B41 ->  | C41: =IFERROR(VLOOKUP(B41,'DATA ELV2'!$B$2:$C$6303,2,0),"") ->  | D41: =BASE!C44 -> 0
B42: ='DATA ELV2'!B42 ->  | C42: =IFERROR(VLOOKUP(B42,'DATA ELV2'!$B$2:$C$6303,2,0),"") ->  | D42: =BASE!C45 -> 0
B43: ='DATA ELV2'!B43 ->  | C43: =IFERROR(VLOOKUP(B43,'DATA ELV2'!$B$2:$C$6303,2,0),"") ->  | D43: =BASE!C46 -> 0
B44: ='DATA ELV2'!B44 ->  | C44: =IFERROR(VLOOKUP(B44,'DATA ELV2'!$B$2:$C$6303,2,0),"") ->  | D44: =BASE!C47 -> 0
B45: ='DATA ELV2'!B45 ->  | C45: =IFERROR(VLOOKUP(B45,'DATA ELV2'!$B$2:$C$6303,2,0),"") ->  | D45: =BASE!C48 -> 0
B46: ='DATA ELV2'!B46 ->  | C46: =IFERROR(VLOOKUP(B46,'DATA ELV2'!$B$2:$C$6303,2,0),"") ->  | D46: =BASE!C49 -> 0
B47: ='DATA ELV2'!B47 ->  | C47: =IFERROR(VLOOKUP(B47,'DATA ELV2'!$B$2:$C$6303,2,0),"") ->  | D47: =BASE!C50 -> 0
B48: ='DATA ELV2'!B48 ->  | C48: =IFERROR(VLOOKUP(B48,'DATA ELV2'!$B$2:$C$6303,2,0),"") ->  | D48: =BASE!C51 -> 0
B49: ='DATA ELV2'!B49 ->  | C49: =IFERROR(VLOOKUP(B49,'DATA ELV2'!$B$2:$C$6303,2,0),"") ->  | D49: =BASE!C52 -> 0
B50: ='DATA ELV2'!B50 ->  | C50: =IFERROR(VLOOKUP(B50,'DATA ELV2'!$B$2:$C$6303,2,0),"") ->  | D50: =BASE!C53 -> 0
B51: ='DATA ELV2'!B51 ->  | C51: =IFERROR(VLOOKUP(B51,'DATA ELV2'!$B$2:$C$6303,2,0),"") ->  | D51: =BASE!C54 -> 0
B52: ='DATA ELV2'!B52 ->  | C52: =IFERROR(VLOOKUP(B52,'DATA ELV2'!$B$2:$C$6303,2,0),"") ->  | D52: =BASE!C55 -> 0
B53: ='DATA ELV2'!B53 ->  | C53: =IFERROR(VLOOKUP(B53,'DATA ELV2'!$B$2:$C$6303,2,0),"") ->  | D53: =BASE!C56 -> 0
B54: ='DATA ELV2'!B54 ->  | C54: =IFERROR(VLOOKUP(B54,'DATA ELV2'!$B$2:$C$6303,2,0),"") ->  | D54: =BASE!C57 -> 0
B55: ='DATA ELV2'!B55 ->  | C55: =IFERROR(VLOOKUP(B55,'DATA ELV2'!$B$2:$C$6303,2,0),"") ->  | D55: =BASE!C58 -> 0
B56: ='DATA ELV2'!B56 ->  | C56: =IFERROR(VLOOKUP(B56,'DATA ELV2'!$B$2:$C$6303,2,0),"") ->  | D56: =BASE!C59 -> 0
B57: ='DATA ELV2'!B57 ->  | C57: =IFERROR(VLOOKUP(B57,'DATA ELV2'!$B$2:$C$6303,2,0),"") ->  | D57: =BASE!C60 -> 0
B58: ='DATA ELV2'!B58 ->  | C58: =IFERROR(VLOOKUP(B58,'DATA ELV2'!$B$2:$C$6303,2,0),"") ->  | D58: =BASE!C61 -> 0
B59: ='DATA ELV2'!B59 ->  | C59: =IFERROR(VLOOKUP(B59,'DATA ELV2'!$B$2:$C$6303,2,0),"") ->  | D59: =BASE!C62 -> 0
B60: ='DATA ELV2'!B60 ->  | C60: =IFERROR(VLOOKUP(B60,'DATA ELV2'!$B$2:$C$6303,2,0),"") ->  | D60: =BASE!C63 -> 0
B61: ='DATA ELV2'!B61 ->  | C61: =IFERROR(VLOOKUP(B61,'DATA ELV2'!$B$2:$C$6303,2,0),"") ->  | D61: =BASE!C64 -> 0
A62: classe2 | B62: ='DATA ELV2'!B62 -> بوستين أسامة | C62: =IFERROR(VLOOKUP(B62,'DATA ELV2'!$B$2:$C$6303,2,0),"") -> 3ت ر/هم | D62: =BASE!C65 -> 0
A63: classe2 | B63: ='DATA ELV2'!B63 -> سفيون مروة | C63: =IFERROR(VLOOKUP(B63,'DATA ELV2'!$B$2:$C$6303,2,0),"") -> 3ت ر/هم | D63: =BASE!C66 -> 0
A64: classe2 | B64: ='DATA ELV2'!B64 -> قرد آية | C64: =IFERROR(VLOOKUP(B64,'DATA ELV2'!$B$2:$C$6303,2,0),"") -> 3ت ر/هم | D64: =BASE!C67 -> 0
A65: classe2 | B65: ='DATA ELV2'!B65 -> قرواو محمد الأمين | C65: =IFERROR(VLOOKUP(B65,'DATA ELV2'!$B$2:$C$6303,2,0),"") -> 3ت ر/هم | D65: =BASE!C68 -> 0
A66: classe2 | B66: ='DATA ELV2'!B66 -> بختاوي مغنية | C66: =IFERROR(VLOOKUP(B66,'DATA ELV2'!$B$2:$C$6303,2,0),"") -> 3ت ر/هم | D66: =BASE!C69 -> 0
A67: =IFERROR(VLOOKUP(C67,$D$2:$E$41,2,0),"") -> classe2 | B67: ='DATA ELV2'!B67 -> بن سالم عبد الله | C67: =IFERROR(VLOOKUP(B67,'DATA ELV2'!$B$2:$C$6303,2,0),"") -> 3ت ر/هم | D67: =BASE!C70 -> 0
A68: classe2 | B68: ='DATA ELV2'!B68 -> خليل رانيا | C68: =IFERROR(VLOOKUP(B68,'DATA ELV2'!$B$2:$C$6303,2,0),"") -> 3ت ر/هم
B69: ='DATA ELV2'!B69 ->  | C69: =IFERROR(VLOOKUP(B69,'DATA ELV2'!$B$2:$C$6303,2,0),"") -> 
B70: ='DATA ELV2'!B70 ->  | C70: =IFERROR(VLOOKUP(B70,'DATA ELV2'!$B$2:$C$6303,2,0),"") -> 
B71: ='DATA ELV2'!B71 ->  | C71: =IFERROR(VLOOKUP(B71,'DATA ELV2'!$B$2:$C$6303,2,0),"") -> 
B72: ='DATA ELV2'!B72 ->  | C72: =IFERROR(VLOOKUP(B72,'DATA ELV2'!$B$2:$C$6303,2,0),"") -> 
B73: ='DATA ELV2'!B73 ->  | C73: =IFERROR(VLOOKUP(B73,'DATA ELV2'!$B$2:$C$6303,2,0),"") -> 
B74: ='DATA ELV2'!B74 ->  | C74: =IFERROR(VLOOKUP(B74,'DATA ELV2'!$B$2:$C$6303,2,0),"") -> 
B75: ='DATA ELV2'!B75 ->  | C75: =IFERROR(VLOOKUP(B75,'DATA ELV2'!$B$2:$C$6303,2,0),"") -> 
B76: ='DATA ELV2'!B76 ->  | C76: =IFERROR(VLOOKUP(B76,'DATA ELV2'!$B$2:$C$6303,2,0),"") -> 
B77: ='DATA ELV2'!B77 ->  | C77: =IFERROR(VLOOKUP(B77,'DATA ELV2'!$B$2:$C$6303,2,0),"") -> 
B78: ='DATA ELV2'!B78 ->  | C78: =IFERROR(VLOOKUP(B78,'DATA ELV2'!$B$2:$C$6303,2,0),"") -> 
B79: ='DATA ELV2'!B79 ->  | C79: =IFERROR(VLOOKUP(B79,'DATA ELV2'!$B$2:$C$6303,2,0),"") -> 
B80: ='DATA ELV2'!B80 ->  | C80: =IFERROR(VLOOKUP(B80,'DATA ELV2'!$B$2:$C$6303,2,0),"") -> 
B81: ='DATA ELV2'!B81 ->  | C81: =IFERROR(VLOOKUP(B81,'DATA ELV2'!$B$2:$C$6303,2,0),"") -> 
B82: ='DATA ELV2'!B82 ->  | C82: =IFERROR(VLOOKUP(B82,'DATA ELV2'!$B$2:$C$6303,2,0),"") -> 
B83: ='DATA ELV2'!B83 ->  | C83: =IFERROR(VLOOKUP(B83,'DATA ELV2'!$B$2:$C$6303,2,0),"") -> 
B84: ='DATA ELV2'!B84 ->  | C84: =IFERROR(VLOOKUP(B84,'DATA ELV2'!$B$2:$C$6303,2,0),"") -> 
B85: ='DATA ELV2'!B85 ->  | C85: =IFERROR(VLOOKUP(B85,'DATA ELV2'!$B$2:$C$6303,2,0),"") -> 
B86: ='DATA ELV2'!B86 ->  | C86: =IFERROR(VLOOKUP(B86,'DATA ELV2'!$B$2:$C$6303,2,0),"") -> 
B87: ='DATA ELV2'!B87 ->  | C87: =IFERROR(VLOOKUP(B87,'DATA ELV2'!$B$2:$C$6303,2,0),"") -> 
B88: ='DATA ELV2'!B88 ->  | C88: =IFERROR(VLOOKUP(B88,'DATA ELV2'!$B$2:$C$6303,2,0),"") -> 
B89: ='DATA ELV2'!B89 ->  | C89: =IFERROR(VLOOKUP(B89,'DATA ELV2'!$B$2:$C$6303,2,0),"") -> 
B90: ='DATA ELV2'!B90 ->  | C90: =IFERROR(VLOOKUP(B90,'DATA ELV2'!$B$2:$C$6303,2,0),"") -> 
B91: ='DATA ELV2'!B91 ->  | C91: =IFERROR(VLOOKUP(B91,'DATA ELV2'!$B$2:$C$6303,2,0),"") -> 
B92: ='DATA ELV2'!B92 ->  | C92: =IFERROR(VLOOKUP(B92,'DATA ELV2'!$B$2:$C$6303,2,0),"") -> 
B93: ='DATA ELV2'!B93 ->  | C93: =IFERROR(VLOOKUP(B93,'DATA ELV2'!$B$2:$C$6303,2,0),"") -> 
B94: ='DATA ELV2'!B94 ->  | C94: =IFERROR(VLOOKUP(B94,'DATA ELV2'!$B$2:$C$6303,2,0),"") -> 
B95: ='DATA ELV2'!B95 ->  | C95: =IFERROR(VLOOKUP(B95,'DATA ELV2'!$B$2:$C$6303,2,0),"") -> 
B96: ='DATA ELV2'!B96 ->  | C96: =IFERROR(VLOOKUP(B96,'DATA ELV2'!$B$2:$C$6303,2,0),"") -> 
B97: ='DATA ELV2'!B97 ->  | C97: =IFERROR(VLOOKUP(B97,'DATA ELV2'!$B$2:$C$6303,2,0),"") -> 
B98: ='DATA ELV2'!B98 ->  | C98: =IFERROR(VLOOKUP(B98,'DATA ELV2'!$B$2:$C$6303,2,0),"") -> 
B99: ='DATA ELV2'!B99 ->  | C99: =IFERROR(VLOOKUP(B99,'DATA ELV2'!$B$2:$C$6303,2,0),"") -> 
B100: ='DATA ELV2'!B100 ->  | C100: =IFERROR(VLOOKUP(B100,'DATA ELV2'!$B$2:$C$6303,2,0),"") -> 
B101: ='DATA ELV2'!B101 ->  | C101: =IFERROR(VLOOKUP(B101,'DATA ELV2'!$B$2:$C$6303,2,0),"") -> 
B102: ='DATA ELV2'!B102 ->  | C102: =IFERROR(VLOOKUP(B102,'DATA ELV2'!$B$2:$C$6303,2,0),"") -> 
B103: ='DATA ELV2'!B103 ->  | C103: =IFERROR(VLOOKUP(B103,'DATA ELV2'!$B$2:$C$6303,2,0),"") -> 
B104: ='DATA ELV2'!B104 ->  | C104: =IFERROR(VLOOKUP(B104,'DATA ELV2'!$B$2:$C$6303,2,0),"") -> 
B105: ='DATA ELV2'!B105 ->  | C105: =IFERROR(VLOOKUP(B105,'DATA ELV2'!$B$2:$C$6303,2,0),"") -> 
B106: ='DATA ELV2'!B106 ->  | C106: =IFERROR(VLOOKUP(B106,'DATA ELV2'!$B$2:$C$6303,2,0),"") -> 
B107: ='DATA ELV2'!B107 ->  | C107: =IFERROR(VLOOKUP(B107,'DATA ELV2'!$B$2:$C$6303,2,0),"") -> 
B108: ='DATA ELV2'!B108 ->  | C108: =IFERROR(VLOOKUP(B108,'DATA ELV2'!$B$2:$C$6303,2,0),"") -> 
B109: ='DATA ELV2'!B109 ->  | C109: =IFERROR(VLOOKUP(B109,'DATA ELV2'!$B$2:$C$6303,2,0),"") -> 
B110: ='DATA ELV2'!B110 ->  | C110: =IFERROR(VLOOKUP(B110,'DATA ELV2'!$B$2:$C$6303,2,0),"") -> 
B111: ='DATA ELV2'!B111 ->  | C111: =IFERROR(VLOOKUP(B111,'DATA ELV2'!$B$2:$C$6303,2,0),"") -> 
B112: ='DATA ELV2'!B112 ->  | C112: =IFERROR(VLOOKUP(B112,'DATA ELV2'!$B$2:$C$6303,2,0),"") -> 
B113: ='DATA ELV2'!B113 ->  | C113: =IFERROR(VLOOKUP(B113,'DATA ELV2'!$B$2:$C$6303,2,0),"") -> 
B114: ='DATA ELV2'!B114 ->  | C114: =IFERROR(VLOOKUP(B114,'DATA ELV2'!$B$2:$C$6303,2,0),"") -> 
B115: ='DATA ELV2'!B115 ->  | C115: =IFERROR(VLOOKUP(B115,'DATA ELV2'!$B$2:$C$6303,2,0),"") -> 
B116: ='DATA ELV2'!B116 ->  | C116: =IFERROR(VLOOKUP(B116,'DATA ELV2'!$B$2:$C$6303,2,0),"") -> 
B117: ='DATA ELV2'!B117 ->  | C117: =IFERROR(VLOOKUP(B117,'DATA ELV2'!$B$2:$C$6303,2,0),"") -> 
B118: ='DATA ELV2'!B118 ->  | C118: =IFERROR(VLOOKUP(B118,'DATA ELV2'!$B$2:$C$6303,2,0),"") -> 
B119: ='DATA ELV2'!B119 ->  | C119: =IFERROR(VLOOKUP(B119,'DATA ELV2'!$B$2:$C$6303,2,0),"") -> 
B120: ='DATA ELV2'!B120 ->  | C120: =IFERROR(VLOOKUP(B120,'DATA ELV2'!$B$2:$C$6303,2,0),"") -> 
B121: ='DATA ELV2'!B121 ->  | C121: =IFERROR(VLOOKUP(B121,'DATA ELV2'!$B$2:$C$6303,2,0),"") -> 
A122: classe3 | B122: ='DATA ELV2'!B122 -> الفضيل ريم | C122: =IFERROR(VLOOKUP(B122,'DATA ELV2'!$B$2:$C$6303,2,0),"") -> 3ت إ01
A123: classe3 | B123: ='DATA ELV2'!B123 -> بن طيب ياسين | C123: =IFERROR(VLOOKUP(B123,'DATA ELV2'!$B$2:$C$6303,2,0),"") -> 3ت إ01
A124: classe3 | B124: ='DATA ELV2'!B124 -> بوبندير أحمد | C124: =IFERROR(VLOOKUP(B124,'DATA ELV2'!$B$2:$C$6303,2,0),"") -> 3ت إ01
A125: classe3 | B125: ='DATA ELV2'!B125 -> بوبندير ميساء | C125: =IFERROR(VLOOKUP(B125,'DATA ELV2'!$B$2:$C$6303,2,0),"") -> 3ت إ01
A126: classe3 | B126: ='DATA ELV2'!B126 -> بوستين محمد اسلام | C126: =IFERROR(VLOOKUP(B126,'DATA ELV2'!$B$2:$C$6303,2,0),"") -> 3ت إ01
A127: classe3 | B127: ='DATA ELV2'!B127 -> بوعلي أميمة | C127: =IFERROR(VLOOKUP(B127,'DATA ELV2'!$B$2:$C$6303,2,0),"") -> 3ت إ01
A128: classe3 | B128: ='DATA ELV2'!B128 -> بوعيشة مروة رميسة | C128: =IFERROR(VLOOKUP(B128,'DATA ELV2'!$B$2:$C$6303,2,0),"") -> 3ت إ01
A129: classe3 | B129: ='DATA ELV2'!B129 -> حوحو محفوظ عبد الرحيم | C129: =IFERROR(VLOOKUP(B129,'DATA ELV2'!$B$2:$C$6303,2,0),"") -> 3ت إ01
A130: classe3 | B130: ='DATA ELV2'!B130 -> خواني مريم | C130: =IFERROR(VLOOKUP(B130,'DATA ELV2'!$B$2:$C$6303,2,0),"") -> 3ت إ01
A131: =IFERROR(VLOOKUP(C131,$D$2:$E$41,2,0),"") -> classe3 | B131: ='DATA ELV2'!B131 -> راجعي منال | C131: =IFERROR(VLOOKUP(B131,'DATA ELV2'!$B$2:$C$6303,2,0),"") -> 3ت إ01
A132: classe3 | B132: ='DATA ELV2'!B132 -> زحزوح محمد الصادق | C132: =IFERROR(VLOOKUP(B132,'DATA ELV2'!$B$2:$C$6303,2,0),"") -> 3ت إ01
A133: classe3 | B133: ='DATA ELV2'!B133 -> زياني الأول مريم | C133: =IFERROR(VLOOKUP(B133,'DATA ELV2'!$B$2:$C$6303,2,0),"") -> 3ت إ01
A134: classe3 | B134: ='DATA ELV2'!B134 -> سكاك حاج عبد الله | C134: =IFERROR(VLOOKUP(B134,'DATA ELV2'!$B$2:$C$6303,2,0),"") -> 3ت إ01
A135: classe3 | B135: ='DATA ELV2'!B135 -> شبيب دعاء نورهان | C135: =IFERROR(VLOOKUP(B135,'DATA ELV2'!$B$2:$C$6303,2,0),"") -> 3ت إ01
A136: classe3 | B136: ='DATA ELV2'!B136 -> شياخ شيماء | C136: =IFERROR(VLOOKUP(B136,'DATA ELV2'!$B$2:$C$6303,2,0),"") -> 3ت إ01
A137: classe3 | B137: ='DATA ELV2'!B137 -> شيباني سمير | C137: =IFERROR(VLOOKUP(B137,'DATA ELV2'!$B$2:$C$6303,2,0),"") -> 3ت إ01
A138: classe3 | B138: ='DATA ELV2'!B138 -> عفاني أيمن | C138: =IFERROR(VLOOKUP(B138,'DATA ELV2'!$B$2:$C$6303,2,0),"") -> 3ت إ01
A139: classe3 | B139: ='DATA ELV2'!B139 -> عمراوي مواهب | C139: =IFERROR(VLOOKUP(B139,'DATA ELV2'!$B$2:$C$6303,2,0),"") -> 3ت إ01
A140: classe3 | B140: ='DATA ELV2'!B140 -> قرد محمد | C140: =IFERROR(VLOOKUP(B140,'DATA ELV2'!$B$2:$C$6303,2,0),"") -> 3ت إ01
A141: classe3 | B141: ='DATA ELV2'!B141 -> كوشير فاطمة الزهراء | C141: =IFERROR(VLOOKUP(B141,'DATA ELV2'!$B$2:$C$6303,2,0),"") -> 3ت إ01
A142: classe3 | B142: ='DATA ELV2'!B142 -> لزعر شيماء | C142: =IFERROR(VLOOKUP(B142,'DATA ELV2'!$B$2:$C$6303,2,0),"") -> 3ت إ01
A143: classe3 | B143: ='DATA ELV2'!B143 -> مولاي بودخيلي شيماء | C143: =IFERROR(VLOOKUP(B143,'DATA ELV2'!$B$2:$C$6303,2,0),"") -> 3ت إ01
A144: classe3 | B144: ='DATA ELV2'!B144 -> هرنين رانيا | C144: =IFERROR(VLOOKUP(B144,'DATA ELV2'!$B$2:$C$6303,2,0),"") -> 3ت إ01
A145: classe3 | B145: ='DATA ELV2'!B145 -> برواين حورية | C145: =IFERROR(VLOOKUP(B145,'DATA ELV2'!$B$2:$C$6303,2,0),"") -> 3ت إ01
A146: classe3 | B146: ='DATA ELV2'!B146 -> بلعباس رفيق | C146: =IFERROR(VLOOKUP(B146,'DATA ELV2'!$B$2:$C$6303,2,0),"") -> 3ت إ01
A147: classe3 | B147: ='DATA ELV2'!B147 -> بن هدي إناس | C147: =IFERROR(VLOOKUP(B147,'DATA ELV2'!$B$2:$C$6303,2,0),"") -> 3ت إ01
A148: classe3 | B148: ='DATA ELV2'!B148 -> جرارفاوي سارة | C148: =IFERROR(VLOOKUP(B148,'DATA ELV2'!$B$2:$C$6303,2,0),"") -> 3ت إ01
A149: classe3 | B149: ='DATA ELV2'!B149 -> صدار عبد العزيز | C149: =IFERROR(VLOOKUP(B149,'DATA ELV2'!$B$2:$C$6303,2,0),"") -> 3ت إ01
A150: classe3 | B150: ='DATA ELV2'!B150 -> عبوين أيمن | C150: =IFERROR(VLOOKUP(B150,'DATA ELV2'!$B$2:$C$6303,2,0),"") -> 3ت إ01
A151: classe3 | B151: ='DATA ELV2'!B151 -> قوري الهواري | C151: =IFERROR(VLOOKUP(B151,'DATA ELV2'!$B$2:$C$6303,2,0),"") -> 3ت إ01
A152: classe3 | B152: ='DATA ELV2'!B152 -> كرد توفيق | C152: =IFERROR(VLOOKUP(B152,'DATA ELV2'!$B$2:$C$6303,2,0),"") -> 3ت إ01
A153: classe3 | B153: ='DATA ELV2'!B153 -> هواري سلسبيل | C153: =IFERROR(VLOOKUP(B153,'DATA ELV2'!$B$2:$C$6303,2,0),"") -> 3ت إ01
B154: ='DATA ELV2'!B154 ->  | C154: =IFERROR(VLOOKUP(B154,'DATA ELV2'!$B$2:$C$6303,2,0),"") -> 
B155: ='DATA ELV2'!B155 ->  | C155: =IFERROR(VLOOKUP(B155,'DATA ELV2'!$B$2:$C$6303,2,0),"") -> 
B156: ='DATA ELV2'!B156 ->  | C156: =IFERROR(VLOOKUP(B156,'DATA ELV2'!$B$2:$C$6303,2,0),"") -> 
B157: ='DATA ELV2'!B157 ->  | C157: =IFERROR(VLOOKUP(B157,'DATA ELV2'!$B$2:$C$6303,2,0),"") -> 
B158: ='DATA ELV2'!B158 ->  | C158: =IFERROR(VLOOKUP(B158,'DATA ELV2'!$B$2:$C$6303,2,0),"") -> 
B159: ='DATA ELV2'!B159 ->  | C159: =IFERROR(VLOOKUP(B159,'DATA ELV2'!$B$2:$C$6303,2,0),"") -> 
B160: ='DATA ELV2'!B160 ->  | C160: =IFERROR(VLOOKUP(B160,'DATA ELV2'!$B$2:$C$6303,2,0),"") -> 
B161: ='DATA ELV2'!B161 ->  | C161: =IFERROR(VLOOKUP(B161,'DATA ELV2'!$B$2:$C$6303,2,0),"") -> 
B162: ='DATA ELV2'!B162 ->  | C162: =IFERROR(VLOOKUP(B162,'DATA ELV2'!$B$2:$C$6303,2,0),"") -> 
B163: ='DATA ELV2'!B163 ->  | C163: =IFERROR(VLOOKUP(B163,'DATA ELV2'!$B$2:$C$6303,2,0),"") -> 
B164: ='DATA ELV2'!B164 ->  | C164: =IFERROR(VLOOKUP(B164,'DATA ELV2'!$B$2:$C$6303,2,0),"") -> 
B165: ='DATA ELV2'!B165 ->  | C165: =IFERROR(VLOOKUP(B165,'DATA ELV2'!$B$2:$C$6303,2,0),"") -> 
B166: ='DATA ELV2'!B166 ->  | C166: =IFERROR(VLOOKUP(B166,'DATA ELV2'!$B$2:$C$6303,2,0),"") -> 
B167: ='DATA ELV2'!B167 ->  | C167: =IFERROR(VLOOKUP(B167,'DATA ELV2'!$B$2:$C$6303,2,0),"") -> 
B168: ='DATA ELV2'!B168 ->  | C168: =IFERROR(VLOOKUP(B168,'DATA ELV2'!$B$2:$C$6303,2,0),"") -> 
B169: ='DATA ELV2'!B169 ->  | C169: =IFERROR(VLOOKUP(B169,'DATA ELV2'!$B$2:$C$6303,2,0),"") -> 
B170: ='DATA ELV2'!B170 ->  | C170: =IFERROR(VLOOKUP(B170,'DATA ELV2'!$B$2:$C$6303,2,0),"") -> 
B171: ='DATA ELV2'!B171 ->  | C171: =IFERROR(VLOOKUP(B171,'DATA ELV2'!$B$2:$C$6303,2,0),"") -> 
B172: ='DATA ELV2'!B172 ->  | C172: =IFERROR(VLOOKUP(B172,'DATA ELV2'!$B$2:$C$6303,2,0),"") -> 
B173: ='DATA ELV2'!B173 ->  | C173: =IFERROR(VLOOKUP(B173,'DATA ELV2'!$B$2:$C$6303,2,0),"") -> 
B174: ='DATA ELV2'!B174 ->  | C174: =IFERROR(VLOOKUP(B174,'DATA ELV2'!$B$2:$C$6303,2,0),"") -> 
B175: ='DATA ELV2'!B175 ->  | C175: =IFERROR(VLOOKUP(B175,'DATA ELV2'!$B$2:$C$6303,2,0),"") -> 
B176: ='DATA ELV2'!B176 ->  | C176: =IFERROR(VLOOKUP(B176,'DATA ELV2'!$B$2:$C$6303,2,0),"") -> 
B177: ='DATA ELV2'!B177 ->  | C177: =IFERROR(VLOOKUP(B177,'DATA ELV2'!$B$2:$C$6303,2,0),"") -> 
B178: ='DATA ELV2'!B178 ->  | C178: =IFERROR(VLOOKUP(B178,'DATA ELV2'!$B$2:$C$6303,2,0),"") -> 
B179: ='DATA ELV2'!B179 ->  | C179: =IFERROR(VLOOKUP(B179,'DATA ELV2'!$B$2:$C$6303,2,0),"") -> 
B180: ='DATA ELV2'!B180 ->  | C180: =IFERROR(VLOOKUP(B180,'DATA ELV2'!$B$2:$C$6303,2,0),"") -> 
B181: ='DATA ELV2'!B181 ->  | C181: =IFERROR(VLOOKUP(B181,'DATA ELV2'!$B$2:$C$6303,2,0),"") -> 
A182: classe4 | B182: ='DATA ELV2'!B182 -> أمحمدي آسية | C182: =IFERROR(VLOOKUP(B182,'DATA ELV2'!$B$2:$C$6303,2,0),"") -> 3ع ت01
A183: classe4 | B183: ='DATA ELV2'!B183 -> العربي مريم | C183: =IFERROR(VLOOKUP(B183,'DATA ELV2'!$B$2:$C$6303,2,0),"") -> 3ع ت01
A184: classe4 | B184: ='DATA ELV2'!B184 -> امبارك إيمان | C184: =IFERROR(VLOOKUP(B184,'DATA ELV2'!$B$2:$C$6303,2,0),"") -> 3ع ت01
A185: classe4 | B185: ='DATA ELV2'!B185 -> بن زغادي أحمد ياسين | C185: =IFERROR(VLOOKUP(B185,'DATA ELV2'!$B$2:$C$6303,2,0),"") -> 3ع ت01
A186: classe4 | B186: ='DATA ELV2'!B186 -> بن شقرة نسرين | C186: =IFERROR(VLOOKUP(B186,'DATA ELV2'!$B$2:$C$6303,2,0),"") -> 3ع ت01
A187: classe4 | B187: ='DATA ELV2'!B187 -> بوزار شهيناز | C187: =IFERROR(VLOOKUP(B187,'DATA ELV2'!$B$2:$C$6303,2,0),"") -> 3ع ت01
A188: classe4 | B188: ='DATA ELV2'!B188 -> بوشام زكرياء عبد الرحمن | C188: =IFERROR(VLOOKUP(B188,'DATA ELV2'!$B$2:$C$6303,2,0),"") -> 3ع ت01
A189: classe4 | B189: ='DATA ELV2'!B189 -> بوعيشة فاطمة الزهراء | C189: =IFERROR(VLOOKUP(B189,'DATA ELV2'!$B$2:$C$6303,2,0),"") -> 3ع ت01
A190: classe4 | B190: ='DATA ELV2'!B190 -> بومدين زكية | C190: =IFERROR(VLOOKUP(B190,'DATA ELV2'!$B$2:$C$6303,2,0),"") -> 3ع ت01
A191: classe4 | B191: ='DATA ELV2'!B191 -> راجعي دعاء | C191: =IFERROR(VLOOKUP(B191,'DATA ELV2'!$B$2:$C$6303,2,0),"") -> 3ع ت01
A192: classe4 | B192: ='DATA ELV2'!B192 -> زرقاني أمال خليدة | C192: =IFERROR(VLOOKUP(B192,'DATA ELV2'!$B$2:$C$6303,2,0),"") -> 3ع ت01
A193: classe4 | B193: ='DATA ELV2'!B193 -> زرقاني هديل | C193: =IFERROR(VLOOKUP(B193,'DATA ELV2'!$B$2:$C$6303,2,0),"") -> 3ع ت01
A194: classe4 | B194: ='DATA ELV2'!B194 -> شارف شيماء | C194: =IFERROR(VLOOKUP(B194,'DATA ELV2'!$B$2:$C$6303,2,0),"") -> 3ع ت01
A195: =IFERROR(VLOOKUP(C195,$D$2:$E$41,2,0),"") -> classe4 | B195: ='DATA ELV2'!B195 -> علواني يوسف | C195: =IFERROR(VLOOKUP(B195,'DATA ELV2'!$B$2:$C$6303,2,0),"") -> 3ع ت01
A196: classe4 | B196: ='DATA ELV2'!B196 -> عيساني اسماعيل | C196: =IFERROR(VLOOKUP(B196,'DATA ELV2'!$B$2:$C$6303,2,0),"") -> 3ع ت01
A197: classe4 | B197: ='DATA ELV2'!B197 -> قوراري ليندة | C197: =IFERROR(VLOOKUP(B197,'DATA ELV2'!$B$2:$C$6303,2,0),"") -> 3ع ت01
A198: classe4 | B198: ='DATA ELV2'!B198 -> لحسايني فاطمة الزهراء | C198: =IFERROR(VLOOKUP(B198,'DATA ELV2'!$B$2:$C$6303,2,0),"") -> 3ع ت01
A199: classe4 | B199: ='DATA ELV2'!B199 -> لحمر شيماء | C199: =IFERROR(VLOOKUP(B199,'DATA ELV2'!$B$2:$C$6303,2,0),"") -> 3ع ت01
A200: classe4 | B200: ='DATA ELV2'!B200 -> مبرك محمد أمين فارس | C200: =IFERROR(VLOOKUP(B200,'DATA ELV2'!$B$2:$C$6303,2,0),"") -> 3ع ت01
A201: classe4 | B201: ='DATA ELV2'!B201 -> مراس أمال | C201: =IFERROR(VLOOKUP(B201,'DATA ELV2'!$B$2:$C$6303,2,0),"") -> 3ع ت01
... 8593 more rows

Sheet LISTE
A1: الجمهورية الجزائرية الديمقراطية الشعبية
A2: وزارة التربية الوطنية | M2: ج م أ01
A4: =MAIN!A5 -> مديرية التربية لولاية تلمسان | H4: =MAIN!A9 -> ثانوية الخوارزمي - مغنية
B6: القائمة الإسمية لتلاميذ قسم : | E6: =M2 -> ج م أ01
B8: عدد التلاميذ | C8: =E8+G8 -> 44 | D8: الذكور | E8: =COUNTIF(E11:E60,"ذكر") -> 20 | F8: الاناث | G8: =COUNTIF(E11:E60,"أنثى") -> 24
H9: الإعــــادة
A10: 1 | B10: رقم التعريف | C10: اللقب | D10: الاسم | E10: الجنس | F10: تاريخ الميلاد | G10: مكان الميلاد | H10: س1 | I10: س2 | J10: س3 | K10: ملاحظات
A11: 2 | B11: 1100613270181100 | C11: أولدي | D11: إبتهال | E11: أنثى | F11: 2006-07-03 | G11: مغنية | K11: نصف داخلي
A12: 3 | B12: 1100613270231900 | C12: العابد | D12: إكرام | E12: أنثى | F12: 2006-08-14 | G12: مغنية | K12: نصف داخلي
A13: 4 | B13: 1100413270297300 | C13: بختي | D13: زوليخة | E13: أنثى | F13: 2004-10-27 | G13: مغنية | K13: نصف داخلي
A14: 5 | B14: 1000213270111100 | C14: بدي | D14: عبدالمالك | E14: ذكر | F14: 2002-06-07 | G14: مغنية | K14: نصف داخلي
A15: 6 | B15: 1000613271121500 | C15: بن دهمة | D15: نور الدين | E15: ذكر | F15: 2006-01-16 | G15: مغنية | K15: نصف داخلي
A16: 7 | B16: 1100613270244000 | C16: بن عبد الله | D16: جهان إبتسام | E16: أنثى | F16: 2006-08-25 | G16: مغنية | K16: نصف داخلي
A17: 8 | B17: 1100713270046600 | C17: بن عبد الله | D17: فريدة | E17: أنثى | F17: 2007-02-21 | G17: مغنية | K17: نصف داخلي
A18: 9 | B18: 1000613270230300 | C18: بن عبد الله | D18: محمد أمير | E18: ذكر | F18: 2006-08-13 | G18: مغنية | K18: نصف داخلي
A19: 10 | B19: 1100313270249000 | C19: بن عزوز | D19: إكرام | E19: أنثى | F19: 2003-10-23 | G19: مغنية | K19: نصف داخلي
A20: 11 | B20: 1100613010696100 | C20: بوكلاطة | D20: ايناس شهيناز | E20: أنثى | F20: 2006-09-13 | G20: تلمسان | K20: نصف داخلي
A21: 12 | B21: 1000413270056300 | C21: بوناب | D21: عكاشة | E21: ذكر | F21: 2004-03-07 | G21: مغنية | K21: نصف داخلي
A22: 13 | B22: 1000413270006800 | C22: تركي | D22: الميلود | E22: ذكر | F22: 2004-01-09 | G22: مغنية | K22: نصف داخلي
A23: 14 | B23: 1100513270369700 | C23: تيسوراسي | D23: الزهرة | E23: أنثى | F23: 2005-12-19 | G23: مغنية | K23: خارجي
A24: 15 | B24: 1000513270066900 | C24: خالدي | D24: هواري | E24: ذكر | F24: 2005-03-20 | G24: مغنية | K24: نصف داخلي
A25: 16 | B25: 1100413270073600 | C25: دراري | D25: مغنية رجاء | E25: أنثى | F25: 2004-03-30 | G25: مغنية | K25: نصف داخلي
A26: 17 | B26: 1100613270047800 | C26: دراريس | D26: دعاء | E26: أنثى | F26: 2006-02-24 | G26: مغنية | K26: نصف داخلي
A27: 18 | B27: 1000513270036000 | C27: زماني | D27: محمد | E27: ذكر | F27: 2005-02-09 | G27: مغنية | K27: نصف داخلي
A28: 19 | B28: 1000613270174500 | C28: شلالي | D28: محمد امين | E28: ذكر | F28: 2006-06-28 | G28: مغنية | K28: نصف داخلي
A29: 20 | B29: 1100413270180500 | C29: شنافي | D29: مغنية | E29: أنثى | F29: 2004-07-13 | G29: مغنية | K29: نصف داخلي
A30: 21 | B30: 1000422010852400 | C30: طالب | D30: شرحبيل | E30: ذكر | F30: 2004-05-27 | G30: بن باديس | K30: نصف داخلي
A31: 22 | B31: 1000413270308000 | C31: عبد المالك | D31: محمد أمين | E31: ذكر | F31: 2004-11-09 | G31: مغنية | K31: نصف داخلي
A32: 23 | B32: 1100613270216500 | C32: فارس | D32: ليلى | E32: أنثى | F32: 2006-08-02 | G32: مغنية | K32: نصف داخلي
A33: 24 | B33: 1000213270153200 | C33: قاري | D33: عبد العزيز | E33: ذكر | F33: 2002-07-22 | G33: مغنية | K33: نصف داخلي
A34: 25 | B34: 1000413270134100 | C34: قدور باي | D34: بن أعمر | E34: ذكر | F34: 2004-06-05 | G34: مغنية | K34: نصف داخلي
A35: 26 | B35: 1100531051323400 | C35: معزوز | D35: يمينة | E35: أنثى | F35: 2005-10-18 | G35: السانية | K35: نصف داخلي
A36: 27 | B36: 1000513270101000 | C36: مقدم | D36: وليد | E36: ذكر | F36: 2005-05-01 | G36: مغنية | K36: نصف داخلي
A37: 28 | B37: 1100413270014300 | C37: أوزليفي | D37: إكرام | E37: أنثى | F37: 2004-01-17 | G37: مغنية | K37: خارجي
A38: 29 | B38: 1000213270155400 | C38: بشير | D38: فتحي | E38: ذكر | F38: 2002-07-23 | G38: مغنية | K38: خارجي
A39: 30 | B39: 1100613270065200 | C39: بلخير | D39: هناء | E39: أنثى | F39: 2006-06-20 | G39: مغنية | K39: خارجي
A40: 31 | B40: 1100613270170000 | C40: بن طلحة | D40: ولاء فاطمة الزهراء | E40: أنثى | F40: 2006-06-26 | G40: مغنية | K40: خارجي
A41: 32 | B41: 1000513270232300 | C41: بن فريد | D41: محمد ريان | E41: ذكر | F41: 2005-08-13 | G41: مغنية | K41: خارجي
A42: 33 | B42: 1000413270066600 | C42: حسني | D42: مراد | E42: ذكر | F42: 2004-03-20 | G42: مغنية | K42: خارجي
A43: 34 | B43: 1100713270023100 | C43: زواري | D43: أمنة | E43: أنثى | F43: 2007-01-24 | G43: مغنية | K43: خارجي
A44: 35 | B44: 1000313270188900 | C44: ساروت | D44: عبد الإله | E44: ذكر | F44: 2003-08-17 | G44: مغنية | K44: خارجي
A45: 36 | B45: 1100513270227800 | C45: سلطاني | D45: هاجر | E45: أنثى | F45: 2005-08-09 | G45: مغنية | K45: خارجي
A46: 37 | B46: 1100513270203700 | C46: شواف | D46: آية | E46: أنثى | F46: 2005-07-22 | G46: مغنية | K46: خارجي
A47: 38 | B47: 1100613270055900 | C47: صولة | D47: شهيناز فتيحة | E47: أنثى | F47: 2006-03-06 | G47: مغنية | K47: خارجي
A48: 39 | B48: 1100631060234100 | C48: عدة بوشيخ | D48: مروى | E48: أنثى | F48: 2006-12-30 | G48: أرزيو | K48: خارجي
A49: 40 | B49: 1100613270012400 | C49: غربي | D49: سلاف | E49: أنثى | F49: 2006-01-13 | G49: مغنية | K49: خارجي
A50: 41 | B50: 1100413270144400 | C50: فركلي | D50: بشرى | E50: أنثى | F50: 2004-06-15 | G50: مغنية | K50: خارجي
A51: 42 | B51: 1100613270113700 | C51: لخضر | D51: مروة | E51: أنثى | F51: 2006-05-13 | G51: مغنية | K51: خارجي
A52: 43 | B52: 1000513270045500 | C52: مخلوفي | D52: ياسين | E52: ذكر | F52: 2005-02-21 | G52: مغنية | K52: خارجي
A53: 44 | B53: 1000413270058700 | C53: مخوخي | D53: حامد إسلام | E53: ذكر | F53: 2004-10-26 | G53: مغنية | K53: خارجي
A54: 45 | B54: 1000313270133100 | C54: منصوري | D54: محمد نجيب | E54: ذكر | F54: 2003-06-23 | G54: مغنية | K54: نصف داخلي
A55: 46
A56: 47
A57: 48
A58: 48
A59: 49
A60: 50

Sheet Feuil7
E1: السنة الثالثة | J1: =SUMIF(D6:D3040,E1,M6:M3040) -> 8
E2: السنة الثانية | J2: =SUMIF(D6:D3040,E2,M6:M3040) -> 4 | R2: ح8
E3: السنة الأولى | J3: =SUMIF(D6:D3040,E3,M6:M3040) -> 6 | R3: غ
A5: الرقم | B5: اسم و لقـــــب التلميذ | C5: القسم | D5: المستوى | E5: ح1 | F5: ح2 | G5: ح3 | H5: ح4 | I5: ح5 | J5: ح6 | K5: ح7 | L5: ح8 | M5: مج | O5: الرقم | P5: اسم و لقـــــب التلميذ | Q5: القسم | R5: المستوى | S5: ح1 | T5: ح2 | U5: ح3 | V5: ح4 | W5: ح5 | X5: ح6 | Y5: ح7 | Z5: ح8 | AA5: مج
A6: 1 | B6: ='DATA ELV'!B9 -> بوستين أسامة | C6: ='DATA ELV'!J9 -> 3ت ر/هم | D6: =IF(LEFT(C6,1)="3","السنة الثالثة",IF(LEFT(C6,1)="2","السنة الثانية",IF(LEFT(C6,1)="0","","السنة الأولى"))) -> السنة الثالثة | G6: غ | H6: غ | I6: غ | J6: غ | L6: غ | M6: =COUNTA(E6:L6) -> 5 | O6: 1 | P6: بوستين أسامة | Q6: 3ت ر/هم | R6: السنة الثالثة | U6: غ | V6: غ | W6: غ | X6: غ | Z6: غ | AA6: 5
A7: 2 | B7: ='DATA ELV'!B10 -> سفيون مروة | C7: ='DATA ELV'!J10 -> 3ت ر/هم | D7: =IF(LEFT(C7,1)="3","السنة الثالثة",IF(LEFT(C7,1)="2","السنة الثانية",IF(LEFT(C7,1)="0","","السنة الأولى"))) -> السنة الثالثة | M7: =COUNTA(E7:L7) -> 0 | O7: 4 | P7: قرواو محمد الأمين | Q7: 3ت ر/هم | R7: السنة الثالثة | Z7: غ | AA7: 1
A8: 3 | B8: ='DATA ELV'!B11 -> قرد آية | C8: ='DATA ELV'!J11 -> 3ت ر/هم | D8: السنة الثالثة | M8: 0 | O8: 6 | P8: بن سالم عبد الله | Q8: 3ت ر/هم | R8: السنة الثالثة | Z8: غ | AA8: 1
A9: 4 | B9: ='DATA ELV'!B12 -> قرواو محمد الأمين | C9: ='DATA ELV'!J12 -> 3ت ر/هم | D9: السنة الثالثة | L9: غ | M9: 1 | O9: 248 | P9: بوهنة أبو بكر | Q9: 2ت إ01 | R9: السنة الثانية | Z9: غ | AA9: 1
A10: 5 | B10: ='DATA ELV'!B13 -> بختاوي مغنية | C10: ='DATA ELV'!J13 -> 3ت ر/هم | D10: السنة الثالثة | M10: 0 | O10: 399 | P10: طلحاوي زهور نورهان | Q10: 0 | S10: غ | T10: غ | U10: غ | V10: غ | W10: غ | X10: غ | Y10: غ | Z10: غ | AA10: 8
A11: 6 | B11: ='DATA ELV'!B14 -> بن سالم عبد الله | C11: ='DATA ELV'!J14 -> 3ت ر/هم | D11: السنة الثالثة | L11: غ | M11: 1 | O11: 453 | P11: مجاهد بشرى | Q11: ج م ع تك01 | R11: السنة الأولى | U11: غ | V11: غ | W11: غ | X11: غ | Y11: غ | Z11: غ | AA11: 6
A12: 7 | B12: ='DATA ELV'!B15 -> بوزيان مريم | C12: ='DATA ELV'!J15 -> 3ت ر/هك | D12: السنة الثالثة | M12: 0
A13: 8 | B13: ='DATA ELV'!B16 -> بوزي عبير | C13: ='DATA ELV'!J16 -> 3ت ر/هك | D13: السنة الثالثة | M13: 0
A14: 9 | B14: ='DATA ELV'!B17 -> تاسرة رانيا | C14: ='DATA ELV'!J17 -> 3ت ر/هك | D14: السنة الثالثة | M14: 0
A15: 10 | B15: ='DATA ELV'!B18 -> حنيفي دعاء | C15: ='DATA ELV'!J18 -> 3ت ر/هك | D15: السنة الثالثة | M15: 0
A16: 11 | B16: ='DATA ELV'!B19 -> سلومي فتيحة | C16: ='DATA ELV'!J19 -> 3ت ر/هك | D16: السنة الثالثة | M16: 0
A17: 12 | B17: ='DATA ELV'!B20 -> لعروسي فرح | C17: ='DATA ELV'!J20 -> 3ت ر/هك | D17: السنة الثالثة | M17: 0
A18: 13 | B18: ='DATA ELV'!B21 -> مقدم موسى | C18: ='DATA ELV'!J21 -> 3ت ر/هك | D18: السنة الثالثة | K18: غ | M18: 1
A19: 14 | B19: ='DATA ELV'!B22 -> يخلف لحسن | C19: ='DATA ELV'!J22 -> 3ت ر/هك | D19: السنة الثالثة | M19: 0
A20: 15 | B20: ='DATA ELV'!B23 -> بن يوبي مغنية امينة | C20: ='DATA ELV'!J23 -> 3ت ر/هك | D20: السنة الثالثة | M20: 0
A21: 16 | B21: ='DATA ELV'!B24 -> بوبكر يسرى | C21: ='DATA ELV'!J24 -> 3ت ر/هك | D21: السنة الثالثة | M21: 0
A22: 17 | B22: ='DATA ELV'!B25 -> زرعي سعيد | C22: ='DATA ELV'!J25 -> 3ت ر/هك | D22: السنة الثالثة | M22: 0
A23: 18 | B23: ='DATA ELV'!B26 -> زياني الأول خديجة | C23: ='DATA ELV'!J26 -> 3ت ر/هك | D23: السنة الثالثة | M23: 0
A24: 19 | B24: ='DATA ELV'!B27 -> سايح شيماء | C24: ='DATA ELV'!J27 -> 3ت ر/هك | D24: السنة الثالثة | M24: 0
A25: 20 | B25: ='DATA ELV'!B28 -> قنشي علاء الدين | C25: ='DATA ELV'!J28 -> 0 | M25: 0
A26: 21 | B26: ='DATA ELV'!B29 -> الفضيل ريم | C26: ='DATA ELV'!J29 -> 3ت إ01 | D26: السنة الثالثة | M26: 0
A27: 22 | B27: ='DATA ELV'!B30 -> بن طيب ياسين | C27: ='DATA ELV'!J30 -> 3ت إ01 | D27: السنة الثالثة | M27: 0
A28: 23 | B28: ='DATA ELV'!B31 -> بوبندير أحمد | C28: ='DATA ELV'!J31 -> 3ت إ01 | D28: السنة الثالثة | M28: 0
A29: 24 | B29: ='DATA ELV'!B32 -> بوبندير ميساء | C29: ='DATA ELV'!J32 -> 3ت إ01 | D29: السنة الثالثة | M29: 0
A30: 25 | B30: ='DATA ELV'!B33 -> بوستين محمد اسلام | C30: ='DATA ELV'!J33 -> 3ت إ01 | D30: السنة الثالثة | M30: 0
A31: 26 | B31: ='DATA ELV'!B34 -> بوعلي أميمة | C31: ='DATA ELV'!J34 -> 3ت إ01 | D31: السنة الثالثة | M31: 0
A32: 27 | B32: ='DATA ELV'!B35 -> بوعيشة مروة رميسة | C32: ='DATA ELV'!J35 -> 3ت إ01 | D32: السنة الثالثة | M32: 0
A33: 28 | B33: ='DATA ELV'!B36 -> حوحو محفوظ عبد الرحيم | C33: ='DATA ELV'!J36 -> 3ت إ01 | D33: السنة الثالثة | M33: 0
A34: 29 | B34: ='DATA ELV'!B37 -> خواني مريم | C34: ='DATA ELV'!J37 -> 3ت إ01 | D34: السنة الثالثة | M34: 0
A35: 30 | B35: ='DATA ELV'!B38 -> راجعي منال | C35: ='DATA ELV'!J38 -> 3ت إ01 | D35: السنة الثالثة | M35: 0
A36: 31 | B36: ='DATA ELV'!B39 -> زحزوح محمد الصادق | C36: ='DATA ELV'!J39 -> 3ت إ01 | D36: السنة الثالثة | M36: 0
A37: 32 | B37: ='DATA ELV'!B40 -> زياني الأول مريم | C37: ='DATA ELV'!J40 -> 3ت إ01 | D37: السنة الثالثة | M37: 0
A38: 33 | B38: ='DATA ELV'!B41 -> سكاك حاج عبد الله | C38: ='DATA ELV'!J41 -> 3ت إ01 | D38: السنة الثالثة | M38: 0
A39: 34 | B39: ='DATA ELV'!B42 -> شبيب دعاء نورهان | C39: ='DATA ELV'!J42 -> 3ت إ01 | D39: السنة الثالثة | M39: 0
A40: 35 | B40: ='DATA ELV'!B43 -> شياخ شيماء | C40: ='DATA ELV'!J43 -> 3ت إ01 | D40: السنة الثالثة | M40: 0
A41: 36 | B41: ='DATA ELV'!B44 -> شيباني سمير | C41: ='DATA ELV'!J44 -> 3ت إ01 | D41: السنة الثالثة | M41: 0
A42: 37 | B42: ='DATA ELV'!B45 -> عفاني أيمن | C42: ='DATA ELV'!J45 -> 3ت إ01 | D42: السنة الثالثة | M42: 0
A43: 38 | B43: ='DATA ELV'!B46 -> عمراوي مواهب | C43: ='DATA ELV'!J46 -> 3ت إ01 | D43: السنة الثالثة | M43: 0
A44: 39 | B44: ='DATA ELV'!B47 -> قرد محمد | C44: ='DATA ELV'!J47 -> 3ت إ01 | D44: السنة الثالثة | M44: 0
A45: 40 | B45: ='DATA ELV'!B48 -> كوشير فاطمة الزهراء | C45: ='DATA ELV'!J48 -> 3ت إ01 | D45: السنة الثالثة | M45: 0
A46: 41 | B46: ='DATA ELV'!B49 -> لزعر شيماء | C46: ='DATA ELV'!J49 -> 3ت إ01 | D46: السنة الثالثة | M46: 0
A47: 42 | B47: ='DATA ELV'!B50 -> مولاي بودخيلي شيماء | C47: ='DATA ELV'!J50 -> 3ت إ01 | D47: السنة الثالثة | M47: 0
A48: 43 | B48: ='DATA ELV'!B51 -> هرنين رانيا | C48: ='DATA ELV'!J51 -> 3ت إ01 | D48: السنة الثالثة | M48: 0
A49: 44 | B49: ='DATA ELV'!B52 -> برواين حورية | C49: ='DATA ELV'!J52 -> 3ت إ01 | D49: السنة الثالثة | M49: 0
A50: 45 | B50: ='DATA ELV'!B53 -> بلعباس رفيق | C50: ='DATA ELV'!J53 -> 3ت إ01 | D50: السنة الثالثة | M50: 0
A51: 46 | B51: ='DATA ELV'!B54 -> بلميمون نبية | C51: ='DATA ELV'!J54 -> 0 | M51: 0
A52: 47 | B52: ='DATA ELV'!B55 -> بن هدي إناس | C52: ='DATA ELV'!J55 -> 3ت إ01 | D52: السنة الثالثة | M52: 0
A53: 48 | B53: ='DATA ELV'!B56 -> جرارفاوي سارة | C53: ='DATA ELV'!J56 -> 3ت إ01 | D53: السنة الثالثة | M53: 0
A54: 49 | B54: ='DATA ELV'!B57 -> زياني الأول ابتسام | C54: ='DATA ELV'!J57 -> 0 | M54: 0
A55: 50 | B55: ='DATA ELV'!B58 -> صدار عبد العزيز | C55: ='DATA ELV'!J58 -> 3ت إ01 | D55: السنة الثالثة | M55: 0
A56: 51 | B56: ='DATA ELV'!B59 -> عبوين أيمن | C56: ='DATA ELV'!J59 -> 3ت إ01 | D56: السنة الثالثة | M56: 0
A57: 52 | B57: ='DATA ELV'!B60 -> قوري الهواري | C57: ='DATA ELV'!J60 -> 3ت إ01 | D57: السنة الثالثة | M57: 0
A58: 53 | B58: ='DATA ELV'!B61 -> كرد توفيق | C58: ='DATA ELV'!J61 -> 3ت إ01 | D58: السنة الثالثة | M58: 0
A59: 54 | B59: ='DATA ELV'!B62 -> هواري سلسبيل | C59: ='DATA ELV'!J62 -> 3ت إ01 | D59: السنة الثالثة | M59: 0
A60: 55 | B60: ='DATA ELV'!B63 -> أمحمدي آسية | C60: ='DATA ELV'!J63 -> 3ع ت01 | D60: السنة الثالثة | M60: 0
A61: 56 | B61: ='DATA ELV'!B64 -> العربي مريم | C61: ='DATA ELV'!J64 -> 3ع ت01 | D61: السنة الثالثة | M61: 0
A62: 57 | B62: ='DATA ELV'!B65 -> امبارك إيمان | C62: ='DATA ELV'!J65 -> 3ع ت01 | D62: السنة الثالثة | M62: 0
A63: 58 | B63: ='DATA ELV'!B66 -> بن زغادي أحمد ياسين | C63: ='DATA ELV'!J66 -> 3ع ت01 | D63: السنة الثالثة | M63: 0
A64: 59 | B64: ='DATA ELV'!B67 -> بن شقرة نسرين | C64: ='DATA ELV'!J67 -> 3ع ت01 | D64: السنة الثالثة | M64: 0
A65: 60 | B65: ='DATA ELV'!B68 -> بوزار شهيناز | C65: ='DATA ELV'!J68 -> 3ع ت01 | D65: السنة الثالثة | M65: 0
A66: 61 | B66: ='DATA ELV'!B69 -> بوشام زكرياء عبد الرحمن | C66: ='DATA ELV'!J69 -> 3ع ت01 | D66: السنة الثالثة | M66: 0
A67: 62 | B67: ='DATA ELV'!B70 -> بوعيشة فاطمة الزهراء | C67: ='DATA ELV'!J70 -> 3ع ت01 | D67: السنة الثالثة | M67: 0
A68: 63 | B68: ='DATA ELV'!B71 -> بومدين زكية | C68: ='DATA ELV'!J71 -> 3ع ت01 | D68: السنة الثالثة | M68: 0
A69: 64 | B69: ='DATA ELV'!B72 -> راجعي دعاء | C69: ='DATA ELV'!J72 -> 3ع ت01 | D69: السنة الثالثة | M69: 0
A70: 65 | B70: ='DATA ELV'!B73 -> زرقاني أمال خليدة | C70: ='DATA ELV'!J73 -> 3ع ت01 | D70: السنة الثالثة | M70: 0
A71: 66 | B71: ='DATA ELV'!B74 -> زرقاني هديل | C71: ='DATA ELV'!J74 -> 3ع ت01 | D71: =IF(LEFT(C71,1)="3","السنة الثالثة",IF(LEFT(C71,1)="2","السنة الثانية",IF(LEFT(C71,1)="0","","السنة الأولى"))) -> السنة الثالثة | M71: =COUNTA(E71:L71) -> 0
A72: 67 | B72: ='DATA ELV'!B75 -> شارف شيماء | C72: ='DATA ELV'!J75 -> 3ع ت01 | D72: السنة الثالثة | M72: 0
A73: 68 | B73: ='DATA ELV'!B76 -> علواني يوسف | C73: ='DATA ELV'!J76 -> 3ع ت01 | D73: السنة الثالثة | M73: 0
A74: 69 | B74: ='DATA ELV'!B77 -> عيساني اسماعيل | C74: ='DATA ELV'!J77 -> 3ع ت01 | D74: السنة الثالثة | M74: 0
A75: 70 | B75: ='DATA ELV'!B78 -> قوراري ليندة | C75: ='DATA ELV'!J78 -> 3ع ت01 | D75: السنة الثالثة | M75: 0
A76: 71 | B76: ='DATA ELV'!B79 -> لحسايني فاطمة الزهراء | C76: ='DATA ELV'!J79 -> 3ع ت01 | D76: السنة الثالثة | M76: 0
A77: 72 | B77: ='DATA ELV'!B80 -> لحمر شيماء | C77: ='DATA ELV'!J80 -> 3ع ت01 | D77: السنة الثالثة | M77: 0
A78: 73 | B78: ='DATA ELV'!B81 -> مبرك محمد أمين فارس | C78: ='DATA ELV'!J81 -> 3ع ت01 | D78: السنة الثالثة | M78: 0
A79: 74 | B79: ='DATA ELV'!B82 -> مراس أمال | C79: ='DATA ELV'!J82 -> 3ع ت01 | D79: السنة الثالثة | M79: 0
A80: 75 | B80: ='DATA ELV'!B83 -> مصار إناس | C80: ='DATA ELV'!J83 -> 3ع ت01 | D80: السنة الثالثة | M80: 0
A81: 76 | B81: ='DATA ELV'!B84 -> نوالي لبنى | C81: ='DATA ELV'!J84 -> 3ع ت01 | D81: السنة الثالثة | M81: 0
A82: 77 | B82: ='DATA ELV'!B85 -> العربي فاطمة الزهراء | C82: ='DATA ELV'!J85 -> 3ع ت01 | D82: السنة الثالثة | M82: 0
A83: 78 | B83: ='DATA ELV'!B86 -> بلعباس فيروز | C83: ='DATA ELV'!J86 -> 3ع ت01 | D83: السنة الثالثة | M83: 0
A84: 79 | B84: ='DATA ELV'!B87 -> بوتيتل فاطمة | C84: ='DATA ELV'!J87 -> 3ع ت01 | D84: السنة الثالثة | M84: 0
A85: 80 | B85: ='DATA ELV'!B88 -> بوجلولي فاطمة الزهراء | C85: ='DATA ELV'!J88 -> 0 | M85: 0
A86: 81 | B86: ='DATA ELV'!B89 -> حمادي أنس | C86: ='DATA ELV'!J89 -> 3ع ت01 | D86: السنة الثالثة | M86: 0
A87: 82 | B87: ='DATA ELV'!B90 -> دخيسي وصال | C87: ='DATA ELV'!J90 -> 3ع ت01 | D87: السنة الثالثة | M87: 0
A88: 83 | B88: ='DATA ELV'!B91 -> راشدي عبدالله | C88: ='DATA ELV'!J91 -> 3ع ت01 | D88: السنة الثالثة | M88: 0
A89: 84 | B89: ='DATA ELV'!B92 -> زحزوح فاطمة الزهراء | C89: ='DATA ELV'!J92 -> 3ع ت01 | D89: السنة الثالثة | M89: 0
A90: 85 | B90: ='DATA ELV'!B93 -> زياني الأول سكينة | C90: ='DATA ELV'!J93 -> 3ع ت01 | D90: السنة الثالثة | M90: 0
A91: 86 | B91: ='DATA ELV'!B94 -> سايح كوثر فاطنة | C91: ='DATA ELV'!J94 -> 3ع ت01 | D91: السنة الثالثة | M91: 0
A92: 87 | B92: ='DATA ELV'!B95 -> صهباتو جيهان نورهان | C92: ='DATA ELV'!J95 -> 3ع ت01 | D92: السنة الثالثة | M92: 0
A93: 88 | B93: ='DATA ELV'!B96 -> عباسي فاطمة الزهراء | C93: ='DATA ELV'!J96 -> 3ع ت01 | D93: السنة الثالثة | M93: 0
A94: 89 | B94: ='DATA ELV'!B97 -> مجاطي زينب | C94: ='DATA ELV'!J97 -> 3ع ت01 | D94: السنة الثالثة | M94: 0
A95: 90 | B95: ='DATA ELV'!B98 -> مقداد وئيل | C95: ='DATA ELV'!J98 -> 3ع ت01 | D95: السنة الثالثة | M95: 0
A96: 91 | B96: ='DATA ELV'!B99 -> منيري عبد المالك | C96: ='DATA ELV'!J99 -> 3ع ت01 | D96: السنة الثالثة | M96: 0
A97: 92 | B97: ='DATA ELV'!B100 -> مهنان قصي | C97: ='DATA ELV'!J100 -> 3ع ت01 | D97: السنة الثالثة | M97: 0
A98: 93 | B98: ='DATA ELV'!B101 -> نواوي وائل | C98: ='DATA ELV'!J101 -> 3ع ت01 | D98: السنة الثالثة | M98: 0
A99: 94 | B99: ='DATA ELV'!B102 -> أمحمدي وليد | C99: ='DATA ELV'!J102 -> 3ع ت02 | D99: السنة الثالثة | M99: 0
A100: 95 | B100: ='DATA ELV'!B103 -> العرابي نادية | C100: ='DATA ELV'!J103 -> 3ع ت02 | D100: السنة الثالثة | M100: 0
A101: 96 | B101: ='DATA ELV'!B104 -> اوراغي علاء الدين | C101: ='DATA ELV'!J104 -> 3ع ت02 | D101: السنة الثالثة | M101: 0
A102: 97 | B102: ='DATA ELV'!B105 -> بلطرش سعاد رانية | C102: ='DATA ELV'!J105 -> 3ع ت02 | D102: السنة الثالثة | M102: 0
A103: 98 | B103: ='DATA ELV'!B106 -> بن حلي ياسمينة فادية | C103: ='DATA ELV'!J106 -> 3ع ت02 | D103: السنة الثالثة | M103: 0
A104: 99 | B104: ='DATA ELV'!B107 -> بن دلاع جهيدة | C104: ='DATA ELV'!J107 -> 3ع ت02 | D104: السنة الثالثة | M104: 0
A105: 100 | B105: ='DATA ELV'!B108 -> بن عيش ليلى | C105: ='DATA ELV'!J108 -> 3ع ت02 | D105: السنة الثالثة | M105: 0
A106: 101 | B106: ='DATA ELV'!B109 -> بودرقة أميمة | C106: ='DATA ELV'!J109 -> 3ع ت02 | D106: السنة الثالثة | M106: 0
A107: 102 | B107: ='DATA ELV'!B110 -> بوزاهري شيماء | C107: ='DATA ELV'!J110 -> 3ع ت02 | D107: السنة الثالثة | M107: 0
A108: 103 | B108: ='DATA ELV'!B111 -> جدودي إكرام | C108: ='DATA ELV'!J111 -> 3ع ت02 | D108: السنة الثالثة | M108: 0
A109: 104 | B109: ='DATA ELV'!B112 -> داري أميرة | C109: ='DATA ELV'!J112 -> 3ع ت02 | D109: السنة الثالثة | M109: 0
A110: 105 | B110: ='DATA ELV'!B113 -> ستاوي عبد الهادي رضا | C110: ='DATA ELV'!J113 -> 3ع ت02 | D110: السنة الثالثة | M110: 0
A111: 106 | B111: ='DATA ELV'!B114 -> شارف فاطمة الزهراء | C111: ='DATA ELV'!J114 -> 3ع ت02 | D111: السنة الثالثة | M111: 0
A112: 107 | B112: ='DATA ELV'!B115 -> شاوش هند | C112: ='DATA ELV'!J115 -> 3ع ت02 | D112: السنة الثالثة | M112: 0
A113: 108 | B113: ='DATA ELV'!B116 -> شواو أمينة | C113: ='DATA ELV'!J116 -> 3ع ت02 | D113: السنة الثالثة | M113: 0
A114: 109 | B114: ='DATA ELV'!B117 -> كبيب محمد أمين | C114: ='DATA ELV'!J117 -> 3ع ت02 | D114: السنة الثالثة | M114: 0
A115: 110 | B115: ='DATA ELV'!B118 -> لكحل ياسمين | C115: ='DATA ELV'!J118 -> 3ع ت02 | D115: السنة الثالثة | M115: 0
A116: 111 | B116: ='DATA ELV'!B119 -> مصمودي نجية | C116: ='DATA ELV'!J119 -> 3ع ت02 | D116: السنة الثالثة | M116: 0
A117: 112 | B117: ='DATA ELV'!B120 -> مفيتح مريم | C117: ='DATA ELV'!J120 -> 3ع ت02 | D117: السنة الثالثة | M117: 0
A118: 113 | B118: ='DATA ELV'!B121 -> نوالي ارشاد | C118: ='DATA ELV'!J121 -> 3ع ت02 | D118: السنة الثالثة | M118: 0
A119: 114 | B119: ='DATA ELV'!B122 -> بوحفص عبد الرحيم | C119: ='DATA ELV'!J122 -> 3ع ت02 | D119: السنة الثالثة | M119: 0
A120: 115 | B120: ='DATA ELV'!B123 -> تاجوري سيدي محمد | C120: ='DATA ELV'!J123 -> 3ع ت02 | D120: السنة الثالثة | M120: 0
A121: 116 | B121: ='DATA ELV'!B124 -> زحوط ملاك | C121: ='DATA ELV'!J124 -> 3ع ت02 | D121: السنة الثالثة | M121: 0
A122: 117 | B122: ='DATA ELV'!B125 -> طرشون إكرام | C122: ='DATA ELV'!J125 -> 3ع ت02 | D122: السنة الثالثة | M122: 0
A123: 118 | B123: ='DATA ELV'!B126 -> عبد المالك نجمة | C123: ='DATA ELV'!J126 -> 3ع ت02 | D123: السنة الثالثة | M123: 0
A124: 119 | B124: ='DATA ELV'!B127 -> مرحوم دعاء | C124: ='DATA ELV'!J127 -> 3ع ت02 | D124: السنة الثالثة | M124: 0
A125: 120 | B125: ='DATA ELV'!B128 -> موقاس الطيب | C125: ='DATA ELV'!J128 -> 3ع ت02 | D125: السنة الثالثة | M125: 0
A126: 121 | B126: ='DATA ELV'!B129 -> أوزليفي أسامة | C126: ='DATA ELV'!J129 -> 3أ ف01 | D126: السنة الثالثة | M126: 0
A127: 122 | B127: ='DATA ELV'!B130 -> العابد صفاء | C127: ='DATA ELV'!J130 -> 3أ ف01 | D127: السنة الثالثة | M127: 0
A128: 123 | B128: ='DATA ELV'!B131 -> امحمدي أمينة | C128: ='DATA ELV'!J131 -> 3أ ف01 | D128: السنة الثالثة | M128: 0
A129: 124 | B129: ='DATA ELV'!B132 -> بلجيلالي أحمد بلقاسم | C129: ='DATA ELV'!J132 -> 3أ ف01 | D129: السنة الثالثة | M129: 0
A130: 125 | B130: ='DATA ELV'!B133 -> بن أعمر فاطمة الزهراء | C130: ='DATA ELV'!J133 -> 3أ ف01 | D130: السنة الثالثة | M130: 0
A131: 126 | B131: ='DATA ELV'!B134 -> بن اعمر اكرام | C131: ='DATA ELV'!J134 -> 3أ ف01 | D131: السنة الثالثة | M131: 0
A132: 127 | B132: ='DATA ELV'!B135 -> بن بوعزي مصطفى | C132: ='DATA ELV'!J135 -> 3أ ف01 | D132: السنة الثالثة | M132: 0
A133: 128 | B133: ='DATA ELV'!B136 -> بن سالم نهاد | C133: ='DATA ELV'!J136 -> 3أ ف01 | D133: السنة الثالثة | M133: 0
A134: 129 | B134: ='DATA ELV'!B137 -> بورديم بشرى | C134: ='DATA ELV'!J137 -> 3أ ف01 | D134: السنة الثالثة | M134: 0
A135: 130 | B135: ='DATA ELV'!B138 -> تادلي هدى شيماء | C135: ='DATA ELV'!J138 -> 3أ ف01 | D135: =IF(LEFT(C135,1)="3","السنة الثالثة",IF(LEFT(C135,1)="2","السنة الثانية",IF(LEFT(C135,1)="0","","السنة الأولى"))) -> السنة الثالثة | M135: =COUNTA(E135:L135) -> 0
A136: 131 | B136: ='DATA ELV'!B139 -> حاج علي أمينة | C136: ='DATA ELV'!J139 -> 3أ ف01 | D136: السنة الثالثة | M136: 0
A137: 132 | B137: ='DATA ELV'!B140 -> زقاي اسية | C137: ='DATA ELV'!J140 -> 3أ ف01 | D137: السنة الثالثة | M137: 0
A138: 133 | B138: ='DATA ELV'!B141 -> زياني الأول محمد | C138: ='DATA ELV'!J141 -> 3أ ف01 | D138: السنة الثالثة | M138: 0
A139: 134 | B139: ='DATA ELV'!B142 -> سلهامي رانيا | C139: ='DATA ELV'!J142 -> 3أ ف01 | D139: السنة الثالثة | M139: 0
A140: 135 | B140: ='DATA ELV'!B143 -> عايشي سامية | C140: ='DATA ELV'!J143 -> 3أ ف01 | D140: السنة الثالثة | M140: 0
A141: 136 | B141: ='DATA ELV'!B144 -> عبد المالك منال | C141: ='DATA ELV'!J144 -> 3أ ف01 | D141: السنة الثالثة | M141: 0
A142: 137 | B142: ='DATA ELV'!B145 -> فتوحي سهيلة | C142: ='DATA ELV'!J145 -> 3أ ف01 | D142: السنة الثالثة | M142: 0
A143: 138 | B143: ='DATA ELV'!B146 -> مرزوقي ادم | C143: ='DATA ELV'!J146 -> 3أ ف01 | D143: السنة الثالثة | M143: 0
A144: 139 | B144: ='DATA ELV'!B147 -> مزاري لمياء | C144: ='DATA ELV'!J147 -> 3أ ف01 | D144: السنة الثالثة | M144: 0
A145: 140 | B145: ='DATA ELV'!B148 -> معيذري نورية | C145: ='DATA ELV'!J148 -> 3أ ف01 | D145: السنة الثالثة | M145: 0
A146: 141 | B146: ='DATA ELV'!B149 -> أمبارك عزيز | C146: ='DATA ELV'!J149 -> 3أ ف01 | D146: السنة الثالثة | M146: 0
A147: 142 | B147: ='DATA ELV'!B150 -> العابد محمد كمال | C147: ='DATA ELV'!J150 -> 3أ ف01 | D147: السنة الثالثة | M147: 0
A148: 143 | B148: ='DATA ELV'!B151 -> بن رمضان عبد المجيد | C148: ='DATA ELV'!J151 -> 3أ ف01 | D148: السنة الثالثة | M148: 0
A149: 144 | B149: ='DATA ELV'!B152 -> بن صابر دعاء | C149: ='DATA ELV'!J152 -> 3أ ف01 | D149: السنة الثالثة | M149: 0
A150: 145 | B150: ='DATA ELV'!B153 -> بن عبد الرحمن رانيا | C150: ='DATA ELV'!J153 -> 3أ ف01 | D150: السنة الثالثة | M150: 0
A151: 146 | B151: ='DATA ELV'!B154 -> بن عراج إلياس | C151: ='DATA ELV'!J154 -> 3أ ف01 | D151: السنة الثالثة | M151: 0
A152: 147 | B152: ='DATA ELV'!B155 -> بوطيش وسام | C152: ='DATA ELV'!J155 -> 0 | M152: 0
A153: 148 | B153: ='DATA ELV'!B156 -> شياخ فاطمة | C153: ='DATA ELV'!J156 -> 3أ ف01 | D153: السنة الثالثة | M153: 0
A154: 149 | B154: ='DATA ELV'!B157 -> قبلي محمد يوسف | C154: ='DATA ELV'!J157 -> 3أ ف01 | D154: السنة الثالثة | M154: 0
A155: 150 | B155: ='DATA ELV'!B158 -> مبيتيل حواء | C155: ='DATA ELV'!J158 -> 3أ ف01 | D155: السنة الثالثة | M155: 0
A156: 151 | B156: ='DATA ELV'!B159 -> أمبارك سعدية | C156: ='DATA ELV'!J159 -> 3أ ف02 | D156: السنة الثالثة | M156: 0
A157: 152 | B157: ='DATA ELV'!B160 -> امبارك آية دعاء | C157: ='DATA ELV'!J160 -> 3أ ف02 | D157: السنة الثالثة | M157: 0
A158: 153 | B158: ='DATA ELV'!B161 -> امبارك اسماعيل | C158: ='DATA ELV'!J161 -> 3أ ف02 | D158: السنة الثالثة | M158: 0
A159: 154 | B159: ='DATA ELV'!B162 -> بن سعد شيماء | C159: ='DATA ELV'!J162 -> 3أ ف02 | D159: السنة الثالثة | M159: 0
A160: 155 | B160: ='DATA ELV'!B163 -> بن يحي أحلام | C160: ='DATA ELV'!J163 -> 3أ ف02 | D160: السنة الثالثة | M160: 0
A161: 156 | B161: ='DATA ELV'!B164 -> بومدين احمد | C161: ='DATA ELV'!J164 -> 3أ ف02 | D161: السنة الثالثة | M161: 0
A162: 157 | B162: ='DATA ELV'!B165 -> حمو حنان | C162: ='DATA ELV'!J165 -> 3أ ف02 | D162: السنة الثالثة | M162: 0
A163: 158 | B163: ='DATA ELV'!B166 -> عريبي صورية | C163: ='DATA ELV'!J166 -> 3أ ف02 | D163: السنة الثالثة | M163: 0
A164: 159 | B164: ='DATA ELV'!B167 -> فارس زهيرة | C164: ='DATA ELV'!J167 -> 3أ ف02 | D164: السنة الثالثة | M164: 0
A165: 160 | B165: ='DATA ELV'!B168 -> قاطع زكرياء | C165: ='DATA ELV'!J168 -> 3أ ف02 | D165: السنة الثالثة | M165: 0
A166: 161 | B166: ='DATA ELV'!B169 -> قديم أسماء | C166: ='DATA ELV'!J169 -> 3أ ف02 | D166: السنة الثالثة | M166: 0
A167: 162 | B167: ='DATA ELV'!B170 -> مزاري سناء | C167: ='DATA ELV'!J170 -> 3أ ف02 | D167: السنة الثالثة | M167: 0
A168: 163 | B168: ='DATA ELV'!B171 -> معموري علاء الدين | C168: ='DATA ELV'!J171 -> 3أ ف02 | D168: السنة الثالثة | M168: 0
A169: 164 | B169: ='DATA ELV'!B172 -> مفتاح سمية | C169: ='DATA ELV'!J172 -> 3أ ف02 | D169: السنة الثالثة | M169: 0
A170: 165 | B170: ='DATA ELV'!B173 -> منور آية | C170: ='DATA ELV'!J173 -> 3أ ف02 | D170: السنة الثالثة | M170: 0
A171: 166 | B171: ='DATA ELV'!B174 -> منور عبد الحسيب | C171: ='DATA ELV'!J174 -> 3أ ف02 | D171: السنة الثالثة | M171: 0
A172: 167 | B172: ='DATA ELV'!B175 -> نواوي صهيب | C172: ='DATA ELV'!J175 -> 3أ ف02 | D172: السنة الثالثة | M172: 0
A173: 168 | B173: ='DATA ELV'!B176 -> أحمودي ياسين | C173: ='DATA ELV'!J176 -> 3أ ف02 | D173: السنة الثالثة | M173: 0
A174: 169 | B174: ='DATA ELV'!B177 -> أوحساين بشرى | C174: ='DATA ELV'!J177 -> 3أ ف02 | D174: السنة الثالثة | M174: 0
A175: 170 | B175: ='DATA ELV'!B178 -> أيلاس أنفال | C175: ='DATA ELV'!J178 -> 3أ ف02 | D175: السنة الثالثة | M175: 0
A176: 171 | B176: ='DATA ELV'!B179 -> بلهادف هارون | C176: ='DATA ELV'!J179 -> 3أ ف02 | D176: السنة الثالثة | M176: 0
A177: 172 | B177: ='DATA ELV'!B180 -> رحال سامية | C177: ='DATA ELV'!J180 -> 3أ ف02 | D177: السنة الثالثة | M177: 0
A178: 173 | B178: ='DATA ELV'!B181 -> سابق زكرياء | C178: ='DATA ELV'!J181 -> 3أ ف02 | D178: السنة الثالثة | M178: 0
A179: 174 | B179: ='DATA ELV'!B182 -> لحسايني فاروق | C179: ='DATA ELV'!J182 -> 3أ ف02 | D179: السنة الثالثة | M179: 0
A180: 175 | B180: ='DATA ELV'!B183 -> ميلود عبيد سارة | C180: ='DATA ELV'!J183 -> 3أ ف02 | D180: السنة الثالثة | M180: 0
A181: 176 | B181: ='DATA ELV'!B184 -> ناير مروة | C181: ='DATA ELV'!J184 -> 3أ ف02 | D181: السنة الثالثة | M181: 0
A182: 177 | B182: ='DATA ELV'!B185 -> بن عزوز شهيناز | C182: ='DATA ELV'!J185 -> 3لغات /إسبا | D182: السنة الثالثة | M182: 0
A183: 178 | B183: ='DATA ELV'!B186 -> بورديم نور الإيمان | C183: ='DATA ELV'!J186 -> 3لغات /إسبا | D183: السنة الثالثة | M183: 0
A184: 179 | B184: ='DATA ELV'!B187 -> أوزليفي عائشة | C184: ='DATA ELV'!J187 -> 3لغات /إسبا | D184: السنة الثالثة | M184: 0
A185: 180 | B185: ='DATA ELV'!B188 -> العياطي فاطمة | C185: ='DATA ELV'!J188 -> 3لغات /إسبا | D185: السنة الثالثة | M185: 0
A186: 181 | B186: ='DATA ELV'!B189 -> بلخياطي مصطفى | C186: ='DATA ELV'!J189 -> 3لغات /إسبا | D186: السنة الثالثة | M186: 0
A187: 182 | B187: ='DATA ELV'!B190 -> بلعمري منال | C187: ='DATA ELV'!J190 -> 3لغات /إسبا | D187: السنة الثالثة | M187: 0
A188: 183 | B188: ='DATA ELV'!B191 -> بلقاسم مريم | C188: ='DATA ELV'!J191 -> 3لغات /إسبا | D188: السنة الثالثة | M188: 0
A189: 184 | B189: ='DATA ELV'!B192 -> بن جيلالي منال | C189: ='DATA ELV'!J192 -> 3لغات /إسبا | D189: السنة الثالثة | M189: 0
A190: 185 | B190: ='DATA ELV'!B193 -> بن عزوز منار نور الهدى | C190: ='DATA ELV'!J193 -> 3لغات /إسبا | D190: السنة الثالثة | M190: 0
A191: 186 | B191: ='DATA ELV'!B194 -> بن عزيزة دعاء | C191: ='DATA ELV'!J194 -> 3لغات /إسبا | D191: السنة الثالثة | M191: 0
A192: 187 | B192: ='DATA ELV'!B195 -> بوطاقة خديجة | C192: ='DATA ELV'!J195 -> 3لغات /إسبا | D192: السنة الثالثة | M192: 0
A193: 188 | B193: ='DATA ELV'!B196 -> بوعزاوي صفاء | C193: ='DATA ELV'!J196 -> 3لغات /إسبا | D193: السنة الثالثة | M193: 0
A194: 189 | B194: ='DATA ELV'!B197 -> بومنجل نبيل | C194: ='DATA ELV'!J197 -> 3لغات /إسبا | D194: السنة الثالثة | M194: 0
A195: 190 | B195: ='DATA ELV'!B198 -> تاجوري رابحة | C195: ='DATA ELV'!J198 -> 3لغات /إسبا | D195: السنة الثالثة | M195: 0
A196: 191 | B196: ='DATA ELV'!B199 -> حساين محمد امين | C196: ='DATA ELV'!J199 -> 3لغات /إسبا | D196: السنة الثالثة | M196: 0
A197: 192 | B197: ='DATA ELV'!B200 -> حمادي نور الهدى | C197: ='DATA ELV'!J200 -> 3لغات /إسبا | D197: السنة الثالثة | M197: 0
A198: 193 | B198: ='DATA ELV'!B201 -> دقي أمال | C198: ='DATA ELV'!J201 -> 3لغات /إسبا | D198: السنة الثالثة | M198: 0
A199: 194 | B199: ='DATA ELV'!B202 -> دمامن شيماء | C199: ='DATA ELV'!J202 -> 3لغات /إسبا | D199: =IF(LEFT(C199,1)="3","السنة الثالثة",IF(LEFT(C199,1)="2","السنة الثانية",IF(LEFT(C199,1)="0","","السنة الأولى"))) -> السنة الثالثة | M199: =COUNTA(E199:L199) -> 0
A200: 195 | B200: ='DATA ELV'!B203 -> رحال مغنية | C200: ='DATA ELV'!J203 -> 3لغات /إسبا | D200: السنة الثالثة | M200: 0
A201: 196 | B201: ='DATA ELV'!B204 -> صحراوي اكرام | C201: ='DATA ELV'!J204 -> 3لغات /إسبا | D201: السنة الثالثة | M201: 0
... 2839 more rows

Sheet Feuil7 (2)
H3: 2021-10-01 | N3: بداية العام الدراسي
E4: =H3 -> 2021-10-01 | F4: =E4+1 -> 2021-10-02 | G4: =F4+1 -> 2021-10-03 | H4: 2021-10-04 | I4: 2021-10-05 | J4: 2021-10-06 | K4: 2021-10-07 | L4: 2021-10-08 | M4: 2021-10-09 | N4: 2021-10-10 | O4: 2021-10-11 | P4: 2021-10-12 | Q4: 2021-10-13 | R4: 2021-10-14 | S4: 2021-10-15 | T4: 2021-10-16 | U4: 2021-10-17 | V4: 2021-10-18 | W4: =V4+1 -> 2021-10-19 | X4: 2021-10-20 | Y4: 2021-10-21 | Z4: 2021-10-22 | AA4: 2021-10-23 | AB4: 2021-10-24 | AC4: 2021-10-25 | AD4: 2021-10-26 | AE4: 2021-10-27 | AF4: 2021-10-28 | AG4: 2021-10-29 | AH4: 2021-10-30 | AI4: 2021-10-31 | AJ4: 2021-11-01 | AK4: 2021-11-02 | AL4: 2021-11-03 | AM4: =AL4+1 -> 2021-11-04 | AN4: 2021-11-05 | AO4: 2021-11-06 | AP4: 2021-11-07 | AQ4: 2021-11-08 | AR4: 2021-11-09 | AS4: 2021-11-10 | AT4: 2021-11-11 | AU4: 2021-11-12 | AV4: 2021-11-13 | AW4: 2021-11-14 | AX4: 2021-11-15 | AY4: 2021-11-16 | AZ4: 2021-11-17 | BA4: 2021-11-18 | BB4: 2021-11-19 | BC4: =BB4+1 -> 2021-11-20 | BD4: 2021-11-21 | BE4: 2021-11-22 | BF4: 2021-11-23 | BG4: 2021-11-24 | BH4: 2021-11-25 | BI4: 2021-11-26 | BJ4: 2021-11-27 | BK4: 2021-11-28 | BL4: 2021-11-29 | BM4: 2021-11-30 | BN4: 2021-12-01 | BO4: 2021-12-02 | BP4: 2021-12-03 | BQ4: 2021-12-04 | BR4: 2021-12-05 | BS4: =BR4+1 -> 2021-12-06 | BT4: 2021-12-07 | BU4: 2021-12-08 | BV4: 2021-12-09 | BW4: 2021-12-10 | BX4: 2021-12-11 | BY4: 2021-12-12 | BZ4: 2021-12-13 | CA4: 2021-12-14 | CB4: 2021-12-15 | CC4: 2021-12-16 | CD4: 2021-12-17 | CE4: 2021-12-18 | CF4: 2021-12-19 | CG4: 2021-12-20 | CH4: 2021-12-21 | CI4: =CH4+1 -> 2021-12-22 | CJ4: 2021-12-23 | CK4: 2021-12-24 | CL4: 2021-12-25 | CM4: 2021-12-26 | CN4: 2021-12-27 | CO4: 2021-12-28 | CP4: 2021-12-29 | CQ4: 2021-12-30 | CR4: 2021-12-31 | CS4: 2022-01-01 | CT4: 2022-01-02 | CU4: 2022-01-03 | CV4: 2022-01-04 | CW4: 2022-01-05 | CX4: 2022-01-06 | CY4: =CX4+1 -> 2022-01-07 | CZ4: 2022-01-08 | DA4: 2022-01-09 | DB4: 2022-01-10 | DC4: 2022-01-11 | DD4: 2022-01-12 | DE4: 2022-01-13 | DF4: 2022-01-14 | DG4: 2022-01-15 | DH4: 2022-01-16 | DI4: 2022-01-17 | DJ4: 2022-01-18 | DK4: 2022-01-19 | DL4: 2022-01-20 | DM4: 2022-01-21 | DN4: 2022-01-22 | DO4: =DN4+1 -> 2022-01-23 | DP4: 2022-01-24 | DQ4: 2022-01-25 | DR4: 2022-01-26 | DS4: 2022-01-27 | DT4: 2022-01-28 | DU4: 2022-01-29 | DV4: 2022-01-30 | DW4: 2022-01-31 | DX4: 2022-02-01 | DY4: 2022-02-02 | DZ4: 2022-02-03 | EA4: 2022-02-04 | EB4: 2022-02-05 | EC4: 2022-02-06 | ED4: 2022-02-07 | EE4: =ED4+1 -> 2022-02-08 | EF4: 2022-02-09 | EG4: 2022-02-10 | EH4: 2022-02-11 | EI4: 2022-02-12 | EJ4: 2022-02-13 | EK4: 2022-02-14 | EL4: 2022-02-15 | EM4: 2022-02-16 | EN4: 2022-02-17 | EO4: 2022-02-18 | EP4: 2022-02-19 | EQ4: 2022-02-20 | ER4: 2022-02-21 | ES4: 2022-02-22 | ET4: 2022-02-23 | EU4: =ET4+1 -> 2022-02-24 | EV4: 2022-02-25 | EW4: 2022-02-26 | EX4: 2022-02-27 | EY4: 2022-02-28 | EZ4: 2022-03-01 | FA4: 2022-03-02 | FB4: 2022-03-03 | FC4: 2022-03-04 | FD4: 2022-03-05 | FE4: 2022-03-06 | FF4: 2022-03-07 | FG4: 2022-03-08 | FH4: 2022-03-09 | FI4: 2022-03-10 | FJ4: 2022-03-11 | FK4: =FJ4+1 -> 2022-03-12 | FL4: 2022-03-13 | FM4: 2022-03-14 | FN4: 2022-03-15 | FO4: 2022-03-16 | FP4: 2022-03-17 | FQ4: 2022-03-18 | FR4: 2022-03-19 | FS4: 2022-03-20 | FT4: 2022-03-21 | FU4: 2022-03-22 | FV4: 2022-03-23 | FW4: 2022-03-24 | FX4: 2022-03-25 | FY4: 2022-03-26 | FZ4: 2022-03-27 | GA4: =FZ4+1 -> 2022-03-28 | GB4: 2022-03-29 | GC4: 2022-03-30 | GD4: 2022-03-31 | GE4: 2022-04-01 | GF4: 2022-04-02 | GG4: 2022-04-03 | GH4: 2022-04-04 | GI4: 2022-04-05 | GJ4: 2022-04-06 | GK4: 2022-04-07 | GL4: 2022-04-08 | GM4: 2022-04-09 | GN4: 2022-04-10 | GO4: 2022-04-11 | GP4: 2022-04-12 | GQ4: =GP4+1 -> 2022-04-13 | GR4: 2022-04-14 | GS4: 2022-04-15 | GT4: 2022-04-16 | GU4: 2022-04-17 | GV4: 2022-04-18 | GW4: 2022-04-19 | GX4: 2022-04-20 | GY4: 2022-04-21 | GZ4: 2022-04-22 | HA4: 2022-04-23 | HB4: 2022-04-24 | HC4: 2022-04-25 | HD4: 2022-04-26 | HE4: 2022-04-27 | HF4: 2022-04-28 | HG4: =HF4+1 -> 2022-04-29 | HH4: 2022-04-30 | HI4: 2022-05-01 | HJ4: 2022-05-02 | HK4: 2022-05-03 | HL4: 2022-05-04 | HM4: 2022-05-05 | HN4: 2022-05-06 | HO4: 2022-05-07 | HP4: 2022-05-08 | HQ4: 2022-05-09 | HR4: 2022-05-10 | HS4: 2022-05-11 | HT4: 2022-05-12 | HU4: 2022-05-13 | HV4: 2022-05-14 | HW4: =HV4+1 -> 2022-05-15 | HX4: 2022-05-16 | HY4: 2022-05-17 | HZ4: 2022-05-18 | IA4: 2022-05-19 | IB4: 2022-05-20 | IC4: 2022-05-21 | ID4: 2022-05-22 | IE4: 2022-05-23 | IF4: 2022-05-24 | IG4: 2022-05-25 | IH4: 2022-05-26 | II4: 2022-05-27 | IJ4: 2022-05-28 | IK4: 2022-05-29 | IL4: 2022-05-30 | IM4: =IL4+1 -> 2022-05-31 | IN4: 2022-06-01 | IO4: 2022-06-02 | IP4: 2022-06-03 | IQ4: 2022-06-04 | IR4: 2022-06-05 | IS4: 2022-06-06 | IT4: 2022-06-07 | IU4: 2022-06-08 | IV4: 2022-06-09 | IW4: 2022-06-10 | IX4: 2022-06-11 | IY4: 2022-06-12 | IZ4: 2022-06-13 | JA4: 2022-06-14 | JB4: 2022-06-15 | JC4: =JB4+1 -> 2022-06-16 | JD4: 2022-06-17 | JE4: 2022-06-18 | JF4: 2022-06-19 | JG4: 2022-06-20 | JH4: 2022-06-21 | JI4: 2022-06-22 | JJ4: 2022-06-23 | JK4: 2022-06-24 | JL4: 2022-06-25 | JM4: 2022-06-26 | JN4: 2022-06-27 | JO4: 2022-06-28 | JP4: 2022-06-29 | JQ4: 2022-06-30
A5: الرقم | B5: اسم و لقـــــب التلميذ | C5: القسم | D5: المستوى | E5: =H3 -> 2021-10-01 | F5: =E5+1 -> 2021-10-02 | G5: =F5+1 -> 2021-10-03 | H5: 2021-10-04 | I5: 2021-10-05 | J5: 2021-10-06 | K5: 2021-10-07 | L5: 2021-10-08 | M5: 2021-10-09 | N5: 2021-10-10 | O5: 2021-10-11 | P5: 2021-10-12 | Q5: 2021-10-13 | R5: 2021-10-14 | S5: 2021-10-15 | T5: 2021-10-16 | U5: 2021-10-17 | V5: 2021-10-18 | W5: 2021-10-19 | X5: 2021-10-20 | Y5: 2021-10-21 | Z5: 2021-10-22 | AA5: 2021-10-23 | AB5: 2021-10-24 | AC5: 2021-10-25 | AD5: 2021-10-26 | AE5: 2021-10-27 | AF5: 2021-10-28 | AG5: 2021-10-29 | AH5: 2021-10-30 | AI5: 2021-10-31 | AJ5: 2021-11-01 | AK5: 2021-11-02 | AL5: 2021-11-03 | AM5: 2021-11-04 | AN5: 2021-11-05 | AO5: 2021-11-06 | AP5: 2021-11-07 | AQ5: 2021-11-08 | AR5: 2021-11-09 | AS5: 2021-11-10 | AT5: 2021-11-11 | AU5: 2021-11-12 | AV5: 2021-11-13 | AW5: 2021-11-14 | AX5: 2021-11-15 | AY5: 2021-11-16 | AZ5: 2021-11-17 | BA5: 2021-11-18 | BB5: 2021-11-19 | BC5: 2021-11-20 | BD5: 2021-11-21 | BE5: 2021-11-22 | BF5: 2021-11-23 | BG5: 2021-11-24 | BH5: 2021-11-25 | BI5: 2021-11-26 | BJ5: 2021-11-27 | BK5: 2021-11-28 | BL5: 2021-11-29 | BM5: 2021-11-30 | BN5: 2021-12-01 | BO5: 2021-12-02 | BP5: 2021-12-03 | BQ5: 2021-12-04 | BR5: 2021-12-05 | BS5: 2021-12-06 | BT5: 2021-12-07 | BU5: 2021-12-08 | BV5: 2021-12-09 | BW5: 2021-12-10 | BX5: 2021-12-11 | BY5: 2021-12-12 | BZ5: 2021-12-13 | CA5: 2021-12-14 | CB5: 2021-12-15 | CC5: 2021-12-16 | CD5: 2021-12-17 | CE5: 2021-12-18 | CF5: 2021-12-19 | CG5: 2021-12-20 | CH5: 2021-12-21 | CI5: 2021-12-22 | CJ5: 2021-12-23 | CK5: 2021-12-24 | CL5: 2021-12-25 | CM5: 2021-12-26 | CN5: 2021-12-27 | CO5: 2021-12-28 | CP5: 2021-12-29 | CQ5: 2021-12-30 | CR5: 2021-12-31 | CS5: 2022-01-01 | CT5: 2022-01-02 | CU5: 2022-01-03 | CV5: 2022-01-04 | CW5: 2022-01-05 | CX5: 2022-01-06 | CY5: 2022-01-07 | CZ5: 2022-01-08 | DA5: 2022-01-09 | DB5: 2022-01-10 | DC5: 2022-01-11 | DD5: 2022-01-12 | DE5: 2022-01-13 | DF5: 2022-01-14 | DG5: 2022-01-15 | DH5: 2022-01-16 | DI5: 2022-01-17 | DJ5: 2022-01-18 | DK5: 2022-01-19 | DL5: 2022-01-20 | DM5: 2022-01-21 | DN5: 2022-01-22 | DO5: 2022-01-23 | DP5: 2022-01-24 | DQ5: 2022-01-25 | DR5: 2022-01-26 | DS5: 2022-01-27 | DT5: 2022-01-28 | DU5: 2022-01-29 | DV5: 2022-01-30 | DW5: 2022-01-31 | DX5: 2022-02-01 | DY5: 2022-02-02 | DZ5: 2022-02-03 | EA5: 2022-02-04 | EB5: 2022-02-05 | EC5: 2022-02-06 | ED5: 2022-02-07 | EE5: 2022-02-08 | EF5: 2022-02-09 | EG5: 2022-02-10 | EH5: 2022-02-11 | EI5: 2022-02-12 | EJ5: 2022-02-13 | EK5: 2022-02-14 | EL5: 2022-02-15 | EM5: 2022-02-16 | EN5: 2022-02-17 | EO5: 2022-02-18 | EP5: 2022-02-19 | EQ5: 2022-02-20 | ER5: 2022-02-21 | ES5: 2022-02-22 | ET5: 2022-02-23 | EU5: 2022-02-24 | EV5: 2022-02-25 | EW5: 2022-02-26 | EX5: 2022-02-27 | EY5: 2022-02-28 | EZ5: 2022-03-01 | FA5: 2022-03-02 | FB5: 2022-03-03 | FC5: 2022-03-04 | FD5: 2022-03-05 | FE5: 2022-03-06 | FF5: 2022-03-07 | FG5: 2022-03-08 | FH5: 2022-03-09 | FI5: 2022-03-10 | FJ5: 2022-03-11 | FK5: 2022-03-12 | FL5: 2022-03-13 | FM5: 2022-03-14 | FN5: 2022-03-15 | FO5: 2022-03-16 | FP5: 2022-03-17 | FQ5: 2022-03-18 | FR5: 2022-03-19 | FS5: 2022-03-20 | FT5: 2022-03-21 | FU5: 2022-03-22 | FV5: 2022-03-23 | FW5: 2022-03-24 | FX5: 2022-03-25 | FY5: 2022-03-26 | FZ5: 2022-03-27 | GA5: 2022-03-28 | GB5: 2022-03-29 | GC5: 2022-03-30 | GD5: 2022-03-31 | GE5: 2022-04-01 | GF5: 2022-04-02 | GG5: 2022-04-03 | GH5: 2022-04-04 | GI5: 2022-04-05 | GJ5: 2022-04-06 | GK5: 2022-04-07 | GL5: 2022-04-08 | GM5: 2022-04-09 | GN5: 2022-04-10 | GO5: 2022-04-11 | GP5: 2022-04-12 | GQ5: 2022-04-13 | GR5: 2022-04-14 | GS5: 2022-04-15 | GT5: 2022-04-16 | GU5: 2022-04-17 | GV5: 2022-04-18 | GW5: 2022-04-19 | GX5: 2022-04-20 | GY5: 2022-04-21 | GZ5: 2022-04-22 | HA5: 2022-04-23 | HB5: 2022-04-24 | HC5: 2022-04-25 | HD5: 2022-04-26 | HE5: 2022-04-27 | HF5: 2022-04-28 | HG5: 2022-04-29 | HH5: 2022-04-30 | HI5: 2022-05-01 | HJ5: 2022-05-02 | HK5: 2022-05-03 | HL5: 2022-05-04 | HM5: 2022-05-05 | HN5: 2022-05-06 | HO5: 2022-05-07 | HP5: 2022-05-08 | HQ5: 2022-05-09 | HR5: 2022-05-10 | HS5: 2022-05-11 | HT5: 2022-05-12 | HU5: 2022-05-13 | HV5: 2022-05-14 | HW5: 2022-05-15 | HX5: 2022-05-16 | HY5: 2022-05-17 | HZ5: 2022-05-18 | IA5: 2022-05-19 | IB5: 2022-05-20 | IC5: 2022-05-21 | ID5: 2022-05-22 | IE5: 2022-05-23 | IF5: 2022-05-24 | IG5: 2022-05-25 | IH5: 2022-05-26 | II5: 2022-05-27 | IJ5: 2022-05-28 | IK5: 2022-05-29 | IL5: 2022-05-30 | IM5: 2022-05-31 | IN5: 2022-06-01 | IO5: 2022-06-02 | IP5: 2022-06-03 | IQ5: 2022-06-04 | IR5: 2022-06-05 | IS5: 2022-06-06 | IT5: 2022-06-07 | IU5: 2022-06-08 | IV5: 2022-06-09 | IW5: 2022-06-10 | IX5: 2022-06-11 | IY5: 2022-06-12 | IZ5: 2022-06-13 | JA5: 2022-06-14 | JB5: 2022-06-15 | JC5: 2022-06-16 | JD5: 2022-06-17 | JE5: 2022-06-18 | JF5: 2022-06-19 | JG5: 2022-06-20 | JH5: 2022-06-21 | JI5: 2022-06-22 | JJ5: 2022-06-23 | JK5: 2022-06-24 | JL5: 2022-06-25 | JM5: 2022-06-26 | JN5: 2022-06-27 | JO5: 2022-06-28 | JP5: 2022-06-29 | JQ5: 2022-06-30
A6: 1 | B6: ='DATA ELV'!B9 -> بوستين أسامة | C6: ='DATA ELV'!J9 -> 3ت ر/هم | D6: =IF(LEFT(C6,1)="3","السنة الثالثة",IF(LEFT(C6,1)="2","السنة الثانية",IF(LEFT(C6,1)="0","","السنة الأولى"))) -> السنة الثالثة | EK6: غ | EL6: غ
A7: 2 | B7: ='DATA ELV'!B10 -> سفيون مروة | C7: ='DATA ELV'!J10 -> 3ت ر/هم | D7: =IF(LEFT(C7,1)="3","السنة الثالثة",IF(LEFT(C7,1)="2","السنة الثانية",IF(LEFT(C7,1)="0","","السنة الأولى"))) -> السنة الثالثة
A8: 3 | B8: ='DATA ELV'!B11 -> قرد آية | C8: ='DATA ELV'!J11 -> 3ت ر/هم | D8: السنة الثالثة | CU8: غ | CV8: غ
A9: 4 | B9: ='DATA ELV'!B12 -> قرواو محمد الأمين | C9: ='DATA ELV'!J12 -> 3ت ر/هم | D9: السنة الثالثة
A10: 5 | B10: ='DATA ELV'!B13 -> بختاوي مغنية | C10: ='DATA ELV'!J13 -> 3ت ر/هم | D10: السنة الثالثة | DK10: غ
A11: 6 | B11: ='DATA ELV'!B14 -> بن سالم عبد الله | C11: ='DATA ELV'!J14 -> 3ت ر/هم | D11: السنة الثالثة | AC11: غ | AP11: غ | BD11: غ | BE11: غ | BS11: غ | BT11: غ | BU11: غ | BV11: غ
A12: 7 | B12: ='DATA ELV'!B15 -> بوزيان مريم | C12: ='DATA ELV'!J15 -> 3ت ر/هك | D12: السنة الثالثة
A13: 8 | B13: ='DATA ELV'!B16 -> بوزي عبير | C13: ='DATA ELV'!J16 -> 3ت ر/هك | D13: السنة الثالثة
A14: 9 | B14: ='DATA ELV'!B17 -> تاسرة رانيا | C14: ='DATA ELV'!J17 -> 3ت ر/هك | D14: السنة الثالثة | X14: غ | Y14: غ | Z14: غ | AA14: غ | BS14: غ | BU14: غ | BV14: غ | DJ14: غ | EE14: غ
A15: 10 | B15: ='DATA ELV'!B18 -> حنيفي دعاء | C15: ='DATA ELV'!J18 -> 3ت ر/هك | D15: السنة الثالثة
A16: 11 | B16: ='DATA ELV'!B19 -> سلومي فتيحة | C16: ='DATA ELV'!J19 -> 3ت ر/هك | D16: السنة الثالثة | AF16: غ | DK16: غ | EK16: غ
A17: 12 | B17: ='DATA ELV'!B20 -> لعروسي فرح | C17: ='DATA ELV'!J20 -> 3ت ر/هك | D17: السنة الثالثة
A18: 13 | B18: ='DATA ELV'!B21 -> مقدم موسى | C18: ='DATA ELV'!J21 -> 3ت ر/هك | D18: السنة الثالثة | AR18: غ | CV18: غ
A19: 14 | B19: ='DATA ELV'!B22 -> يخلف لحسن | C19: ='DATA ELV'!J22 -> 3ت ر/هك | D19: السنة الثالثة | AF19: غ
A20: 15 | B20: ='DATA ELV'!B23 -> بن يوبي مغنية امينة | C20: ='DATA ELV'!J23 -> 3ت ر/هك | D20: السنة الثالثة
A21: 16 | B21: ='DATA ELV'!B24 -> بوبكر يسرى | C21: ='DATA ELV'!J24 -> 3ت ر/هك | D21: السنة الثالثة | X21: غ | Y21: غ | Z21: غ | AA21: غ | AK21: غ | BG21: غ | DA21: غ
A22: 17 | B22: ='DATA ELV'!B25 -> زرعي سعيد | C22: ='DATA ELV'!J25 -> 3ت ر/هك | D22: السنة الثالثة | BS22: غ | BT22: غ | BU22: غ | BV22: غ
A23: 18 | B23: ='DATA ELV'!B26 -> زياني الأول خديجة | C23: ='DATA ELV'!J26 -> 3ت ر/هك | D23: السنة الثالثة
A24: 19 | B24: ='DATA ELV'!B27 -> سايح شيماء | C24: ='DATA ELV'!J27 -> 3ت ر/هك | D24: السنة الثالثة
A25: 20 | B25: ='DATA ELV'!B28 -> قنشي علاء الدين | C25: ='DATA ELV'!J28 -> 0 | AC25: غ | AD25: غ | AE25: غ | AF25: غ | AG25: غ | AH25: غ | AI25: غ | AJ25: غ | AK25: غ | AL25: غ | AM25: غ | AN25: غ | AO25: غ | AP25: غ | AQ25: غ | BS25: غ | BT25: غ | BU25: غ | BV25: غ | CT25: غ | CU25: غ | CV25: غ | CX25: غ | CY25: غ | DA25: غ | DB25: غ | DC25: غ | DD25: غ | DE25: غ | DF25: غ | DG25: غ | DH25: غ | DI25: غ | DJ25: غ | DK25: غ | DL25: غ | DM25: غ | DN25: غ | DO25: غ | DP25: غ | DQ25: غ | DR25: غ | DS25: غ | DT25: غ | DU25: غ | DV25: غ | DW25: غ | DX25: غ | DY25: غ | DZ25: غ | EA25: غ | EB25: غ | EC25: غ | ED25: غ | EE25: غ | EF25: غ | EG25: غ | EJ25: غ
A26: 21 | B26: ='DATA ELV'!B29 -> الفضيل ريم | C26: ='DATA ELV'!J29 -> 3ت إ01 | D26: السنة الثالثة
A27: 22 | B27: ='DATA ELV'!B30 -> بن طيب ياسين | C27: ='DATA ELV'!J30 -> 3ت إ01 | D27: السنة الثالثة
A28: 23 | B28: ='DATA ELV'!B31 -> بوبندير أحمد | C28: ='DATA ELV'!J31 -> 3ت إ01 | D28: السنة الثالثة | AZ28: غ
A29: 24 | B29: ='DATA ELV'!B32 -> بوبندير ميساء | C29: ='DATA ELV'!J32 -> 3ت إ01 | D29: السنة الثالثة | EJ29: غ
A30: 25 | B30: ='DATA ELV'!B33 -> بوستين محمد اسلام | C30: ='DATA ELV'!J33 -> 3ت إ01 | D30: السنة الثالثة | EF30: غ | EG30: غ
A31: 26 | B31: ='DATA ELV'!B34 -> بوعلي أميمة | C31: ='DATA ELV'!J34 -> 3ت إ01 | D31: السنة الثالثة | DB31: غ
A32: 27 | B32: ='DATA ELV'!B35 -> بوعيشة مروة رميسة | C32: ='DATA ELV'!J35 -> 3ت إ01 | D32: السنة الثالثة | AD32: غ | AR32: غ | CX32: غ | CY32: غ | CZ32: غ | EF32: غ | EG32: غ
A33: 28 | B33: ='DATA ELV'!B36 -> حوحو محفوظ عبد الرحيم | C33: ='DATA ELV'!J36 -> 3ت إ01 | D33: السنة الثالثة | BH33: غ | BR33: غ | BT33: غ | BU33: غ | BV33: غ | CX33: غ | CY33: غ | CZ33: غ | EG33: غ
A34: 29 | B34: ='DATA ELV'!B37 -> خواني مريم | C34: ='DATA ELV'!J37 -> 3ت إ01 | D34: السنة الثالثة | BR34: غ | BT34: غ | BU34: غ | DE34: غ | DF34: غ | DG34: غ | DH34: غ | DJ34: غ | EC34: غ | ED34: غ | EE34: غ | EF34: غ | EG34: غ | EJ34: غ | EK34: غ | EL34: غ
A35: 30 | B35: ='DATA ELV'!B38 -> راجعي منال | C35: ='DATA ELV'!J38 -> 3ت إ01 | D35: السنة الثالثة | DJ35: غ | DK35: غ
A36: 31 | B36: ='DATA ELV'!B39 -> زحزوح محمد الصادق | C36: ='DATA ELV'!J39 -> 3ت إ01 | D36: السنة الثالثة | AZ36: غ | DH36: غ
A37: 32 | B37: ='DATA ELV'!B40 -> زياني الأول مريم | C37: ='DATA ELV'!J40 -> 3ت إ01 | D37: السنة الثالثة
A38: 33 | B38: ='DATA ELV'!B41 -> سكاك حاج عبد الله | C38: ='DATA ELV'!J41 -> 3ت إ01 | D38: السنة الثالثة | AB38: غ | AC38: غ | AD38: غ | AE38: غ | AF38: غ | CX38: غ | CY38: غ | CZ38: غ | EE38: غ | EF38: غ | EG38: غ
A39: 34 | B39: ='DATA ELV'!B42 -> شبيب دعاء نورهان | C39: ='DATA ELV'!J42 -> 3ت إ01 | D39: السنة الثالثة | DE39: غ | DF39: غ | DG39: غ
A40: 35 | B40: ='DATA ELV'!B43 -> شياخ شيماء | C40: ='DATA ELV'!J43 -> 3ت إ01 | D40: السنة الثالثة
A41: 36 | B41: ='DATA ELV'!B44 -> شيباني سمير | C41: ='DATA ELV'!J44 -> 3ت إ01 | D41: السنة الثالثة | BH41: غ
A42: 37 | B42: ='DATA ELV'!B45 -> عفاني أيمن | C42: ='DATA ELV'!J45 -> 3ت إ01 | D42: السنة الثالثة | Y42: غ | Z42: غ | AA42: غ | AZ42: غ
A43: 38 | B43: ='DATA ELV'!B46 -> عمراوي مواهب | C43: ='DATA ELV'!J46 -> 3ت إ01 | D43: السنة الثالثة | DJ43: غ
A44: 39 | B44: ='DATA ELV'!B47 -> قرد محمد | C44: ='DATA ELV'!J47 -> 3ت إ01 | D44: السنة الثالثة | AZ44: غ | CV44: غ | CW44: غ
A45: 40 | B45: ='DATA ELV'!B48 -> كوشير فاطمة الزهراء | C45: ='DATA ELV'!J48 -> 3ت إ01 | D45: السنة الثالثة
A46: 41 | B46: ='DATA ELV'!B49 -> لزعر شيماء | C46: ='DATA ELV'!J49 -> 3ت إ01 | D46: السنة الثالثة
A47: 42 | B47: ='DATA ELV'!B50 -> مولاي بودخيلي شيماء | C47: ='DATA ELV'!J50 -> 3ت إ01 | D47: السنة الثالثة | AM47: غ | AN47: غ | AO47: غ
A48: 43 | B48: ='DATA ELV'!B51 -> هرنين رانيا | C48: ='DATA ELV'!J51 -> 3ت إ01 | D48: السنة الثالثة | EE48: غ | EF48: غ | EG48: غ | EJ48: غ
A49: 44 | B49: ='DATA ELV'!B52 -> برواين حورية | C49: ='DATA ELV'!J52 -> 3ت إ01 | D49: السنة الثالثة
A50: 45 | B50: ='DATA ELV'!B53 -> بلعباس رفيق | C50: ='DATA ELV'!J53 -> 3ت إ01 | D50: السنة الثالثة | AZ50: غ | DH50: غ | DJ50: غ | DK50: غ
A51: 46 | B51: ='DATA ELV'!B54 -> بلميمون نبية | C51: ='DATA ELV'!J54 -> 0 | P51: غ | Q51: غ | R51: غ | S51: غ | T51: غ | U51: غ | V51: غ | W51: غ | X51: غ | Y51: غ | Z51: غ | AA51: غ | AB51: غ | AC51: غ | AD51: غ | AE51: غ | AF51: غ | AG51: غ | AH51: غ | AI51: غ | AJ51: غ | AK51: غ | AL51: غ | AM51: غ | AN51: غ | AO51: غ | AP51: غ | AQ51: غ | AR51: غ | AS51: غ | AT51: غ | AU51: غ | AV51: غ | AW51: غ
A52: 47 | B52: ='DATA ELV'!B55 -> بن هدي إناس | C52: ='DATA ELV'!J55 -> 3ت إ01 | D52: السنة الثالثة
A53: 48 | B53: ='DATA ELV'!B56 -> جرارفاوي سارة | C53: ='DATA ELV'!J56 -> 3ت إ01 | D53: السنة الثالثة | Y53: غ | Z53: غ | AA53: غ
A54: 49 | B54: ='DATA ELV'!B57 -> زياني الأول ابتسام | C54: ='DATA ELV'!J57 -> 0
A55: 50 | B55: ='DATA ELV'!B58 -> صدار عبد العزيز | C55: ='DATA ELV'!J58 -> 3ت إ01 | D55: السنة الثالثة
A56: 51 | B56: ='DATA ELV'!B59 -> عبوين أيمن | C56: ='DATA ELV'!J59 -> 3ت إ01 | D56: السنة الثالثة | BR56: غ | BS56: غ | BT56: غ
A57: 52 | B57: ='DATA ELV'!B60 -> قوري الهواري | C57: ='DATA ELV'!J60 -> 3ت إ01 | D57: السنة الثالثة | R57: غ | S57: غ | T57: غ | U57: غ | V57: غ | W57: غ | X57: غ | Y57: غ | Z57: غ | AA57: غ | AB57: غ | AC57: غ | AD57: غ | AE57: غ | AF57: غ | AG57: غ | AH57: غ | AI57: غ | AJ57: غ | AK57: غ | AL57: غ | AM57: غ | AN57: غ | AO57: غ | AP57: غ | AZ57: غ
A58: 53 | B58: ='DATA ELV'!B61 -> كرد توفيق | C58: ='DATA ELV'!J61 -> 3ت إ01 | D58: السنة الثالثة | AZ58: غ | BD58: غ | BR58: غ | BS58: غ | BT58: غ | BU58: غ | DJ58: غ | DK58: غ | EK58: غ | EL58: غ
A59: 54 | B59: ='DATA ELV'!B62 -> هواري سلسبيل | C59: ='DATA ELV'!J62 -> 3ت إ01 | D59: السنة الثالثة | DH59: غ
A60: 55 | B60: ='DATA ELV'!B63 -> أمحمدي آسية | C60: ='DATA ELV'!J63 -> 3ع ت01 | D60: السنة الثالثة
A61: 56 | B61: ='DATA ELV'!B64 -> العربي مريم | C61: ='DATA ELV'!J64 -> 3ع ت01 | D61: السنة الثالثة
A62: 57 | B62: ='DATA ELV'!B65 -> امبارك إيمان | C62: ='DATA ELV'!J65 -> 3ع ت01 | D62: السنة الثالثة | X62: غ | Y62: غ | Z62: غ | AA62: غ | DH62: غ | EG62: غ
A63: 58 | B63: ='DATA ELV'!B66 -> بن زغادي أحمد ياسين | C63: ='DATA ELV'!J66 -> 3ع ت01 | D63: السنة الثالثة
A64: 59 | B64: ='DATA ELV'!B67 -> بن شقرة نسرين | C64: ='DATA ELV'!J67 -> 3ع ت01 | D64: السنة الثالثة | AX64: غ
A65: 60 | B65: ='DATA ELV'!B68 -> بوزار شهيناز | C65: ='DATA ELV'!J68 -> 3ع ت01 | D65: السنة الثالثة
A66: 61 | B66: ='DATA ELV'!B69 -> بوشام زكرياء عبد الرحمن | C66: ='DATA ELV'!J69 -> 3ع ت01 | D66: السنة الثالثة | DK66: غ
A67: 62 | B67: ='DATA ELV'!B70 -> بوعيشة فاطمة الزهراء | C67: ='DATA ELV'!J70 -> 3ع ت01 | D67: السنة الثالثة
A68: 63 | B68: ='DATA ELV'!B71 -> بومدين زكية | C68: ='DATA ELV'!J71 -> 3ع ت01 | D68: السنة الثالثة
A69: 64 | B69: ='DATA ELV'!B72 -> راجعي دعاء | C69: ='DATA ELV'!J72 -> 3ع ت01 | D69: السنة الثالثة | DH69: غ
A70: 65 | B70: ='DATA ELV'!B73 -> زرقاني أمال خليدة | C70: ='DATA ELV'!J73 -> 3ع ت01 | D70: السنة الثالثة
A71: 66 | B71: ='DATA ELV'!B74 -> زرقاني هديل | C71: ='DATA ELV'!J74 -> 3ع ت01 | D71: =IF(LEFT(C71,1)="3","السنة الثالثة",IF(LEFT(C71,1)="2","السنة الثانية",IF(LEFT(C71,1)="0","","السنة الأولى"))) -> السنة الثالثة
A72: 67 | B72: ='DATA ELV'!B75 -> شارف شيماء | C72: ='DATA ELV'!J75 -> 3ع ت01 | D72: السنة الثالثة
A73: 68 | B73: ='DATA ELV'!B76 -> علواني يوسف | C73: ='DATA ELV'!J76 -> 3ع ت01 | D73: السنة الثالثة | AF73: غ | DK73: غ
A74: 69 | B74: ='DATA ELV'!B77 -> عيساني اسماعيل | C74: ='DATA ELV'!J77 -> 3ع ت01 | D74: السنة الثالثة | ED74: غ
A75: 70 | B75: ='DATA ELV'!B78 -> قوراري ليندة | C75: ='DATA ELV'!J78 -> 3ع ت01 | D75: السنة الثالثة | DH75: غ
A76: 71 | B76: ='DATA ELV'!B79 -> لحسايني فاطمة الزهراء | C76: ='DATA ELV'!J79 -> 3ع ت01 | D76: السنة الثالثة
A77: 72 | B77: ='DATA ELV'!B80 -> لحمر شيماء | C77: ='DATA ELV'!J80 -> 3ع ت01 | D77: السنة الثالثة | AW77: غ
A78: 73 | B78: ='DATA ELV'!B81 -> مبرك محمد أمين فارس | C78: ='DATA ELV'!J81 -> 3ع ت01 | D78: السنة الثالثة
A79: 74 | B79: ='DATA ELV'!B82 -> مراس أمال | C79: ='DATA ELV'!J82 -> 3ع ت01 | D79: السنة الثالثة | CX79: غ | CY79: غ | CZ79: غ
A80: 75 | B80: ='DATA ELV'!B83 -> مصار إناس | C80: ='DATA ELV'!J83 -> 3ع ت01 | D80: السنة الثالثة | DK80: غ
A81: 76 | B81: ='DATA ELV'!B84 -> نوالي لبنى | C81: ='DATA ELV'!J84 -> 3ع ت01 | D81: السنة الثالثة
A82: 77 | B82: ='DATA ELV'!B85 -> العربي فاطمة الزهراء | C82: ='DATA ELV'!J85 -> 3ع ت01 | D82: السنة الثالثة | AX82: غ | DK82: غ
A83: 78 | B83: ='DATA ELV'!B86 -> بلعباس فيروز | C83: ='DATA ELV'!J86 -> 3ع ت01 | D83: السنة الثالثة | BU83: غ | BV83: غ
A84: 79 | B84: ='DATA ELV'!B87 -> بوتيتل فاطمة | C84: ='DATA ELV'!J87 -> 3ع ت01 | D84: السنة الثالثة | AM84: غ | AN84: غ | AO84: غ | EK84: غ
A85: 80 | B85: ='DATA ELV'!B88 -> بوجلولي فاطمة الزهراء | C85: ='DATA ELV'!J88 -> 0 | X85: غ | Y85: غ | Z85: غ | AA85: غ | AB85: غ | AC85: غ | AD85: غ | AE85: غ | AF85: غ | AG85: غ | AH85: غ | AI85: غ | AJ85: غ | AK85: غ | AL85: غ | AM85: غ | AN85: غ | AO85: غ | AX85: غ
A86: 81 | B86: ='DATA ELV'!B89 -> حمادي أنس | C86: ='DATA ELV'!J89 -> 3ع ت01 | D86: السنة الثالثة | AF86: غ
A87: 82 | B87: ='DATA ELV'!B90 -> دخيسي وصال | C87: ='DATA ELV'!J90 -> 3ع ت01 | D87: السنة الثالثة
A88: 83 | B88: ='DATA ELV'!B91 -> راشدي عبدالله | C88: ='DATA ELV'!J91 -> 3ع ت01 | D88: السنة الثالثة | DK88: غ
A89: 84 | B89: ='DATA ELV'!B92 -> زحزوح فاطمة الزهراء | C89: ='DATA ELV'!J92 -> 3ع ت01 | D89: السنة الثالثة | CX89: غ | CY89: غ | CZ89: غ | DA89: غ
A90: 85 | B90: ='DATA ELV'!B93 -> زياني الأول سكينة | C90: ='DATA ELV'!J93 -> 3ع ت01 | D90: السنة الثالثة
A91: 86 | B91: ='DATA ELV'!B94 -> سايح كوثر فاطنة | C91: ='DATA ELV'!J94 -> 3ع ت01 | D91: السنة الثالثة
A92: 87 | B92: ='DATA ELV'!B95 -> صهباتو جيهان نورهان | C92: ='DATA ELV'!J95 -> 3ع ت01 | D92: السنة الثالثة | AM92: غ | AN92: غ | AO92: غ
A93: 88 | B93: ='DATA ELV'!B96 -> عباسي فاطمة الزهراء | C93: ='DATA ELV'!J96 -> 3ع ت01 | D93: السنة الثالثة | CU93: غ | DH93: غ
A94: 89 | B94: ='DATA ELV'!B97 -> مجاطي زينب | C94: ='DATA ELV'!J97 -> 3ع ت01 | D94: السنة الثالثة | CW94: غ | CX94: غ | CY94: غ | CZ94: غ | DB94: غ
A95: 90 | B95: ='DATA ELV'!B98 -> مقداد وئيل | C95: ='DATA ELV'!J98 -> 3ع ت01 | D95: السنة الثالثة | CT95: غ | EE95: غ | EJ95: غ
A96: 91 | B96: ='DATA ELV'!B99 -> منيري عبد المالك | C96: ='DATA ELV'!J99 -> 3ع ت01 | D96: السنة الثالثة | DK96: غ
A97: 92 | B97: ='DATA ELV'!B100 -> مهنان قصي | C97: ='DATA ELV'!J100 -> 3ع ت01 | D97: السنة الثالثة | CT97: غ
A98: 93 | B98: ='DATA ELV'!B101 -> نواوي وائل | C98: ='DATA ELV'!J101 -> 3ع ت01 | D98: السنة الثالثة
A99: 94 | B99: ='DATA ELV'!B102 -> أمحمدي وليد | C99: ='DATA ELV'!J102 -> 3ع ت02 | D99: السنة الثالثة
A100: 95 | B100: ='DATA ELV'!B103 -> العرابي نادية | C100: ='DATA ELV'!J103 -> 3ع ت02 | D100: السنة الثالثة | AB100: غ
A101: 96 | B101: ='DATA ELV'!B104 -> اوراغي علاء الدين | C101: ='DATA ELV'!J104 -> 3ع ت02 | D101: السنة الثالثة | BH101: غ | DK101: غ
A102: 97 | B102: ='DATA ELV'!B105 -> بلطرش سعاد رانية | C102: ='DATA ELV'!J105 -> 3ع ت02 | D102: السنة الثالثة
A103: 98 | B103: ='DATA ELV'!B106 -> بن حلي ياسمينة فادية | C103: ='DATA ELV'!J106 -> 3ع ت02 | D103: السنة الثالثة
A104: 99 | B104: ='DATA ELV'!B107 -> بن دلاع جهيدة | C104: ='DATA ELV'!J107 -> 3ع ت02 | D104: السنة الثالثة
A105: 100 | B105: ='DATA ELV'!B108 -> بن عيش ليلى | C105: ='DATA ELV'!J108 -> 3ع ت02 | D105: السنة الثالثة
A106: 101 | B106: ='DATA ELV'!B109 -> بودرقة أميمة | C106: ='DATA ELV'!J109 -> 3ع ت02 | D106: السنة الثالثة | BH106: غ | DC106: غ | DE106: غ | DF106: غ | DG106: غ
A107: 102 | B107: ='DATA ELV'!B110 -> بوزاهري شيماء | C107: ='DATA ELV'!J110 -> 3ع ت02 | D107: السنة الثالثة | BH107: غ
A108: 103 | B108: ='DATA ELV'!B111 -> جدودي إكرام | C108: ='DATA ELV'!J111 -> 3ع ت02 | D108: السنة الثالثة
A109: 104 | B109: ='DATA ELV'!B112 -> داري أميرة | C109: ='DATA ELV'!J112 -> 3ع ت02 | D109: السنة الثالثة
A110: 105 | B110: ='DATA ELV'!B113 -> ستاوي عبد الهادي رضا | C110: ='DATA ELV'!J113 -> 3ع ت02 | D110: السنة الثالثة
A111: 106 | B111: ='DATA ELV'!B114 -> شارف فاطمة الزهراء | C111: ='DATA ELV'!J114 -> 3ع ت02 | D111: السنة الثالثة | BH111: غ | DB111: غ
A112: 107 | B112: ='DATA ELV'!B115 -> شاوش هند | C112: ='DATA ELV'!J115 -> 3ع ت02 | D112: السنة الثالثة
A113: 108 | B113: ='DATA ELV'!B116 -> شواو أمينة | C113: ='DATA ELV'!J116 -> 3ع ت02 | D113: السنة الثالثة
A114: 109 | B114: ='DATA ELV'!B117 -> كبيب محمد أمين | C114: ='DATA ELV'!J117 -> 3ع ت02 | D114: السنة الثالثة | DK114: غ
A115: 110 | B115: ='DATA ELV'!B118 -> لكحل ياسمين | C115: ='DATA ELV'!J118 -> 3ع ت02 | D115: السنة الثالثة
A116: 111 | B116: ='DATA ELV'!B119 -> مصمودي نجية | C116: ='DATA ELV'!J119 -> 3ع ت02 | D116: السنة الثالثة | AR116: غ | AS116: غ | AT116: غ | AU116: غ | AV116: غ | DA116: غ
A117: 112 | B117: ='DATA ELV'!B120 -> مفيتح مريم | C117: ='DATA ELV'!J120 -> 3ع ت02 | D117: السنة الثالثة | BG117: غ
A118: 113 | B118: ='DATA ELV'!B121 -> نوالي ارشاد | C118: ='DATA ELV'!J121 -> 3ع ت02 | D118: السنة الثالثة
A119: 114 | B119: ='DATA ELV'!B122 -> بوحفص عبد الرحيم | C119: ='DATA ELV'!J122 -> 3ع ت02 | D119: السنة الثالثة
A120: 115 | B120: ='DATA ELV'!B123 -> تاجوري سيدي محمد | C120: ='DATA ELV'!J123 -> 3ع ت02 | D120: السنة الثالثة
A121: 116 | B121: ='DATA ELV'!B124 -> زحوط ملاك | C121: ='DATA ELV'!J124 -> 3ع ت02 | D121: السنة الثالثة | AM121: غ | AN121: غ | AO121: غ | BH121: غ | DA121: غ
A122: 117 | B122: ='DATA ELV'!B125 -> طرشون إكرام | C122: ='DATA ELV'!J125 -> 3ع ت02 | D122: السنة الثالثة | AD122: غ | AE122: غ | BH122: غ | BO122: غ | DA122: غ
A123: 118 | B123: ='DATA ELV'!B126 -> عبد المالك نجمة | C123: ='DATA ELV'!J126 -> 3ع ت02 | D123: السنة الثالثة | BH123: غ
A124: 119 | B124: ='DATA ELV'!B127 -> مرحوم دعاء | C124: ='DATA ELV'!J127 -> 3ع ت02 | D124: السنة الثالثة | BH124: غ
A125: 120 | B125: ='DATA ELV'!B128 -> موقاس الطيب | C125: ='DATA ELV'!J128 -> 3ع ت02 | D125: السنة الثالثة
A126: 121 | B126: ='DATA ELV'!B129 -> أوزليفي أسامة | C126: ='DATA ELV'!J129 -> 3أ ف01 | D126: السنة الثالثة | EF126: غ
A127: 122 | B127: ='DATA ELV'!B130 -> العابد صفاء | C127: ='DATA ELV'!J130 -> 3أ ف01 | D127: السنة الثالثة
A128: 123 | B128: ='DATA ELV'!B131 -> امحمدي أمينة | C128: ='DATA ELV'!J131 -> 3أ ف01 | D128: السنة الثالثة
A129: 124 | B129: ='DATA ELV'!B132 -> بلجيلالي أحمد بلقاسم | C129: ='DATA ELV'!J132 -> 3أ ف01 | D129: السنة الثالثة | BU129: غ | BV129: غ
A130: 125 | B130: ='DATA ELV'!B133 -> بن أعمر فاطمة الزهراء | C130: ='DATA ELV'!J133 -> 3أ ف01 | D130: السنة الثالثة
A131: 126 | B131: ='DATA ELV'!B134 -> بن اعمر اكرام | C131: ='DATA ELV'!J134 -> 3أ ف01 | D131: السنة الثالثة
A132: 127 | B132: ='DATA ELV'!B135 -> بن بوعزي مصطفى | C132: ='DATA ELV'!J135 -> 3أ ف01 | D132: السنة الثالثة
A133: 128 | B133: ='DATA ELV'!B136 -> بن سالم نهاد | C133: ='DATA ELV'!J136 -> 3أ ف01 | D133: السنة الثالثة
A134: 129 | B134: ='DATA ELV'!B137 -> بورديم بشرى | C134: ='DATA ELV'!J137 -> 3أ ف01 | D134: السنة الثالثة
A135: 130 | B135: ='DATA ELV'!B138 -> تادلي هدى شيماء | C135: ='DATA ELV'!J138 -> 3أ ف01 | D135: =IF(LEFT(C135,1)="3","السنة الثالثة",IF(LEFT(C135,1)="2","السنة الثانية",IF(LEFT(C135,1)="0","","السنة الأولى"))) -> السنة الثالثة | AZ135: غ | CX135: غ | CY135: غ | CZ135: غ
A136: 131 | B136: ='DATA ELV'!B139 -> حاج علي أمينة | C136: ='DATA ELV'!J139 -> 3أ ف01 | D136: السنة الثالثة
A137: 132 | B137: ='DATA ELV'!B140 -> زقاي اسية | C137: ='DATA ELV'!J140 -> 3أ ف01 | D137: السنة الثالثة
A138: 133 | B138: ='DATA ELV'!B141 -> زياني الأول محمد | C138: ='DATA ELV'!J141 -> 3أ ف01 | D138: السنة الثالثة | X138: غ
A139: 134 | B139: ='DATA ELV'!B142 -> سلهامي رانيا | C139: ='DATA ELV'!J142 -> 3أ ف01 | D139: السنة الثالثة | EJ139: غ
A140: 135 | B140: ='DATA ELV'!B143 -> عايشي سامية | C140: ='DATA ELV'!J143 -> 3أ ف01 | D140: السنة الثالثة
A141: 136 | B141: ='DATA ELV'!B144 -> عبد المالك منال | C141: ='DATA ELV'!J144 -> 3أ ف01 | D141: السنة الثالثة | BF141: غ
A142: 137 | B142: ='DATA ELV'!B145 -> فتوحي سهيلة | C142: ='DATA ELV'!J145 -> 3أ ف01 | D142: السنة الثالثة
A143: 138 | B143: ='DATA ELV'!B146 -> مرزوقي ادم | C143: ='DATA ELV'!J146 -> 3أ ف01 | D143: السنة الثالثة
A144: 139 | B144: ='DATA ELV'!B147 -> مزاري لمياء | C144: ='DATA ELV'!J147 -> 3أ ف01 | D144: السنة الثالثة | BU144: غ | BV144: غ
A145: 140 | B145: ='DATA ELV'!B148 -> معيذري نورية | C145: ='DATA ELV'!J148 -> 3أ ف01 | D145: السنة الثالثة | CU145: غ
A146: 141 | B146: ='DATA ELV'!B149 -> أمبارك عزيز | C146: ='DATA ELV'!J149 -> 3أ ف01 | D146: السنة الثالثة
A147: 142 | B147: ='DATA ELV'!B150 -> العابد محمد كمال | C147: ='DATA ELV'!J150 -> 3أ ف01 | D147: السنة الثالثة | Y147: غ | Z147: غ | AA147: غ | AB147: غ | AF147: غ | AY147: غ | AZ147: غ | BR147: غ | CX147: غ | CY147: غ | CZ147: غ
A148: 143 | B148: ='DATA ELV'!B151 -> بن رمضان عبد المجيد | C148: ='DATA ELV'!J151 -> 3أ ف01 | D148: السنة الثالثة | CV148: غ
A149: 144 | B149: ='DATA ELV'!B152 -> بن صابر دعاء | C149: ='DATA ELV'!J152 -> 3أ ف01 | D149: السنة الثالثة | AZ149: غ | CU149: غ | DJ149: غ
A150: 145 | B150: ='DATA ELV'!B153 -> بن عبد الرحمن رانيا | C150: ='DATA ELV'!J153 -> 3أ ف01 | D150: السنة الثالثة | AF150: غ | CX150: غ | CY150: غ | CZ150: غ
A151: 146 | B151: ='DATA ELV'!B154 -> بن عراج إلياس | C151: ='DATA ELV'!J154 -> 3أ ف01 | D151: السنة الثالثة | AP151: غ | AY151: غ | BD151: غ | BE151: غ | BO151: غ | BS151: غ | BT151: غ | CT151: غ | CU151: غ | CV151: غ | DA151: غ | DB151: غ | DC151: غ
A152: 147 | B152: ='DATA ELV'!B155 -> بوطيش وسام | C152: ='DATA ELV'!J155 -> 0 | BG152: غ | BH152: غ
A153: 148 | B153: ='DATA ELV'!B156 -> شياخ فاطمة | C153: ='DATA ELV'!J156 -> 3أ ف01 | D153: السنة الثالثة
A154: 149 | B154: ='DATA ELV'!B157 -> قبلي محمد يوسف | C154: ='DATA ELV'!J157 -> 3أ ف01 | D154: السنة الثالثة | CT154: غ
A155: 150 | B155: ='DATA ELV'!B158 -> مبيتيل حواء | C155: ='DATA ELV'!J158 -> 3أ ف01 | D155: السنة الثالثة | BF155: غ
A156: 151 | B156: ='DATA ELV'!B159 -> أمبارك سعدية | C156: ='DATA ELV'!J159 -> 3أ ف02 | D156: السنة الثالثة
A157: 152 | B157: ='DATA ELV'!B160 -> امبارك آية دعاء | C157: ='DATA ELV'!J160 -> 3أ ف02 | D157: السنة الثالثة
A158: 153 | B158: ='DATA ELV'!B161 -> امبارك اسماعيل | C158: ='DATA ELV'!J161 -> 3أ ف02 | D158: السنة الثالثة | AE158: غ | AF158: غ
A159: 154 | B159: ='DATA ELV'!B162 -> بن سعد شيماء | C159: ='DATA ELV'!J162 -> 3أ ف02 | D159: السنة الثالثة
A160: 155 | B160: ='DATA ELV'!B163 -> بن يحي أحلام | C160: ='DATA ELV'!J163 -> 3أ ف02 | D160: السنة الثالثة
A161: 156 | B161: ='DATA ELV'!B164 -> بومدين احمد | C161: ='DATA ELV'!J164 -> 3أ ف02 | D161: السنة الثالثة | BU161: غ | BV161: غ | DE161: غ | DF161: غ | DG161: غ
A162: 157 | B162: ='DATA ELV'!B165 -> حمو حنان | C162: ='DATA ELV'!J165 -> 3أ ف02 | D162: السنة الثالثة
A163: 158 | B163: ='DATA ELV'!B166 -> عريبي صورية | C163: ='DATA ELV'!J166 -> 3أ ف02 | D163: السنة الثالثة | BS163: غ | BT163: غ | BU163: غ | BV163: غ
A164: 159 | B164: ='DATA ELV'!B167 -> فارس زهيرة | C164: ='DATA ELV'!J167 -> 3أ ف02 | D164: السنة الثالثة
A165: 160 | B165: ='DATA ELV'!B168 -> قاطع زكرياء | C165: ='DATA ELV'!J168 -> 3أ ف02 | D165: السنة الثالثة | AF165: غ | AG165: غ | AH165: غ | AI165: غ | AJ165: غ | AK165: غ | AL165: غ | BU165: غ | BV165: غ | EJ165: غ | EK165: غ | EL165: غ
A166: 161 | B166: ='DATA ELV'!B169 -> قديم أسماء | C166: ='DATA ELV'!J169 -> 3أ ف02 | D166: السنة الثالثة
A167: 162 | B167: ='DATA ELV'!B170 -> مزاري سناء | C167: ='DATA ELV'!J170 -> 3أ ف02 | D167: السنة الثالثة | EJ167: غ | EK167: غ
A168: 163 | B168: ='DATA ELV'!B171 -> معموري علاء الدين | C168: ='DATA ELV'!J171 -> 3أ ف02 | D168: السنة الثالثة | AF168: غ | BS168: غ | BU168: غ | BV168: غ | DB168: غ | DE168: غ | DF168: غ | DG168: غ | DH168: غ
A169: 164 | B169: ='DATA ELV'!B172 -> مفتاح سمية | C169: ='DATA ELV'!J172 -> 3أ ف02 | D169: السنة الثالثة | AF169: غ | BS169: غ | CT169: غ | CU169: غ | EJ169: غ
A170: 165 | B170: ='DATA ELV'!B173 -> منور آية | C170: ='DATA ELV'!J173 -> 3أ ف02 | D170: السنة الثالثة
A171: 166 | B171: ='DATA ELV'!B174 -> منور عبد الحسيب | C171: ='DATA ELV'!J174 -> 3أ ف02 | D171: السنة الثالثة
A172: 167 | B172: ='DATA ELV'!B175 -> نواوي صهيب | C172: ='DATA ELV'!J175 -> 3أ ف02 | D172: السنة الثالثة
A173: 168 | B173: ='DATA ELV'!B176 -> أحمودي ياسين | C173: ='DATA ELV'!J176 -> 3أ ف02 | D173: السنة الثالثة | Y173: غ | Z173: غ | AA173: غ | AB173: غ | AC173: غ | AF173: غ
A174: 169 | B174: ='DATA ELV'!B177 -> أوحساين بشرى | C174: ='DATA ELV'!J177 -> 3أ ف02 | D174: السنة الثالثة
A175: 170 | B175: ='DATA ELV'!B178 -> أيلاس أنفال | C175: ='DATA ELV'!J178 -> 3أ ف02 | D175: السنة الثالثة
A176: 171 | B176: ='DATA ELV'!B179 -> بلهادف هارون | C176: ='DATA ELV'!J179 -> 3أ ف02 | D176: السنة الثالثة | BT176: غ
A177: 172 | B177: ='DATA ELV'!B180 -> رحال سامية | C177: ='DATA ELV'!J180 -> 3أ ف02 | D177: السنة الثالثة | EK177: غ
A178: 173 | B178: ='DATA ELV'!B181 -> سابق زكرياء | C178: ='DATA ELV'!J181 -> 3أ ف02 | D178: السنة الثالثة | DA178: غ
A179: 174 | B179: ='DATA ELV'!B182 -> لحسايني فاروق | C179: ='DATA ELV'!J182 -> 3أ ف02 | D179: السنة الثالثة
A180: 175 | B180: ='DATA ELV'!B183 -> ميلود عبيد سارة | C180: ='DATA ELV'!J183 -> 3أ ف02 | D180: السنة الثالثة | AT180: غ | AU180: غ | AV180: غ
A181: 176 | B181: ='DATA ELV'!B184 -> ناير مروة | C181: ='DATA ELV'!J184 -> 3أ ف02 | D181: السنة الثالثة
A182: 177 | B182: ='DATA ELV'!B185 -> بن عزوز شهيناز | C182: ='DATA ELV'!J185 -> 3لغات /إسبا | D182: السنة الثالثة | AX182: غ
A183: 178 | B183: ='DATA ELV'!B186 -> بورديم نور الإيمان | C183: ='DATA ELV'!J186 -> 3لغات /إسبا | D183: السنة الثالثة
A184: 179 | B184: ='DATA ELV'!B187 -> أوزليفي عائشة | C184: ='DATA ELV'!J187 -> 3لغات /إسبا | D184: السنة الثالثة | AZ184: غ | BA184: غ | BB184: غ | BC184: غ
A185: 180 | B185: ='DATA ELV'!B188 -> العياطي فاطمة | C185: ='DATA ELV'!J188 -> 3لغات /إسبا | D185: السنة الثالثة | AX185: غ | BR185: غ | CU185: غ | CV185: غ | CX185: غ | CY185: غ | CZ185: غ | DC185: غ | DK185: غ | ED185: غ | EE185: غ
A186: 181 | B186: ='DATA ELV'!B189 -> بلخياطي مصطفى | C186: ='DATA ELV'!J189 -> 3لغات /إسبا | D186: السنة الثالثة | P186: غ | Q186: غ | R186: غ | S186: غ | T186: غ | U186: غ | V186: غ | W186: غ | X186: غ | Y186: غ | Z186: غ | AA186: غ | AB186: غ | AC186: غ | AD186: غ | AE186: غ | AF186: غ | AG186: غ | AH186: غ | AI186: غ | AJ186: غ | AK186: غ | DC186: غ
A187: 182 | B187: ='DATA ELV'!B190 -> بلعمري منال | C187: ='DATA ELV'!J190 -> 3لغات /إسبا | D187: السنة الثالثة
A188: 183 | B188: ='DATA ELV'!B191 -> بلقاسم مريم | C188: ='DATA ELV'!J191 -> 3لغات /إسبا | D188: السنة الثالثة | AT188: غ | AU188: غ | AV188: غ | BD188: غ | BU188: غ | BV188: غ | DC188: غ | DE188: غ | DF188: غ | DG188: غ | DH188: غ
A189: 184 | B189: ='DATA ELV'!B192 -> بن جيلالي منال | C189: ='DATA ELV'!J192 -> 3لغات /إسبا | D189: السنة الثالثة | CX189: غ | CY189: غ | CZ189: غ
A190: 185 | B190: ='DATA ELV'!B193 -> بن عزوز منار نور الهدى | C190: ='DATA ELV'!J193 -> 3لغات /إسبا | D190: السنة الثالثة
A191: 186 | B191: ='DATA ELV'!B194 -> بن عزيزة دعاء | C191: ='DATA ELV'!J194 -> 3لغات /إسبا | D191: السنة الثالثة
A192: 187 | B192: ='DATA ELV'!B195 -> بوطاقة خديجة | C192: ='DATA ELV'!J195 -> 3لغات /إسبا | D192: السنة الثالثة
A193: 188 | B193: ='DATA ELV'!B196 -> بوعزاوي صفاء | C193: ='DATA ELV'!J196 -> 3لغات /إسبا | D193: السنة الثالثة | Y193: غ | Z193: غ | AA193: غ | AT193: غ | AU193: غ | AV193: غ | BR193: غ | BU193: غ | BV193: غ | DA193: غ | DB193: غ
A194: 189 | B194: ='DATA ELV'!B197 -> بومنجل نبيل | C194: ='DATA ELV'!J197 -> 3لغات /إسبا | D194: السنة الثالثة | AE194: غ | AF194: غ
A195: 190 | B195: ='DATA ELV'!B198 -> تاجوري رابحة | C195: ='DATA ELV'!J198 -> 3لغات /إسبا | D195: السنة الثالثة | CU195: غ | DK195: غ
A196: 191 | B196: ='DATA ELV'!B199 -> حساين محمد امين | C196: ='DATA ELV'!J199 -> 3لغات /إسبا | D196: السنة الثالثة
A197: 192 | B197: ='DATA ELV'!B200 -> حمادي نور الهدى | C197: ='DATA ELV'!J200 -> 3لغات /إسبا | D197: السنة الثالثة | AT197: غ | AU197: غ | AV197: غ | CX197: غ | CY197: غ | CZ197: غ | DA197: غ | DB197: غ | DC197: غ | EC197: غ | EJ197: غ
A198: 193 | B198: ='DATA ELV'!B201 -> دقي أمال | C198: ='DATA ELV'!J201 -> 3لغات /إسبا | D198: السنة الثالثة
A199: 194 | B199: ='DATA ELV'!B202 -> دمامن شيماء | C199: ='DATA ELV'!J202 -> 3لغات /إسبا | D199: =IF(LEFT(C199,1)="3","السنة الثالثة",IF(LEFT(C199,1)="2","السنة الثانية",IF(LEFT(C199,1)="0","","السنة الأولى"))) -> السنة الثالثة
A200: 195 | B200: ='DATA ELV'!B203 -> رحال مغنية | C200: ='DATA ELV'!J203 -> 3لغات /إسبا | D200: السنة الثالثة
A201: 196 | B201: ='DATA ELV'!B204 -> صحراوي اكرام | C201: ='DATA ELV'!J204 -> 3لغات /إسبا | D201: السنة الثالثة | AE201: غ | BE201: غ | BS201: غ | DE201: غ | DF201: غ | DG201: غ
A202: 197 | B202: ='DATA ELV'!B205 -> صدار معاد | C202: ='DATA ELV'!J205 -> 3لغات /إسبا | D202: السنة الثالثة | BE202: غ | DA202: غ | DB202: غ | DC202: غ
... 2303 more rows

Sheet RAP JOUR
B1: الجمهورية الجزائرية الديمقراطية الشعبية
B2: وزارة التربية الوطنية
B3: =MAIN!A5 -> مديرية التربية لولاية تلمسان
B4: =MAIN!A9 -> ثانوية الخوارزمي - مغنية | J4: ليوم : | L4: الخميس | O4: 2022-02-24
D5: مواظبــــــة التلاميـــــذ :
D6: الخارجية | J6: الحجم الساعي و نسب الغياب | N6: نصف داخلي
B7: المستويات | D7: المسجلون | G7: الغائبون | J7: الحجم الساعي اليومي | K7: الحجم الساعي اليومي الكلي | L7: عدد ساعات الغياب | M7: نسبة مئوية | N7: المسجلون | Q7: الحاضرون
D9: ذ | E9: إ | F9: مج | G9: ذ | H9: إ | I9: مج | N9: ذ | O9: إ | P9: مج | Q9: ذ | R9: إ | S9: مج
B10: السنة االأولى | D10: =TI3DAD!AE31 -> 143 | E10: =TI3DAD!AF31 -> 124 | F10: =SUM(D10:E10) -> 267 | G10: =COUNTIF(AA65:AA98,"ذكر") -> 4 | H10: =COUNTIF(AA65:AA98,"أنثى") -> 1 | I10: =SUM(G10:H10) -> 5 | J10: =G190 -> 62 | K10: =J10*F10 -> 16554 | L10: 58 | M10: =L10/K10 -> 0.00350368491 | N10: =TI3DAD!Y31 -> 92 | O10: =TI3DAD!Z31 -> 79 | P10: =SUM(N10:O10) -> 171 | Q10: 12 | R10: 27 | S10: =SUM(Q10:R10) -> 39
B11: السنة الثانية | D11: =TI3DAD!AE30 -> 91 | E11: =TI3DAD!AF30 -> 135 | F11: =SUM(D11:E11) -> 226 | G11: =COUNTIF(AB65:AB98,"ذكر") -> 0 | H11: =COUNTIF(AB65:AB98,"أنثى") -> 0 | I11: =SUM(G11:H11) -> 0 | J11: =H190 -> 43 | K11: =J11*F11 -> 9718 | L11: 21 | M11: =L11/K11 -> 0.002160938465 | N11: =TI3DAD!Y30 -> 52 | O11: =TI3DAD!Z30 -> 103 | P11: =SUM(N11:O11) -> 155 | Q11: الوجبـــــة
B12: السنة الثالثة | D12: =TI3DAD!AE29 -> 65 | E12: =TI3DAD!AF29 -> 132 | F12: =SUM(D12:E12) -> 197 | G12: =COUNTIF(AC65:AC98,"ذكر") -> 0 | H12: =COUNTIF(AC65:AC98,"أنثى") -> 0 | I12: =SUM(G12:H12) -> 0 | J12: =I190 -> 54 | K12: =J12*F12 -> 10638 | L12: 16 | M12: =L12/K12 -> 0.001504042113 | N12: =TI3DAD!Y29 -> 37 | O12: =TI3DAD!Z29 -> 93 | P12: =SUM(N12:O12) -> 130 | Q12: سلاطة خس + عدس
B13: المجموع | D13: =SUM(D10:D12) -> 299 | E13: =SUM(E10:E12) -> 391 | F13: =SUM(F10:F12) -> 690 | G13: =SUM(G10:G12) -> 4 | H13: =SUM(H10:H12) -> 1 | I13: =SUM(G13:H13) -> 5 | J13: =SUM(J10:J12) -> 159 | K13: =J13*F13 -> 109710 | L13: =SUM(L10:L12) -> 95 | M13: =L13/K13 -> 0.0008659192416 | N13: =SUM(N10:N12) -> 181 | O13: =SUM(O10:O12) -> 275 | P13: =SUM(P10:P12) -> 456 | Q13: بيض + ياغورت
D14: مواظبــــــة الأســــاتذة :
B15: الرقم | C15: اسم و لقب الأستاذ | E15: التخصص | G15: ح1 | H15: ح2 | I15: ح3 | J15: ح4 | K15: ح5 | L15: ح6 | M15: ح7 | N15: ح8 | O15: ح9 | P15: ح10 | Q15: ح11 | R15: سبب الغياب
A16: 38 | B16: 1 | C16: =IFERROR(VLOOKUP(A16,T,2,0),0) -> جبور صافية | E16: =IFERROR(VLOOKUP(A16,T,4,0),"") -> إقتصاد | G16: =IFERROR(VLOOKUP(A16,T,6,0),0) -> 0 | H16: =IFERROR(VLOOKUP(A16,T,7,0),0) -> 0 | I16: =IFERROR(VLOOKUP(A16,T,8,0),0) -> 0 | J16: =IFERROR(VLOOKUP(A16,T,9,0),0) -> 0 | K16: =IFERROR(VLOOKUP(A16,T,10,0),0) -> 0 | L16: =IFERROR(VLOOKUP(A16,T,11,0),0) -> 0 | M16: =IFERROR(VLOOKUP(A16,T,12,0),0) -> 0 | N16: =IFERROR(VLOOKUP(A16,T,13,0),0) -> 0 | O16: =IFERROR(VLOOKUP(A16,T,14,0),0) -> 0 | P16: =IFERROR(VLOOKUP(A16,T,15,0),0) -> 0 | Q16: =IFERROR(VLOOKUP(A16,T,16,0),0) -> 0
A17: 37 | B17: 2 | C17: دلافي أحمد | E17: تكنولوجيا | G17: 1ع2/4 | H17: 0 | I17: 1ع1/5 | J17: 0 | K17: 1ع1/2 | L17: 0 | M17: 0 | N17: 0 | O17: 0 | P17: 0 | Q17: 0
A18: 5 | B18: 3 | C18: مالو ياسمينة | E18: رياضيات | G18: 0 | H18: 0 | I18: 0 | J18: 0 | K18: 0 | L18: 2ت إ/1 | M18: 1أ2/2 | N18: 1أ1/2 | O18: 2أف2/1 | P18: 0 | Q18: 0
B19: 4 | C19: 0 | G19: 0 | H19: 0 | I19: 0 | J19: 0 | K19: 0 | L19: 0 | M19: 0 | N19: 0 | O19: 0 | P19: 0 | Q19: 0
B20: 5 | C20: 0 | G20: 0 | H20: 0 | I20: 0 | J20: 0 | K20: 0 | L20: 0 | M20: 0 | N20: 0 | O20: 0 | P20: 0 | Q20: 0
B21: 6 | C21: 0 | G21: 0 | H21: 0 | I21: 0 | J21: 0 | K21: 0 | L21: 0 | M21: 0 | N21: 0 | O21: 0 | P21: 0 | Q21: 0
B22: 7 | C22: 0 | G22: 0 | H22: 0 | I22: 0 | J22: 0 | K22: 0 | L22: 0 | M22: 0 | N22: 0 | O22: 0 | P22: 0 | Q22: 0
B23: 8 | C23: 0 | G23: 0 | H23: 0 | I23: 0 | J23: 0 | K23: 0 | L23: 0 | M23: 0 | N23: 0 | O23: 0 | P23: 0 | Q23: 0
B24: 9 | C24: 0 | G24: 0 | H24: 0 | I24: 0 | J24: 0 | K24: 0 | L24: 0 | M24: 0 | N24: 0 | O24: 0 | P24: 0 | Q24: 0
B25: 10 | C25: 0 | G25: 0 | H25: 0 | I25: 0 | J25: 0 | K25: 0 | L25: 0 | M25: 0 | N25: 0 | O25: 0 | P25: 0 | Q25: 0
B26: 11 | C26: 0 | G26: 0 | H26: 0 | I26: 0 | J26: 0 | K26: 0 | L26: 0 | M26: 0 | N26: 0 | O26: 0 | P26: 0 | Q26: 0
B27: 12 | C27: 0 | G27: 0 | H27: 0 | I27: 0 | J27: 0 | K27: 0 | L27: 0 | M27: 0 | N27: 0 | O27: 0 | P27: 0 | Q27: 0
B28: 13 | C28: 0 | G28: 0 | H28: 0 | I28: 0 | J28: 0 | K28: 0 | L28: 0 | M28: 0 | N28: 0 | O28: 0 | P28: 0 | Q28: 0
B29: 14 | C29: 0 | G29: 0 | H29: 0 | I29: 0 | J29: 0 | K29: 0 | L29: 0 | M29: 0 | N29: 0 | O29: 0 | P29: 0 | Q29: 0
B30: 15 | C30: 0 | G30: 0 | H30: 0 | I30: 0 | J30: 0 | K30: 0 | L30: 0 | M30: 0 | N30: 0 | O30: 0 | P30: 0 | Q30: 0
B31: 16 | C31: 0 | G31: 0 | H31: 0 | I31: 0 | J31: 0 | K31: 0 | L31: 0 | M31: 0 | N31: 0 | O31: 0 | P31: 0 | Q31: 0
B32: 17 | C32: 0 | G32: 0 | H32: 0 | I32: 0 | J32: 0 | K32: 0 | L32: 0 | M32: 0 | N32: 0 | O32: 0 | P32: 0 | Q32: 0
B33: 18 | C33: 0 | G33: 0 | H33: 0 | I33: 0 | J33: 0 | K33: 0 | L33: 0 | M33: 0 | N33: 0 | O33: 0 | P33: 0 | Q33: 0
B34: 19 | C34: 0 | G34: 0 | H34: 0 | I34: 0 | J34: 0 | K34: 0 | L34: 0 | M34: 0 | N34: 0 | O34: 0 | P34: 0 | Q34: 0
B35: 20 | C35: 0 | G35: 0 | H35: 0 | I35: 0 | J35: 0 | K35: 0 | L35: 0 | M35: 0 | N35: 0 | O35: 0 | P35: 0 | Q35: 0
B36: 21 | C36: 0 | G36: 0 | H36: 0 | I36: 0 | J36: 0 | K36: 0 | L36: 0 | M36: 0 | N36: 0 | O36: 0 | P36: 0 | Q36: 0
B37: 22 | C37: 0 | G37: 0 | H37: 0 | I37: 0 | J37: 0 | K37: 0 | L37: 0 | M37: 0 | N37: 0 | O37: 0 | P37: 0 | Q37: 0
B38: 23 | C38: 0 | G38: 0 | H38: 0 | I38: 0 | J38: 0 | K38: 0 | L38: 0 | M38: 0 | N38: 0 | O38: 0 | P38: 0 | Q38: 0
B39: 24 | C39: 0 | G39: 0 | H39: 0 | I39: 0 | J39: 0 | K39: 0 | L39: 0 | M39: 0 | N39: 0 | O39: 0 | P39: 0 | Q39: 0
B40: 25 | C40: 0 | G40: 0 | H40: 0 | I40: 0 | J40: 0 | K40: 0 | L40: 0 | M40: 0 | N40: 0 | O40: 0 | P40: 0 | Q40: 0
B41: 26 | C41: 0 | G41: 0 | H41: 0 | I41: 0 | J41: 0 | K41: 0 | L41: 0 | M41: 0 | N41: 0 | O41: 0 | P41: 0 | Q41: 0
B42: 27 | C42: 0 | G42: 0 | H42: 0 | I42: 0 | J42: 0 | K42: 0 | L42: 0 | M42: 0 | N42: 0 | O42: 0 | P42: 0 | Q42: 0
B43: 28 | C43: 0 | G43: 0 | H43: 0 | I43: 0 | J43: 0 | K43: 0 | L43: 0 | M43: 0 | N43: 0 | O43: 0 | P43: 0 | Q43: 0
B44: 29 | C44: 0 | G44: 0 | H44: 0 | I44: 0 | J44: 0 | K44: 0 | L44: 0 | M44: 0 | N44: 0 | O44: 0 | P44: 0 | Q44: 0
B45: 30 | C45: 0 | G45: 0 | H45: 0 | I45: 0 | J45: 0 | K45: 0 | L45: 0 | M45: 0 | N45: 0 | O45: 0 | P45: 0 | Q45: 0
B46: عدد الأســـــاتذة العاملين | F46: =K190 -> 35 | H46: عدد الأســـاتذة الغائبون | L46: =COUNTIF(C16:C45,"<>0") -> 3 | M46: =COUNTIF(E16:E45,"<>0") -> 30 | N46: نسبة غياب الأساتذة | R46: =L46/F46 -> 0.08571428571
B47: عدد الحصص المبرمجة | F47: =J190 -> 159 | H47: عدد الحصص الضائعة | L47: =COUNTIF(P,"<>0") -> 7 | N47: نسبة الحصص الضائعة | R47: =L47/F47 -> 0.04402515723
D48: تعويض الحصص الضائعة :
B49: الرقم | C49: اسم و لقب الأستاذ | E49: التخصص | G49: ح1 | H49: ح2 | I49: ح3 | J49: ح4 | K49: ح5 | L49: ح6 | M49: ح7 | N49: ح8 | O49: ح9 | P49: ملاحظات
B50: 1
B51: 2
B52: 3
B53: 4
D54: غيابات و تأخــــرات مساعدي و مشرفي التربية و موظفي عقود ما قبل التشغيل :
B55: الرقم | C55: اسم الموظف | G55: الرتبة | J55: مدة الغيـــــــــــــــــــــــــــــــــاب | O55: سبب الغياب | R55: ملاحظات
A62: الغيـــــــــــــــــــــــــــابات اليــــــــــــــومية للتلاميذ | K62: يوم : | M62: =L4 -> الخميس | P62: =O4 -> 2022-02-24
B63: الرقم | C63: السنة الأولى | F63: السنة الثانية | J63: السنة الثالثة | N63: قضايا سلــوكية /تقارير
C64: اسم و لقب التلميذ | E64: القسم | F64: اسم و لقب التلميذ | I64: القسم | J64: اسم و لقب التلميذ | M64: القسم | N64: اسم التلميذ | P64: القسم | Q64: المادة | R64: نوع التقرير
B65: 1 | C65: =Feuil7!P6 -> بوستين أسامة | E65: =Feuil7!Q6 -> 3ت ر/هم | F65: =Feuil7!P40 -> 0 | I65: =Feuil7!Q40 -> 0 | J65: =Feuil7!P74 -> 0 | M65: =Feuil7!Q74 -> 0 | AA65: =IF(C65="","",INDEX('DATA ELV'!$F:$F,MATCH(C65,'DATA ELV'!$B:$B,0))) -> ذكر | AB65: =IF(F65="","",INDEX('DATA ELV'!$F:$F,MATCH(F65,'DATA ELV'!$B:$B,0))) ->  | AC65: =IF(J65="","",INDEX('DATA ELV'!$F:$F,MATCH(J65,'DATA ELV'!$B:$B,0))) -> 
B66: 2 | C66: =Feuil7!P7 -> قرواو محمد الأمين | E66: =Feuil7!Q7 -> 3ت ر/هم | F66: =Feuil7!P41 -> 0 | I66: =Feuil7!Q41 -> 0 | J66: =Feuil7!P75 -> 0 | M66: =Feuil7!Q75 -> 0 | AA66: =IF(C66="","",INDEX('DATA ELV'!$F:$F,MATCH(C66,'DATA ELV'!$B:$B,0))) -> ذكر | AB66: =IF(F66="","",INDEX('DATA ELV'!$F:$F,MATCH(F66,'DATA ELV'!$B:$B,0))) ->  | AC66: =IF(J66="","",INDEX('DATA ELV'!$F:$F,MATCH(J66,'DATA ELV'!$B:$B,0))) -> 
B67: 3 | C67: =Feuil7!P8 -> بن سالم عبد الله | E67: =Feuil7!Q8 -> 3ت ر/هم | F67: =Feuil7!P42 -> 0 | I67: =Feuil7!Q42 -> 0 | J67: =Feuil7!P76 -> 0 | M67: =Feuil7!Q76 -> 0 | AA67: =IF(C67="","",INDEX('DATA ELV'!$F:$F,MATCH(C67,'DATA ELV'!$B:$B,0))) -> ذكر | AB67: =IF(F67="","",INDEX('DATA ELV'!$F:$F,MATCH(F67,'DATA ELV'!$B:$B,0))) ->  | AC67: =IF(J67="","",INDEX('DATA ELV'!$F:$F,MATCH(J67,'DATA ELV'!$B:$B,0))) -> 
B68: 4 | C68: =Feuil7!P9 -> بوهنة أبو بكر | E68: =Feuil7!Q9 -> 2ت إ01 | F68: =Feuil7!P43 -> 0 | I68: =Feuil7!Q43 -> 0 | J68: =Feuil7!P77 -> 0 | M68: =Feuil7!Q77 -> 0 | N68: حركـــة التلاميذ : | AA68: =IF(C68="","",INDEX('DATA ELV'!$F:$F,MATCH(C68,'DATA ELV'!$B:$B,0))) -> ذكر | AB68: =IF(F68="","",INDEX('DATA ELV'!$F:$F,MATCH(F68,'DATA ELV'!$B:$B,0))) ->  | AC68: =IF(J68="","",INDEX('DATA ELV'!$F:$F,MATCH(J68,'DATA ELV'!$B:$B,0))) -> 
B69: 5 | C69: =Feuil7!P10 -> طلحاوي زهور نورهان | E69: =Feuil7!Q10 -> 0 | F69: =Feuil7!P44 -> 0 | I69: =Feuil7!Q44 -> 0 | J69: =Feuil7!P78 -> 0 | M69: =Feuil7!Q78 -> 0 | N69: اسم التلميذ | P69: القسم | Q69: رقم | R69: ملاحظات | AA69: =IF(C69="","",INDEX('DATA ELV'!$F:$F,MATCH(C69,'DATA ELV'!$B:$B,0))) -> 0 | AB69: =IF(F69="","",INDEX('DATA ELV'!$F:$F,MATCH(F69,'DATA ELV'!$B:$B,0))) ->  | AC69: =IF(J69="","",INDEX('DATA ELV'!$F:$F,MATCH(J69,'DATA ELV'!$B:$B,0))) -> 
B70: 6 | C70: =Feuil7!P11 -> مجاهد بشرى | E70: =Feuil7!Q11 -> ج م ع تك01 | F70: =Feuil7!P45 -> 0 | I70: =Feuil7!Q45 -> 0 | J70: =Feuil7!P79 -> 0 | M70: =Feuil7!Q79 -> 0 | AA70: =IF(C70="","",INDEX('DATA ELV'!$F:$F,MATCH(C70,'DATA ELV'!$B:$B,0))) -> أنثى | AB70: =IF(F70="","",INDEX('DATA ELV'!$F:$F,MATCH(F70,'DATA ELV'!$B:$B,0))) ->  | AC70: =IF(J70="","",INDEX('DATA ELV'!$F:$F,MATCH(J70,'DATA ELV'!$B:$B,0))) -> 
B71: 7 | C71: =Feuil7!P12 -> 0 | E71: =Feuil7!Q12 -> 0 | F71: =Feuil7!P46 -> 0 | I71: =Feuil7!Q46 -> 0 | J71: =Feuil7!P80 -> 0 | M71: =Feuil7!Q80 -> 0 | AA71: =IF(C71="","",INDEX('DATA ELV'!$F:$F,MATCH(C71,'DATA ELV'!$B:$B,0))) ->  | AB71: =IF(F71="","",INDEX('DATA ELV'!$F:$F,MATCH(F71,'DATA ELV'!$B:$B,0))) ->  | AC71: =IF(J71="","",INDEX('DATA ELV'!$F:$F,MATCH(J71,'DATA ELV'!$B:$B,0))) -> 
B72: 8 | C72: =Feuil7!P13 -> 0 | E72: =Feuil7!Q13 -> 0 | F72: =Feuil7!P47 -> 0 | I72: =Feuil7!Q47 -> 0 | J72: =Feuil7!P81 -> 0 | M72: =Feuil7!Q81 -> 0 | AA72: =IF(C72="","",INDEX('DATA ELV'!$F:$F,MATCH(C72,'DATA ELV'!$B:$B,0))) ->  | AB72: =IF(F72="","",INDEX('DATA ELV'!$F:$F,MATCH(F72,'DATA ELV'!$B:$B,0))) ->  | AC72: =IF(J72="","",INDEX('DATA ELV'!$F:$F,MATCH(J72,'DATA ELV'!$B:$B,0))) -> 
B73: 9 | C73: =Feuil7!P14 -> 0 | E73: =Feuil7!Q14 -> 0 | F73: =Feuil7!P48 -> 0 | I73: =Feuil7!Q48 -> 0 | J73: =Feuil7!P82 -> 0 | M73: =Feuil7!Q82 -> 0 | AA73: =IF(C73="","",INDEX('DATA ELV'!$F:$F,MATCH(C73,'DATA ELV'!$B:$B,0))) ->  | AB73: =IF(F73="","",INDEX('DATA ELV'!$F:$F,MATCH(F73,'DATA ELV'!$B:$B,0))) ->  | AC73: =IF(J73="","",INDEX('DATA ELV'!$F:$F,MATCH(J73,'DATA ELV'!$B:$B,0))) -> 
B74: 10 | C74: =Feuil7!P15 -> 0 | E74: =Feuil7!Q15 -> 0 | F74: =Feuil7!P49 -> 0 | I74: =Feuil7!Q49 -> 0 | J74: =Feuil7!P83 -> 0 | M74: =Feuil7!Q83 -> 0 | AA74: =IF(C74="","",INDEX('DATA ELV'!$F:$F,MATCH(C74,'DATA ELV'!$B:$B,0))) ->  | AB74: =IF(F74="","",INDEX('DATA ELV'!$F:$F,MATCH(F74,'DATA ELV'!$B:$B,0))) ->  | AC74: =IF(J74="","",INDEX('DATA ELV'!$F:$F,MATCH(J74,'DATA ELV'!$B:$B,0))) -> 
B75: 11 | C75: =Feuil7!P16 -> 0 | E75: =Feuil7!Q16 -> 0 | F75: =Feuil7!P50 -> 0 | I75: =Feuil7!Q50 -> 0 | J75: =Feuil7!P84 -> 0 | M75: =Feuil7!Q84 -> 0 | N75: الحــوادث المدرسية | AA75: =IF(C75="","",INDEX('DATA ELV'!$F:$F,MATCH(C75,'DATA ELV'!$B:$B,0))) ->  | AB75: =IF(F75="","",INDEX('DATA ELV'!$F:$F,MATCH(F75,'DATA ELV'!$B:$B,0))) ->  | AC75: =IF(J75="","",INDEX('DATA ELV'!$F:$F,MATCH(J75,'DATA ELV'!$B:$B,0))) -> 
B76: 12 | C76: =Feuil7!P17 -> 0 | E76: =Feuil7!Q17 -> 0 | F76: =Feuil7!P51 -> 0 | I76: =Feuil7!Q51 -> 0 | J76: =Feuil7!P85 -> 0 | M76: =Feuil7!Q85 -> 0 | AA76: =IF(C76="","",INDEX('DATA ELV'!$F:$F,MATCH(C76,'DATA ELV'!$B:$B,0))) ->  | AB76: =IF(F76="","",INDEX('DATA ELV'!$F:$F,MATCH(F76,'DATA ELV'!$B:$B,0))) ->  | AC76: =IF(J76="","",INDEX('DATA ELV'!$F:$F,MATCH(J76,'DATA ELV'!$B:$B,0))) -> 
B77: 13 | C77: =Feuil7!P18 -> 0 | E77: =Feuil7!Q18 -> 0 | F77: =Feuil7!P52 -> 0 | I77: =Feuil7!Q52 -> 0 | J77: =Feuil7!P86 -> 0 | M77: =Feuil7!Q86 -> 0 | AA77: =IF(C77="","",INDEX('DATA ELV'!$F:$F,MATCH(C77,'DATA ELV'!$B:$B,0))) ->  | AB77: =IF(F77="","",INDEX('DATA ELV'!$F:$F,MATCH(F77,'DATA ELV'!$B:$B,0))) ->  | AC77: =IF(J77="","",INDEX('DATA ELV'!$F:$F,MATCH(J77,'DATA ELV'!$B:$B,0))) -> 
B78: 14 | C78: =Feuil7!P19 -> 0 | E78: =Feuil7!Q19 -> 0 | F78: =Feuil7!P53 -> 0 | I78: =Feuil7!Q53 -> 0 | J78: =Feuil7!P87 -> 0 | M78: =Feuil7!Q87 -> 0 | N78: الصحــــــة المدرسية | AA78: =IF(C78="","",INDEX('DATA ELV'!$F:$F,MATCH(C78,'DATA ELV'!$B:$B,0))) ->  | AB78: =IF(F78="","",INDEX('DATA ELV'!$F:$F,MATCH(F78,'DATA ELV'!$B:$B,0))) ->  | AC78: =IF(J78="","",INDEX('DATA ELV'!$F:$F,MATCH(J78,'DATA ELV'!$B:$B,0))) -> 
B79: 15 | C79: =Feuil7!P20 -> 0 | E79: =Feuil7!Q20 -> 0 | F79: =Feuil7!P54 -> 0 | I79: =Feuil7!Q54 -> 0 | J79: =Feuil7!P88 -> 0 | M79: =Feuil7!Q88 -> 0 | AA79: =IF(C79="","",INDEX('DATA ELV'!$F:$F,MATCH(C79,'DATA ELV'!$B:$B,0))) ->  | AB79: =IF(F79="","",INDEX('DATA ELV'!$F:$F,MATCH(F79,'DATA ELV'!$B:$B,0))) ->  | AC79: =IF(J79="","",INDEX('DATA ELV'!$F:$F,MATCH(J79,'DATA ELV'!$B:$B,0))) -> 
B80: 16 | C80: =Feuil7!P21 -> 0 | E80: =Feuil7!Q21 -> 0 | F80: =Feuil7!P55 -> 0 | I80: =Feuil7!Q55 -> 0 | J80: =Feuil7!P89 -> 0 | M80: =Feuil7!Q89 -> 0 | AA80: =IF(C80="","",INDEX('DATA ELV'!$F:$F,MATCH(C80,'DATA ELV'!$B:$B,0))) ->  | AB80: =IF(F80="","",INDEX('DATA ELV'!$F:$F,MATCH(F80,'DATA ELV'!$B:$B,0))) ->  | AC80: =IF(J80="","",INDEX('DATA ELV'!$F:$F,MATCH(J80,'DATA ELV'!$B:$B,0))) -> 
B81: 17 | C81: =Feuil7!P22 -> 0 | E81: =Feuil7!Q22 -> 0 | F81: =Feuil7!P56 -> 0 | I81: =Feuil7!Q56 -> 0 | J81: =Feuil7!P90 -> 0 | M81: =Feuil7!Q90 -> 0 | N81: ندوات/مجالس و زيارات | AA81: =IF(C81="","",INDEX('DATA ELV'!$F:$F,MATCH(C81,'DATA ELV'!$B:$B,0))) ->  | AB81: =IF(F81="","",INDEX('DATA ELV'!$F:$F,MATCH(F81,'DATA ELV'!$B:$B,0))) ->  | AC81: =IF(J81="","",INDEX('DATA ELV'!$F:$F,MATCH(J81,'DATA ELV'!$B:$B,0))) -> 
B82: 18 | C82: =Feuil7!P23 -> 0 | E82: =Feuil7!Q23 -> 0 | F82: =Feuil7!P57 -> 0 | I82: =Feuil7!Q57 -> 0 | J82: =Feuil7!P91 -> 0 | M82: =Feuil7!Q91 -> 0 | AA82: =IF(C82="","",INDEX('DATA ELV'!$F:$F,MATCH(C82,'DATA ELV'!$B:$B,0))) ->  | AB82: =IF(F82="","",INDEX('DATA ELV'!$F:$F,MATCH(F82,'DATA ELV'!$B:$B,0))) ->  | AC82: =IF(J82="","",INDEX('DATA ELV'!$F:$F,MATCH(J82,'DATA ELV'!$B:$B,0))) -> 
B83: 19 | C83: =Feuil7!P24 -> 0 | E83: =Feuil7!Q24 -> 0 | F83: =Feuil7!P58 -> 0 | I83: =Feuil7!Q58 -> 0 | J83: =Feuil7!P92 -> 0 | M83: =Feuil7!Q92 -> 0 | AA83: =IF(C83="","",INDEX('DATA ELV'!$F:$F,MATCH(C83,'DATA ELV'!$B:$B,0))) ->  | AB83: =IF(F83="","",INDEX('DATA ELV'!$F:$F,MATCH(F83,'DATA ELV'!$B:$B,0))) ->  | AC83: =IF(J83="","",INDEX('DATA ELV'!$F:$F,MATCH(J83,'DATA ELV'!$B:$B,0))) -> 
B84: 20 | C84: =Feuil7!P25 -> 0 | E84: =Feuil7!Q25 -> 0 | F84: =Feuil7!P59 -> 0 | I84: =Feuil7!Q59 -> 0 | J84: =Feuil7!P93 -> 0 | M84: =Feuil7!Q93 -> 0 | AA84: =IF(C84="","",INDEX('DATA ELV'!$F:$F,MATCH(C84,'DATA ELV'!$B:$B,0))) ->  | AB84: =IF(F84="","",INDEX('DATA ELV'!$F:$F,MATCH(F84,'DATA ELV'!$B:$B,0))) ->  | AC84: =IF(J84="","",INDEX('DATA ELV'!$F:$F,MATCH(J84,'DATA ELV'!$B:$B,0))) -> 
B85: 21 | C85: =Feuil7!P26 -> 0 | E85: =Feuil7!Q26 -> 0 | F85: =Feuil7!P60 -> 0 | I85: =Feuil7!Q60 -> 0 | J85: =Feuil7!P94 -> 0 | M85: =Feuil7!Q94 -> 0 | AA85: =IF(C85="","",INDEX('DATA ELV'!$F:$F,MATCH(C85,'DATA ELV'!$B:$B,0))) ->  | AB85: =IF(F85="","",INDEX('DATA ELV'!$F:$F,MATCH(F85,'DATA ELV'!$B:$B,0))) ->  | AC85: =IF(J85="","",INDEX('DATA ELV'!$F:$F,MATCH(J85,'DATA ELV'!$B:$B,0))) -> 
B86: 22 | C86: =Feuil7!P27 -> 0 | E86: =Feuil7!Q27 -> 0 | F86: =Feuil7!P61 -> 0 | I86: =Feuil7!Q61 -> 0 | J86: =Feuil7!P95 -> 0 | M86: =Feuil7!Q95 -> 0 | N86: شهادات مدرسية | Q86: العدد | S86: 3 | AA86: =IF(C86="","",INDEX('DATA ELV'!$F:$F,MATCH(C86,'DATA ELV'!$B:$B,0))) ->  | AB86: =IF(F86="","",INDEX('DATA ELV'!$F:$F,MATCH(F86,'DATA ELV'!$B:$B,0))) ->  | AC86: =IF(J86="","",INDEX('DATA ELV'!$F:$F,MATCH(J86,'DATA ELV'!$B:$B,0))) -> 
B87: 23 | C87: =Feuil7!P28 -> 0 | E87: =Feuil7!Q28 -> 0 | F87: =Feuil7!P62 -> 0 | I87: =Feuil7!Q62 -> 0 | J87: =Feuil7!P96 -> 0 | M87: =Feuil7!Q96 -> 0 | N87: من ...... | P87: 39 | Q87: إلى ..... | S87: 41 | AA87: =IF(C87="","",INDEX('DATA ELV'!$F:$F,MATCH(C87,'DATA ELV'!$B:$B,0))) ->  | AB87: =IF(F87="","",INDEX('DATA ELV'!$F:$F,MATCH(F87,'DATA ELV'!$B:$B,0))) ->  | AC87: =IF(J87="","",INDEX('DATA ELV'!$F:$F,MATCH(J87,'DATA ELV'!$B:$B,0))) -> 
B88: 24 | C88: =Feuil7!P29 -> 0 | E88: =Feuil7!Q29 -> 0 | F88: =Feuil7!P63 -> 0 | I88: =Feuil7!Q63 -> 0 | J88: =Feuil7!P97 -> 0 | M88: =Feuil7!Q97 -> 0 | N88: حصص الدعم | AA88: =IF(C88="","",INDEX('DATA ELV'!$F:$F,MATCH(C88,'DATA ELV'!$B:$B,0))) ->  | AB88: =IF(F88="","",INDEX('DATA ELV'!$F:$F,MATCH(F88,'DATA ELV'!$B:$B,0))) ->  | AC88: =IF(J88="","",INDEX('DATA ELV'!$F:$F,MATCH(J88,'DATA ELV'!$B:$B,0))) -> 
B89: 25 | C89: =Feuil7!P30 -> 0 | E89: =Feuil7!Q30 -> 0 | F89: =Feuil7!P64 -> 0 | I89: =Feuil7!Q64 -> 0 | J89: =Feuil7!P98 -> 0 | M89: =Feuil7!Q98 -> 0 | N89: الأستاذ | P89: المادة | R89: القسم | S89: الحصة | AA89: =IF(C89="","",INDEX('DATA ELV'!$F:$F,MATCH(C89,'DATA ELV'!$B:$B,0))) ->  | AB89: =IF(F89="","",INDEX('DATA ELV'!$F:$F,MATCH(F89,'DATA ELV'!$B:$B,0))) ->  | AC89: =IF(J89="","",INDEX('DATA ELV'!$F:$F,MATCH(J89,'DATA ELV'!$B:$B,0))) -> 
B90: 26 | C90: =Feuil7!P31 -> 0 | E90: =Feuil7!Q31 -> 0 | F90: =Feuil7!P65 -> 0 | I90: =Feuil7!Q65 -> 0 | J90: =Feuil7!P99 -> 0 | M90: =Feuil7!Q99 -> 0 | N90: أ.معروف | P90: أدب عربي | R90: 3أ ف2 | S90: 3،4و5 | AA90: =IF(C90="","",INDEX('DATA ELV'!$F:$F,MATCH(C90,'DATA ELV'!$B:$B,0))) ->  | AB90: =IF(F90="","",INDEX('DATA ELV'!$F:$F,MATCH(F90,'DATA ELV'!$B:$B,0))) ->  | AC90: =IF(J90="","",INDEX('DATA ELV'!$F:$F,MATCH(J90,'DATA ELV'!$B:$B,0))) -> 
B91: 27 | C91: =Feuil7!P32 -> 0 | E91: =Feuil7!Q32 -> 0 | F91: =Feuil7!P66 -> 0 | I91: =Feuil7!Q66 -> 0 | J91: =Feuil7!P100 -> 0 | M91: =Feuil7!Q100 -> 0 | AA91: =IF(C91="","",INDEX('DATA ELV'!$F:$F,MATCH(C91,'DATA ELV'!$B:$B,0))) ->  | AB91: =IF(F91="","",INDEX('DATA ELV'!$F:$F,MATCH(F91,'DATA ELV'!$B:$B,0))) ->  | AC91: =IF(J91="","",INDEX('DATA ELV'!$F:$F,MATCH(J91,'DATA ELV'!$B:$B,0))) -> 
B92: 28 | C92: =Feuil7!P33 -> 0 | E92: =Feuil7!Q33 -> 0 | F92: =Feuil7!P67 -> 0 | I92: =Feuil7!Q67 -> 0 | J92: =Feuil7!P101 -> 0 | M92: =Feuil7!Q101 -> 0 | AA92: =IF(C92="","",INDEX('DATA ELV'!$F:$F,MATCH(C92,'DATA ELV'!$B:$B,0))) ->  | AB92: =IF(F92="","",INDEX('DATA ELV'!$F:$F,MATCH(F92,'DATA ELV'!$B:$B,0))) ->  | AC92: =IF(J92="","",INDEX('DATA ELV'!$F:$F,MATCH(J92,'DATA ELV'!$B:$B,0))) -> 
B93: 29 | C93: =Feuil7!P34 -> 0 | E93: =Feuil7!Q34 -> 0 | F93: =Feuil7!P68 -> 0 | I93: =Feuil7!Q68 -> 0 | J93: =Feuil7!P102 -> 0 | M93: =Feuil7!Q102 -> 0 | N93: ملاحظات مختلفة | AA93: =IF(C93="","",INDEX('DATA ELV'!$F:$F,MATCH(C93,'DATA ELV'!$B:$B,0))) ->  | AB93: =IF(F93="","",INDEX('DATA ELV'!$F:$F,MATCH(F93,'DATA ELV'!$B:$B,0))) ->  | AC93: =IF(J93="","",INDEX('DATA ELV'!$F:$F,MATCH(J93,'DATA ELV'!$B:$B,0))) -> 
B94: 30 | C94: =Feuil7!P35 -> 0 | E94: =Feuil7!Q35 -> 0 | F94: =Feuil7!P69 -> 0 | I94: =Feuil7!Q69 -> 0 | J94: =Feuil7!P103 -> 0 | M94: =Feuil7!Q103 -> 0 | AA94: =IF(C94="","",INDEX('DATA ELV'!$F:$F,MATCH(C94,'DATA ELV'!$B:$B,0))) ->  | AB94: =IF(F94="","",INDEX('DATA ELV'!$F:$F,MATCH(F94,'DATA ELV'!$B:$B,0))) ->  | AC94: =IF(J94="","",INDEX('DATA ELV'!$F:$F,MATCH(J94,'DATA ELV'!$B:$B,0))) -> 
B95: 31 | C95: =Feuil7!P36 -> 0 | E95: =Feuil7!Q36 -> 0 | F95: =Feuil7!P70 -> 0 | I95: =Feuil7!Q70 -> 0 | J95: =Feuil7!P104 -> 0 | M95: =Feuil7!Q104 -> 0 | N95: أ.رابحي إيمان (لغة فرنسية) | AA95: =IF(C95="","",INDEX('DATA ELV'!$F:$F,MATCH(C95,'DATA ELV'!$B:$B,0))) ->  | AB95: =IF(F95="","",INDEX('DATA ELV'!$F:$F,MATCH(F95,'DATA ELV'!$B:$B,0))) ->  | AC95: =IF(J95="","",INDEX('DATA ELV'!$F:$F,MATCH(J95,'DATA ELV'!$B:$B,0))) -> 
B96: 32 | C96: =Feuil7!P37 -> 0 | E96: =Feuil7!Q37 -> 0 | F96: =Feuil7!P71 -> 0 | I96: =Feuil7!Q71 -> 0 | J96: =Feuil7!P105 -> 0 | M96: =Feuil7!Q105 -> 0 | N96: عطلة أمومة | AA96: =IF(C96="","",INDEX('DATA ELV'!$F:$F,MATCH(C96,'DATA ELV'!$B:$B,0))) ->  | AB96: =IF(F96="","",INDEX('DATA ELV'!$F:$F,MATCH(F96,'DATA ELV'!$B:$B,0))) ->  | AC96: =IF(J96="","",INDEX('DATA ELV'!$F:$F,MATCH(J96,'DATA ELV'!$B:$B,0))) -> 
B97: 33 | C97: =Feuil7!P38 -> 0 | E97: =Feuil7!Q38 -> 0 | F97: =Feuil7!P72 -> 0 | I97: =Feuil7!Q72 -> 0 | J97: =Feuil7!P106 -> 0 | M97: =Feuil7!Q106 -> 0 | N97: أ.بونخالة أسماء عطلة مرضية | AA97: =IF(C97="","",INDEX('DATA ELV'!$F:$F,MATCH(C97,'DATA ELV'!$B:$B,0))) ->  | AB97: =IF(F97="","",INDEX('DATA ELV'!$F:$F,MATCH(F97,'DATA ELV'!$B:$B,0))) ->  | AC97: =IF(J97="","",INDEX('DATA ELV'!$F:$F,MATCH(J97,'DATA ELV'!$B:$B,0))) -> 
B98: 34 | C98: =Feuil7!P39 -> 0 | E98: =Feuil7!Q39 -> 0 | F98: =Feuil7!P73 -> 0 | I98: =Feuil7!Q73 -> 0 | J98: =Feuil7!P107 -> 0 | M98: =Feuil7!Q107 -> 0 | AA98: =IF(C98="","",INDEX('DATA ELV'!$F:$F,MATCH(C98,'DATA ELV'!$B:$B,0))) ->  | AB98: =IF(F98="","",INDEX('DATA ELV'!$F:$F,MATCH(F98,'DATA ELV'!$B:$B,0))) ->  | AC98: =IF(J98="","",INDEX('DATA ELV'!$F:$F,MATCH(J98,'DATA ELV'!$B:$B,0))) -> 
B99: مستشار التربية الناظر | AA99: =IF(C99="","",INDEX('DATA ELV'!$F:$F,MATCH(C99,'DATA ELV'!$B:$B,0))) ->  | AB99: =IF(F99="","",INDEX('DATA ELV'!$F:$F,MATCH(F99,'DATA ELV'!$B:$B,0))) ->  | AC99: =IF(J99="","",INDEX('DATA ELV'!$F:$F,MATCH(J99,'DATA ELV'!$B:$B,0))) -> 
AA100: =IF(C100="","",INDEX('DATA ELV'!$F:$F,MATCH(C100,'DATA ELV'!$B:$B,0))) ->  | AB100: =IF(F100="","",INDEX('DATA ELV'!$F:$F,MATCH(F100,'DATA ELV'!$B:$B,0))) ->  | AC100: =IF(J100="","",INDEX('DATA ELV'!$F:$F,MATCH(J100,'DATA ELV'!$B:$B,0))) -> 
AA101: =IF(C101="","",INDEX('DATA ELV'!$F:$F,MATCH(C101,'DATA ELV'!$B:$B,0))) ->  | AB101: =IF(F101="","",INDEX('DATA ELV'!$F:$F,MATCH(F101,'DATA ELV'!$B:$B,0))) ->  | AC101: =IF(J101="","",INDEX('DATA ELV'!$F:$F,MATCH(J101,'DATA ELV'!$B:$B,0))) -> 
AA102: =IF(C102="","",INDEX('DATA ELV'!$F:$F,MATCH(C102,'DATA ELV'!$B:$B,0))) ->  | AB102: =IF(F102="","",INDEX('DATA ELV'!$F:$F,MATCH(F102,'DATA ELV'!$B:$B,0))) ->  | AC102: =IF(J102="","",INDEX('DATA ELV'!$F:$F,MATCH(J102,'DATA ELV'!$B:$B,0))) -> 
G105: الخميس
B106: الرقم | C106: اسم و لقب الأستاذ | E106: التخصص | G106: ح1 | H106: ح2 | I106: ح3 | J106: ح4 | K106: ح5 | L106: ح6 | M106: ح7 | N106: ح8 | O106: ح9 | P106: ح10 | Q106: ح11
B107: 1 | C107: =BASE!E5 -> ديب فاطمة | E107: =BASE!F5 -> رياضيات
B108: 2 | C108: =BASE!E6 -> بوعريشة الهام | E108: =BASE!F6 -> رياضيات | G108: 1ع1/4 | H108: 1ع1/4 | I108: 3لغات | J108: 3ت ر | K108: 3ت ر
B109: 3 | C109: =BASE!E7 -> مدوخ فاطمة الزهراء | E109: =BASE!F7 -> رياضيات | H109: 3ع ت 2 | I109: 3ع ت 2
B110: 4 | C110: =BASE!E8 -> بونخالة أسماء | E110: =BASE!F8 -> رياضيات | J110: 2ت ر | K110: 2ت ر
B111: 5 | C111: =BASE!E9 -> مالو ياسمينة | E111: =BASE!F9 -> رياضيات | L111: 2ت إ/1 | M111: 1أ2/2 | N111: 1أ1/2 | O111: 2أف2/1
B112: 6 | C112: =BASE!E10 -> قوراري أحمد | E112: =BASE!F10 -> فيزياء
B113: 7 | C113: =BASE!E11 -> زيرار سميرة | E113: =BASE!F11 -> فيزياء
B114: 8 | C114: =BASE!E12 -> عشماوي فؤاد | E114: =BASE!F12 -> فيزياء | G114: 3ت ر | H114: 3ت ر | L114: 2أف1/1 | M114: 2أف2/1
B115: 9 | C115: =BASE!E13 -> ناضور محمد | E115: =BASE!F13 -> فيزياء | G115: 1ع1/3 | H115: 1ع1/3 | I115: 1ع2/3 | J115: 1ع1/5 | K115: 1ع1/5
B116: 10 | C116: =BASE!E14 -> الوزان توفيق | E116: =BASE!F14 -> فيزياء | L116: 2أف2 | N116: 1أ1/1 | O116: 1أ2/1
B117: 11 | C117: =BASE!E15 -> درني اسماعيل | E117: =BASE!F15 -> علوم ط | H117: 1ع1/2 | I117: 1ع1/2 | J117: 1ع2/2 | K117: 1ع2/2 | L117: 1أ2/2
B118: 12 | C118: =BASE!E16 -> لعشب آمنة | E118: =BASE!F16 -> علوم ط
B119: 13 | C119: =BASE!E17 -> براهمي عبد الباقي | E119: =BASE!F17 -> علوم ط
B120: 14 | C120: =BASE!E18 -> هرواط سارة | E120: =BASE!F18 -> علوم ط | G120: 1ع1/5 | I120: 1ع1/1 | J120: 1ع1/1 | K120: 1ع2/1
B121: 15 | C121: =BASE!E19 -> حاسي بن عودة | E121: =BASE!F19 -> ع,إسلامية | J121: 1ع2/5 | K121: 3ت إ/2 | N121: 3أف2/1 | O121: 1أ1/2
B122: 16 | C122: =BASE!E20 -> بوحاجب واسيني | E122: =BASE!F20 -> ع,إسلامية | L122: 2ع2/2 | M122: 2ت إ/2 | N122: 2ع1/1 | O122: 2ع2/1
B123: 17 | C123: =BASE!E21 -> صبيان فاطمة | E123: =BASE!F21 -> أدب عربي
B124: 18 | C124: =BASE!E22 -> صبيان سمية | E124: =BASE!F22 -> أدب عربي | G124: 1ع2/1 | H124: 1ع1/1 | J124: 3ع ت 2 | L124: 1أ1/2 | M124: 1أ1/2 | N124: 1أ2/2 | O124: 1أ2/2
B125: 19 | C125: =BASE!E23 -> أوزين ليلى | E125: =BASE!F23 -> أدب عربي | G125: 1ع1/2 | H125: 1ع2/5 | I125: 3ع2/1 | J125: 3ت إ/1 | K125: 3ع1/1
B126: 20 | C126: =BASE!E24 -> معروف علي | E126: =BASE!F24 -> أدب عربي | H126: 1ع2/3 | I126: 1ع1/3 | L126: 1أ2/1 | M126: 1أ2/1
B127: 21 | C127: =BASE!E25 -> عيساوي آمنة | E127: =BASE!F25 -> أدب عربي | L127: 2ع1/1 | M127: 2أف2 | N127: 2ع2/1 | O127: 2لغات
B128: 22 | C128: =BASE!E26 -> شيخ ياسين | E128: =BASE!F26 -> فلسفة | I128: 3ع1/1 | J128: 3ع1/1 | K128: 3ع2/1 | M128: 3أف2/1 | O128: 2أف2
B129: 23 | C129: =BASE!E27 -> بلحاج منير | E129: =BASE!F27 -> فلسفة | G129: 3ع ت 2 | I129: 3ت إ/1 | J129: 3ت إ/2 | L129: 2أف2/1 | M129: 2أف1/1
B130: 24 | C130: =BASE!E28 -> آجد سليمة | E130: =BASE!F28 -> إجتماعيات | G130: 3ع1/1 | H130: 3ع2/1 | I130: 1ع2/5
B131: 25 | C131: =BASE!E29 -> قان محمد شهر الدين | E131: =BASE!F29 -> إجتماعيات | I131: 1ع2/1 | J131: 1ع2/3 | K131: 1ع1/3 | M131: 2ع2/1 | N131: 2أف2 | O131: 2ت إ/1
B132: 26 | C132: =BASE!E30 -> موس محمد | E132: =BASE!F30 -> إجتماعيات | H132: 2ت ر | I132: 3ت ر | L132: 3أف1/1 | M132: 2لغات | N132: 2ع2/2 | O132: 2ع1/2
B133: 27 | C133: =BASE!E31 -> بودربالة ع القادر | E133: =BASE!F31 -> إجتماعيات | G133: 3ت إ/2 | H133: 3ت إ/2 | I133: 1ع1/4 | J133: 1ع2/4 | K133: 1ع2/4 | M133: 3أف2 | N133: 1أ2/1
B134: 28 | C134: =BASE!E32 -> عباد أسماء | E134: =BASE!F32 -> لغة فرنسية | G134: 1ع2/3 | H134: 1ع2/1 | J134: 3لغات | K134: 3لغات | N134: 3أف2 | O134: 3أف2
B135: 29 | C135: =BASE!E33 -> كوليلي وفاء | E135: =BASE!F33 -> لغة فرنسية | L135: 2ع2/1 | M135: 2ع1/1 | N135: 2ت إ/2 | O135: 3أف2/1
B136: 30 | C136: =BASE!E34 -> رابحي ايمان | E136: =BASE!F34 -> لغة فرنسية | G136: 1ع2/2 | I136: 1ع2/4 | J136: 1ع1/2 | K136: 1ع1/4
B137: 31 | C137: =BASE!E35 -> بومانة هداية | E137: =BASE!F35 -> لغة فرنسية | G137: 3ع2/1 | H137: 3ع1/1 | I137: 3ت إ/2 | L137: 2لغات | M137: 2ع1/2 | N137: 2أف2/1
B138: 32 | C138: =BASE!E36 -> معزوز مليكة | E138: =BASE!F36 -> لغة إنجليزية | J138: 3ع2/1 | K138: 3ع ت 2
B139: 33 | C139: =BASE!E37 -> شنتوف سليمة | E139: =BASE!F37 -> لغة إنجليزية | G139: 3لغات | H139: 3لغات | I139: 1ع2/2 | J139: 1ع2/1 | L139: 3أف2/1 | M139: 3أف1/1
B140: 34 | C140: =BASE!E38 -> مزاري سهام | E140: =BASE!F38 -> لغة إنجليزية | G140: 1ع2/5 | H140: 1ع1/5 | I140: 2ت ر | L140: 1أ1/1 | M140: 1أ1/1 | N140: 2أف1/1
B141: 35 | C141: =BASE!E39 -> العرباوي حياة | E141: =BASE!F39 -> لغة إنجليزية | L141: 3أف2 | M141: 2ع2/2 | N141: 2ع1/2 | O141: 2ت إ/2
B142: 36 | C142: =BASE!E40 -> سفاني حياة | E142: =BASE!F40 -> إسبانية
B143: 37 | C143: =BASE!E41 -> دلافي أحمد | E143: =BASE!F41 -> تكنولوجيا | G143: 1ع2/4 | I143: 1ع1/5 | K143: 1ع1/2
B144: 38 | C144: =BASE!E42 -> جبور صافية | E144: =BASE!F42 -> إقتصاد
B145: 39 | C145: =BASE!E43 -> بوحميدي ايمان | E145: =BASE!F43 -> إقتصاد | G145: 3ت إ/1 | H145: 3ت إ/1 | L145: 2ت إ/2 | N145: 2ت إ/1
B146: 40 | C146: =BASE!E44 -> عشي زهير | E146: =BASE!F44 -> تكنولوجيا | G146: 1ع2/4 | I146: 1ع1/5 | K146: 1ع1/2
B147: 41 | C147: =BASE!E45 -> زار مصطفى | E147: =BASE!F45 -> تكنولوجيا | G147: 1ع2/4 | H147: 1ع2/4 | I147: 1ع1/5 | J147: 1ع1/4 | K147: 1ع1/2
B148: 42 | C148: =BASE!E46 -> أبرور عبد المجيد | E148: =BASE!F46 -> رياضة بدنية
B149: 43 | C149: =BASE!E47 -> لقبوري مصطفى | E149: =BASE!F47 -> رياضة بدنية | I149: 2أف2 | J149: 2أف2 | M149: 3لغات | N149: 3لغات
B150: 44 | C150: =BASE!E48 -> تربش مصطفى | E150: =BASE!F48 -> رياضة بدنية
B151: 45 | C151: =BASE!E49 -> 0 | E151: =BASE!F49 -> 0
B152: 46 | C152: =BASE!E50 -> 0 | E152: =BASE!F50 -> 0
B153: 47 | C153: =BASE!E51 -> 0 | E153: =BASE!F51 -> 0
B154: 48 | C154: =BASE!E52 -> 0 | E154: =BASE!F52 -> 0
B155: 49 | C155: =BASE!E53 -> 0 | E155: =BASE!F53 -> 0
B156: 50 | C156: =BASE!E54 -> 0 | E156: =BASE!F54 -> 0
B157: 51 | C157: =BASE!E55 -> 0 | E157: =BASE!F55 -> 0
B158: 52 | C158: =BASE!E56 -> 0 | E158: =BASE!F56 -> 0
B159: 53 | C159: =BASE!E57 -> 0 | E159: =BASE!F57 -> 0
B160: 54 | C160: =BASE!E58 -> 0 | E160: =BASE!F58 -> 0
B161: 55 | C161: =BASE!E59 -> 0 | E161: =BASE!F59 -> 0
B162: 56 | C162: =BASE!E60 -> 0 | E162: =BASE!F60 -> 0
B163: 57 | C163: =BASE!E61 -> 0 | E163: =BASE!F61 -> 0
B164: 58 | C164: =BASE!E62 -> 0 | E164: =BASE!F62 -> 0
B165: 59 | C165: =BASE!E63 -> 0 | E165: =BASE!F63 -> 0
B166: 60 | C166: =BASE!E64 -> 0 | E166: =BASE!F64 -> 0
B167: 61 | C167: =BASE!E65 -> 0 | E167: =BASE!F65 -> 0
B168: 62 | C168: =BASE!E66 -> 0 | E168: =BASE!F66 -> 0
B169: 63 | C169: =BASE!E67 -> 0 | E169: =BASE!F67 -> 0
B170: 64 | C170: =BASE!E68 -> 0 | E170: =BASE!F68 -> 0
B171: 65 | C171: =BASE!E69 -> 0 | E171: =BASE!F69 -> 0
B172: 66 | C172: =BASE!E70 -> 0 | E172: =BASE!F70 -> 0
B173: 67 | C173: =BASE!E71 -> 0 | E173: =BASE!F71 -> 0
B174: 68 | C174: =BASE!E72 -> 0 | E174: =BASE!F72 -> 0
B175: 69 | C175: =BASE!E73 -> 0 | E175: =BASE!F73 -> 0
B176: 70 | C176: =BASE!E74 -> 0 | E176: =BASE!F74 -> 0
B177: 71 | C177: =BASE!E75 -> 0 | E177: =BASE!F75 -> 0
B178: 72 | C178: =BASE!E76 -> 0 | E178: =BASE!F76 -> 0
B179: 73 | C179: =BASE!E77 -> 0 | E179: =BASE!F77 -> 0
B180: 74 | C180: =BASE!E78 -> 0 | E180: =BASE!F78 -> 0
B181: 75 | C181: =BASE!E79 -> 0 | E181: =BASE!F79 -> 0
B182: 76 | C182: =BASE!E80 -> 0 | E182: =BASE!F80 -> 0
B183: 77 | C183: =BASE!E81 -> 0 | E183: =BASE!F81 -> 0
B184: 78 | C184: =BASE!E82 -> 0 | E184: =BASE!F82 -> 0
B185: 79 | C185: =BASE!E83 -> 0 | E185: =BASE!F83 -> 0
B186: 80 | C186: =BASE!E84 -> 0 | E186: =BASE!F84 -> 0
B187: 81 | C187: =BASE!E85 -> 0 | E187: =BASE!G85 -> 0
B188: 82 | C188: =BASE!E86 -> 0 | E188: =BASE!G86 -> 0
B189: 83 | C189: =BASE!E87 -> 0 | E189: =BASE!G87 -> 0
B190: 84 | C190: =BASE!E88 -> 0 | E190: =BASE!G88 -> 0 | G190: 62 | H190: 43 | I190: 54 | J190: 159 | K190: 35
B191: 85 | C191: =BASE!E89 -> الحجم الساعي | E191: =BASE!G89 -> 0

Sheet STAT
C2: نصف داخلي | F2: =AA10 -> 155 | H2: خارجي | K2: =AD10 -> 71 | M2: توزيع تلاميذ المؤسسة حسب الجنس | X2: 2 | Y2: نصف داخلي | AB2: خارجي | AE2: العام
Y3: ذكور | Z3: إناث | AA3: المجموع | AB3: ذكور | AC3: إناث | AD3: المجموع | AE3: ذكور | AF3: إناث | AG3: المجموع
